Workbook

Sheet Januari
O1: Test
C2: =TODAY() -> 2018-03-21 | J2: Feestdag | K2: wknr | L2: dag | M2: datum | N2: tijd in | O2: tijd uit | P2: tijd in | Q2: tijd uit | R2: tijd in | S2: tijd uit | T2: tijd in | U2: tijd uit | V2: werk tijd | W2: 1 | X2: 1.25 | Y2: 1.5 | Z2: 2 | AA2: hulp | AB2: 1 | AC2: 1.25 | AD2: 1.5 | AE2: 1.5 | AF2: 2 | AG2: 1 | AH2: 1.25 | AI2: 1.5 | AJ2: 1.5 | AK2: 2 | AL2: 1 | AM2: 1.25 | AN2: 1.5 | AO2: 1.5 | AP2: 2 | AQ2: 1 | AR2: 1.25 | AS2: 1.5 | AT2: 1.5 | AU2: 2 | AW2: onregelmatigheidstoeslag | BB2: Aantal | BC2: Laden | BD2: Lossen | BE2: Werktijd
B3: 2018 | D3: Kalender | J3: =IF(ISNA(VLOOKUP(M3,feestdagen,2,0)),"",VLOOKUP(M3,feestdagen,2,0)) -> Nieuwjaarsdag | K3: =WEEKNUM(L3,21) -> 1 | L3: =DATE($B$3,$B$4,1) -> 2018-01-01 | M3: =DATE($B$3,$B$4,1) -> 2018-01-01 | V3: =IF(AND(W3="",X3="",Y3="",Z3=""),"",SUM(W3:Z3)) ->  | W3: =IF(AND(AB3="",AG3="",AL3="",AQ3=""),"",SUM(AB3,AG3,AL3,AQ3)) ->  | X3: =IF(AND(AC3="",AH3="",AM3="",AR3=""),"",SUM(AC3,AH3,AM3,AR3)) ->  | Y3: =IF(AND(AD3="",AE3="",AI3="",AJ3="",AN3="",AO3="",AS3="",AT3=""),"",SUM(AD3,AE3,AI3,AJ3,AN3,AO3,AS3,AT3)) ->  | Z3: =IF(AND(AF3="",AK3="",AP3="",AU3=""),"",SUM(AF3,AK3,AP3,AU3)) ->  | AA3: =IF(ISERROR(IF(NOT(ISERROR(MATCH($M3,Blad2!$A$2:$A$11,0))),7,WEEKDAY($M3,2))),"",IF(NOT(ISERROR(MATCH($M3,Blad2!$A$2:$A$11,0))),7,WEEKDAY($M3,2))) -> 7 | AB3: =IF(AND($AA3<6,N3<>"",O3<>""),ort($N3,$O3,$AY$3:$AZ$3),"") ->  | AC3: =IF(AND($AA3<6,N3<>"",O3<>""),ort($N3,$O3,$AY$4:$AZ$5),"") ->  | AD3: =IF(AND($AA3<6,N3<>"",O3<>""),ort($N3,$O3,$AY$6:$AZ$7),"") ->  | AE3: =IF(AND($AA3=6,N3<>"",O3<>""),ort($N3,$O3,$AY$8:$AZ$8),"") ->  | AF3: =IF(AND($AA3=7,N3<>"",O3<>""),ort($N3,$O3,$AY$9:$AZ$9),"") ->  | AG3: =IF(AND($AA3<6,P3<>"",Q3<>""),ort($P3,$Q3,$AY$3:$AZ$3),"") ->  | AH3: =IF(AND($AA3<6,P3<>"",Q3<>""),ort($P3,$Q3,$AY$4:$AZ$5),"") ->  | AI3: =IF(AND($AA3<6,P3<>"",Q3<>""),ort($P3,$Q3,$AY$6:$AZ$7),"") ->  | AJ3: =IF(AND($AA3=6,P3<>"",Q3<>""),ort($P3,$Q3,$AY$8:$AZ$8),"") ->  | AK3: =IF(AND($AA3=7,P3<>"",Q3<>""),ort($P3,$Q3,$AY$9:$AZ$9),"") ->  | AL3: =IF(AND($AA3<6,R3<>"",S3<>""),ort($R3,$S3,$AY$3:$AZ$3),"") ->  | AM3: =IF(AND($AA3<6,R3<>"",S3<>""),ort($R3,$S3,$AY$4:$AZ$5),"") ->  | AN3: =IF(AND($AA3<6,R3<>"",S3<>""),ort($R3,$S3,$AY$6:$AZ$7),"") ->  | AO3: =IF(AND($AA3=6,R3<>"",S3<>""),ort($R3,$S3,$AY$8:$AZ$8),"") ->  | AP3: =IF(AND($AA3=7,R3<>"",S3<>""),ort($R3,$S3,$AY$9:$AZ$9),"") ->  | AQ3: =IF(AND($AA3<6,T3<>"",U3<>""),ort($T3,$U3,$AY$3:$AZ$3),"") ->  | AR3: =IF(AND($AA3<6,T3<>"",U3<>""),ort($T3,$U3,$AY$4:$AZ$5),"") ->  | AS3: =IF(AND($AA3<6,T3<>"",U3<>""),ort($T3,$U3,$AY$6:$AZ$7),"") ->  | AT3: =IF(AND($AA3=6,T3<>"",U3<>""),ort($T3,$U3,$AY$8:$AZ$8),"") ->  | AU3: =IF(AND($AA3=7,T3<>"",U3<>""),ort($T3,$U3,$AY$9:$AZ$9),"") ->  | AW3: 1 | AX3: m-vr | AY3: 0.3958333333 | AZ3: 0.8125 | BE3: =SUM(BB3/26/24,BC3:BD3) -> 00:00:00
B4: 1 | C4: =DATE(B3,B4,1) -> 2018-01-01 | K4: =IF(WEEKDAY(L4)=2,1+INT((L4-DATE(YEAR(L4+4-WEEKDAY(L4+6)),1,5)+WEEKDAY(DATE(YEAR(L4+4-WEEKDAY(L4+6)),1,3)))/7),"") ->  | L4: =DATE($B$3,$B$4,2) -> 2018-01-02 | M4: =DATE($B$3,$B$4,2) -> 2018-01-02 | N4: 0.3958333333 | O4: =SUM(N4,BE4) -> 13:50:46.154 | V4: 0.1810897436 | W4: 0.1810897436 | AA4: =IF(ISERROR(IF(NOT(ISERROR(MATCH($M4,Blad2!$A$2:$A$11,0))),7,WEEKDAY($M4,2))),"",IF(NOT(ISERROR(MATCH($M4,Blad2!$A$2:$A$11,0))),7,WEEKDAY($M4,2))) -> 2 | AB4: =IF(AND($AA4<6,N4<>"",O4<>""),ort($N4,$O4,$AY$3:$AZ$3),"") -> 0.1810897436 | AC4: =IF(AND($AA4<6,N4<>"",O4<>""),ort($N4,$O4,$AY$4:$AZ$5),"") ->  | AD4: =IF(AND($AA4<6,N4<>"",O4<>""),ort($N4,$O4,$AY$6:$AZ$7),"") ->  | AE4: =IF(AND($AA4=6,N4<>"",O4<>""),ort($N4,$O4,$AY$8:$AZ$8),"") ->  | AF4: =IF(AND($AA4=7,N4<>"",O4<>""),ort($N4,$O4,$AY$9:$AZ$9),"") ->  | AG4: =IF(AND($AA4<6,P4<>"",Q4<>""),ort($P4,$Q4,$AY$3:$AZ$3),"") ->  | AH4: =IF(AND($AA4<6,P4<>"",Q4<>""),ort($P4,$Q4,$AY$4:$AZ$5),"") ->  | AI4: =IF(AND($AA4<6,P4<>"",Q4<>""),ort($P4,$Q4,$AY$6:$AZ$7),"") ->  | AJ4: =IF(AND($AA4=6,P4<>"",Q4<>""),ort($P4,$Q4,$AY$8:$AZ$8),"") ->  | AK4: =IF(AND($AA4=7,P4<>"",Q4<>""),ort($P4,$Q4,$AY$9:$AZ$9),"") ->  | AL4: =IF(AND($AA4<6,R4<>"",S4<>""),ort($R4,$S4,$AY$3:$AZ$3),"") ->  | AM4: =IF(AND($AA4<6,R4<>"",S4<>""),ort($R4,$S4,$AY$4:$AZ$5),"") ->  | AN4: =IF(AND($AA4<6,R4<>"",S4<>""),ort($R4,$S4,$AY$6:$AZ$7),"") ->  | AO4: =IF(AND($AA4=6,R4<>"",S4<>""),ort($R4,$S4,$AY$8:$AZ$8),"") ->  | AP4: =IF(AND($AA4=7,R4<>"",S4<>""),ort($R4,$S4,$AY$9:$AZ$9),"") ->  | AQ4: =IF(AND($AA4<6,T4<>"",U4<>""),ort($T4,$U4,$AY$3:$AZ$3),"") ->  | AR4: =IF(AND($AA4<6,T4<>"",U4<>""),ort($T4,$U4,$AY$4:$AZ$5),"") ->  | AS4: =IF(AND($AA4<6,T4<>"",U4<>""),ort($T4,$U4,$AY$6:$AZ$7),"") ->  | AT4: =IF(AND($AA4=6,T4<>"",U4<>""),ort($T4,$U4,$AY$8:$AZ$8),"") ->  | AU4: =IF(AND($AA4=7,T4<>"",U4<>""),ort($T4,$U4,$AY$9:$AZ$9),"") ->  | AW4: 1.25 | AX4: m-vr | AY4: 0.25 | AZ4: 0.3125 | BB4: 100 | BC4: 00:30:00 | BE4: =SUM(BB4/26/24,BC4:BD4) -> 04:20:46.154
C5: Ma | D5: Di | E5: Wo | F5: Do | G5: Vr | H5: Za | I5: Zo | L5: =DATE($B$3,$B$4,3) -> 2018-01-03 | M5: =DATE($B$3,$B$4,3) -> 2018-01-03 | N5: 0.3958333333 | O5: =SUM(N5,BE5) -> 11:55:23.077 | V5: 0.1009615385 | W5: 0.1009615385 | AA5: =IF(ISERROR(IF(NOT(ISERROR(MATCH($M5,Blad2!$A$2:$A$11,0))),7,WEEKDAY($M5,2))),"",IF(NOT(ISERROR(MATCH($M5,Blad2!$A$2:$A$11,0))),7,WEEKDAY($M5,2))) -> 3 | AB5: =IF(AND($AA5<6,N5<>"",O5<>""),ort($N5,$O5,$AY$3:$AZ$3),"") -> 0.1009615385 | AC5: =IF(AND($AA5<6,N5<>"",O5<>""),ort($N5,$O5,$AY$4:$AZ$5),"") ->  | AD5: =IF(AND($AA5<6,N5<>"",O5<>""),ort($N5,$O5,$AY$6:$AZ$7),"") ->  | AE5: =IF(AND($AA5=6,N5<>"",O5<>""),ort($N5,$O5,$AY$8:$AZ$8),"") ->  | AF5: =IF(AND($AA5=7,N5<>"",O5<>""),ort($N5,$O5,$AY$9:$AZ$9),"") ->  | AG5: =IF(AND($AA5<6,P5<>"",Q5<>""),ort($P5,$Q5,$AY$3:$AZ$3),"") ->  | AH5: =IF(AND($AA5<6,P5<>"",Q5<>""),ort($P5,$Q5,$AY$4:$AZ$5),"") ->  | AI5: =IF(AND($AA5<6,P5<>"",Q5<>""),ort($P5,$Q5,$AY$6:$AZ$7),"") ->  | AJ5: =IF(AND($AA5=6,P5<>"",Q5<>""),ort($P5,$Q5,$AY$8:$AZ$8),"") ->  | AK5: =IF(AND($AA5=7,P5<>"",Q5<>""),ort($P5,$Q5,$AY$9:$AZ$9),"") ->  | AL5: =IF(AND($AA5<6,R5<>"",S5<>""),ort($R5,$S5,$AY$3:$AZ$3),"") ->  | AM5: =IF(AND($AA5<6,R5<>"",S5<>""),ort($R5,$S5,$AY$4:$AZ$5),"") ->  | AN5: =IF(AND($AA5<6,R5<>"",S5<>""),ort($R5,$S5,$AY$6:$AZ$7),"") ->  | AO5: =IF(AND($AA5=6,R5<>"",S5<>""),ort($R5,$S5,$AY$8:$AZ$8),"") ->  | AP5: =IF(AND($AA5=7,R5<>"",S5<>""),ort($R5,$S5,$AY$9:$AZ$9),"") ->  | AQ5: =IF(AND($AA5<6,T5<>"",U5<>""),ort($T5,$U5,$AY$3:$AZ$3),"") ->  | AR5: =IF(AND($AA5<6,T5<>"",U5<>""),ort($T5,$U5,$AY$4:$AZ$5),"") ->  | AS5: =IF(AND($AA5<6,T5<>"",U5<>""),ort($T5,$U5,$AY$6:$AZ$7),"") ->  | AT5: =IF(AND($AA5=6,T5<>"",U5<>""),ort($T5,$U5,$AY$8:$AZ$8),"") ->  | AU5: =IF(AND($AA5=7,T5<>"",U5<>""),ort($T5,$U5,$AY$9:$AZ$9),"") ->  | AW5: 1.25 | AX5: m-vr | AY5: 0.75 | AZ5: 0.7708333333 | BB5: 50 | BD5: 00:30:00 | BE5: 02:25:23.077
C6: =IF(WEEKDAY(C4,2)=1,C4,"") -> 2018-01-01 | D6: =IF(WEEKDAY(C4,2)=2,C4,IF(C6<>"",C6+1,"")) -> 2018-01-02 | E6: =IF(WEEKDAY(C4,2)=3,C4,IF(D6<>"",D6+1,"")) -> 2018-01-03 | F6: =IF(WEEKDAY(C4,2)=4,C4,IF(E6<>"",E6+1,"")) -> 2018-01-04 | G6: =IF(WEEKDAY(C4,2)=5,C4,IF(F6<>"",F6+1,"")) -> 2018-01-05 | H6: =IF(WEEKDAY(C4,2)=6,C4,IF(G6<>"",G6+1,"")) -> 2018-01-06 | I6: =IF(WEEKDAY(C4,2)=7,C4,IF(H6<>"",H6+1,"")) -> 2018-01-07 | L6: =DATE($B$3,$B$4,4) -> 2018-01-04 | M6: =DATE($B$3,$B$4,4) -> 2018-01-04 | N6: 0.3958333333 | O6: 12:41:32.308 | V6: 0.1330128205 | W6: 0.1330128205 | AA6: =IF(ISERROR(IF(NOT(ISERROR(MATCH($M6,Blad2!$A$2:$A$11,0))),7,WEEKDAY($M6,2))),"",IF(NOT(ISERROR(MATCH($M6,Blad2!$A$2:$A$11,0))),7,WEEKDAY($M6,2))) -> 4 | AB6: =IF(AND($AA6<6,N6<>"",O6<>""),ort($N6,$O6,$AY$3:$AZ$3),"") -> 0.1330128205 | AC6: =IF(AND($AA6<6,N6<>"",O6<>""),ort($N6,$O6,$AY$4:$AZ$5),"") ->  | AD6: =IF(AND($AA6<6,N6<>"",O6<>""),ort($N6,$O6,$AY$6:$AZ$7),"") ->  | AE6: =IF(AND($AA6=6,N6<>"",O6<>""),ort($N6,$O6,$AY$8:$AZ$8),"") ->  | AF6: =IF(AND($AA6=7,N6<>"",O6<>""),ort($N6,$O6,$AY$9:$AZ$9),"") ->  | AG6: =IF(AND($AA6<6,P6<>"",Q6<>""),ort($P6,$Q6,$AY$3:$AZ$3),"") ->  | AH6: =IF(AND($AA6<6,P6<>"",Q6<>""),ort($P6,$Q6,$AY$4:$AZ$5),"") ->  | AI6: =IF(AND($AA6<6,P6<>"",Q6<>""),ort($P6,$Q6,$AY$6:$AZ$7),"") ->  | AJ6: =IF(AND($AA6=6,P6<>"",Q6<>""),ort($P6,$Q6,$AY$8:$AZ$8),"") ->  | AK6: =IF(AND($AA6=7,P6<>"",Q6<>""),ort($P6,$Q6,$AY$9:$AZ$9),"") ->  | AL6: =IF(AND($AA6<6,R6<>"",S6<>""),ort($R6,$S6,$AY$3:$AZ$3),"") ->  | AM6: =IF(AND($AA6<6,R6<>"",S6<>""),ort($R6,$S6,$AY$4:$AZ$5),"") ->  | AN6: =IF(AND($AA6<6,R6<>"",S6<>""),ort($R6,$S6,$AY$6:$AZ$7),"") ->  | AO6: =IF(AND($AA6=6,R6<>"",S6<>""),ort($R6,$S6,$AY$8:$AZ$8),"") ->  | AP6: =IF(AND($AA6=7,R6<>"",S6<>""),ort($R6,$S6,$AY$9:$AZ$9),"") ->  | AQ6: =IF(AND($AA6<6,T6<>"",U6<>""),ort($T6,$U6,$AY$3:$AZ$3),"") ->  | AR6: =IF(AND($AA6<6,T6<>"",U6<>""),ort($T6,$U6,$AY$4:$AZ$5),"") ->  | AS6: =IF(AND($AA6<6,T6<>"",U6<>""),ort($T6,$U6,$AY$6:$AZ$7),"") ->  | AT6: =IF(AND($AA6=6,T6<>"",U6<>""),ort($T6,$U6,$AY$8:$AZ$8),"") ->  | AU6: =IF(AND($AA6=7,T6<>"",U6<>""),ort($T6,$U6,$AY$9:$AZ$9),"") ->  | AW6: 1.5 | AX6: m-vr | AY6: 0 | AZ6: 0.25 | BB6: 70 | BC6: 00:30:00 | BE6: 03:11:32.308
C7: =I6+1 -> 2018-01-08 | D7: =C7+1 -> 2018-01-09 | E7: 2018-01-10 | F7: 2018-01-11 | G7: 2018-01-12 | H7: 2018-01-13 | I7: 2018-01-14 | L7: =DATE($B$3,$B$4,5) -> 2018-01-05 | M7: =DATE($B$3,$B$4,5) -> 2018-01-05 | N7: 0.3958333333 | O7: 13:04:36.923 | V7: 0.1490384615 | W7: 0.1490384615 | AA7: =IF(ISERROR(IF(NOT(ISERROR(MATCH($M7,Blad2!$A$2:$A$11,0))),7,WEEKDAY($M7,2))),"",IF(NOT(ISERROR(MATCH($M7,Blad2!$A$2:$A$11,0))),7,WEEKDAY($M7,2))) -> 5 | AB7: =IF(AND($AA7<6,N7<>"",O7<>""),ort($N7,$O7,$AY$3:$AZ$3),"") -> 0.1490384615 | AC7: =IF(AND($AA7<6,N7<>"",O7<>""),ort($N7,$O7,$AY$4:$AZ$5),"") ->  | AD7: =IF(AND($AA7<6,N7<>"",O7<>""),ort($N7,$O7,$AY$6:$AZ$7),"") ->  | AE7: =IF(AND($AA7=6,N7<>"",O7<>""),ort($N7,$O7,$AY$8:$AZ$8),"") ->  | AF7: =IF(AND($AA7=7,N7<>"",O7<>""),ort($N7,$O7,$AY$9:$AZ$9),"") ->  | AG7: =IF(AND($AA7<6,P7<>"",Q7<>""),ort($P7,$Q7,$AY$3:$AZ$3),"") ->  | AH7: =IF(AND($AA7<6,P7<>"",Q7<>""),ort($P7,$Q7,$AY$4:$AZ$5),"") ->  | AI7: =IF(AND($AA7<6,P7<>"",Q7<>""),ort($P7,$Q7,$AY$6:$AZ$7),"") ->  | AJ7: =IF(AND($AA7=6,P7<>"",Q7<>""),ort($P7,$Q7,$AY$8:$AZ$8),"") ->  | AK7: =IF(AND($AA7=7,P7<>"",Q7<>""),ort($P7,$Q7,$AY$9:$AZ$9),"") ->  | AL7: =IF(AND($AA7<6,R7<>"",S7<>""),ort($R7,$S7,$AY$3:$AZ$3),"") ->  | AM7: =IF(AND($AA7<6,R7<>"",S7<>""),ort($R7,$S7,$AY$4:$AZ$5),"") ->  | AN7: =IF(AND($AA7<6,R7<>"",S7<>""),ort($R7,$S7,$AY$6:$AZ$7),"") ->  | AO7: =IF(AND($AA7=6,R7<>"",S7<>""),ort($R7,$S7,$AY$8:$AZ$8),"") ->  | AP7: =IF(AND($AA7=7,R7<>"",S7<>""),ort($R7,$S7,$AY$9:$AZ$9),"") ->  | AQ7: =IF(AND($AA7<6,T7<>"",U7<>""),ort($T7,$U7,$AY$3:$AZ$3),"") ->  | AR7: =IF(AND($AA7<6,T7<>"",U7<>""),ort($T7,$U7,$AY$4:$AZ$5),"") ->  | AS7: =IF(AND($AA7<6,T7<>"",U7<>""),ort($T7,$U7,$AY$6:$AZ$7),"") ->  | AT7: =IF(AND($AA7=6,T7<>"",U7<>""),ort($T7,$U7,$AY$8:$AZ$8),"") ->  | AU7: =IF(AND($AA7=7,T7<>"",U7<>""),ort($T7,$U7,$AY$9:$AZ$9),"") ->  | AW7: 1.5 | AX7: m-vr | AY7: 0.7708333333 | AZ7: 1 | BB7: 80 | BC7: 00:30:00 | BE7: 03:34:36.923
C8: =I7+1 -> 2018-01-15 | D8: 2018-01-16 | E8: 2018-01-17 | F8: 2018-01-18 | G8: 2018-01-19 | H8: 2018-01-20 | I8: 2018-01-21 | L8: =DATE($B$3,$B$4,6) -> 2018-01-06 | M8: =DATE($B$3,$B$4,6) -> 2018-01-06 | O8: 00:00:00 | AA8: =IF(ISERROR(IF(NOT(ISERROR(MATCH($M8,Blad2!$A$2:$A$11,0))),7,WEEKDAY($M8,2))),"",IF(NOT(ISERROR(MATCH($M8,Blad2!$A$2:$A$11,0))),7,WEEKDAY($M8,2))) -> 6 | AB8: =IF(AND($AA8<6,N8<>"",O8<>""),ort($N8,$O8,$AY$3:$AZ$3),"") ->  | AC8: =IF(AND($AA8<6,N8<>"",O8<>""),ort($N8,$O8,$AY$4:$AZ$5),"") ->  | AD8: =IF(AND($AA8<6,N8<>"",O8<>""),ort($N8,$O8,$AY$6:$AZ$7),"") ->  | AE8: =IF(AND($AA8=6,N8<>"",O8<>""),ort($N8,$O8,$AY$8:$AZ$8),"") ->  | AF8: =IF(AND($AA8=7,N8<>"",O8<>""),ort($N8,$O8,$AY$9:$AZ$9),"") ->  | AG8: =IF(AND($AA8<6,P8<>"",Q8<>""),ort($P8,$Q8,$AY$3:$AZ$3),"") ->  | AH8: =IF(AND($AA8<6,P8<>"",Q8<>""),ort($P8,$Q8,$AY$4:$AZ$5),"") ->  | AI8: =IF(AND($AA8<6,P8<>"",Q8<>""),ort($P8,$Q8,$AY$6:$AZ$7),"") ->  | AJ8: =IF(AND($AA8=6,P8<>"",Q8<>""),ort($P8,$Q8,$AY$8:$AZ$8),"") ->  | AK8: =IF(AND($AA8=7,P8<>"",Q8<>""),ort($P8,$Q8,$AY$9:$AZ$9),"") ->  | AL8: =IF(AND($AA8<6,R8<>"",S8<>""),ort($R8,$S8,$AY$3:$AZ$3),"") ->  | AM8: =IF(AND($AA8<6,R8<>"",S8<>""),ort($R8,$S8,$AY$4:$AZ$5),"") ->  | AN8: =IF(AND($AA8<6,R8<>"",S8<>""),ort($R8,$S8,$AY$6:$AZ$7),"") ->  | AO8: =IF(AND($AA8=6,R8<>"",S8<>""),ort($R8,$S8,$AY$8:$AZ$8),"") ->  | AP8: =IF(AND($AA8=7,R8<>"",S8<>""),ort($R8,$S8,$AY$9:$AZ$9),"") ->  | AQ8: =IF(AND($AA8<6,T8<>"",U8<>""),ort($T8,$U8,$AY$3:$AZ$3),"") ->  | AR8: =IF(AND($AA8<6,T8<>"",U8<>""),ort($T8,$U8,$AY$4:$AZ$5),"") ->  | AS8: =IF(AND($AA8<6,T8<>"",U8<>""),ort($T8,$U8,$AY$6:$AZ$7),"") ->  | AT8: =IF(AND($AA8=6,T8<>"",U8<>""),ort($T8,$U8,$AY$8:$AZ$8),"") ->  | AU8: =IF(AND($AA8=7,T8<>"",U8<>""),ort($T8,$U8,$AY$9:$AZ$9),"") ->  | AW8: 1.5 | AX8: za | AY8: 0 | AZ8: 1 | BE8: 00:00:00
C9: =I8+1 -> 2018-01-22 | D9: 2018-01-23 | E9: 2018-01-24 | F9: 2018-01-25 | G9: 2018-01-26 | H9: 2018-01-27 | I9: 2018-01-28 | L9: =DATE($B$3,$B$4,7) -> 2018-01-07 | M9: =DATE($B$3,$B$4,7) -> 2018-01-07 | O9: 00:00:00 | AA9: =IF(ISERROR(IF(NOT(ISERROR(MATCH($M9,Blad2!$A$2:$A$11,0))),7,WEEKDAY($M9,2))),"",IF(NOT(ISERROR(MATCH($M9,Blad2!$A$2:$A$11,0))),7,WEEKDAY($M9,2))) -> 7 | AB9: =IF(AND($AA9<6,N9<>"",O9<>""),ort($N9,$O9,$AY$3:$AZ$3),"") ->  | AC9: =IF(AND($AA9<6,N9<>"",O9<>""),ort($N9,$O9,$AY$4:$AZ$5),"") ->  | AD9: =IF(AND($AA9<6,N9<>"",O9<>""),ort($N9,$O9,$AY$6:$AZ$7),"") ->  | AE9: =IF(AND($AA9=6,N9<>"",O9<>""),ort($N9,$O9,$AY$8:$AZ$8),"") ->  | AF9: =IF(AND($AA9=7,N9<>"",O9<>""),ort($N9,$O9,$AY$9:$AZ$9),"") ->  | AG9: =IF(AND($AA9<6,P9<>"",Q9<>""),ort($P9,$Q9,$AY$3:$AZ$3),"") ->  | AH9: =IF(AND($AA9<6,P9<>"",Q9<>""),ort($P9,$Q9,$AY$4:$AZ$5),"") ->  | AI9: =IF(AND($AA9<6,P9<>"",Q9<>""),ort($P9,$Q9,$AY$6:$AZ$7),"") ->  | AJ9: =IF(AND($AA9=6,P9<>"",Q9<>""),ort($P9,$Q9,$AY$8:$AZ$8),"") ->  | AK9: =IF(AND($AA9=7,P9<>"",Q9<>""),ort($P9,$Q9,$AY$9:$AZ$9),"") ->  | AL9: =IF(AND($AA9<6,R9<>"",S9<>""),ort($R9,$S9,$AY$3:$AZ$3),"") ->  | AM9: =IF(AND($AA9<6,R9<>"",S9<>""),ort($R9,$S9,$AY$4:$AZ$5),"") ->  | AN9: =IF(AND($AA9<6,R9<>"",S9<>""),ort($R9,$S9,$AY$6:$AZ$7),"") ->  | AO9: =IF(AND($AA9=6,R9<>"",S9<>""),ort($R9,$S9,$AY$8:$AZ$8),"") ->  | AP9: =IF(AND($AA9=7,R9<>"",S9<>""),ort($R9,$S9,$AY$9:$AZ$9),"") ->  | AQ9: =IF(AND($AA9<6,T9<>"",U9<>""),ort($T9,$U9,$AY$3:$AZ$3),"") ->  | AR9: =IF(AND($AA9<6,T9<>"",U9<>""),ort($T9,$U9,$AY$4:$AZ$5),"") ->  | AS9: =IF(AND($AA9<6,T9<>"",U9<>""),ort($T9,$U9,$AY$6:$AZ$7),"") ->  | AT9: =IF(AND($AA9=6,T9<>"",U9<>""),ort($T9,$U9,$AY$8:$AZ$8),"") ->  | AU9: =IF(AND($AA9=7,T9<>"",U9<>""),ort($T9,$U9,$AY$9:$AZ$9),"") ->  | AW9: 2 | AX9: zo/feest | AY9: 0 | AZ9: 1 | BE9: 00:00:00
C10: =IF(I9="","",IF(MONTH(I9+1)=MONTH(I9),I9+1,"")) -> 2018-01-29 | D10: =IF(C10="","",IF(MONTH(C10+1)=MONTH(C10),C10+1,"")) -> 2018-01-30 | E10: 2018-01-31 | K10: 2 | L10: =DATE($B$3,$B$4,8) -> 2018-01-08 | M10: =DATE($B$3,$B$4,8) -> 2018-01-08 | O10: 00:00:00 | AA10: =IF(ISERROR(IF(NOT(ISERROR(MATCH($M10,Blad2!$A$2:$A$11,0))),7,WEEKDAY($M10,2))),"",IF(NOT(ISERROR(MATCH($M10,Blad2!$A$2:$A$11,0))),7,WEEKDAY($M10,2))) -> 1 | AB10: =IF(AND($AA10<6,N10<>"",O10<>""),ort($N10,$O10,$AY$3:$AZ$3),"") ->  | AC10: =IF(AND($AA10<6,N10<>"",O10<>""),ort($N10,$O10,$AY$4:$AZ$5),"") ->  | AD10: =IF(AND($AA10<6,N10<>"",O10<>""),ort($N10,$O10,$AY$6:$AZ$7),"") ->  | AE10: =IF(AND($AA10=6,N10<>"",O10<>""),ort($N10,$O10,$AY$8:$AZ$8),"") ->  | AF10: =IF(AND($AA10=7,N10<>"",O10<>""),ort($N10,$O10,$AY$9:$AZ$9),"") ->  | AG10: =IF(AND($AA10<6,P10<>"",Q10<>""),ort($P10,$Q10,$AY$3:$AZ$3),"") ->  | AH10: =IF(AND($AA10<6,P10<>"",Q10<>""),ort($P10,$Q10,$AY$4:$AZ$5),"") ->  | AI10: =IF(AND($AA10<6,P10<>"",Q10<>""),ort($P10,$Q10,$AY$6:$AZ$7),"") ->  | AJ10: =IF(AND($AA10=6,P10<>"",Q10<>""),ort($P10,$Q10,$AY$8:$AZ$8),"") ->  | AK10: =IF(AND($AA10=7,P10<>"",Q10<>""),ort($P10,$Q10,$AY$9:$AZ$9),"") ->  | AL10: =IF(AND($AA10<6,R10<>"",S10<>""),ort($R10,$S10,$AY$3:$AZ$3),"") ->  | AM10: =IF(AND($AA10<6,R10<>"",S10<>""),ort($R10,$S10,$AY$4:$AZ$5),"") ->  | AN10: =IF(AND($AA10<6,R10<>"",S10<>""),ort($R10,$S10,$AY$6:$AZ$7),"") ->  | AO10: =IF(AND($AA10=6,R10<>"",S10<>""),ort($R10,$S10,$AY$8:$AZ$8),"") ->  | AP10: =IF(AND($AA10=7,R10<>"",S10<>""),ort($R10,$S10,$AY$9:$AZ$9),"") ->  | AQ10: =IF(AND($AA10<6,T10<>"",U10<>""),ort($T10,$U10,$AY$3:$AZ$3),"") ->  | AR10: =IF(AND($AA10<6,T10<>"",U10<>""),ort($T10,$U10,$AY$4:$AZ$5),"") ->  | AS10: =IF(AND($AA10<6,T10<>"",U10<>""),ort($T10,$U10,$AY$6:$AZ$7),"") ->  | AT10: =IF(AND($AA10=6,T10<>"",U10<>""),ort($T10,$U10,$AY$8:$AZ$8),"") ->  | AU10: =IF(AND($AA10=7,T10<>"",U10<>""),ort($T10,$U10,$AY$9:$AZ$9),"") ->  | BE10: 00:00:00
C11: =IF(I10="","",IF(MONTH(I10+1)=MONTH(I10),I10+1,"")) ->  | L11: =DATE($B$3,$B$4,9) -> 2018-01-09 | M11: =DATE($B$3,$B$4,9) -> 2018-01-09 | O11: 00:00:00 | AA11: =IF(ISERROR(IF(NOT(ISERROR(MATCH($M11,Blad2!$A$2:$A$11,0))),7,WEEKDAY($M11,2))),"",IF(NOT(ISERROR(MATCH($M11,Blad2!$A$2:$A$11,0))),7,WEEKDAY($M11,2))) -> 2 | AB11: =IF(AND($AA11<6,N11<>"",O11<>""),ort($N11,$O11,$AY$3:$AZ$3),"") ->  | AC11: =IF(AND($AA11<6,N11<>"",O11<>""),ort($N11,$O11,$AY$4:$AZ$5),"") ->  | AD11: =IF(AND($AA11<6,N11<>"",O11<>""),ort($N11,$O11,$AY$6:$AZ$7),"") ->  | AE11: =IF(AND($AA11=6,N11<>"",O11<>""),ort($N11,$O11,$AY$8:$AZ$8),"") ->  | AF11: =IF(AND($AA11=7,N11<>"",O11<>""),ort($N11,$O11,$AY$9:$AZ$9),"") ->  | AG11: =IF(AND($AA11<6,P11<>"",Q11<>""),ort($P11,$Q11,$AY$3:$AZ$3),"") ->  | AH11: =IF(AND($AA11<6,P11<>"",Q11<>""),ort($P11,$Q11,$AY$4:$AZ$5),"") ->  | AI11: =IF(AND($AA11<6,P11<>"",Q11<>""),ort($P11,$Q11,$AY$6:$AZ$7),"") ->  | AJ11: =IF(AND($AA11=6,P11<>"",Q11<>""),ort($P11,$Q11,$AY$8:$AZ$8),"") ->  | AK11: =IF(AND($AA11=7,P11<>"",Q11<>""),ort($P11,$Q11,$AY$9:$AZ$9),"") ->  | AL11: =IF(AND($AA11<6,R11<>"",S11<>""),ort($R11,$S11,$AY$3:$AZ$3),"") ->  | AM11: =IF(AND($AA11<6,R11<>"",S11<>""),ort($R11,$S11,$AY$4:$AZ$5),"") ->  | AN11: =IF(AND($AA11<6,R11<>"",S11<>""),ort($R11,$S11,$AY$6:$AZ$7),"") ->  | AO11: =IF(AND($AA11=6,R11<>"",S11<>""),ort($R11,$S11,$AY$8:$AZ$8),"") ->  | AP11: =IF(AND($AA11=7,R11<>"",S11<>""),ort($R11,$S11,$AY$9:$AZ$9),"") ->  | AQ11: =IF(AND($AA11<6,T11<>"",U11<>""),ort($T11,$U11,$AY$3:$AZ$3),"") ->  | AR11: =IF(AND($AA11<6,T11<>"",U11<>""),ort($T11,$U11,$AY$4:$AZ$5),"") ->  | AS11: =IF(AND($AA11<6,T11<>"",U11<>""),ort($T11,$U11,$AY$6:$AZ$7),"") ->  | AT11: =IF(AND($AA11=6,T11<>"",U11<>""),ort($T11,$U11,$AY$8:$AZ$8),"") ->  | AU11: =IF(AND($AA11=7,T11<>"",U11<>""),ort($T11,$U11,$AY$9:$AZ$9),"") ->  | BE11: 00:00:00
L12: =DATE($B$3,$B$4,10) -> 2018-01-10 | M12: =DATE($B$3,$B$4,10) -> 2018-01-10 | O12: 00:00:00 | AA12: =IF(ISERROR(IF(NOT(ISERROR(MATCH($M12,Blad2!$A$2:$A$11,0))),7,WEEKDAY($M12,2))),"",IF(NOT(ISERROR(MATCH($M12,Blad2!$A$2:$A$11,0))),7,WEEKDAY($M12,2))) -> 3 | AB12: =IF(AND($AA12<6,N12<>"",O12<>""),ort($N12,$O12,$AY$3:$AZ$3),"") ->  | AC12: =IF(AND($AA12<6,N12<>"",O12<>""),ort($N12,$O12,$AY$4:$AZ$5),"") ->  | AD12: =IF(AND($AA12<6,N12<>"",O12<>""),ort($N12,$O12,$AY$6:$AZ$7),"") ->  | AE12: =IF(AND($AA12=6,N12<>"",O12<>""),ort($N12,$O12,$AY$8:$AZ$8),"") ->  | AF12: =IF(AND($AA12=7,N12<>"",O12<>""),ort($N12,$O12,$AY$9:$AZ$9),"") ->  | AG12: =IF(AND($AA12<6,P12<>"",Q12<>""),ort($P12,$Q12,$AY$3:$AZ$3),"") ->  | AH12: =IF(AND($AA12<6,P12<>"",Q12<>""),ort($P12,$Q12,$AY$4:$AZ$5),"") ->  | AI12: =IF(AND($AA12<6,P12<>"",Q12<>""),ort($P12,$Q12,$AY$6:$AZ$7),"") ->  | AJ12: =IF(AND($AA12=6,P12<>"",Q12<>""),ort($P12,$Q12,$AY$8:$AZ$8),"") ->  | AK12: =IF(AND($AA12=7,P12<>"",Q12<>""),ort($P12,$Q12,$AY$9:$AZ$9),"") ->  | AL12: =IF(AND($AA12<6,R12<>"",S12<>""),ort($R12,$S12,$AY$3:$AZ$3),"") ->  | AM12: =IF(AND($AA12<6,R12<>"",S12<>""),ort($R12,$S12,$AY$4:$AZ$5),"") ->  | AN12: =IF(AND($AA12<6,R12<>"",S12<>""),ort($R12,$S12,$AY$6:$AZ$7),"") ->  | AO12: =IF(AND($AA12=6,R12<>"",S12<>""),ort($R12,$S12,$AY$8:$AZ$8),"") ->  | AP12: =IF(AND($AA12=7,R12<>"",S12<>""),ort($R12,$S12,$AY$9:$AZ$9),"") ->  | AQ12: =IF(AND($AA12<6,T12<>"",U12<>""),ort($T12,$U12,$AY$3:$AZ$3),"") ->  | AR12: =IF(AND($AA12<6,T12<>"",U12<>""),ort($T12,$U12,$AY$4:$AZ$5),"") ->  | AS12: =IF(AND($AA12<6,T12<>"",U12<>""),ort($T12,$U12,$AY$6:$AZ$7),"") ->  | AT12: =IF(AND($AA12=6,T12<>"",U12<>""),ort($T12,$U12,$AY$8:$AZ$8),"") ->  | AU12: =IF(AND($AA12=7,T12<>"",U12<>""),ort($T12,$U12,$AY$9:$AZ$9),"") ->  | BE12: 00:00:00
B13: Werkdagen deze maand | L13: =DATE($B$3,$B$4,11) -> 2018-01-11 | M13: =DATE($B$3,$B$4,11) -> 2018-01-11 | O13: 00:00:00 | AA13: =IF(ISERROR(IF(NOT(ISERROR(MATCH($M13,Blad2!$A$2:$A$11,0))),7,WEEKDAY($M13,2))),"",IF(NOT(ISERROR(MATCH($M13,Blad2!$A$2:$A$11,0))),7,WEEKDAY($M13,2))) -> 4 | AB13: =IF(AND($AA13<6,N13<>"",O13<>""),ort($N13,$O13,$AY$3:$AZ$3),"") ->  | AC13: =IF(AND($AA13<6,N13<>"",O13<>""),ort($N13,$O13,$AY$4:$AZ$5),"") ->  | AD13: =IF(AND($AA13<6,N13<>"",O13<>""),ort($N13,$O13,$AY$6:$AZ$7),"") ->  | AE13: =IF(AND($AA13=6,N13<>"",O13<>""),ort($N13,$O13,$AY$8:$AZ$8),"") ->  | AF13: =IF(AND($AA13=7,N13<>"",O13<>""),ort($N13,$O13,$AY$9:$AZ$9),"") ->  | AG13: =IF(AND($AA13<6,P13<>"",Q13<>""),ort($P13,$Q13,$AY$3:$AZ$3),"") ->  | AH13: =IF(AND($AA13<6,P13<>"",Q13<>""),ort($P13,$Q13,$AY$4:$AZ$5),"") ->  | AI13: =IF(AND($AA13<6,P13<>"",Q13<>""),ort($P13,$Q13,$AY$6:$AZ$7),"") ->  | AJ13: =IF(AND($AA13=6,P13<>"",Q13<>""),ort($P13,$Q13,$AY$8:$AZ$8),"") ->  | AK13: =IF(AND($AA13=7,P13<>"",Q13<>""),ort($P13,$Q13,$AY$9:$AZ$9),"") ->  | AL13: =IF(AND($AA13<6,R13<>"",S13<>""),ort($R13,$S13,$AY$3:$AZ$3),"") ->  | AM13: =IF(AND($AA13<6,R13<>"",S13<>""),ort($R13,$S13,$AY$4:$AZ$5),"") ->  | AN13: =IF(AND($AA13<6,R13<>"",S13<>""),ort($R13,$S13,$AY$6:$AZ$7),"") ->  | AO13: =IF(AND($AA13=6,R13<>"",S13<>""),ort($R13,$S13,$AY$8:$AZ$8),"") ->  | AP13: =IF(AND($AA13=7,R13<>"",S13<>""),ort($R13,$S13,$AY$9:$AZ$9),"") ->  | AQ13: =IF(AND($AA13<6,T13<>"",U13<>""),ort($T13,$U13,$AY$3:$AZ$3),"") ->  | AR13: =IF(AND($AA13<6,T13<>"",U13<>""),ort($T13,$U13,$AY$4:$AZ$5),"") ->  | AS13: =IF(AND($AA13<6,T13<>"",U13<>""),ort($T13,$U13,$AY$6:$AZ$7),"") ->  | AT13: =IF(AND($AA13=6,T13<>"",U13<>""),ort($T13,$U13,$AY$8:$AZ$8),"") ->  | AU13: =IF(AND($AA13=7,T13<>"",U13<>""),ort($T13,$U13,$AY$9:$AZ$9),"") ->  | BE13: 00:00:00
B14: =NETWORKDAYS($L$3,EOMONTH($L$3,0),Blad2!A2:A97)&" dagen" -> 22 dagen | L14: =DATE($B$3,$B$4,12) -> 2018-01-12 | M14: =DATE($B$3,$B$4,12) -> 2018-01-12 | O14: 00:00:00 | AA14: =IF(ISERROR(IF(NOT(ISERROR(MATCH($M14,Blad2!$A$2:$A$11,0))),7,WEEKDAY($M14,2))),"",IF(NOT(ISERROR(MATCH($M14,Blad2!$A$2:$A$11,0))),7,WEEKDAY($M14,2))) -> 5 | AB14: =IF(AND($AA14<6,N14<>"",O14<>""),ort($N14,$O14,$AY$3:$AZ$3),"") ->  | AC14: =IF(AND($AA14<6,N14<>"",O14<>""),ort($N14,$O14,$AY$4:$AZ$5),"") ->  | AD14: =IF(AND($AA14<6,N14<>"",O14<>""),ort($N14,$O14,$AY$6:$AZ$7),"") ->  | AE14: =IF(AND($AA14=6,N14<>"",O14<>""),ort($N14,$O14,$AY$8:$AZ$8),"") ->  | AF14: =IF(AND($AA14=7,N14<>"",O14<>""),ort($N14,$O14,$AY$9:$AZ$9),"") ->  | AG14: =IF(AND($AA14<6,P14<>"",Q14<>""),ort($P14,$Q14,$AY$3:$AZ$3),"") ->  | AH14: =IF(AND($AA14<6,P14<>"",Q14<>""),ort($P14,$Q14,$AY$4:$AZ$5),"") ->  | AI14: =IF(AND($AA14<6,P14<>"",Q14<>""),ort($P14,$Q14,$AY$6:$AZ$7),"") ->  | AJ14: =IF(AND($AA14=6,P14<>"",Q14<>""),ort($P14,$Q14,$AY$8:$AZ$8),"") ->  | AK14: =IF(AND($AA14=7,P14<>"",Q14<>""),ort($P14,$Q14,$AY$9:$AZ$9),"") ->  | AL14: =IF(AND($AA14<6,R14<>"",S14<>""),ort($R14,$S14,$AY$3:$AZ$3),"") ->  | AM14: =IF(AND($AA14<6,R14<>"",S14<>""),ort($R14,$S14,$AY$4:$AZ$5),"") ->  | AN14: =IF(AND($AA14<6,R14<>"",S14<>""),ort($R14,$S14,$AY$6:$AZ$7),"") ->  | AO14: =IF(AND($AA14=6,R14<>"",S14<>""),ort($R14,$S14,$AY$8:$AZ$8),"") ->  | AP14: =IF(AND($AA14=7,R14<>"",S14<>""),ort($R14,$S14,$AY$9:$AZ$9),"") ->  | AQ14: =IF(AND($AA14<6,T14<>"",U14<>""),ort($T14,$U14,$AY$3:$AZ$3),"") ->  | AR14: =IF(AND($AA14<6,T14<>"",U14<>""),ort($T14,$U14,$AY$4:$AZ$5),"") ->  | AS14: =IF(AND($AA14<6,T14<>"",U14<>""),ort($T14,$U14,$AY$6:$AZ$7),"") ->  | AT14: =IF(AND($AA14=6,T14<>"",U14<>""),ort($T14,$U14,$AY$8:$AZ$8),"") ->  | AU14: =IF(AND($AA14=7,T14<>"",U14<>""),ort($T14,$U14,$AY$9:$AZ$9),"") ->  | BE14: 00:00:00
L15: =DATE($B$3,$B$4,13) -> 2018-01-13 | M15: =DATE($B$3,$B$4,13) -> 2018-01-13 | O15: 00:00:00 | AA15: =IF(ISERROR(IF(NOT(ISERROR(MATCH($M15,Blad2!$A$2:$A$11,0))),7,WEEKDAY($M15,2))),"",IF(NOT(ISERROR(MATCH($M15,Blad2!$A$2:$A$11,0))),7,WEEKDAY($M15,2))) -> 6 | AB15: =IF(AND($AA15<6,N15<>"",O15<>""),ort($N15,$O15,$AY$3:$AZ$3),"") ->  | AC15: =IF(AND($AA15<6,N15<>"",O15<>""),ort($N15,$O15,$AY$4:$AZ$5),"") ->  | AD15: =IF(AND($AA15<6,N15<>"",O15<>""),ort($N15,$O15,$AY$6:$AZ$7),"") ->  | AE15: =IF(AND($AA15=6,N15<>"",O15<>""),ort($N15,$O15,$AY$8:$AZ$8),"") ->  | AF15: =IF(AND($AA15=7,N15<>"",O15<>""),ort($N15,$O15,$AY$9:$AZ$9),"") ->  | AG15: =IF(AND($AA15<6,P15<>"",Q15<>""),ort($P15,$Q15,$AY$3:$AZ$3),"") ->  | AH15: =IF(AND($AA15<6,P15<>"",Q15<>""),ort($P15,$Q15,$AY$4:$AZ$5),"") ->  | AI15: =IF(AND($AA15<6,P15<>"",Q15<>""),ort($P15,$Q15,$AY$6:$AZ$7),"") ->  | AJ15: =IF(AND($AA15=6,P15<>"",Q15<>""),ort($P15,$Q15,$AY$8:$AZ$8),"") ->  | AK15: =IF(AND($AA15=7,P15<>"",Q15<>""),ort($P15,$Q15,$AY$9:$AZ$9),"") ->  | AL15: =IF(AND($AA15<6,R15<>"",S15<>""),ort($R15,$S15,$AY$3:$AZ$3),"") ->  | AM15: =IF(AND($AA15<6,R15<>"",S15<>""),ort($R15,$S15,$AY$4:$AZ$5),"") ->  | AN15: =IF(AND($AA15<6,R15<>"",S15<>""),ort($R15,$S15,$AY$6:$AZ$7),"") ->  | AO15: =IF(AND($AA15=6,R15<>"",S15<>""),ort($R15,$S15,$AY$8:$AZ$8),"") ->  | AP15: =IF(AND($AA15=7,R15<>"",S15<>""),ort($R15,$S15,$AY$9:$AZ$9),"") ->  | AQ15: =IF(AND($AA15<6,T15<>"",U15<>""),ort($T15,$U15,$AY$3:$AZ$3),"") ->  | AR15: =IF(AND($AA15<6,T15<>"",U15<>""),ort($T15,$U15,$AY$4:$AZ$5),"") ->  | AS15: =IF(AND($AA15<6,T15<>"",U15<>""),ort($T15,$U15,$AY$6:$AZ$7),"") ->  | AT15: =IF(AND($AA15=6,T15<>"",U15<>""),ort($T15,$U15,$AY$8:$AZ$8),"") ->  | AU15: =IF(AND($AA15=7,T15<>"",U15<>""),ort($T15,$U15,$AY$9:$AZ$9),"") ->  | BE15: 00:00:00
B16: Contract Uren | L16: =DATE($B$3,$B$4,14) -> 2018-01-14 | M16: =DATE($B$3,$B$4,14) -> 2018-01-14 | O16: 00:00:00 | AA16: =IF(ISERROR(IF(NOT(ISERROR(MATCH($M16,Blad2!$A$2:$A$11,0))),7,WEEKDAY($M16,2))),"",IF(NOT(ISERROR(MATCH($M16,Blad2!$A$2:$A$11,0))),7,WEEKDAY($M16,2))) -> 7 | AB16: =IF(AND($AA16<6,N16<>"",O16<>""),ort($N16,$O16,$AY$3:$AZ$3),"") ->  | AC16: =IF(AND($AA16<6,N16<>"",O16<>""),ort($N16,$O16,$AY$4:$AZ$5),"") ->  | AD16: =IF(AND($AA16<6,N16<>"",O16<>""),ort($N16,$O16,$AY$6:$AZ$7),"") ->  | AE16: =IF(AND($AA16=6,N16<>"",O16<>""),ort($N16,$O16,$AY$8:$AZ$8),"") ->  | AF16: =IF(AND($AA16=7,N16<>"",O16<>""),ort($N16,$O16,$AY$9:$AZ$9),"") ->  | AG16: =IF(AND($AA16<6,P16<>"",Q16<>""),ort($P16,$Q16,$AY$3:$AZ$3),"") ->  | AH16: =IF(AND($AA16<6,P16<>"",Q16<>""),ort($P16,$Q16,$AY$4:$AZ$5),"") ->  | AI16: =IF(AND($AA16<6,P16<>"",Q16<>""),ort($P16,$Q16,$AY$6:$AZ$7),"") ->  | AJ16: =IF(AND($AA16=6,P16<>"",Q16<>""),ort($P16,$Q16,$AY$8:$AZ$8),"") ->  | AK16: =IF(AND($AA16=7,P16<>"",Q16<>""),ort($P16,$Q16,$AY$9:$AZ$9),"") ->  | AL16: =IF(AND($AA16<6,R16<>"",S16<>""),ort($R16,$S16,$AY$3:$AZ$3),"") ->  | AM16: =IF(AND($AA16<6,R16<>"",S16<>""),ort($R16,$S16,$AY$4:$AZ$5),"") ->  | AN16: =IF(AND($AA16<6,R16<>"",S16<>""),ort($R16,$S16,$AY$6:$AZ$7),"") ->  | AO16: =IF(AND($AA16=6,R16<>"",S16<>""),ort($R16,$S16,$AY$8:$AZ$8),"") ->  | AP16: =IF(AND($AA16=7,R16<>"",S16<>""),ort($R16,$S16,$AY$9:$AZ$9),"") ->  | AQ16: =IF(AND($AA16<6,T16<>"",U16<>""),ort($T16,$U16,$AY$3:$AZ$3),"") ->  | AR16: =IF(AND($AA16<6,T16<>"",U16<>""),ort($T16,$U16,$AY$4:$AZ$5),"") ->  | AS16: =IF(AND($AA16<6,T16<>"",U16<>""),ort($T16,$U16,$AY$6:$AZ$7),"") ->  | AT16: =IF(AND($AA16=6,T16<>"",U16<>""),ort($T16,$U16,$AY$8:$AZ$8),"") ->  | AU16: =IF(AND($AA16=7,T16<>"",U16<>""),ort($T16,$U16,$AY$9:$AZ$9),"") ->  | BE16: 00:00:00
B17: 3.75 | K17: 3 | L17: =DATE($B$3,$B$4,15) -> 2018-01-15 | M17: =DATE($B$3,$B$4,15) -> 2018-01-15 | O17: 00:00:00 | AA17: =IF(ISERROR(IF(NOT(ISERROR(MATCH($M17,Blad2!$A$2:$A$11,0))),7,WEEKDAY($M17,2))),"",IF(NOT(ISERROR(MATCH($M17,Blad2!$A$2:$A$11,0))),7,WEEKDAY($M17,2))) -> 1 | AB17: =IF(AND($AA17<6,N17<>"",O17<>""),ort($N17,$O17,$AY$3:$AZ$3),"") ->  | AC17: =IF(AND($AA17<6,N17<>"",O17<>""),ort($N17,$O17,$AY$4:$AZ$5),"") ->  | AD17: =IF(AND($AA17<6,N17<>"",O17<>""),ort($N17,$O17,$AY$6:$AZ$7),"") ->  | AE17: =IF(AND($AA17=6,N17<>"",O17<>""),ort($N17,$O17,$AY$8:$AZ$8),"") ->  | AF17: =IF(AND($AA17=7,N17<>"",O17<>""),ort($N17,$O17,$AY$9:$AZ$9),"") ->  | AG17: =IF(AND($AA17<6,P17<>"",Q17<>""),ort($P17,$Q17,$AY$3:$AZ$3),"") ->  | AH17: =IF(AND($AA17<6,P17<>"",Q17<>""),ort($P17,$Q17,$AY$4:$AZ$5),"") ->  | AI17: =IF(AND($AA17<6,P17<>"",Q17<>""),ort($P17,$Q17,$AY$6:$AZ$7),"") ->  | AJ17: =IF(AND($AA17=6,P17<>"",Q17<>""),ort($P17,$Q17,$AY$8:$AZ$8),"") ->  | AK17: =IF(AND($AA17=7,P17<>"",Q17<>""),ort($P17,$Q17,$AY$9:$AZ$9),"") ->  | AL17: =IF(AND($AA17<6,R17<>"",S17<>""),ort($R17,$S17,$AY$3:$AZ$3),"") ->  | AM17: =IF(AND($AA17<6,R17<>"",S17<>""),ort($R17,$S17,$AY$4:$AZ$5),"") ->  | AN17: =IF(AND($AA17<6,R17<>"",S17<>""),ort($R17,$S17,$AY$6:$AZ$7),"") ->  | AO17: =IF(AND($AA17=6,R17<>"",S17<>""),ort($R17,$S17,$AY$8:$AZ$8),"") ->  | AP17: =IF(AND($AA17=7,R17<>"",S17<>""),ort($R17,$S17,$AY$9:$AZ$9),"") ->  | AQ17: =IF(AND($AA17<6,T17<>"",U17<>""),ort($T17,$U17,$AY$3:$AZ$3),"") ->  | AR17: =IF(AND($AA17<6,T17<>"",U17<>""),ort($T17,$U17,$AY$4:$AZ$5),"") ->  | AS17: =IF(AND($AA17<6,T17<>"",U17<>""),ort($T17,$U17,$AY$6:$AZ$7),"") ->  | AT17: =IF(AND($AA17=6,T17<>"",U17<>""),ort($T17,$U17,$AY$8:$AZ$8),"") ->  | AU17: =IF(AND($AA17=7,T17<>"",U17<>""),ort($T17,$U17,$AY$9:$AZ$9),"") ->  | BE17: 00:00:00
J18: =IF(ISNA(VLOOKUP(M18,feestdagen,2,0)),"",VLOOKUP(M18,feestdagen,2,0)) ->  | L18: =DATE($B$3,$B$4,16) -> 2018-01-16 | M18: =DATE($B$3,$B$4,16) -> 2018-01-16 | O18: 00:00:00 | AA18: =IF(ISERROR(IF(NOT(ISERROR(MATCH($M18,Blad2!$A$2:$A$11,0))),7,WEEKDAY($M18,2))),"",IF(NOT(ISERROR(MATCH($M18,Blad2!$A$2:$A$11,0))),7,WEEKDAY($M18,2))) -> 2 | AB18: =IF(AND($AA18<6,N18<>"",O18<>""),ort($N18,$O18,$AY$3:$AZ$3),"") ->  | AC18: =IF(AND($AA18<6,N18<>"",O18<>""),ort($N18,$O18,$AY$4:$AZ$5),"") ->  | AD18: =IF(AND($AA18<6,N18<>"",O18<>""),ort($N18,$O18,$AY$6:$AZ$7),"") ->  | AE18: =IF(AND($AA18=6,N18<>"",O18<>""),ort($N18,$O18,$AY$8:$AZ$8),"") ->  | AF18: =IF(AND($AA18=7,N18<>"",O18<>""),ort($N18,$O18,$AY$9:$AZ$9),"") ->  | AG18: =IF(AND($AA18<6,P18<>"",Q18<>""),ort($P18,$Q18,$AY$3:$AZ$3),"") ->  | AH18: =IF(AND($AA18<6,P18<>"",Q18<>""),ort($P18,$Q18,$AY$4:$AZ$5),"") ->  | AI18: =IF(AND($AA18<6,P18<>"",Q18<>""),ort($P18,$Q18,$AY$6:$AZ$7),"") ->  | AJ18: =IF(AND($AA18=6,P18<>"",Q18<>""),ort($P18,$Q18,$AY$8:$AZ$8),"") ->  | AK18: =IF(AND($AA18=7,P18<>"",Q18<>""),ort($P18,$Q18,$AY$9:$AZ$9),"") ->  | AL18: =IF(AND($AA18<6,R18<>"",S18<>""),ort($R18,$S18,$AY$3:$AZ$3),"") ->  | AM18: =IF(AND($AA18<6,R18<>"",S18<>""),ort($R18,$S18,$AY$4:$AZ$5),"") ->  | AN18: =IF(AND($AA18<6,R18<>"",S18<>""),ort($R18,$S18,$AY$6:$AZ$7),"") ->  | AO18: =IF(AND($AA18=6,R18<>"",S18<>""),ort($R18,$S18,$AY$8:$AZ$8),"") ->  | AP18: =IF(AND($AA18=7,R18<>"",S18<>""),ort($R18,$S18,$AY$9:$AZ$9),"") ->  | AQ18: =IF(AND($AA18<6,T18<>"",U18<>""),ort($T18,$U18,$AY$3:$AZ$3),"") ->  | AR18: =IF(AND($AA18<6,T18<>"",U18<>""),ort($T18,$U18,$AY$4:$AZ$5),"") ->  | AS18: =IF(AND($AA18<6,T18<>"",U18<>""),ort($T18,$U18,$AY$6:$AZ$7),"") ->  | AT18: =IF(AND($AA18=6,T18<>"",U18<>""),ort($T18,$U18,$AY$8:$AZ$8),"") ->  | AU18: =IF(AND($AA18=7,T18<>"",U18<>""),ort($T18,$U18,$AY$9:$AZ$9),"") ->  | BE18: 00:00:00
B19: Gewerkte uren deze maand | L19: =DATE($B$3,$B$4,17) -> 2018-01-17 | M19: =DATE($B$3,$B$4,17) -> 2018-01-17 | O19: 00:00:00 | AA19: =IF(ISERROR(IF(NOT(ISERROR(MATCH($M19,Blad2!$A$2:$A$11,0))),7,WEEKDAY($M19,2))),"",IF(NOT(ISERROR(MATCH($M19,Blad2!$A$2:$A$11,0))),7,WEEKDAY($M19,2))) -> 3 | AB19: =IF(AND($AA19<6,N19<>"",O19<>""),ort($N19,$O19,$AY$3:$AZ$3),"") ->  | AC19: =IF(AND($AA19<6,N19<>"",O19<>""),ort($N19,$O19,$AY$4:$AZ$5),"") ->  | AD19: =IF(AND($AA19<6,N19<>"",O19<>""),ort($N19,$O19,$AY$6:$AZ$7),"") ->  | AE19: =IF(AND($AA19=6,N19<>"",O19<>""),ort($N19,$O19,$AY$8:$AZ$8),"") ->  | AF19: =IF(AND($AA19=7,N19<>"",O19<>""),ort($N19,$O19,$AY$9:$AZ$9),"") ->  | AG19: =IF(AND($AA19<6,P19<>"",Q19<>""),ort($P19,$Q19,$AY$3:$AZ$3),"") ->  | AH19: =IF(AND($AA19<6,P19<>"",Q19<>""),ort($P19,$Q19,$AY$4:$AZ$5),"") ->  | AI19: =IF(AND($AA19<6,P19<>"",Q19<>""),ort($P19,$Q19,$AY$6:$AZ$7),"") ->  | AJ19: =IF(AND($AA19=6,P19<>"",Q19<>""),ort($P19,$Q19,$AY$8:$AZ$8),"") ->  | AK19: =IF(AND($AA19=7,P19<>"",Q19<>""),ort($P19,$Q19,$AY$9:$AZ$9),"") ->  | AL19: =IF(AND($AA19<6,R19<>"",S19<>""),ort($R19,$S19,$AY$3:$AZ$3),"") ->  | AM19: =IF(AND($AA19<6,R19<>"",S19<>""),ort($R19,$S19,$AY$4:$AZ$5),"") ->  | AN19: =IF(AND($AA19<6,R19<>"",S19<>""),ort($R19,$S19,$AY$6:$AZ$7),"") ->  | AO19: =IF(AND($AA19=6,R19<>"",S19<>""),ort($R19,$S19,$AY$8:$AZ$8),"") ->  | AP19: =IF(AND($AA19=7,R19<>"",S19<>""),ort($R19,$S19,$AY$9:$AZ$9),"") ->  | AQ19: =IF(AND($AA19<6,T19<>"",U19<>""),ort($T19,$U19,$AY$3:$AZ$3),"") ->  | AR19: =IF(AND($AA19<6,T19<>"",U19<>""),ort($T19,$U19,$AY$4:$AZ$5),"") ->  | AS19: =IF(AND($AA19<6,T19<>"",U19<>""),ort($T19,$U19,$AY$6:$AZ$7),"") ->  | AT19: =IF(AND($AA19=6,T19<>"",U19<>""),ort($T19,$U19,$AY$8:$AZ$8),"") ->  | AU19: =IF(AND($AA19=7,T19<>"",U19<>""),ort($T19,$U19,$AY$9:$AZ$9),"") ->  | BE19: 00:00:00
B20: =SUM($V$3:$V$33) -> 0.5641025641 | L20: =DATE($B$3,$B$4,18) -> 2018-01-18 | M20: =DATE($B$3,$B$4,18) -> 2018-01-18 | O20: 00:00:00 | AA20: =IF(ISERROR(IF(NOT(ISERROR(MATCH($M20,Blad2!$A$2:$A$11,0))),7,WEEKDAY($M20,2))),"",IF(NOT(ISERROR(MATCH($M20,Blad2!$A$2:$A$11,0))),7,WEEKDAY($M20,2))) -> 4 | AB20: =IF(AND($AA20<6,N20<>"",O20<>""),ort($N20,$O20,$AY$3:$AZ$3),"") ->  | AC20: =IF(AND($AA20<6,N20<>"",O20<>""),ort($N20,$O20,$AY$4:$AZ$5),"") ->  | AD20: =IF(AND($AA20<6,N20<>"",O20<>""),ort($N20,$O20,$AY$6:$AZ$7),"") ->  | AE20: =IF(AND($AA20=6,N20<>"",O20<>""),ort($N20,$O20,$AY$8:$AZ$8),"") ->  | AF20: =IF(AND($AA20=7,N20<>"",O20<>""),ort($N20,$O20,$AY$9:$AZ$9),"") ->  | AG20: =IF(AND($AA20<6,P20<>"",Q20<>""),ort($P20,$Q20,$AY$3:$AZ$3),"") ->  | AH20: =IF(AND($AA20<6,P20<>"",Q20<>""),ort($P20,$Q20,$AY$4:$AZ$5),"") ->  | AI20: =IF(AND($AA20<6,P20<>"",Q20<>""),ort($P20,$Q20,$AY$6:$AZ$7),"") ->  | AJ20: =IF(AND($AA20=6,P20<>"",Q20<>""),ort($P20,$Q20,$AY$8:$AZ$8),"") ->  | AK20: =IF(AND($AA20=7,P20<>"",Q20<>""),ort($P20,$Q20,$AY$9:$AZ$9),"") ->  | AL20: =IF(AND($AA20<6,R20<>"",S20<>""),ort($R20,$S20,$AY$3:$AZ$3),"") ->  | AM20: =IF(AND($AA20<6,R20<>"",S20<>""),ort($R20,$S20,$AY$4:$AZ$5),"") ->  | AN20: =IF(AND($AA20<6,R20<>"",S20<>""),ort($R20,$S20,$AY$6:$AZ$7),"") ->  | AO20: =IF(AND($AA20=6,R20<>"",S20<>""),ort($R20,$S20,$AY$8:$AZ$8),"") ->  | AP20: =IF(AND($AA20=7,R20<>"",S20<>""),ort($R20,$S20,$AY$9:$AZ$9),"") ->  | AQ20: =IF(AND($AA20<6,T20<>"",U20<>""),ort($T20,$U20,$AY$3:$AZ$3),"") ->  | AR20: =IF(AND($AA20<6,T20<>"",U20<>""),ort($T20,$U20,$AY$4:$AZ$5),"") ->  | AS20: =IF(AND($AA20<6,T20<>"",U20<>""),ort($T20,$U20,$AY$6:$AZ$7),"") ->  | AT20: =IF(AND($AA20=6,T20<>"",U20<>""),ort($T20,$U20,$AY$8:$AZ$8),"") ->  | AU20: =IF(AND($AA20=7,T20<>"",U20<>""),ort($T20,$U20,$AY$9:$AZ$9),"") ->  | AW20: =COUNTA(Blad2!B12:B100)-COUNTIF(Blad2!B12:B100,"Verlof") -> 0 | AX20: Aantal opgenomen ATV-dagen | BE20: 00:00:00
L21: =DATE($B$3,$B$4,19) -> 2018-01-19 | M21: =DATE($B$3,$B$4,19) -> 2018-01-19 | O21: 00:00:00 | AA21: =IF(ISERROR(IF(NOT(ISERROR(MATCH($M21,Blad2!$A$2:$A$11,0))),7,WEEKDAY($M21,2))),"",IF(NOT(ISERROR(MATCH($M21,Blad2!$A$2:$A$11,0))),7,WEEKDAY($M21,2))) -> 5 | AB21: =IF(AND($AA21<6,N21<>"",O21<>""),ort($N21,$O21,$AY$3:$AZ$3),"") ->  | AC21: =IF(AND($AA21<6,N21<>"",O21<>""),ort($N21,$O21,$AY$4:$AZ$5),"") ->  | AD21: =IF(AND($AA21<6,N21<>"",O21<>""),ort($N21,$O21,$AY$6:$AZ$7),"") ->  | AE21: =IF(AND($AA21=6,N21<>"",O21<>""),ort($N21,$O21,$AY$8:$AZ$8),"") ->  | AF21: =IF(AND($AA21=7,N21<>"",O21<>""),ort($N21,$O21,$AY$9:$AZ$9),"") ->  | AG21: =IF(AND($AA21<6,P21<>"",Q21<>""),ort($P21,$Q21,$AY$3:$AZ$3),"") ->  | AH21: =IF(AND($AA21<6,P21<>"",Q21<>""),ort($P21,$Q21,$AY$4:$AZ$5),"") ->  | AI21: =IF(AND($AA21<6,P21<>"",Q21<>""),ort($P21,$Q21,$AY$6:$AZ$7),"") ->  | AJ21: =IF(AND($AA21=6,P21<>"",Q21<>""),ort($P21,$Q21,$AY$8:$AZ$8),"") ->  | AK21: =IF(AND($AA21=7,P21<>"",Q21<>""),ort($P21,$Q21,$AY$9:$AZ$9),"") ->  | AL21: =IF(AND($AA21<6,R21<>"",S21<>""),ort($R21,$S21,$AY$3:$AZ$3),"") ->  | AM21: =IF(AND($AA21<6,R21<>"",S21<>""),ort($R21,$S21,$AY$4:$AZ$5),"") ->  | AN21: =IF(AND($AA21<6,R21<>"",S21<>""),ort($R21,$S21,$AY$6:$AZ$7),"") ->  | AO21: =IF(AND($AA21=6,R21<>"",S21<>""),ort($R21,$S21,$AY$8:$AZ$8),"") ->  | AP21: =IF(AND($AA21=7,R21<>"",S21<>""),ort($R21,$S21,$AY$9:$AZ$9),"") ->  | AQ21: =IF(AND($AA21<6,T21<>"",U21<>""),ort($T21,$U21,$AY$3:$AZ$3),"") ->  | AR21: =IF(AND($AA21<6,T21<>"",U21<>""),ort($T21,$U21,$AY$4:$AZ$5),"") ->  | AS21: =IF(AND($AA21<6,T21<>"",U21<>""),ort($T21,$U21,$AY$6:$AZ$7),"") ->  | AT21: =IF(AND($AA21=6,T21<>"",U21<>""),ort($T21,$U21,$AY$8:$AZ$8),"") ->  | AU21: =IF(AND($AA21=7,T21<>"",U21<>""),ort($T21,$U21,$AY$9:$AZ$9),"") ->  | AW21: 1 | AX21: Aantal opgenomen verlofdagen | BE21: 00:00:00
L22: =DATE($B$3,$B$4,20) -> 2018-01-20 | M22: =DATE($B$3,$B$4,20) -> 2018-01-20 | O22: 00:00:00 | AA22: =IF(ISERROR(IF(NOT(ISERROR(MATCH($M22,Blad2!$A$2:$A$11,0))),7,WEEKDAY($M22,2))),"",IF(NOT(ISERROR(MATCH($M22,Blad2!$A$2:$A$11,0))),7,WEEKDAY($M22,2))) -> 6 | AB22: =IF(AND($AA22<6,N22<>"",O22<>""),ort($N22,$O22,$AY$3:$AZ$3),"") ->  | AC22: =IF(AND($AA22<6,N22<>"",O22<>""),ort($N22,$O22,$AY$4:$AZ$5),"") ->  | AD22: =IF(AND($AA22<6,N22<>"",O22<>""),ort($N22,$O22,$AY$6:$AZ$7),"") ->  | AE22: =IF(AND($AA22=6,N22<>"",O22<>""),ort($N22,$O22,$AY$8:$AZ$8),"") ->  | AF22: =IF(AND($AA22=7,N22<>"",O22<>""),ort($N22,$O22,$AY$9:$AZ$9),"") ->  | AG22: =IF(AND($AA22<6,P22<>"",Q22<>""),ort($P22,$Q22,$AY$3:$AZ$3),"") ->  | AH22: =IF(AND($AA22<6,P22<>"",Q22<>""),ort($P22,$Q22,$AY$4:$AZ$5),"") ->  | AI22: =IF(AND($AA22<6,P22<>"",Q22<>""),ort($P22,$Q22,$AY$6:$AZ$7),"") ->  | AJ22: =IF(AND($AA22=6,P22<>"",Q22<>""),ort($P22,$Q22,$AY$8:$AZ$8),"") ->  | AK22: =IF(AND($AA22=7,P22<>"",Q22<>""),ort($P22,$Q22,$AY$9:$AZ$9),"") ->  | AL22: =IF(AND($AA22<6,R22<>"",S22<>""),ort($R22,$S22,$AY$3:$AZ$3),"") ->  | AM22: =IF(AND($AA22<6,R22<>"",S22<>""),ort($R22,$S22,$AY$4:$AZ$5),"") ->  | AN22: =IF(AND($AA22<6,R22<>"",S22<>""),ort($R22,$S22,$AY$6:$AZ$7),"") ->  | AO22: =IF(AND($AA22=6,R22<>"",S22<>""),ort($R22,$S22,$AY$8:$AZ$8),"") ->  | AP22: =IF(AND($AA22=7,R22<>"",S22<>""),ort($R22,$S22,$AY$9:$AZ$9),"") ->  | AQ22: =IF(AND($AA22<6,T22<>"",U22<>""),ort($T22,$U22,$AY$3:$AZ$3),"") ->  | AR22: =IF(AND($AA22<6,T22<>"",U22<>""),ort($T22,$U22,$AY$4:$AZ$5),"") ->  | AS22: =IF(AND($AA22<6,T22<>"",U22<>""),ort($T22,$U22,$AY$6:$AZ$7),"") ->  | AT22: =IF(AND($AA22=6,T22<>"",U22<>""),ort($T22,$U22,$AY$8:$AZ$8),"") ->  | AU22: =IF(AND($AA22=7,T22<>"",U22<>""),ort($T22,$U22,$AY$9:$AZ$9),"") ->  | BE22: 00:00:00
L23: =DATE($B$3,$B$4,21) -> 2018-01-21 | M23: =DATE($B$3,$B$4,21) -> 2018-01-21 | O23: 00:00:00 | AA23: =IF(ISERROR(IF(NOT(ISERROR(MATCH($M23,Blad2!$A$2:$A$11,0))),7,WEEKDAY($M23,2))),"",IF(NOT(ISERROR(MATCH($M23,Blad2!$A$2:$A$11,0))),7,WEEKDAY($M23,2))) -> 7 | AB23: =IF(AND($AA23<6,N23<>"",O23<>""),ort($N23,$O23,$AY$3:$AZ$3),"") ->  | AC23: =IF(AND($AA23<6,N23<>"",O23<>""),ort($N23,$O23,$AY$4:$AZ$5),"") ->  | AD23: =IF(AND($AA23<6,N23<>"",O23<>""),ort($N23,$O23,$AY$6:$AZ$7),"") ->  | AE23: =IF(AND($AA23=6,N23<>"",O23<>""),ort($N23,$O23,$AY$8:$AZ$8),"") ->  | AF23: =IF(AND($AA23=7,N23<>"",O23<>""),ort($N23,$O23,$AY$9:$AZ$9),"") ->  | AG23: =IF(AND($AA23<6,P23<>"",Q23<>""),ort($P23,$Q23,$AY$3:$AZ$3),"") ->  | AH23: =IF(AND($AA23<6,P23<>"",Q23<>""),ort($P23,$Q23,$AY$4:$AZ$5),"") ->  | AI23: =IF(AND($AA23<6,P23<>"",Q23<>""),ort($P23,$Q23,$AY$6:$AZ$7),"") ->  | AJ23: =IF(AND($AA23=6,P23<>"",Q23<>""),ort($P23,$Q23,$AY$8:$AZ$8),"") ->  | AK23: =IF(AND($AA23=7,P23<>"",Q23<>""),ort($P23,$Q23,$AY$9:$AZ$9),"") ->  | AL23: =IF(AND($AA23<6,R23<>"",S23<>""),ort($R23,$S23,$AY$3:$AZ$3),"") ->  | AM23: =IF(AND($AA23<6,R23<>"",S23<>""),ort($R23,$S23,$AY$4:$AZ$5),"") ->  | AN23: =IF(AND($AA23<6,R23<>"",S23<>""),ort($R23,$S23,$AY$6:$AZ$7),"") ->  | AO23: =IF(AND($AA23=6,R23<>"",S23<>""),ort($R23,$S23,$AY$8:$AZ$8),"") ->  | AP23: =IF(AND($AA23=7,R23<>"",S23<>""),ort($R23,$S23,$AY$9:$AZ$9),"") ->  | AQ23: =IF(AND($AA23<6,T23<>"",U23<>""),ort($T23,$U23,$AY$3:$AZ$3),"") ->  | AR23: =IF(AND($AA23<6,T23<>"",U23<>""),ort($T23,$U23,$AY$4:$AZ$5),"") ->  | AS23: =IF(AND($AA23<6,T23<>"",U23<>""),ort($T23,$U23,$AY$6:$AZ$7),"") ->  | AT23: =IF(AND($AA23=6,T23<>"",U23<>""),ort($T23,$U23,$AY$8:$AZ$8),"") ->  | AU23: =IF(AND($AA23=7,T23<>"",U23<>""),ort($T23,$U23,$AY$9:$AZ$9),"") ->  | BE23: 00:00:00
K24: 4 | L24: =DATE($B$3,$B$4,22) -> 2018-01-22 | M24: =DATE($B$3,$B$4,22) -> 2018-01-22 | O24: 00:00:00 | AA24: =IF(ISERROR(IF(NOT(ISERROR(MATCH($M24,Blad2!$A$2:$A$11,0))),7,WEEKDAY($M24,2))),"",IF(NOT(ISERROR(MATCH($M24,Blad2!$A$2:$A$11,0))),7,WEEKDAY($M24,2))) -> 1 | AB24: =IF(AND($AA24<6,N24<>"",O24<>""),ort($N24,$O24,$AY$3:$AZ$3),"") ->  | AC24: =IF(AND($AA24<6,N24<>"",O24<>""),ort($N24,$O24,$AY$4:$AZ$5),"") ->  | AD24: =IF(AND($AA24<6,N24<>"",O24<>""),ort($N24,$O24,$AY$6:$AZ$7),"") ->  | AE24: =IF(AND($AA24=6,N24<>"",O24<>""),ort($N24,$O24,$AY$8:$AZ$8),"") ->  | AF24: =IF(AND($AA24=7,N24<>"",O24<>""),ort($N24,$O24,$AY$9:$AZ$9),"") ->  | AG24: =IF(AND($AA24<6,P24<>"",Q24<>""),ort($P24,$Q24,$AY$3:$AZ$3),"") ->  | AH24: =IF(AND($AA24<6,P24<>"",Q24<>""),ort($P24,$Q24,$AY$4:$AZ$5),"") ->  | AI24: =IF(AND($AA24<6,P24<>"",Q24<>""),ort($P24,$Q24,$AY$6:$AZ$7),"") ->  | AJ24: =IF(AND($AA24=6,P24<>"",Q24<>""),ort($P24,$Q24,$AY$8:$AZ$8),"") ->  | AK24: =IF(AND($AA24=7,P24<>"",Q24<>""),ort($P24,$Q24,$AY$9:$AZ$9),"") ->  | AL24: =IF(AND($AA24<6,R24<>"",S24<>""),ort($R24,$S24,$AY$3:$AZ$3),"") ->  | AM24: =IF(AND($AA24<6,R24<>"",S24<>""),ort($R24,$S24,$AY$4:$AZ$5),"") ->  | AN24: =IF(AND($AA24<6,R24<>"",S24<>""),ort($R24,$S24,$AY$6:$AZ$7),"") ->  | AO24: =IF(AND($AA24=6,R24<>"",S24<>""),ort($R24,$S24,$AY$8:$AZ$8),"") ->  | AP24: =IF(AND($AA24=7,R24<>"",S24<>""),ort($R24,$S24,$AY$9:$AZ$9),"") ->  | AQ24: =IF(AND($AA24<6,T24<>"",U24<>""),ort($T24,$U24,$AY$3:$AZ$3),"") ->  | AR24: =IF(AND($AA24<6,T24<>"",U24<>""),ort($T24,$U24,$AY$4:$AZ$5),"") ->  | AS24: =IF(AND($AA24<6,T24<>"",U24<>""),ort($T24,$U24,$AY$6:$AZ$7),"") ->  | AT24: =IF(AND($AA24=6,T24<>"",U24<>""),ort($T24,$U24,$AY$8:$AZ$8),"") ->  | AU24: =IF(AND($AA24=7,T24<>"",U24<>""),ort($T24,$U24,$AY$9:$AZ$9),"") ->  | BE24: 00:00:00
L25: =DATE($B$3,$B$4,23) -> 2018-01-23 | M25: =DATE($B$3,$B$4,23) -> 2018-01-23 | O25: 00:00:00 | AA25: =IF(ISERROR(IF(NOT(ISERROR(MATCH($M25,Blad2!$A$2:$A$11,0))),7,WEEKDAY($M25,2))),"",IF(NOT(ISERROR(MATCH($M25,Blad2!$A$2:$A$11,0))),7,WEEKDAY($M25,2))) -> 2 | AB25: =IF(AND($AA25<6,N25<>"",O25<>""),ort($N25,$O25,$AY$3:$AZ$3),"") ->  | AC25: =IF(AND($AA25<6,N25<>"",O25<>""),ort($N25,$O25,$AY$4:$AZ$5),"") ->  | AD25: =IF(AND($AA25<6,N25<>"",O25<>""),ort($N25,$O25,$AY$6:$AZ$7),"") ->  | AE25: =IF(AND($AA25=6,N25<>"",O25<>""),ort($N25,$O25,$AY$8:$AZ$8),"") ->  | AF25: =IF(AND($AA25=7,N25<>"",O25<>""),ort($N25,$O25,$AY$9:$AZ$9),"") ->  | AG25: =IF(AND($AA25<6,P25<>"",Q25<>""),ort($P25,$Q25,$AY$3:$AZ$3),"") ->  | AH25: =IF(AND($AA25<6,P25<>"",Q25<>""),ort($P25,$Q25,$AY$4:$AZ$5),"") ->  | AI25: =IF(AND($AA25<6,P25<>"",Q25<>""),ort($P25,$Q25,$AY$6:$AZ$7),"") ->  | AJ25: =IF(AND($AA25=6,P25<>"",Q25<>""),ort($P25,$Q25,$AY$8:$AZ$8),"") ->  | AK25: =IF(AND($AA25=7,P25<>"",Q25<>""),ort($P25,$Q25,$AY$9:$AZ$9),"") ->  | AL25: =IF(AND($AA25<6,R25<>"",S25<>""),ort($R25,$S25,$AY$3:$AZ$3),"") ->  | AM25: =IF(AND($AA25<6,R25<>"",S25<>""),ort($R25,$S25,$AY$4:$AZ$5),"") ->  | AN25: =IF(AND($AA25<6,R25<>"",S25<>""),ort($R25,$S25,$AY$6:$AZ$7),"") ->  | AO25: =IF(AND($AA25=6,R25<>"",S25<>""),ort($R25,$S25,$AY$8:$AZ$8),"") ->  | AP25: =IF(AND($AA25=7,R25<>"",S25<>""),ort($R25,$S25,$AY$9:$AZ$9),"") ->  | AQ25: =IF(AND($AA25<6,T25<>"",U25<>""),ort($T25,$U25,$AY$3:$AZ$3),"") ->  | AR25: =IF(AND($AA25<6,T25<>"",U25<>""),ort($T25,$U25,$AY$4:$AZ$5),"") ->  | AS25: =IF(AND($AA25<6,T25<>"",U25<>""),ort($T25,$U25,$AY$6:$AZ$7),"") ->  | AT25: =IF(AND($AA25=6,T25<>"",U25<>""),ort($T25,$U25,$AY$8:$AZ$8),"") ->  | AU25: =IF(AND($AA25=7,T25<>"",U25<>""),ort($T25,$U25,$AY$9:$AZ$9),"") ->  | BE25: 00:00:00
L26: =DATE($B$3,$B$4,24) -> 2018-01-24 | M26: =DATE($B$3,$B$4,24) -> 2018-01-24 | O26: 00:00:00 | AA26: =IF(ISERROR(IF(NOT(ISERROR(MATCH($M26,Blad2!$A$2:$A$11,0))),7,WEEKDAY($M26,2))),"",IF(NOT(ISERROR(MATCH($M26,Blad2!$A$2:$A$11,0))),7,WEEKDAY($M26,2))) -> 3 | AB26: =IF(AND($AA26<6,N26<>"",O26<>""),ort($N26,$O26,$AY$3:$AZ$3),"") ->  | AC26: =IF(AND($AA26<6,N26<>"",O26<>""),ort($N26,$O26,$AY$4:$AZ$5),"") ->  | AD26: =IF(AND($AA26<6,N26<>"",O26<>""),ort($N26,$O26,$AY$6:$AZ$7),"") ->  | AE26: =IF(AND($AA26=6,N26<>"",O26<>""),ort($N26,$O26,$AY$8:$AZ$8),"") ->  | AF26: =IF(AND($AA26=7,N26<>"",O26<>""),ort($N26,$O26,$AY$9:$AZ$9),"") ->  | AG26: =IF(AND($AA26<6,P26<>"",Q26<>""),ort($P26,$Q26,$AY$3:$AZ$3),"") ->  | AH26: =IF(AND($AA26<6,P26<>"",Q26<>""),ort($P26,$Q26,$AY$4:$AZ$5),"") ->  | AI26: =IF(AND($AA26<6,P26<>"",Q26<>""),ort($P26,$Q26,$AY$6:$AZ$7),"") ->  | AJ26: =IF(AND($AA26=6,P26<>"",Q26<>""),ort($P26,$Q26,$AY$8:$AZ$8),"") ->  | AK26: =IF(AND($AA26=7,P26<>"",Q26<>""),ort($P26,$Q26,$AY$9:$AZ$9),"") ->  | AL26: =IF(AND($AA26<6,R26<>"",S26<>""),ort($R26,$S26,$AY$3:$AZ$3),"") ->  | AM26: =IF(AND($AA26<6,R26<>"",S26<>""),ort($R26,$S26,$AY$4:$AZ$5),"") ->  | AN26: =IF(AND($AA26<6,R26<>"",S26<>""),ort($R26,$S26,$AY$6:$AZ$7),"") ->  | AO26: =IF(AND($AA26=6,R26<>"",S26<>""),ort($R26,$S26,$AY$8:$AZ$8),"") ->  | AP26: =IF(AND($AA26=7,R26<>"",S26<>""),ort($R26,$S26,$AY$9:$AZ$9),"") ->  | AQ26: =IF(AND($AA26<6,T26<>"",U26<>""),ort($T26,$U26,$AY$3:$AZ$3),"") ->  | AR26: =IF(AND($AA26<6,T26<>"",U26<>""),ort($T26,$U26,$AY$4:$AZ$5),"") ->  | AS26: =IF(AND($AA26<6,T26<>"",U26<>""),ort($T26,$U26,$AY$6:$AZ$7),"") ->  | AT26: =IF(AND($AA26=6,T26<>"",U26<>""),ort($T26,$U26,$AY$8:$AZ$8),"") ->  | AU26: =IF(AND($AA26=7,T26<>"",U26<>""),ort($T26,$U26,$AY$9:$AZ$9),"") ->  | BE26: 00:00:00
L27: =DATE($B$3,$B$4,25) -> 2018-01-25 | M27: =DATE($B$3,$B$4,25) -> 2018-01-25 | O27: 00:00:00 | AA27: =IF(ISERROR(IF(NOT(ISERROR(MATCH($M27,Blad2!$A$2:$A$11,0))),7,WEEKDAY($M27,2))),"",IF(NOT(ISERROR(MATCH($M27,Blad2!$A$2:$A$11,0))),7,WEEKDAY($M27,2))) -> 4 | AB27: =IF(AND($AA27<6,N27<>"",O27<>""),ort($N27,$O27,$AY$3:$AZ$3),"") ->  | AC27: =IF(AND($AA27<6,N27<>"",O27<>""),ort($N27,$O27,$AY$4:$AZ$5),"") ->  | AD27: =IF(AND($AA27<6,N27<>"",O27<>""),ort($N27,$O27,$AY$6:$AZ$7),"") ->  | AE27: =IF(AND($AA27=6,N27<>"",O27<>""),ort($N27,$O27,$AY$8:$AZ$8),"") ->  | AF27: =IF(AND($AA27=7,N27<>"",O27<>""),ort($N27,$O27,$AY$9:$AZ$9),"") ->  | AG27: =IF(AND($AA27<6,P27<>"",Q27<>""),ort($P27,$Q27,$AY$3:$AZ$3),"") ->  | AH27: =IF(AND($AA27<6,P27<>"",Q27<>""),ort($P27,$Q27,$AY$4:$AZ$5),"") ->  | AI27: =IF(AND($AA27<6,P27<>"",Q27<>""),ort($P27,$Q27,$AY$6:$AZ$7),"") ->  | AJ27: =IF(AND($AA27=6,P27<>"",Q27<>""),ort($P27,$Q27,$AY$8:$AZ$8),"") ->  | AK27: =IF(AND($AA27=7,P27<>"",Q27<>""),ort($P27,$Q27,$AY$9:$AZ$9),"") ->  | AL27: =IF(AND($AA27<6,R27<>"",S27<>""),ort($R27,$S27,$AY$3:$AZ$3),"") ->  | AM27: =IF(AND($AA27<6,R27<>"",S27<>""),ort($R27,$S27,$AY$4:$AZ$5),"") ->  | AN27: =IF(AND($AA27<6,R27<>"",S27<>""),ort($R27,$S27,$AY$6:$AZ$7),"") ->  | AO27: =IF(AND($AA27=6,R27<>"",S27<>""),ort($R27,$S27,$AY$8:$AZ$8),"") ->  | AP27: =IF(AND($AA27=7,R27<>"",S27<>""),ort($R27,$S27,$AY$9:$AZ$9),"") ->  | AQ27: =IF(AND($AA27<6,T27<>"",U27<>""),ort($T27,$U27,$AY$3:$AZ$3),"") ->  | AR27: =IF(AND($AA27<6,T27<>"",U27<>""),ort($T27,$U27,$AY$4:$AZ$5),"") ->  | AS27: =IF(AND($AA27<6,T27<>"",U27<>""),ort($T27,$U27,$AY$6:$AZ$7),"") ->  | AT27: =IF(AND($AA27=6,T27<>"",U27<>""),ort($T27,$U27,$AY$8:$AZ$8),"") ->  | AU27: =IF(AND($AA27=7,T27<>"",U27<>""),ort($T27,$U27,$AY$9:$AZ$9),"") ->  | BE27: 00:00:00
L28: =DATE($B$3,$B$4,26) -> 2018-01-26 | M28: =DATE($B$3,$B$4,26) -> 2018-01-26 | O28: 00:00:00 | AA28: =IF(ISERROR(IF(NOT(ISERROR(MATCH($M28,Blad2!$A$2:$A$11,0))),7,WEEKDAY($M28,2))),"",IF(NOT(ISERROR(MATCH($M28,Blad2!$A$2:$A$11,0))),7,WEEKDAY($M28,2))) -> 5 | AB28: =IF(AND($AA28<6,N28<>"",O28<>""),ort($N28,$O28,$AY$3:$AZ$3),"") ->  | AC28: =IF(AND($AA28<6,N28<>"",O28<>""),ort($N28,$O28,$AY$4:$AZ$5),"") ->  | AD28: =IF(AND($AA28<6,N28<>"",O28<>""),ort($N28,$O28,$AY$6:$AZ$7),"") ->  | AE28: =IF(AND($AA28=6,N28<>"",O28<>""),ort($N28,$O28,$AY$8:$AZ$8),"") ->  | AF28: =IF(AND($AA28=7,N28<>"",O28<>""),ort($N28,$O28,$AY$9:$AZ$9),"") ->  | AG28: =IF(AND($AA28<6,P28<>"",Q28<>""),ort($P28,$Q28,$AY$3:$AZ$3),"") ->  | AH28: =IF(AND($AA28<6,P28<>"",Q28<>""),ort($P28,$Q28,$AY$4:$AZ$5),"") ->  | AI28: =IF(AND($AA28<6,P28<>"",Q28<>""),ort($P28,$Q28,$AY$6:$AZ$7),"") ->  | AJ28: =IF(AND($AA28=6,P28<>"",Q28<>""),ort($P28,$Q28,$AY$8:$AZ$8),"") ->  | AK28: =IF(AND($AA28=7,P28<>"",Q28<>""),ort($P28,$Q28,$AY$9:$AZ$9),"") ->  | AL28: =IF(AND($AA28<6,R28<>"",S28<>""),ort($R28,$S28,$AY$3:$AZ$3),"") ->  | AM28: =IF(AND($AA28<6,R28<>"",S28<>""),ort($R28,$S28,$AY$4:$AZ$5),"") ->  | AN28: =IF(AND($AA28<6,R28<>"",S28<>""),ort($R28,$S28,$AY$6:$AZ$7),"") ->  | AO28: =IF(AND($AA28=6,R28<>"",S28<>""),ort($R28,$S28,$AY$8:$AZ$8),"") ->  | AP28: =IF(AND($AA28=7,R28<>"",S28<>""),ort($R28,$S28,$AY$9:$AZ$9),"") ->  | AQ28: =IF(AND($AA28<6,T28<>"",U28<>""),ort($T28,$U28,$AY$3:$AZ$3),"") ->  | AR28: =IF(AND($AA28<6,T28<>"",U28<>""),ort($T28,$U28,$AY$4:$AZ$5),"") ->  | AS28: =IF(AND($AA28<6,T28<>"",U28<>""),ort($T28,$U28,$AY$6:$AZ$7),"") ->  | AT28: =IF(AND($AA28=6,T28<>"",U28<>""),ort($T28,$U28,$AY$8:$AZ$8),"") ->  | AU28: =IF(AND($AA28=7,T28<>"",U28<>""),ort($T28,$U28,$AY$9:$AZ$9),"") ->  | BE28: 00:00:00
L29: =DATE($B$3,$B$4,27) -> 2018-01-27 | M29: =DATE($B$3,$B$4,27) -> 2018-01-27 | O29: 00:00:00 | AA29: =IF(ISERROR(IF(NOT(ISERROR(MATCH($M29,Blad2!$A$2:$A$11,0))),7,WEEKDAY($M29,2))),"",IF(NOT(ISERROR(MATCH($M29,Blad2!$A$2:$A$11,0))),7,WEEKDAY($M29,2))) -> 6 | AB29: =IF(AND($AA29<6,N29<>"",O29<>""),ort($N29,$O29,$AY$3:$AZ$3),"") ->  | AC29: =IF(AND($AA29<6,N29<>"",O29<>""),ort($N29,$O29,$AY$4:$AZ$5),"") ->  | AD29: =IF(AND($AA29<6,N29<>"",O29<>""),ort($N29,$O29,$AY$6:$AZ$7),"") ->  | AE29: =IF(AND($AA29=6,N29<>"",O29<>""),ort($N29,$O29,$AY$8:$AZ$8),"") ->  | AF29: =IF(AND($AA29=7,N29<>"",O29<>""),ort($N29,$O29,$AY$9:$AZ$9),"") ->  | AG29: =IF(AND($AA29<6,P29<>"",Q29<>""),ort($P29,$Q29,$AY$3:$AZ$3),"") ->  | AH29: =IF(AND($AA29<6,P29<>"",Q29<>""),ort($P29,$Q29,$AY$4:$AZ$5),"") ->  | AI29: =IF(AND($AA29<6,P29<>"",Q29<>""),ort($P29,$Q29,$AY$6:$AZ$7),"") ->  | AJ29: =IF(AND($AA29=6,P29<>"",Q29<>""),ort($P29,$Q29,$AY$8:$AZ$8),"") ->  | AK29: =IF(AND($AA29=7,P29<>"",Q29<>""),ort($P29,$Q29,$AY$9:$AZ$9),"") ->  | AL29: =IF(AND($AA29<6,R29<>"",S29<>""),ort($R29,$S29,$AY$3:$AZ$3),"") ->  | AM29: =IF(AND($AA29<6,R29<>"",S29<>""),ort($R29,$S29,$AY$4:$AZ$5),"") ->  | AN29: =IF(AND($AA29<6,R29<>"",S29<>""),ort($R29,$S29,$AY$6:$AZ$7),"") ->  | AO29: =IF(AND($AA29=6,R29<>"",S29<>""),ort($R29,$S29,$AY$8:$AZ$8),"") ->  | AP29: =IF(AND($AA29=7,R29<>"",S29<>""),ort($R29,$S29,$AY$9:$AZ$9),"") ->  | AQ29: =IF(AND($AA29<6,T29<>"",U29<>""),ort($T29,$U29,$AY$3:$AZ$3),"") ->  | AR29: =IF(AND($AA29<6,T29<>"",U29<>""),ort($T29,$U29,$AY$4:$AZ$5),"") ->  | AS29: =IF(AND($AA29<6,T29<>"",U29<>""),ort($T29,$U29,$AY$6:$AZ$7),"") ->  | AT29: =IF(AND($AA29=6,T29<>"",U29<>""),ort($T29,$U29,$AY$8:$AZ$8),"") ->  | AU29: =IF(AND($AA29=7,T29<>"",U29<>""),ort($T29,$U29,$AY$9:$AZ$9),"") ->  | BE29: 00:00:00
L30: =DATE($B$3,$B$4,28) -> 2018-01-28 | M30: =DATE($B$3,$B$4,28) -> 2018-01-28 | O30: 00:00:00 | AA30: =IF(ISERROR(IF(NOT(ISERROR(MATCH($M30,Blad2!$A$2:$A$11,0))),7,WEEKDAY($M30,2))),"",IF(NOT(ISERROR(MATCH($M30,Blad2!$A$2:$A$11,0))),7,WEEKDAY($M30,2))) -> 7 | AB30: =IF(AND($AA30<6,N30<>"",O30<>""),ort($N30,$O30,$AY$3:$AZ$3),"") ->  | AC30: =IF(AND($AA30<6,N30<>"",O30<>""),ort($N30,$O30,$AY$4:$AZ$5),"") ->  | AD30: =IF(AND($AA30<6,N30<>"",O30<>""),ort($N30,$O30,$AY$6:$AZ$7),"") ->  | AE30: =IF(AND($AA30=6,N30<>"",O30<>""),ort($N30,$O30,$AY$8:$AZ$8),"") ->  | AF30: =IF(AND($AA30=7,N30<>"",O30<>""),ort($N30,$O30,$AY$9:$AZ$9),"") ->  | AG30: =IF(AND($AA30<6,P30<>"",Q30<>""),ort($P30,$Q30,$AY$3:$AZ$3),"") ->  | AH30: =IF(AND($AA30<6,P30<>"",Q30<>""),ort($P30,$Q30,$AY$4:$AZ$5),"") ->  | AI30: =IF(AND($AA30<6,P30<>"",Q30<>""),ort($P30,$Q30,$AY$6:$AZ$7),"") ->  | AJ30: =IF(AND($AA30=6,P30<>"",Q30<>""),ort($P30,$Q30,$AY$8:$AZ$8),"") ->  | AK30: =IF(AND($AA30=7,P30<>"",Q30<>""),ort($P30,$Q30,$AY$9:$AZ$9),"") ->  | AL30: =IF(AND($AA30<6,R30<>"",S30<>""),ort($R30,$S30,$AY$3:$AZ$3),"") ->  | AM30: =IF(AND($AA30<6,R30<>"",S30<>""),ort($R30,$S30,$AY$4:$AZ$5),"") ->  | AN30: =IF(AND($AA30<6,R30<>"",S30<>""),ort($R30,$S30,$AY$6:$AZ$7),"") ->  | AO30: =IF(AND($AA30=6,R30<>"",S30<>""),ort($R30,$S30,$AY$8:$AZ$8),"") ->  | AP30: =IF(AND($AA30=7,R30<>"",S30<>""),ort($R30,$S30,$AY$9:$AZ$9),"") ->  | AQ30: =IF(AND($AA30<6,T30<>"",U30<>""),ort($T30,$U30,$AY$3:$AZ$3),"") ->  | AR30: =IF(AND($AA30<6,T30<>"",U30<>""),ort($T30,$U30,$AY$4:$AZ$5),"") ->  | AS30: =IF(AND($AA30<6,T30<>"",U30<>""),ort($T30,$U30,$AY$6:$AZ$7),"") ->  | AT30: =IF(AND($AA30=6,T30<>"",U30<>""),ort($T30,$U30,$AY$8:$AZ$8),"") ->  | AU30: =IF(AND($AA30=7,T30<>"",U30<>""),ort($T30,$U30,$AY$9:$AZ$9),"") ->  | BE30: 00:00:00
K31: =IF(L31="","",IF(WEEKDAY(L31)=2,1+INT((L31-DATE(YEAR(L31+4-WEEKDAY(L31+6)),1,5)+WEEKDAY(DATE(YEAR(L31+4-WEEKDAY(L31+6)),1,3)))/7),"")) -> 5 | L31: =IF(MONTH(L$30+1)<>MONTH(L$30),"",L$30+1) -> 2018-01-29 | M31: =IF(MONTH(M$30+1)<>MONTH(M$30),"",M$30+1) -> 2018-01-29 | O31: 00:00:00 | AA31: =IF(ISERROR(IF(NOT(ISERROR(MATCH($M31,Blad2!$A$2:$A$11,0))),7,WEEKDAY($M31,2))),"",IF(NOT(ISERROR(MATCH($M31,Blad2!$A$2:$A$11,0))),7,WEEKDAY($M31,2))) -> 1 | AB31: =IF(AND($AA31<6,N31<>"",O31<>""),ort($N31,$O31,$AY$3:$AZ$3),"") ->  | AC31: =IF(AND($AA31<6,N31<>"",O31<>""),ort($N31,$O31,$AY$4:$AZ$5),"") ->  | AD31: =IF(AND($AA31<6,N31<>"",O31<>""),ort($N31,$O31,$AY$6:$AZ$7),"") ->  | AE31: =IF(AND($AA31=6,N31<>"",O31<>""),ort($N31,$O31,$AY$8:$AZ$8),"") ->  | AF31: =IF(AND($AA31=7,N31<>"",O31<>""),ort($N31,$O31,$AY$9:$AZ$9),"") ->  | AG31: =IF(AND($AA31<6,P31<>"",Q31<>""),ort($P31,$Q31,$AY$3:$AZ$3),"") ->  | AH31: =IF(AND($AA31<6,P31<>"",Q31<>""),ort($P31,$Q31,$AY$4:$AZ$5),"") ->  | AI31: =IF(AND($AA31<6,P31<>"",Q31<>""),ort($P31,$Q31,$AY$6:$AZ$7),"") ->  | AJ31: =IF(AND($AA31=6,P31<>"",Q31<>""),ort($P31,$Q31,$AY$8:$AZ$8),"") ->  | AK31: =IF(AND($AA31=7,P31<>"",Q31<>""),ort($P31,$Q31,$AY$9:$AZ$9),"") ->  | AL31: =IF(AND($AA31<6,R31<>"",S31<>""),ort($R31,$S31,$AY$3:$AZ$3),"") ->  | AM31: =IF(AND($AA31<6,R31<>"",S31<>""),ort($R31,$S31,$AY$4:$AZ$5),"") ->  | AN31: =IF(AND($AA31<6,R31<>"",S31<>""),ort($R31,$S31,$AY$6:$AZ$7),"") ->  | AO31: =IF(AND($AA31=6,R31<>"",S31<>""),ort($R31,$S31,$AY$8:$AZ$8),"") ->  | AP31: =IF(AND($AA31=7,R31<>"",S31<>""),ort($R31,$S31,$AY$9:$AZ$9),"") ->  | AQ31: =IF(AND($AA31<6,T31<>"",U31<>""),ort($T31,$U31,$AY$3:$AZ$3),"") ->  | AR31: =IF(AND($AA31<6,T31<>"",U31<>""),ort($T31,$U31,$AY$4:$AZ$5),"") ->  | AS31: =IF(AND($AA31<6,T31<>"",U31<>""),ort($T31,$U31,$AY$6:$AZ$7),"") ->  | AT31: =IF(AND($AA31=6,T31<>"",U31<>""),ort($T31,$U31,$AY$8:$AZ$8),"") ->  | AU31: =IF(AND($AA31=7,T31<>"",U31<>""),ort($T31,$U31,$AY$9:$AZ$9),"") ->  | BE31: 00:00:00
B32: Totaal Uren incl 150 % | L32: =IF(L31="","",IF(MONTH($M31+1)<>MONTH($M31),"",$M31+1)) -> 2018-01-30 | M32: =IF(M31="","",IF(MONTH($M31+1)<>MONTH($M31),"",$M31+1)) -> 2018-01-30 | O32: 00:00:00 | AA32: =IF(ISERROR(IF(NOT(ISERROR(MATCH($M32,Blad2!$A$2:$A$11,0))),7,WEEKDAY($M32,2))),"",IF(NOT(ISERROR(MATCH($M32,Blad2!$A$2:$A$11,0))),7,WEEKDAY($M32,2))) -> 2 | AB32: =IF(AND($AA32<6,N32<>"",O32<>""),ort($N32,$O32,$AY$3:$AZ$3),"") ->  | AC32: =IF(AND($AA32<6,N32<>"",O32<>""),ort($N32,$O32,$AY$4:$AZ$5),"") ->  | AD32: =IF(AND($AA32<6,N32<>"",O32<>""),ort($N32,$O32,$AY$6:$AZ$7),"") ->  | AE32: =IF(AND($AA32=6,N32<>"",O32<>""),ort($N32,$O32,$AY$8:$AZ$8),"") ->  | AF32: =IF(AND($AA32=7,N32<>"",O32<>""),ort($N32,$O32,$AY$9:$AZ$9),"") ->  | AG32: =IF(AND($AA32<6,P32<>"",Q32<>""),ort($P32,$Q32,$AY$3:$AZ$3),"") ->  | AH32: =IF(AND($AA32<6,P32<>"",Q32<>""),ort($P32,$Q32,$AY$4:$AZ$5),"") ->  | AI32: =IF(AND($AA32<6,P32<>"",Q32<>""),ort($P32,$Q32,$AY$6:$AZ$7),"") ->  | AJ32: =IF(AND($AA32=6,P32<>"",Q32<>""),ort($P32,$Q32,$AY$8:$AZ$8),"") ->  | AK32: =IF(AND($AA32=7,P32<>"",Q32<>""),ort($P32,$Q32,$AY$9:$AZ$9),"") ->  | AL32: =IF(AND($AA32<6,R32<>"",S32<>""),ort($R32,$S32,$AY$3:$AZ$3),"") ->  | AM32: =IF(AND($AA32<6,R32<>"",S32<>""),ort($R32,$S32,$AY$4:$AZ$5),"") ->  | AN32: =IF(AND($AA32<6,R32<>"",S32<>""),ort($R32,$S32,$AY$6:$AZ$7),"") ->  | AO32: =IF(AND($AA32=6,R32<>"",S32<>""),ort($R32,$S32,$AY$8:$AZ$8),"") ->  | AP32: =IF(AND($AA32=7,R32<>"",S32<>""),ort($R32,$S32,$AY$9:$AZ$9),"") ->  | AQ32: =IF(AND($AA32<6,T32<>"",U32<>""),ort($T32,$U32,$AY$3:$AZ$3),"") ->  | AR32: =IF(AND($AA32<6,T32<>"",U32<>""),ort($T32,$U32,$AY$4:$AZ$5),"") ->  | AS32: =IF(AND($AA32<6,T32<>"",U32<>""),ort($T32,$U32,$AY$6:$AZ$7),"") ->  | AT32: =IF(AND($AA32=6,T32<>"",U32<>""),ort($T32,$U32,$AY$8:$AZ$8),"") ->  | AU32: =IF(AND($AA32=7,T32<>"",U32<>""),ort($T32,$U32,$AY$9:$AZ$9),"") ->  | BE32: 00:00:00
B33: =SUM(U36,W37) -> 0.5641025641 | K33: =IF(L33="","",IF(WEEKDAY(L33)=2,1+INT((L33-DATE(YEAR(L33+4-WEEKDAY(L33+6)),1,5)+WEEKDAY(DATE(YEAR(L33+4-WEEKDAY(L33+6)),1,3)))/7),"")) ->  | L33: =IF(L32="","",IF(MONTH($M32+1)<>MONTH($M32),"",$M32+1)) -> 2018-01-31 | M33: =IF(M32="","",IF(MONTH($M32+1)<>MONTH($M32),"",$M32+1)) -> 2018-01-31 | O33: 00:00:00 | AA33: =IF(ISERROR(IF(NOT(ISERROR(MATCH($M33,Blad2!$A$2:$A$11,0))),7,WEEKDAY($M33,2))),"",IF(NOT(ISERROR(MATCH($M33,Blad2!$A$2:$A$11,0))),7,WEEKDAY($M33,2))) -> 3 | AB33: =IF(AND($AA33<6,N33<>"",O33<>""),ort($N33,$O33,$AY$3:$AZ$3),"") ->  | AC33: =IF(AND($AA33<6,N33<>"",O33<>""),ort($N33,$O33,$AY$4:$AZ$5),"") ->  | AD33: =IF(AND($AA33<6,N33<>"",O33<>""),ort($N33,$O33,$AY$6:$AZ$7),"") ->  | AE33: =IF(AND($AA33=6,N33<>"",O33<>""),ort($N33,$O33,$AY$8:$AZ$8),"") ->  | AF33: =IF(AND($AA33=7,N33<>"",O33<>""),ort($N33,$O33,$AY$9:$AZ$9),"") ->  | AG33: =IF(AND($AA33<6,P33<>"",Q33<>""),ort($P33,$Q33,$AY$3:$AZ$3),"") ->  | AH33: =IF(AND($AA33<6,P33<>"",Q33<>""),ort($P33,$Q33,$AY$4:$AZ$5),"") ->  | AI33: =IF(AND($AA33<6,P33<>"",Q33<>""),ort($P33,$Q33,$AY$6:$AZ$7),"") ->  | AJ33: =IF(AND($AA33=6,P33<>"",Q33<>""),ort($P33,$Q33,$AY$8:$AZ$8),"") ->  | AK33: =IF(AND($AA33=7,P33<>"",Q33<>""),ort($P33,$Q33,$AY$9:$AZ$9),"") ->  | AL33: =IF(AND($AA33<6,R33<>"",S33<>""),ort($R33,$S33,$AY$3:$AZ$3),"") ->  | AM33: =IF(AND($AA33<6,R33<>"",S33<>""),ort($R33,$S33,$AY$4:$AZ$5),"") ->  | AN33: =IF(AND($AA33<6,R33<>"",S33<>""),ort($R33,$S33,$AY$6:$AZ$7),"") ->  | AO33: =IF(AND($AA33=6,R33<>"",S33<>""),ort($R33,$S33,$AY$8:$AZ$8),"") ->  | AP33: =IF(AND($AA33=7,R33<>"",S33<>""),ort($R33,$S33,$AY$9:$AZ$9),"") ->  | AQ33: =IF(AND($AA33<6,T33<>"",U33<>""),ort($T33,$U33,$AY$3:$AZ$3),"") ->  | AR33: =IF(AND($AA33<6,T33<>"",U33<>""),ort($T33,$U33,$AY$4:$AZ$5),"") ->  | AS33: =IF(AND($AA33<6,T33<>"",U33<>""),ort($T33,$U33,$AY$6:$AZ$7),"") ->  | AT33: =IF(AND($AA33=6,T33<>"",U33<>""),ort($T33,$U33,$AY$8:$AZ$8),"") ->  | AU33: =IF(AND($AA33=7,T33<>"",U33<>""),ort($T33,$U33,$AY$9:$AZ$9),"") ->  | BE33: 00:00:00
W34: =SUM(W3:W33) -> 0.5641025641 | X34: =SUM(X3:X33) -> 0 | Y34: =SUM(Y3:Y33) -> 0 | Z34: =SUM(Z3:Z33) -> 0
M35: Plus / Min Uren Incl 150 % Uren | S35: Contract Uren | U35: =SUM(B17) -> 3.75
M36: =SUM(B33-B17) -> -3.185897436 | P36: 5 | R36: Gewerkte Uren 100 % | U36: =SUM(W34:X34) -> 0.5641025641
M37: Uitbetalen / Verlof | P37: =SUM(M36*P36)*24 -> -382.3076923 | R37: Gewerkte Uren 150 % | U37: =SUM(Y34) -> 0 | V37: X 150% | W37: =SUM(U37*150%) -> 0
S38: Plus Uren
S39: Min Uren

Sheet Februari
O1: Test
C2: =TODAY() -> 2018-03-21 | J2: Feestdag | K2: wknr | L2: dag | M2: datum | N2: tijd in | O2: tijd uit | P2: tijd in | Q2: tijd uit | R2: tijd in | S2: tijd uit | T2: tijd in | U2: tijd uit | V2: werk tijd | W2: 1 | X2: 1.25 | Y2: 1.5 | Z2: 2 | AA2: hulp | AB2: 1 | AC2: 1.25 | AD2: 1.5 | AE2: 1.5 | AF2: 2 | AG2: 1 | AH2: 1.25 | AI2: 1.5 | AJ2: 1.5 | AK2: 2 | AL2: 1 | AM2: 1.25 | AN2: 1.5 | AO2: 1.5 | AP2: 2 | AQ2: 1 | AR2: 1.25 | AS2: 1.5 | AT2: 1.5 | AU2: 2 | AW2: onregelmatigheidstoeslag | BB2: Stops | BC2: Laden | BD2: Lossen | BE2: Werktijd
B3: 2018 | D3: Kalender | J3: =IF(ISNA(VLOOKUP(M3,feestdagen,2,0)),"",VLOOKUP(M3,feestdagen,2,0)) ->  | K3: =WEEKNUM(L3,21) -> 5 | L3: =DATE($B$3,$B$4,1) -> 2018-02-01 | M3: =DATE($B$3,$B$4,1) -> 2018-02-01 | N3: 0.3958333333 | O3: =SUM(N3,BE3) -> 16:27:30 | V3: =IF(AND(W3="",X3="",Y3="",Z3=""),"",SUM(W3:Z3)) -> 0.2899305556 | W3: =IF(AND(AB3="",AG3="",AL3="",AQ3=""),"",SUM(AB3,AG3,AL3,AQ3)) -> 0.2899305556 | X3: =IF(AND(AC3="",AH3="",AM3="",AR3=""),"",SUM(AC3,AH3,AM3,AR3)) ->  | Y3: =IF(AND(AD3="",AE3="",AI3="",AJ3="",AN3="",AO3="",AS3="",AT3=""),"",SUM(AD3,AE3,AI3,AJ3,AN3,AO3,AS3,AT3)) ->  | Z3: =IF(AND(AF3="",AK3="",AP3="",AU3=""),"",SUM(AF3,AK3,AP3,AU3)) ->  | AA3: =IF(ISERROR(IF(NOT(ISERROR(MATCH($M3,Blad2!$A$2:$A$11,0))),7,WEEKDAY($M3,2))),"",IF(NOT(ISERROR(MATCH($M3,Blad2!$A$2:$A$11,0))),7,WEEKDAY($M3,2))) -> 4 | AB3: =IF(AND($AA3<6,N3<>"",O3<>""),ort($N3,$O3,$AY$3:$AZ$3),"") -> 0.2899305556 | AC3: =IF(AND($AA3<6,N3<>"",O3<>""),ort($N3,$O3,$AY$4:$AZ$5),"") ->  | AD3: =IF(AND($AA3<6,N3<>"",O3<>""),ort($N3,$O3,$AY$6:$AZ$7),"") ->  | AE3: =IF(AND($AA3=6,N3<>"",O3<>""),ort($N3,$O3,$AY$8:$AZ$8),"") ->  | AF3: =IF(AND($AA3=7,N3<>"",O3<>""),ort($N3,$O3,$AY$9:$AZ$9),"") ->  | AG3: =IF(AND($AA3<6,P3<>"",Q3<>""),ort($P3,$Q3,$AY$3:$AZ$3),"") ->  | AH3: =IF(AND($AA3<6,P3<>"",Q3<>""),ort($P3,$Q3,$AY$4:$AZ$5),"") ->  | AI3: =IF(AND($AA3<6,P3<>"",Q3<>""),ort($P3,$Q3,$AY$6:$AZ$7),"") ->  | AJ3: =IF(AND($AA3=6,P3<>"",Q3<>""),ort($P3,$Q3,$AY$8:$AZ$8),"") ->  | AK3: =IF(AND($AA3=7,P3<>"",Q3<>""),ort($P3,$Q3,$AY$9:$AZ$9),"") ->  | AL3: =IF(AND($AA3<6,R3<>"",S3<>""),ort($R3,$S3,$AY$3:$AZ$3),"") ->  | AM3: =IF(AND($AA3<6,R3<>"",S3<>""),ort($R3,$S3,$AY$4:$AZ$5),"") ->  | AN3: =IF(AND($AA3<6,R3<>"",S3<>""),ort($R3,$S3,$AY$6:$AZ$7),"") ->  | AO3: =IF(AND($AA3=6,R3<>"",S3<>""),ort($R3,$S3,$AY$8:$AZ$8),"") ->  | AP3: =IF(AND($AA3=7,R3<>"",S3<>""),ort($R3,$S3,$AY$9:$AZ$9),"") ->  | AQ3: =IF(AND($AA3<6,T3<>"",U3<>""),ort($T3,$U3,$AY$3:$AZ$3),"") ->  | AR3: =IF(AND($AA3<6,T3<>"",U3<>""),ort($T3,$U3,$AY$4:$AZ$5),"") ->  | AS3: =IF(AND($AA3<6,T3<>"",U3<>""),ort($T3,$U3,$AY$6:$AZ$7),"") ->  | AT3: =IF(AND($AA3=6,T3<>"",U3<>""),ort($T3,$U3,$AY$8:$AZ$8),"") ->  | AU3: =IF(AND($AA3=7,T3<>"",U3<>""),ort($T3,$U3,$AY$9:$AZ$9),"") ->  | AW3: 1 | AX3: m-vr | AY3: 0.3958333333 | AZ3: 0.7291666667 | BB3: 155 | BC3: 00:30:00 | BE3: =SUM(BB3/24/24,BC3:BD3) -> 06:57:30
B4: 2 | C4: =DATE(B3,B4,1) -> 2018-02-01 | K4: =IF(WEEKDAY(L4)=2,1+INT((L4-DATE(YEAR(L4+4-WEEKDAY(L4+6)),1,5)+WEEKDAY(DATE(YEAR(L4+4-WEEKDAY(L4+6)),1,3)))/7),"") ->  | L4: =DATE($B$3,$B$4,2) -> 2018-02-02 | M4: =DATE($B$3,$B$4,2) -> 2018-02-02 | N4: 0.3958333333 | O4: =SUM(N4,BE4) -> 15:27:30 | V4: =IF(AND(W4="",X4="",Y4="",Z4=""),"",SUM(W4:Z4)) -> 0.2482638889 | W4: =IF(AND(AB4="",AG4="",AL4="",AQ4=""),"",SUM(AB4,AG4,AL4,AQ4)) -> 0.2482638889 | X4: =IF(AND(AC4="",AH4="",AM4="",AR4=""),"",SUM(AC4,AH4,AM4,AR4)) ->  | Y4: =IF(AND(AD4="",AE4="",AI4="",AJ4="",AN4="",AO4="",AS4="",AT4=""),"",SUM(AD4,AE4,AI4,AJ4,AN4,AO4,AS4,AT4)) ->  | Z4: =IF(AND(AF4="",AK4="",AP4="",AU4=""),"",SUM(AF4,AK4,AP4,AU4)) ->  | AA4: =IF(ISERROR(IF(NOT(ISERROR(MATCH($M4,Blad2!$A$2:$A$11,0))),7,WEEKDAY($M4,2))),"",IF(NOT(ISERROR(MATCH($M4,Blad2!$A$2:$A$11,0))),7,WEEKDAY($M4,2))) -> 5 | AB4: =IF(AND($AA4<6,N4<>"",O4<>""),ort($N4,$O4,$AY$3:$AZ$3),"") -> 0.2482638889 | AC4: =IF(AND($AA4<6,N4<>"",O4<>""),ort($N4,$O4,$AY$4:$AZ$5),"") ->  | AD4: =IF(AND($AA4<6,N4<>"",O4<>""),ort($N4,$O4,$AY$6:$AZ$7),"") ->  | AE4: =IF(AND($AA4=6,N4<>"",O4<>""),ort($N4,$O4,$AY$8:$AZ$8),"") ->  | AF4: =IF(AND($AA4=7,N4<>"",O4<>""),ort($N4,$O4,$AY$9:$AZ$9),"") ->  | AG4: =IF(AND($AA4<6,P4<>"",Q4<>""),ort($P4,$Q4,$AY$3:$AZ$3),"") ->  | AH4: =IF(AND($AA4<6,P4<>"",Q4<>""),ort($P4,$Q4,$AY$4:$AZ$5),"") ->  | AI4: =IF(AND($AA4<6,P4<>"",Q4<>""),ort($P4,$Q4,$AY$6:$AZ$7),"") ->  | AJ4: =IF(AND($AA4=6,P4<>"",Q4<>""),ort($P4,$Q4,$AY$8:$AZ$8),"") ->  | AK4: =IF(AND($AA4=7,P4<>"",Q4<>""),ort($P4,$Q4,$AY$9:$AZ$9),"") ->  | AL4: =IF(AND($AA4<6,R4<>"",S4<>""),ort($R4,$S4,$AY$3:$AZ$3),"") ->  | AM4: =IF(AND($AA4<6,R4<>"",S4<>""),ort($R4,$S4,$AY$4:$AZ$5),"") ->  | AN4: =IF(AND($AA4<6,R4<>"",S4<>""),ort($R4,$S4,$AY$6:$AZ$7),"") ->  | AO4: =IF(AND($AA4=6,R4<>"",S4<>""),ort($R4,$S4,$AY$8:$AZ$8),"") ->  | AP4: =IF(AND($AA4=7,R4<>"",S4<>""),ort($R4,$S4,$AY$9:$AZ$9),"") ->  | AQ4: =IF(AND($AA4<6,T4<>"",U4<>""),ort($T4,$U4,$AY$3:$AZ$3),"") ->  | AR4: =IF(AND($AA4<6,T4<>"",U4<>""),ort($T4,$U4,$AY$4:$AZ$5),"") ->  | AS4: =IF(AND($AA4<6,T4<>"",U4<>""),ort($T4,$U4,$AY$6:$AZ$7),"") ->  | AT4: =IF(AND($AA4=6,T4<>"",U4<>""),ort($T4,$U4,$AY$8:$AZ$8),"") ->  | AU4: =IF(AND($AA4=7,T4<>"",U4<>""),ort($T4,$U4,$AY$9:$AZ$9),"") ->  | AW4: 1.25 | AX4: m-vr | AY4: 0.25 | AZ4: 0.3125 | BB4: 131 | BC4: 00:30:00 | BE4: =SUM(BB4/24/24,BC4:BD4) -> 05:57:30
C5: Ma | D5: Di | E5: Wo | F5: Do | G5: Vr | H5: Za | I5: Zo | L5: =DATE($B$3,$B$4,3) -> 2018-02-03 | M5: =DATE($B$3,$B$4,3) -> 2018-02-03 | O5: 00:00:00 | W5: =IF(AND(AB5="",AG5="",AL5="",AQ5=""),"",SUM(AB5,AG5,AL5,AQ5)) ->  | Y5: =IF(AND(AD5="",AE5="",AI5="",AJ5="",AN5="",AO5="",AS5="",AT5=""),"",SUM(AD5,AE5,AI5,AJ5,AN5,AO5,AS5,AT5)) ->  | Z5: =IF(AND(AF5="",AK5="",AP5="",AU5=""),"",SUM(AF5,AK5,AP5,AU5)) ->  | AA5: =IF(ISERROR(IF(NOT(ISERROR(MATCH($M5,Blad2!$A$2:$A$11,0))),7,WEEKDAY($M5,2))),"",IF(NOT(ISERROR(MATCH($M5,Blad2!$A$2:$A$11,0))),7,WEEKDAY($M5,2))) -> 6 | AB5: =IF(AND($AA5<6,N5<>"",O5<>""),ort($N5,$O5,$AY$3:$AZ$3),"") ->  | AC5: =IF(AND($AA5<6,N5<>"",O5<>""),ort($N5,$O5,$AY$4:$AZ$5),"") ->  | AD5: =IF(AND($AA5<6,N5<>"",O5<>""),ort($N5,$O5,$AY$6:$AZ$7),"") ->  | AE5: =IF(AND($AA5=6,N5<>"",O5<>""),ort($N5,$O5,$AY$8:$AZ$8),"") ->  | AF5: =IF(AND($AA5=7,N5<>"",O5<>""),ort($N5,$O5,$AY$9:$AZ$9),"") ->  | AG5: =IF(AND($AA5<6,P5<>"",Q5<>""),ort($P5,$Q5,$AY$3:$AZ$3),"") ->  | AH5: =IF(AND($AA5<6,P5<>"",Q5<>""),ort($P5,$Q5,$AY$4:$AZ$5),"") ->  | AI5: =IF(AND($AA5<6,P5<>"",Q5<>""),ort($P5,$Q5,$AY$6:$AZ$7),"") ->  | AJ5: =IF(AND($AA5=6,P5<>"",Q5<>""),ort($P5,$Q5,$AY$8:$AZ$8),"") ->  | AK5: =IF(AND($AA5=7,P5<>"",Q5<>""),ort($P5,$Q5,$AY$9:$AZ$9),"") ->  | AL5: =IF(AND($AA5<6,R5<>"",S5<>""),ort($R5,$S5,$AY$3:$AZ$3),"") ->  | AM5: =IF(AND($AA5<6,R5<>"",S5<>""),ort($R5,$S5,$AY$4:$AZ$5),"") ->  | AN5: =IF(AND($AA5<6,R5<>"",S5<>""),ort($R5,$S5,$AY$6:$AZ$7),"") ->  | AO5: =IF(AND($AA5=6,R5<>"",S5<>""),ort($R5,$S5,$AY$8:$AZ$8),"") ->  | AP5: =IF(AND($AA5=7,R5<>"",S5<>""),ort($R5,$S5,$AY$9:$AZ$9),"") ->  | AQ5: =IF(AND($AA5<6,T5<>"",U5<>""),ort($T5,$U5,$AY$3:$AZ$3),"") ->  | AR5: =IF(AND($AA5<6,T5<>"",U5<>""),ort($T5,$U5,$AY$4:$AZ$5),"") ->  | AS5: =IF(AND($AA5<6,T5<>"",U5<>""),ort($T5,$U5,$AY$6:$AZ$7),"") ->  | AT5: =IF(AND($AA5=6,T5<>"",U5<>""),ort($T5,$U5,$AY$8:$AZ$8),"") ->  | AU5: =IF(AND($AA5=7,T5<>"",U5<>""),ort($T5,$U5,$AY$9:$AZ$9),"") ->  | AW5: 1.25 | AX5: m-vr | AY5: 0.7291666667 | AZ5: 0.7708333333 | BE5: 00:00:00
C6: =IF(WEEKDAY(C4,2)=1,C4,"") ->  | D6: =IF(WEEKDAY(C4,2)=2,C4,IF(C6<>"",C6+1,"")) ->  | E6: =IF(WEEKDAY(C4,2)=3,C4,IF(D6<>"",D6+1,"")) ->  | F6: =IF(WEEKDAY(C4,2)=4,C4,IF(E6<>"",E6+1,"")) -> 2018-02-01 | G6: =IF(WEEKDAY(C4,2)=5,C4,IF(F6<>"",F6+1,"")) -> 2018-02-02 | H6: =IF(WEEKDAY(C4,2)=6,C4,IF(G6<>"",G6+1,"")) -> 2018-02-03 | I6: =IF(WEEKDAY(C4,2)=7,C4,IF(H6<>"",H6+1,"")) -> 2018-02-04 | L6: =DATE($B$3,$B$4,4) -> 2018-02-04 | M6: =DATE($B$3,$B$4,4) -> 2018-02-04 | O6: 00:00:00 | AA6: =IF(ISERROR(IF(NOT(ISERROR(MATCH($M6,Blad2!$A$2:$A$11,0))),7,WEEKDAY($M6,2))),"",IF(NOT(ISERROR(MATCH($M6,Blad2!$A$2:$A$11,0))),7,WEEKDAY($M6,2))) -> 7 | AB6: =IF(AND($AA6<6,N6<>"",O6<>""),ort($N6,$O6,$AY$3:$AZ$3),"") ->  | AC6: =IF(AND($AA6<6,N6<>"",O6<>""),ort($N6,$O6,$AY$4:$AZ$5),"") ->  | AD6: =IF(AND($AA6<6,N6<>"",O6<>""),ort($N6,$O6,$AY$6:$AZ$7),"") ->  | AE6: =IF(AND($AA6=6,N6<>"",O6<>""),ort($N6,$O6,$AY$8:$AZ$8),"") ->  | AF6: =IF(AND($AA6=7,N6<>"",O6<>""),ort($N6,$O6,$AY$9:$AZ$9),"") ->  | AG6: =IF(AND($AA6<6,P6<>"",Q6<>""),ort($P6,$Q6,$AY$3:$AZ$3),"") ->  | AH6: =IF(AND($AA6<6,P6<>"",Q6<>""),ort($P6,$Q6,$AY$4:$AZ$5),"") ->  | AI6: =IF(AND($AA6<6,P6<>"",Q6<>""),ort($P6,$Q6,$AY$6:$AZ$7),"") ->  | AJ6: =IF(AND($AA6=6,P6<>"",Q6<>""),ort($P6,$Q6,$AY$8:$AZ$8),"") ->  | AK6: =IF(AND($AA6=7,P6<>"",Q6<>""),ort($P6,$Q6,$AY$9:$AZ$9),"") ->  | AL6: =IF(AND($AA6<6,R6<>"",S6<>""),ort($R6,$S6,$AY$3:$AZ$3),"") ->  | AM6: =IF(AND($AA6<6,R6<>"",S6<>""),ort($R6,$S6,$AY$4:$AZ$5),"") ->  | AN6: =IF(AND($AA6<6,R6<>"",S6<>""),ort($R6,$S6,$AY$6:$AZ$7),"") ->  | AO6: =IF(AND($AA6=6,R6<>"",S6<>""),ort($R6,$S6,$AY$8:$AZ$8),"") ->  | AP6: =IF(AND($AA6=7,R6<>"",S6<>""),ort($R6,$S6,$AY$9:$AZ$9),"") ->  | AQ6: =IF(AND($AA6<6,T6<>"",U6<>""),ort($T6,$U6,$AY$3:$AZ$3),"") ->  | AR6: =IF(AND($AA6<6,T6<>"",U6<>""),ort($T6,$U6,$AY$4:$AZ$5),"") ->  | AS6: =IF(AND($AA6<6,T6<>"",U6<>""),ort($T6,$U6,$AY$6:$AZ$7),"") ->  | AT6: =IF(AND($AA6=6,T6<>"",U6<>""),ort($T6,$U6,$AY$8:$AZ$8),"") ->  | AU6: =IF(AND($AA6=7,T6<>"",U6<>""),ort($T6,$U6,$AY$9:$AZ$9),"") ->  | AW6: 1.5 | AX6: m-vr | AY6: 0 | AZ6: 0.25 | BE6: 00:00:00
C7: =I6+1 -> 2018-02-05 | D7: =C7+1 -> 2018-02-06 | E7: =D7+1 -> 2018-02-07 | F7: 2018-02-08 | G7: 2018-02-09 | H7: 2018-02-10 | I7: 2018-02-11 | K7: 6 | L7: =DATE($B$3,$B$4,5) -> 2018-02-05 | M7: =DATE($B$3,$B$4,5) -> 2018-02-05 | N7: 0.3958333333 | O7: 09:30:00 | AA7: =IF(ISERROR(IF(NOT(ISERROR(MATCH($M7,Blad2!$A$2:$A$11,0))),7,WEEKDAY($M7,2))),"",IF(NOT(ISERROR(MATCH($M7,Blad2!$A$2:$A$11,0))),7,WEEKDAY($M7,2))) -> 1 | AB7: =IF(AND($AA7<6,N7<>"",O7<>""),ort($N7,$O7,$AY$3:$AZ$3),"") ->  | AC7: =IF(AND($AA7<6,N7<>"",O7<>""),ort($N7,$O7,$AY$4:$AZ$5),"") ->  | AD7: =IF(AND($AA7<6,N7<>"",O7<>""),ort($N7,$O7,$AY$6:$AZ$7),"") ->  | AE7: =IF(AND($AA7=6,N7<>"",O7<>""),ort($N7,$O7,$AY$8:$AZ$8),"") ->  | AF7: =IF(AND($AA7=7,N7<>"",O7<>""),ort($N7,$O7,$AY$9:$AZ$9),"") ->  | AG7: =IF(AND($AA7<6,P7<>"",Q7<>""),ort($P7,$Q7,$AY$3:$AZ$3),"") ->  | AH7: =IF(AND($AA7<6,P7<>"",Q7<>""),ort($P7,$Q7,$AY$4:$AZ$5),"") ->  | AI7: =IF(AND($AA7<6,P7<>"",Q7<>""),ort($P7,$Q7,$AY$6:$AZ$7),"") ->  | AJ7: =IF(AND($AA7=6,P7<>"",Q7<>""),ort($P7,$Q7,$AY$8:$AZ$8),"") ->  | AK7: =IF(AND($AA7=7,P7<>"",Q7<>""),ort($P7,$Q7,$AY$9:$AZ$9),"") ->  | AL7: =IF(AND($AA7<6,R7<>"",S7<>""),ort($R7,$S7,$AY$3:$AZ$3),"") ->  | AM7: =IF(AND($AA7<6,R7<>"",S7<>""),ort($R7,$S7,$AY$4:$AZ$5),"") ->  | AN7: =IF(AND($AA7<6,R7<>"",S7<>""),ort($R7,$S7,$AY$6:$AZ$7),"") ->  | AO7: =IF(AND($AA7=6,R7<>"",S7<>""),ort($R7,$S7,$AY$8:$AZ$8),"") ->  | AP7: =IF(AND($AA7=7,R7<>"",S7<>""),ort($R7,$S7,$AY$9:$AZ$9),"") ->  | AQ7: =IF(AND($AA7<6,T7<>"",U7<>""),ort($T7,$U7,$AY$3:$AZ$3),"") ->  | AR7: =IF(AND($AA7<6,T7<>"",U7<>""),ort($T7,$U7,$AY$4:$AZ$5),"") ->  | AS7: =IF(AND($AA7<6,T7<>"",U7<>""),ort($T7,$U7,$AY$6:$AZ$7),"") ->  | AT7: =IF(AND($AA7=6,T7<>"",U7<>""),ort($T7,$U7,$AY$8:$AZ$8),"") ->  | AU7: =IF(AND($AA7=7,T7<>"",U7<>""),ort($T7,$U7,$AY$9:$AZ$9),"") ->  | AW7: 1.5 | AX7: m-vr | AY7: 0.7708333333 | AZ7: 1 | BE7: 00:00:00
C8: =I7+1 -> 2018-02-12 | D8: =C8+1 -> 2018-02-13 | E8: 2018-02-14 | F8: 2018-02-15 | G8: 2018-02-16 | H8: 2018-02-17 | I8: 2018-02-18 | L8: =DATE($B$3,$B$4,6) -> 2018-02-06 | M8: =DATE($B$3,$B$4,6) -> 2018-02-06 | N8: 0.3958333333 | O8: 16:20:00 | V8: 0.2847222222 | W8: 0.2847222222 | AA8: =IF(ISERROR(IF(NOT(ISERROR(MATCH($M8,Blad2!$A$2:$A$11,0))),7,WEEKDAY($M8,2))),"",IF(NOT(ISERROR(MATCH($M8,Blad2!$A$2:$A$11,0))),7,WEEKDAY($M8,2))) -> 2 | AB8: =IF(AND($AA8<6,N8<>"",O8<>""),ort($N8,$O8,$AY$3:$AZ$3),"") -> 0.2847222222 | AC8: =IF(AND($AA8<6,N8<>"",O8<>""),ort($N8,$O8,$AY$4:$AZ$5),"") ->  | AD8: =IF(AND($AA8<6,N8<>"",O8<>""),ort($N8,$O8,$AY$6:$AZ$7),"") ->  | AE8: =IF(AND($AA8=6,N8<>"",O8<>""),ort($N8,$O8,$AY$8:$AZ$8),"") ->  | AF8: =IF(AND($AA8=7,N8<>"",O8<>""),ort($N8,$O8,$AY$9:$AZ$9),"") ->  | AG8: =IF(AND($AA8<6,P8<>"",Q8<>""),ort($P8,$Q8,$AY$3:$AZ$3),"") ->  | AH8: =IF(AND($AA8<6,P8<>"",Q8<>""),ort($P8,$Q8,$AY$4:$AZ$5),"") ->  | AI8: =IF(AND($AA8<6,P8<>"",Q8<>""),ort($P8,$Q8,$AY$6:$AZ$7),"") ->  | AJ8: =IF(AND($AA8=6,P8<>"",Q8<>""),ort($P8,$Q8,$AY$8:$AZ$8),"") ->  | AK8: =IF(AND($AA8=7,P8<>"",Q8<>""),ort($P8,$Q8,$AY$9:$AZ$9),"") ->  | AL8: =IF(AND($AA8<6,R8<>"",S8<>""),ort($R8,$S8,$AY$3:$AZ$3),"") ->  | AM8: =IF(AND($AA8<6,R8<>"",S8<>""),ort($R8,$S8,$AY$4:$AZ$5),"") ->  | AN8: =IF(AND($AA8<6,R8<>"",S8<>""),ort($R8,$S8,$AY$6:$AZ$7),"") ->  | AO8: =IF(AND($AA8=6,R8<>"",S8<>""),ort($R8,$S8,$AY$8:$AZ$8),"") ->  | AP8: =IF(AND($AA8=7,R8<>"",S8<>""),ort($R8,$S8,$AY$9:$AZ$9),"") ->  | AQ8: =IF(AND($AA8<6,T8<>"",U8<>""),ort($T8,$U8,$AY$3:$AZ$3),"") ->  | AR8: =IF(AND($AA8<6,T8<>"",U8<>""),ort($T8,$U8,$AY$4:$AZ$5),"") ->  | AS8: =IF(AND($AA8<6,T8<>"",U8<>""),ort($T8,$U8,$AY$6:$AZ$7),"") ->  | AT8: =IF(AND($AA8=6,T8<>"",U8<>""),ort($T8,$U8,$AY$8:$AZ$8),"") ->  | AU8: =IF(AND($AA8=7,T8<>"",U8<>""),ort($T8,$U8,$AY$9:$AZ$9),"") ->  | AW8: 1.5 | AX8: za | AY8: 0 | AZ8: 1 | BB8: 152 | BC8: 00:30:00 | BE8: 06:50:00
C9: =I8+1 -> 2018-02-19 | D9: =C9+1 -> 2018-02-20 | E9: 2018-02-21 | F9: 2018-02-22 | G9: 2018-02-23 | H9: 2018-02-24 | I9: 2018-02-25 | L9: =DATE($B$3,$B$4,7) -> 2018-02-07 | M9: =DATE($B$3,$B$4,7) -> 2018-02-07 | N9: 0.3958333333 | O9: 16:02:30 | V9: 0.2725694444 | W9: 0.2725694444 | AA9: =IF(ISERROR(IF(NOT(ISERROR(MATCH($M9,Blad2!$A$2:$A$11,0))),7,WEEKDAY($M9,2))),"",IF(NOT(ISERROR(MATCH($M9,Blad2!$A$2:$A$11,0))),7,WEEKDAY($M9,2))) -> 3 | AB9: =IF(AND($AA9<6,N9<>"",O9<>""),ort($N9,$O9,$AY$3:$AZ$3),"") -> 0.2725694444 | AC9: =IF(AND($AA9<6,N9<>"",O9<>""),ort($N9,$O9,$AY$4:$AZ$5),"") ->  | AD9: =IF(AND($AA9<6,N9<>"",O9<>""),ort($N9,$O9,$AY$6:$AZ$7),"") ->  | AE9: =IF(AND($AA9=6,N9<>"",O9<>""),ort($N9,$O9,$AY$8:$AZ$8),"") ->  | AF9: =IF(AND($AA9=7,N9<>"",O9<>""),ort($N9,$O9,$AY$9:$AZ$9),"") ->  | AG9: =IF(AND($AA9<6,P9<>"",Q9<>""),ort($P9,$Q9,$AY$3:$AZ$3),"") ->  | AH9: =IF(AND($AA9<6,P9<>"",Q9<>""),ort($P9,$Q9,$AY$4:$AZ$5),"") ->  | AI9: =IF(AND($AA9<6,P9<>"",Q9<>""),ort($P9,$Q9,$AY$6:$AZ$7),"") ->  | AJ9: =IF(AND($AA9=6,P9<>"",Q9<>""),ort($P9,$Q9,$AY$8:$AZ$8),"") ->  | AK9: =IF(AND($AA9=7,P9<>"",Q9<>""),ort($P9,$Q9,$AY$9:$AZ$9),"") ->  | AL9: =IF(AND($AA9<6,R9<>"",S9<>""),ort($R9,$S9,$AY$3:$AZ$3),"") ->  | AM9: =IF(AND($AA9<6,R9<>"",S9<>""),ort($R9,$S9,$AY$4:$AZ$5),"") ->  | AN9: =IF(AND($AA9<6,R9<>"",S9<>""),ort($R9,$S9,$AY$6:$AZ$7),"") ->  | AO9: =IF(AND($AA9=6,R9<>"",S9<>""),ort($R9,$S9,$AY$8:$AZ$8),"") ->  | AP9: =IF(AND($AA9=7,R9<>"",S9<>""),ort($R9,$S9,$AY$9:$AZ$9),"") ->  | AQ9: =IF(AND($AA9<6,T9<>"",U9<>""),ort($T9,$U9,$AY$3:$AZ$3),"") ->  | AR9: =IF(AND($AA9<6,T9<>"",U9<>""),ort($T9,$U9,$AY$4:$AZ$5),"") ->  | AS9: =IF(AND($AA9<6,T9<>"",U9<>""),ort($T9,$U9,$AY$6:$AZ$7),"") ->  | AT9: =IF(AND($AA9=6,T9<>"",U9<>""),ort($T9,$U9,$AY$8:$AZ$8),"") ->  | AU9: =IF(AND($AA9=7,T9<>"",U9<>""),ort($T9,$U9,$AY$9:$AZ$9),"") ->  | AW9: 2 | AX9: zo/feest | AY9: 0 | AZ9: 1 | BB9: 145 | BC9: 00:30:00 | BE9: 06:32:30
C10: =IF(I9="","",IF(MONTH(I9+1)=MONTH(I9),I9+1,"")) -> 2018-02-26 | D10: =IF(C10="","",IF(MONTH(C10+1)=MONTH(C10),C10+1,"")) -> 2018-02-27 | E10: =IF(D10="","",IF(MONTH(D10+1)=MONTH(D10),D10+1,"")) -> 2018-02-28 | L10: =DATE($B$3,$B$4,8) -> 2018-02-08 | M10: =DATE($B$3,$B$4,8) -> 2018-02-08 | N10: 0.3958333333 | O10: 15:10:00 | V10: 0.2361111111 | W10: 0.2361111111 | AA10: =IF(ISERROR(IF(NOT(ISERROR(MATCH($M10,Blad2!$A$2:$A$11,0))),7,WEEKDAY($M10,2))),"",IF(NOT(ISERROR(MATCH($M10,Blad2!$A$2:$A$11,0))),7,WEEKDAY($M10,2))) -> 4 | AB10: =IF(AND($AA10<6,N10<>"",O10<>""),ort($N10,$O10,$AY$3:$AZ$3),"") -> 0.2361111111 | AC10: =IF(AND($AA10<6,N10<>"",O10<>""),ort($N10,$O10,$AY$4:$AZ$5),"") ->  | AD10: =IF(AND($AA10<6,N10<>"",O10<>""),ort($N10,$O10,$AY$6:$AZ$7),"") ->  | AE10: =IF(AND($AA10=6,N10<>"",O10<>""),ort($N10,$O10,$AY$8:$AZ$8),"") ->  | AF10: =IF(AND($AA10=7,N10<>"",O10<>""),ort($N10,$O10,$AY$9:$AZ$9),"") ->  | AG10: =IF(AND($AA10<6,P10<>"",Q10<>""),ort($P10,$Q10,$AY$3:$AZ$3),"") ->  | AH10: =IF(AND($AA10<6,P10<>"",Q10<>""),ort($P10,$Q10,$AY$4:$AZ$5),"") ->  | AI10: =IF(AND($AA10<6,P10<>"",Q10<>""),ort($P10,$Q10,$AY$6:$AZ$7),"") ->  | AJ10: =IF(AND($AA10=6,P10<>"",Q10<>""),ort($P10,$Q10,$AY$8:$AZ$8),"") ->  | AK10: =IF(AND($AA10=7,P10<>"",Q10<>""),ort($P10,$Q10,$AY$9:$AZ$9),"") ->  | AL10: =IF(AND($AA10<6,R10<>"",S10<>""),ort($R10,$S10,$AY$3:$AZ$3),"") ->  | AM10: =IF(AND($AA10<6,R10<>"",S10<>""),ort($R10,$S10,$AY$4:$AZ$5),"") ->  | AN10: =IF(AND($AA10<6,R10<>"",S10<>""),ort($R10,$S10,$AY$6:$AZ$7),"") ->  | AO10: =IF(AND($AA10=6,R10<>"",S10<>""),ort($R10,$S10,$AY$8:$AZ$8),"") ->  | AP10: =IF(AND($AA10=7,R10<>"",S10<>""),ort($R10,$S10,$AY$9:$AZ$9),"") ->  | AQ10: =IF(AND($AA10<6,T10<>"",U10<>""),ort($T10,$U10,$AY$3:$AZ$3),"") ->  | AR10: =IF(AND($AA10<6,T10<>"",U10<>""),ort($T10,$U10,$AY$4:$AZ$5),"") ->  | AS10: =IF(AND($AA10<6,T10<>"",U10<>""),ort($T10,$U10,$AY$6:$AZ$7),"") ->  | AT10: =IF(AND($AA10=6,T10<>"",U10<>""),ort($T10,$U10,$AY$8:$AZ$8),"") ->  | AU10: =IF(AND($AA10=7,T10<>"",U10<>""),ort($T10,$U10,$AY$9:$AZ$9),"") ->  | BB10: 124 | BC10: 00:30:00 | BE10: 05:40:00
C11: =IF(I10="","",IF(MONTH(I10+1)=MONTH(I10),I10+1,"")) ->  | D11: =IF(C11="","",IF(MONTH(C11+1)=MONTH(C11),C11+1,"")) ->  | L11: =DATE($B$3,$B$4,9) -> 2018-02-09 | M11: =DATE($B$3,$B$4,9) -> 2018-02-09 | N11: 0.4583333333 | O11: 15:07:30 | V11: 0.171875 | W11: 0.171875 | AA11: =IF(ISERROR(IF(NOT(ISERROR(MATCH($M11,Blad2!$A$2:$A$11,0))),7,WEEKDAY($M11,2))),"",IF(NOT(ISERROR(MATCH($M11,Blad2!$A$2:$A$11,0))),7,WEEKDAY($M11,2))) -> 5 | AB11: =IF(AND($AA11<6,N11<>"",O11<>""),ort($N11,$O11,$AY$3:$AZ$3),"") -> 0.171875 | AC11: =IF(AND($AA11<6,N11<>"",O11<>""),ort($N11,$O11,$AY$4:$AZ$5),"") ->  | AD11: =IF(AND($AA11<6,N11<>"",O11<>""),ort($N11,$O11,$AY$6:$AZ$7),"") ->  | AE11: =IF(AND($AA11=6,N11<>"",O11<>""),ort($N11,$O11,$AY$8:$AZ$8),"") ->  | AF11: =IF(AND($AA11=7,N11<>"",O11<>""),ort($N11,$O11,$AY$9:$AZ$9),"") ->  | AG11: =IF(AND($AA11<6,P11<>"",Q11<>""),ort($P11,$Q11,$AY$3:$AZ$3),"") ->  | AH11: =IF(AND($AA11<6,P11<>"",Q11<>""),ort($P11,$Q11,$AY$4:$AZ$5),"") ->  | AI11: =IF(AND($AA11<6,P11<>"",Q11<>""),ort($P11,$Q11,$AY$6:$AZ$7),"") ->  | AJ11: =IF(AND($AA11=6,P11<>"",Q11<>""),ort($P11,$Q11,$AY$8:$AZ$8),"") ->  | AK11: =IF(AND($AA11=7,P11<>"",Q11<>""),ort($P11,$Q11,$AY$9:$AZ$9),"") ->  | AL11: =IF(AND($AA11<6,R11<>"",S11<>""),ort($R11,$S11,$AY$3:$AZ$3),"") ->  | AM11: =IF(AND($AA11<6,R11<>"",S11<>""),ort($R11,$S11,$AY$4:$AZ$5),"") ->  | AN11: =IF(AND($AA11<6,R11<>"",S11<>""),ort($R11,$S11,$AY$6:$AZ$7),"") ->  | AO11: =IF(AND($AA11=6,R11<>"",S11<>""),ort($R11,$S11,$AY$8:$AZ$8),"") ->  | AP11: =IF(AND($AA11=7,R11<>"",S11<>""),ort($R11,$S11,$AY$9:$AZ$9),"") ->  | AQ11: =IF(AND($AA11<6,T11<>"",U11<>""),ort($T11,$U11,$AY$3:$AZ$3),"") ->  | AR11: =IF(AND($AA11<6,T11<>"",U11<>""),ort($T11,$U11,$AY$4:$AZ$5),"") ->  | AS11: =IF(AND($AA11<6,T11<>"",U11<>""),ort($T11,$U11,$AY$6:$AZ$7),"") ->  | AT11: =IF(AND($AA11=6,T11<>"",U11<>""),ort($T11,$U11,$AY$8:$AZ$8),"") ->  | AU11: =IF(AND($AA11=7,T11<>"",U11<>""),ort($T11,$U11,$AY$9:$AZ$9),"") ->  | BB11: 87 | BC11: 00:30:00 | BE11: 04:07:30
L12: =DATE($B$3,$B$4,10) -> 2018-02-10 | M12: =DATE($B$3,$B$4,10) -> 2018-02-10 | O12: 00:00:00 | AA12: =IF(ISERROR(IF(NOT(ISERROR(MATCH($M12,Blad2!$A$2:$A$11,0))),7,WEEKDAY($M12,2))),"",IF(NOT(ISERROR(MATCH($M12,Blad2!$A$2:$A$11,0))),7,WEEKDAY($M12,2))) -> 6 | AB12: =IF(AND($AA12<6,N12<>"",O12<>""),ort($N12,$O12,$AY$3:$AZ$3),"") ->  | AC12: =IF(AND($AA12<6,N12<>"",O12<>""),ort($N12,$O12,$AY$4:$AZ$5),"") ->  | AD12: =IF(AND($AA12<6,N12<>"",O12<>""),ort($N12,$O12,$AY$6:$AZ$7),"") ->  | AE12: =IF(AND($AA12=6,N12<>"",O12<>""),ort($N12,$O12,$AY$8:$AZ$8),"") ->  | AF12: =IF(AND($AA12=7,N12<>"",O12<>""),ort($N12,$O12,$AY$9:$AZ$9),"") ->  | AG12: =IF(AND($AA12<6,P12<>"",Q12<>""),ort($P12,$Q12,$AY$3:$AZ$3),"") ->  | AH12: =IF(AND($AA12<6,P12<>"",Q12<>""),ort($P12,$Q12,$AY$4:$AZ$5),"") ->  | AI12: =IF(AND($AA12<6,P12<>"",Q12<>""),ort($P12,$Q12,$AY$6:$AZ$7),"") ->  | AJ12: =IF(AND($AA12=6,P12<>"",Q12<>""),ort($P12,$Q12,$AY$8:$AZ$8),"") ->  | AK12: =IF(AND($AA12=7,P12<>"",Q12<>""),ort($P12,$Q12,$AY$9:$AZ$9),"") ->  | AL12: =IF(AND($AA12<6,R12<>"",S12<>""),ort($R12,$S12,$AY$3:$AZ$3),"") ->  | AM12: =IF(AND($AA12<6,R12<>"",S12<>""),ort($R12,$S12,$AY$4:$AZ$5),"") ->  | AN12: =IF(AND($AA12<6,R12<>"",S12<>""),ort($R12,$S12,$AY$6:$AZ$7),"") ->  | AO12: =IF(AND($AA12=6,R12<>"",S12<>""),ort($R12,$S12,$AY$8:$AZ$8),"") ->  | AP12: =IF(AND($AA12=7,R12<>"",S12<>""),ort($R12,$S12,$AY$9:$AZ$9),"") ->  | AQ12: =IF(AND($AA12<6,T12<>"",U12<>""),ort($T12,$U12,$AY$3:$AZ$3),"") ->  | AR12: =IF(AND($AA12<6,T12<>"",U12<>""),ort($T12,$U12,$AY$4:$AZ$5),"") ->  | AS12: =IF(AND($AA12<6,T12<>"",U12<>""),ort($T12,$U12,$AY$6:$AZ$7),"") ->  | AT12: =IF(AND($AA12=6,T12<>"",U12<>""),ort($T12,$U12,$AY$8:$AZ$8),"") ->  | AU12: =IF(AND($AA12=7,T12<>"",U12<>""),ort($T12,$U12,$AY$9:$AZ$9),"") ->  | BE12: 00:00:00
B13: Werkdagen deze maand | L13: =DATE($B$3,$B$4,11) -> 2018-02-11 | M13: =DATE($B$3,$B$4,11) -> 2018-02-11 | O13: 00:00:00 | AA13: =IF(ISERROR(IF(NOT(ISERROR(MATCH($M13,Blad2!$A$2:$A$11,0))),7,WEEKDAY($M13,2))),"",IF(NOT(ISERROR(MATCH($M13,Blad2!$A$2:$A$11,0))),7,WEEKDAY($M13,2))) -> 7 | AB13: =IF(AND($AA13<6,N13<>"",O13<>""),ort($N13,$O13,$AY$3:$AZ$3),"") ->  | AC13: =IF(AND($AA13<6,N13<>"",O13<>""),ort($N13,$O13,$AY$4:$AZ$5),"") ->  | AD13: =IF(AND($AA13<6,N13<>"",O13<>""),ort($N13,$O13,$AY$6:$AZ$7),"") ->  | AE13: =IF(AND($AA13=6,N13<>"",O13<>""),ort($N13,$O13,$AY$8:$AZ$8),"") ->  | AF13: =IF(AND($AA13=7,N13<>"",O13<>""),ort($N13,$O13,$AY$9:$AZ$9),"") ->  | AG13: =IF(AND($AA13<6,P13<>"",Q13<>""),ort($P13,$Q13,$AY$3:$AZ$3),"") ->  | AH13: =IF(AND($AA13<6,P13<>"",Q13<>""),ort($P13,$Q13,$AY$4:$AZ$5),"") ->  | AI13: =IF(AND($AA13<6,P13<>"",Q13<>""),ort($P13,$Q13,$AY$6:$AZ$7),"") ->  | AJ13: =IF(AND($AA13=6,P13<>"",Q13<>""),ort($P13,$Q13,$AY$8:$AZ$8),"") ->  | AK13: =IF(AND($AA13=7,P13<>"",Q13<>""),ort($P13,$Q13,$AY$9:$AZ$9),"") ->  | AL13: =IF(AND($AA13<6,R13<>"",S13<>""),ort($R13,$S13,$AY$3:$AZ$3),"") ->  | AM13: =IF(AND($AA13<6,R13<>"",S13<>""),ort($R13,$S13,$AY$4:$AZ$5),"") ->  | AN13: =IF(AND($AA13<6,R13<>"",S13<>""),ort($R13,$S13,$AY$6:$AZ$7),"") ->  | AO13: =IF(AND($AA13=6,R13<>"",S13<>""),ort($R13,$S13,$AY$8:$AZ$8),"") ->  | AP13: =IF(AND($AA13=7,R13<>"",S13<>""),ort($R13,$S13,$AY$9:$AZ$9),"") ->  | AQ13: =IF(AND($AA13<6,T13<>"",U13<>""),ort($T13,$U13,$AY$3:$AZ$3),"") ->  | AR13: =IF(AND($AA13<6,T13<>"",U13<>""),ort($T13,$U13,$AY$4:$AZ$5),"") ->  | AS13: =IF(AND($AA13<6,T13<>"",U13<>""),ort($T13,$U13,$AY$6:$AZ$7),"") ->  | AT13: =IF(AND($AA13=6,T13<>"",U13<>""),ort($T13,$U13,$AY$8:$AZ$8),"") ->  | AU13: =IF(AND($AA13=7,T13<>"",U13<>""),ort($T13,$U13,$AY$9:$AZ$9),"") ->  | BE13: 00:00:00
B14: =NETWORKDAYS($L$3,EOMONTH($L$3,0),Blad2!A2:A97)&" dagen" -> 20 dagen | K14: 7 | L14: =DATE($B$3,$B$4,12) -> 2018-02-12 | M14: =DATE($B$3,$B$4,12) -> 2018-02-12 | N14: 0.3958333333 | O14: 09:30:00 | AA14: =IF(ISERROR(IF(NOT(ISERROR(MATCH($M14,Blad2!$A$2:$A$11,0))),7,WEEKDAY($M14,2))),"",IF(NOT(ISERROR(MATCH($M14,Blad2!$A$2:$A$11,0))),7,WEEKDAY($M14,2))) -> 1 | AB14: =IF(AND($AA14<6,N14<>"",O14<>""),ort($N14,$O14,$AY$3:$AZ$3),"") ->  | AC14: =IF(AND($AA14<6,N14<>"",O14<>""),ort($N14,$O14,$AY$4:$AZ$5),"") ->  | AD14: =IF(AND($AA14<6,N14<>"",O14<>""),ort($N14,$O14,$AY$6:$AZ$7),"") ->  | AE14: =IF(AND($AA14=6,N14<>"",O14<>""),ort($N14,$O14,$AY$8:$AZ$8),"") ->  | AF14: =IF(AND($AA14=7,N14<>"",O14<>""),ort($N14,$O14,$AY$9:$AZ$9),"") ->  | AG14: =IF(AND($AA14<6,P14<>"",Q14<>""),ort($P14,$Q14,$AY$3:$AZ$3),"") ->  | AH14: =IF(AND($AA14<6,P14<>"",Q14<>""),ort($P14,$Q14,$AY$4:$AZ$5),"") ->  | AI14: =IF(AND($AA14<6,P14<>"",Q14<>""),ort($P14,$Q14,$AY$6:$AZ$7),"") ->  | AJ14: =IF(AND($AA14=6,P14<>"",Q14<>""),ort($P14,$Q14,$AY$8:$AZ$8),"") ->  | AK14: =IF(AND($AA14=7,P14<>"",Q14<>""),ort($P14,$Q14,$AY$9:$AZ$9),"") ->  | AL14: =IF(AND($AA14<6,R14<>"",S14<>""),ort($R14,$S14,$AY$3:$AZ$3),"") ->  | AM14: =IF(AND($AA14<6,R14<>"",S14<>""),ort($R14,$S14,$AY$4:$AZ$5),"") ->  | AN14: =IF(AND($AA14<6,R14<>"",S14<>""),ort($R14,$S14,$AY$6:$AZ$7),"") ->  | AO14: =IF(AND($AA14=6,R14<>"",S14<>""),ort($R14,$S14,$AY$8:$AZ$8),"") ->  | AP14: =IF(AND($AA14=7,R14<>"",S14<>""),ort($R14,$S14,$AY$9:$AZ$9),"") ->  | AQ14: =IF(AND($AA14<6,T14<>"",U14<>""),ort($T14,$U14,$AY$3:$AZ$3),"") ->  | AR14: =IF(AND($AA14<6,T14<>"",U14<>""),ort($T14,$U14,$AY$4:$AZ$5),"") ->  | AS14: =IF(AND($AA14<6,T14<>"",U14<>""),ort($T14,$U14,$AY$6:$AZ$7),"") ->  | AT14: =IF(AND($AA14=6,T14<>"",U14<>""),ort($T14,$U14,$AY$8:$AZ$8),"") ->  | AU14: =IF(AND($AA14=7,T14<>"",U14<>""),ort($T14,$U14,$AY$9:$AZ$9),"") ->  | BE14: 00:00:00
L15: =DATE($B$3,$B$4,13) -> 2018-02-13 | M15: =DATE($B$3,$B$4,13) -> 2018-02-13 | N15: 0.3958333333 | O15: 15:12:30 | V15: 0.2378472222 | W15: 0.2378472222 | AA15: =IF(ISERROR(IF(NOT(ISERROR(MATCH($M15,Blad2!$A$2:$A$11,0))),7,WEEKDAY($M15,2))),"",IF(NOT(ISERROR(MATCH($M15,Blad2!$A$2:$A$11,0))),7,WEEKDAY($M15,2))) -> 2 | AB15: =IF(AND($AA15<6,N15<>"",O15<>""),ort($N15,$O15,$AY$3:$AZ$3),"") -> 0.2378472222 | AC15: =IF(AND($AA15<6,N15<>"",O15<>""),ort($N15,$O15,$AY$4:$AZ$5),"") ->  | AD15: =IF(AND($AA15<6,N15<>"",O15<>""),ort($N15,$O15,$AY$6:$AZ$7),"") ->  | AE15: =IF(AND($AA15=6,N15<>"",O15<>""),ort($N15,$O15,$AY$8:$AZ$8),"") ->  | AF15: =IF(AND($AA15=7,N15<>"",O15<>""),ort($N15,$O15,$AY$9:$AZ$9),"") ->  | AG15: =IF(AND($AA15<6,P15<>"",Q15<>""),ort($P15,$Q15,$AY$3:$AZ$3),"") ->  | AH15: =IF(AND($AA15<6,P15<>"",Q15<>""),ort($P15,$Q15,$AY$4:$AZ$5),"") ->  | AI15: =IF(AND($AA15<6,P15<>"",Q15<>""),ort($P15,$Q15,$AY$6:$AZ$7),"") ->  | AJ15: =IF(AND($AA15=6,P15<>"",Q15<>""),ort($P15,$Q15,$AY$8:$AZ$8),"") ->  | AK15: =IF(AND($AA15=7,P15<>"",Q15<>""),ort($P15,$Q15,$AY$9:$AZ$9),"") ->  | AL15: =IF(AND($AA15<6,R15<>"",S15<>""),ort($R15,$S15,$AY$3:$AZ$3),"") ->  | AM15: =IF(AND($AA15<6,R15<>"",S15<>""),ort($R15,$S15,$AY$4:$AZ$5),"") ->  | AN15: =IF(AND($AA15<6,R15<>"",S15<>""),ort($R15,$S15,$AY$6:$AZ$7),"") ->  | AO15: =IF(AND($AA15=6,R15<>"",S15<>""),ort($R15,$S15,$AY$8:$AZ$8),"") ->  | AP15: =IF(AND($AA15=7,R15<>"",S15<>""),ort($R15,$S15,$AY$9:$AZ$9),"") ->  | AQ15: =IF(AND($AA15<6,T15<>"",U15<>""),ort($T15,$U15,$AY$3:$AZ$3),"") ->  | AR15: =IF(AND($AA15<6,T15<>"",U15<>""),ort($T15,$U15,$AY$4:$AZ$5),"") ->  | AS15: =IF(AND($AA15<6,T15<>"",U15<>""),ort($T15,$U15,$AY$6:$AZ$7),"") ->  | AT15: =IF(AND($AA15=6,T15<>"",U15<>""),ort($T15,$U15,$AY$8:$AZ$8),"") ->  | AU15: =IF(AND($AA15=7,T15<>"",U15<>""),ort($T15,$U15,$AY$9:$AZ$9),"") ->  | BB15: 125 | BC15: 00:30:00 | BE15: 05:42:30
B16: Contract Uren | L16: =DATE($B$3,$B$4,14) -> 2018-02-14 | M16: =DATE($B$3,$B$4,14) -> 2018-02-14 | N16: 0.3958333333 | O16: 14:50:00 | V16: 0.2222222222 | W16: 0.2222222222 | AA16: =IF(ISERROR(IF(NOT(ISERROR(MATCH($M16,Blad2!$A$2:$A$11,0))),7,WEEKDAY($M16,2))),"",IF(NOT(ISERROR(MATCH($M16,Blad2!$A$2:$A$11,0))),7,WEEKDAY($M16,2))) -> 3 | AB16: =IF(AND($AA16<6,N16<>"",O16<>""),ort($N16,$O16,$AY$3:$AZ$3),"") -> 0.2222222222 | AC16: =IF(AND($AA16<6,N16<>"",O16<>""),ort($N16,$O16,$AY$4:$AZ$5),"") ->  | AD16: =IF(AND($AA16<6,N16<>"",O16<>""),ort($N16,$O16,$AY$6:$AZ$7),"") ->  | AE16: =IF(AND($AA16=6,N16<>"",O16<>""),ort($N16,$O16,$AY$8:$AZ$8),"") ->  | AF16: =IF(AND($AA16=7,N16<>"",O16<>""),ort($N16,$O16,$AY$9:$AZ$9),"") ->  | AG16: =IF(AND($AA16<6,P16<>"",Q16<>""),ort($P16,$Q16,$AY$3:$AZ$3),"") ->  | AH16: =IF(AND($AA16<6,P16<>"",Q16<>""),ort($P16,$Q16,$AY$4:$AZ$5),"") ->  | AI16: =IF(AND($AA16<6,P16<>"",Q16<>""),ort($P16,$Q16,$AY$6:$AZ$7),"") ->  | AJ16: =IF(AND($AA16=6,P16<>"",Q16<>""),ort($P16,$Q16,$AY$8:$AZ$8),"") ->  | AK16: =IF(AND($AA16=7,P16<>"",Q16<>""),ort($P16,$Q16,$AY$9:$AZ$9),"") ->  | AL16: =IF(AND($AA16<6,R16<>"",S16<>""),ort($R16,$S16,$AY$3:$AZ$3),"") ->  | AM16: =IF(AND($AA16<6,R16<>"",S16<>""),ort($R16,$S16,$AY$4:$AZ$5),"") ->  | AN16: =IF(AND($AA16<6,R16<>"",S16<>""),ort($R16,$S16,$AY$6:$AZ$7),"") ->  | AO16: =IF(AND($AA16=6,R16<>"",S16<>""),ort($R16,$S16,$AY$8:$AZ$8),"") ->  | AP16: =IF(AND($AA16=7,R16<>"",S16<>""),ort($R16,$S16,$AY$9:$AZ$9),"") ->  | AQ16: =IF(AND($AA16<6,T16<>"",U16<>""),ort($T16,$U16,$AY$3:$AZ$3),"") ->  | AR16: =IF(AND($AA16<6,T16<>"",U16<>""),ort($T16,$U16,$AY$4:$AZ$5),"") ->  | AS16: =IF(AND($AA16<6,T16<>"",U16<>""),ort($T16,$U16,$AY$6:$AZ$7),"") ->  | AT16: =IF(AND($AA16=6,T16<>"",U16<>""),ort($T16,$U16,$AY$8:$AZ$8),"") ->  | AU16: =IF(AND($AA16=7,T16<>"",U16<>""),ort($T16,$U16,$AY$9:$AZ$9),"") ->  | BB16: 116 | BC16: 00:30:00 | BE16: 05:20:00
B17: 3.75 | L17: =DATE($B$3,$B$4,15) -> 2018-02-15 | M17: =DATE($B$3,$B$4,15) -> 2018-02-15 | N17: 0.3958333333 | O17: 15:22:30 | V17: 0.2447916667 | W17: 0.2447916667 | AA17: =IF(ISERROR(IF(NOT(ISERROR(MATCH($M17,Blad2!$A$2:$A$11,0))),7,WEEKDAY($M17,2))),"",IF(NOT(ISERROR(MATCH($M17,Blad2!$A$2:$A$11,0))),7,WEEKDAY($M17,2))) -> 4 | AB17: =IF(AND($AA17<6,N17<>"",O17<>""),ort($N17,$O17,$AY$3:$AZ$3),"") -> 0.2447916667 | AC17: =IF(AND($AA17<6,N17<>"",O17<>""),ort($N17,$O17,$AY$4:$AZ$5),"") ->  | AD17: =IF(AND($AA17<6,N17<>"",O17<>""),ort($N17,$O17,$AY$6:$AZ$7),"") ->  | AE17: =IF(AND($AA17=6,N17<>"",O17<>""),ort($N17,$O17,$AY$8:$AZ$8),"") ->  | AF17: =IF(AND($AA17=7,N17<>"",O17<>""),ort($N17,$O17,$AY$9:$AZ$9),"") ->  | AG17: =IF(AND($AA17<6,P17<>"",Q17<>""),ort($P17,$Q17,$AY$3:$AZ$3),"") ->  | AH17: =IF(AND($AA17<6,P17<>"",Q17<>""),ort($P17,$Q17,$AY$4:$AZ$5),"") ->  | AI17: =IF(AND($AA17<6,P17<>"",Q17<>""),ort($P17,$Q17,$AY$6:$AZ$7),"") ->  | AJ17: =IF(AND($AA17=6,P17<>"",Q17<>""),ort($P17,$Q17,$AY$8:$AZ$8),"") ->  | AK17: =IF(AND($AA17=7,P17<>"",Q17<>""),ort($P17,$Q17,$AY$9:$AZ$9),"") ->  | AL17: =IF(AND($AA17<6,R17<>"",S17<>""),ort($R17,$S17,$AY$3:$AZ$3),"") ->  | AM17: =IF(AND($AA17<6,R17<>"",S17<>""),ort($R17,$S17,$AY$4:$AZ$5),"") ->  | AN17: =IF(AND($AA17<6,R17<>"",S17<>""),ort($R17,$S17,$AY$6:$AZ$7),"") ->  | AO17: =IF(AND($AA17=6,R17<>"",S17<>""),ort($R17,$S17,$AY$8:$AZ$8),"") ->  | AP17: =IF(AND($AA17=7,R17<>"",S17<>""),ort($R17,$S17,$AY$9:$AZ$9),"") ->  | AQ17: =IF(AND($AA17<6,T17<>"",U17<>""),ort($T17,$U17,$AY$3:$AZ$3),"") ->  | AR17: =IF(AND($AA17<6,T17<>"",U17<>""),ort($T17,$U17,$AY$4:$AZ$5),"") ->  | AS17: =IF(AND($AA17<6,T17<>"",U17<>""),ort($T17,$U17,$AY$6:$AZ$7),"") ->  | AT17: =IF(AND($AA17=6,T17<>"",U17<>""),ort($T17,$U17,$AY$8:$AZ$8),"") ->  | AU17: =IF(AND($AA17=7,T17<>"",U17<>""),ort($T17,$U17,$AY$9:$AZ$9),"") ->  | BB17: 129 | BC17: 00:30:00 | BE17: 05:52:30
L18: =DATE($B$3,$B$4,16) -> 2018-02-16 | M18: =DATE($B$3,$B$4,16) -> 2018-02-16 | N18: 0.4583333333 | O18: 15:40:00 | V18: 0.1944444444 | W18: 0.1944444444 | AA18: =IF(ISERROR(IF(NOT(ISERROR(MATCH($M18,Blad2!$A$2:$A$11,0))),7,WEEKDAY($M18,2))),"",IF(NOT(ISERROR(MATCH($M18,Blad2!$A$2:$A$11,0))),7,WEEKDAY($M18,2))) -> 5 | AB18: =IF(AND($AA18<6,N18<>"",O18<>""),ort($N18,$O18,$AY$3:$AZ$3),"") -> 0.1944444444 | AC18: =IF(AND($AA18<6,N18<>"",O18<>""),ort($N18,$O18,$AY$4:$AZ$5),"") ->  | AD18: =IF(AND($AA18<6,N18<>"",O18<>""),ort($N18,$O18,$AY$6:$AZ$7),"") ->  | AE18: =IF(AND($AA18=6,N18<>"",O18<>""),ort($N18,$O18,$AY$8:$AZ$8),"") ->  | AF18: =IF(AND($AA18=7,N18<>"",O18<>""),ort($N18,$O18,$AY$9:$AZ$9),"") ->  | AG18: =IF(AND($AA18<6,P18<>"",Q18<>""),ort($P18,$Q18,$AY$3:$AZ$3),"") ->  | AH18: =IF(AND($AA18<6,P18<>"",Q18<>""),ort($P18,$Q18,$AY$4:$AZ$5),"") ->  | AI18: =IF(AND($AA18<6,P18<>"",Q18<>""),ort($P18,$Q18,$AY$6:$AZ$7),"") ->  | AJ18: =IF(AND($AA18=6,P18<>"",Q18<>""),ort($P18,$Q18,$AY$8:$AZ$8),"") ->  | AK18: =IF(AND($AA18=7,P18<>"",Q18<>""),ort($P18,$Q18,$AY$9:$AZ$9),"") ->  | AL18: =IF(AND($AA18<6,R18<>"",S18<>""),ort($R18,$S18,$AY$3:$AZ$3),"") ->  | AM18: =IF(AND($AA18<6,R18<>"",S18<>""),ort($R18,$S18,$AY$4:$AZ$5),"") ->  | AN18: =IF(AND($AA18<6,R18<>"",S18<>""),ort($R18,$S18,$AY$6:$AZ$7),"") ->  | AO18: =IF(AND($AA18=6,R18<>"",S18<>""),ort($R18,$S18,$AY$8:$AZ$8),"") ->  | AP18: =IF(AND($AA18=7,R18<>"",S18<>""),ort($R18,$S18,$AY$9:$AZ$9),"") ->  | AQ18: =IF(AND($AA18<6,T18<>"",U18<>""),ort($T18,$U18,$AY$3:$AZ$3),"") ->  | AR18: =IF(AND($AA18<6,T18<>"",U18<>""),ort($T18,$U18,$AY$4:$AZ$5),"") ->  | AS18: =IF(AND($AA18<6,T18<>"",U18<>""),ort($T18,$U18,$AY$6:$AZ$7),"") ->  | AT18: =IF(AND($AA18=6,T18<>"",U18<>""),ort($T18,$U18,$AY$8:$AZ$8),"") ->  | AU18: =IF(AND($AA18=7,T18<>"",U18<>""),ort($T18,$U18,$AY$9:$AZ$9),"") ->  | BB18: 100 | BC18: 00:30:00 | BE18: 04:40:00
B19: Gewerkte uren deze maand | L19: =DATE($B$3,$B$4,17) -> 2018-02-17 | M19: =DATE($B$3,$B$4,17) -> 2018-02-17 | O19: 00:00:00 | AA19: =IF(ISERROR(IF(NOT(ISERROR(MATCH($M19,Blad2!$A$2:$A$11,0))),7,WEEKDAY($M19,2))),"",IF(NOT(ISERROR(MATCH($M19,Blad2!$A$2:$A$11,0))),7,WEEKDAY($M19,2))) -> 6 | AB19: =IF(AND($AA19<6,N19<>"",O19<>""),ort($N19,$O19,$AY$3:$AZ$3),"") ->  | AC19: =IF(AND($AA19<6,N19<>"",O19<>""),ort($N19,$O19,$AY$4:$AZ$5),"") ->  | AD19: =IF(AND($AA19<6,N19<>"",O19<>""),ort($N19,$O19,$AY$6:$AZ$7),"") ->  | AE19: =IF(AND($AA19=6,N19<>"",O19<>""),ort($N19,$O19,$AY$8:$AZ$8),"") ->  | AF19: =IF(AND($AA19=7,N19<>"",O19<>""),ort($N19,$O19,$AY$9:$AZ$9),"") ->  | AG19: =IF(AND($AA19<6,P19<>"",Q19<>""),ort($P19,$Q19,$AY$3:$AZ$3),"") ->  | AH19: =IF(AND($AA19<6,P19<>"",Q19<>""),ort($P19,$Q19,$AY$4:$AZ$5),"") ->  | AI19: =IF(AND($AA19<6,P19<>"",Q19<>""),ort($P19,$Q19,$AY$6:$AZ$7),"") ->  | AJ19: =IF(AND($AA19=6,P19<>"",Q19<>""),ort($P19,$Q19,$AY$8:$AZ$8),"") ->  | AK19: =IF(AND($AA19=7,P19<>"",Q19<>""),ort($P19,$Q19,$AY$9:$AZ$9),"") ->  | AL19: =IF(AND($AA19<6,R19<>"",S19<>""),ort($R19,$S19,$AY$3:$AZ$3),"") ->  | AM19: =IF(AND($AA19<6,R19<>"",S19<>""),ort($R19,$S19,$AY$4:$AZ$5),"") ->  | AN19: =IF(AND($AA19<6,R19<>"",S19<>""),ort($R19,$S19,$AY$6:$AZ$7),"") ->  | AO19: =IF(AND($AA19=6,R19<>"",S19<>""),ort($R19,$S19,$AY$8:$AZ$8),"") ->  | AP19: =IF(AND($AA19=7,R19<>"",S19<>""),ort($R19,$S19,$AY$9:$AZ$9),"") ->  | AQ19: =IF(AND($AA19<6,T19<>"",U19<>""),ort($T19,$U19,$AY$3:$AZ$3),"") ->  | AR19: =IF(AND($AA19<6,T19<>"",U19<>""),ort($T19,$U19,$AY$4:$AZ$5),"") ->  | AS19: =IF(AND($AA19<6,T19<>"",U19<>""),ort($T19,$U19,$AY$6:$AZ$7),"") ->  | AT19: =IF(AND($AA19=6,T19<>"",U19<>""),ort($T19,$U19,$AY$8:$AZ$8),"") ->  | AU19: =IF(AND($AA19=7,T19<>"",U19<>""),ort($T19,$U19,$AY$9:$AZ$9),"") ->  | BE19: 00:00:00
B20: =SUM($V$3:$V$33) -> 3.980902778 | L20: =DATE($B$3,$B$4,18) -> 2018-02-18 | M20: =DATE($B$3,$B$4,18) -> 2018-02-18 | O20: 00:00:00 | AA20: =IF(ISERROR(IF(NOT(ISERROR(MATCH($M20,Blad2!$A$2:$A$11,0))),7,WEEKDAY($M20,2))),"",IF(NOT(ISERROR(MATCH($M20,Blad2!$A$2:$A$11,0))),7,WEEKDAY($M20,2))) -> 7 | AB20: =IF(AND($AA20<6,N20<>"",O20<>""),ort($N20,$O20,$AY$3:$AZ$3),"") ->  | AC20: =IF(AND($AA20<6,N20<>"",O20<>""),ort($N20,$O20,$AY$4:$AZ$5),"") ->  | AD20: =IF(AND($AA20<6,N20<>"",O20<>""),ort($N20,$O20,$AY$6:$AZ$7),"") ->  | AE20: =IF(AND($AA20=6,N20<>"",O20<>""),ort($N20,$O20,$AY$8:$AZ$8),"") ->  | AF20: =IF(AND($AA20=7,N20<>"",O20<>""),ort($N20,$O20,$AY$9:$AZ$9),"") ->  | AG20: =IF(AND($AA20<6,P20<>"",Q20<>""),ort($P20,$Q20,$AY$3:$AZ$3),"") ->  | AH20: =IF(AND($AA20<6,P20<>"",Q20<>""),ort($P20,$Q20,$AY$4:$AZ$5),"") ->  | AI20: =IF(AND($AA20<6,P20<>"",Q20<>""),ort($P20,$Q20,$AY$6:$AZ$7),"") ->  | AJ20: =IF(AND($AA20=6,P20<>"",Q20<>""),ort($P20,$Q20,$AY$8:$AZ$8),"") ->  | AK20: =IF(AND($AA20=7,P20<>"",Q20<>""),ort($P20,$Q20,$AY$9:$AZ$9),"") ->  | AL20: =IF(AND($AA20<6,R20<>"",S20<>""),ort($R20,$S20,$AY$3:$AZ$3),"") ->  | AM20: =IF(AND($AA20<6,R20<>"",S20<>""),ort($R20,$S20,$AY$4:$AZ$5),"") ->  | AN20: =IF(AND($AA20<6,R20<>"",S20<>""),ort($R20,$S20,$AY$6:$AZ$7),"") ->  | AO20: =IF(AND($AA20=6,R20<>"",S20<>""),ort($R20,$S20,$AY$8:$AZ$8),"") ->  | AP20: =IF(AND($AA20=7,R20<>"",S20<>""),ort($R20,$S20,$AY$9:$AZ$9),"") ->  | AQ20: =IF(AND($AA20<6,T20<>"",U20<>""),ort($T20,$U20,$AY$3:$AZ$3),"") ->  | AR20: =IF(AND($AA20<6,T20<>"",U20<>""),ort($T20,$U20,$AY$4:$AZ$5),"") ->  | AS20: =IF(AND($AA20<6,T20<>"",U20<>""),ort($T20,$U20,$AY$6:$AZ$7),"") ->  | AT20: =IF(AND($AA20=6,T20<>"",U20<>""),ort($T20,$U20,$AY$8:$AZ$8),"") ->  | AU20: =IF(AND($AA20=7,T20<>"",U20<>""),ort($T20,$U20,$AY$9:$AZ$9),"") ->  | AW20: =COUNTA(Blad2!B12:B100)-COUNTIF(Blad2!B12:B100,"Verlof") -> 0 | AX20: Aantal opgenomen ATV-dagen | BE20: 00:00:00
K21: 8 | L21: =DATE($B$3,$B$4,19) -> 2018-02-19 | M21: =DATE($B$3,$B$4,19) -> 2018-02-19 | N21: 0.3958333333 | O21: 09:30:00 | AA21: =IF(ISERROR(IF(NOT(ISERROR(MATCH($M21,Blad2!$A$2:$A$11,0))),7,WEEKDAY($M21,2))),"",IF(NOT(ISERROR(MATCH($M21,Blad2!$A$2:$A$11,0))),7,WEEKDAY($M21,2))) -> 1 | AB21: =IF(AND($AA21<6,N21<>"",O21<>""),ort($N21,$O21,$AY$3:$AZ$3),"") ->  | AC21: =IF(AND($AA21<6,N21<>"",O21<>""),ort($N21,$O21,$AY$4:$AZ$5),"") ->  | AD21: =IF(AND($AA21<6,N21<>"",O21<>""),ort($N21,$O21,$AY$6:$AZ$7),"") ->  | AE21: =IF(AND($AA21=6,N21<>"",O21<>""),ort($N21,$O21,$AY$8:$AZ$8),"") ->  | AF21: =IF(AND($AA21=7,N21<>"",O21<>""),ort($N21,$O21,$AY$9:$AZ$9),"") ->  | AG21: =IF(AND($AA21<6,P21<>"",Q21<>""),ort($P21,$Q21,$AY$3:$AZ$3),"") ->  | AH21: =IF(AND($AA21<6,P21<>"",Q21<>""),ort($P21,$Q21,$AY$4:$AZ$5),"") ->  | AI21: =IF(AND($AA21<6,P21<>"",Q21<>""),ort($P21,$Q21,$AY$6:$AZ$7),"") ->  | AJ21: =IF(AND($AA21=6,P21<>"",Q21<>""),ort($P21,$Q21,$AY$8:$AZ$8),"") ->  | AK21: =IF(AND($AA21=7,P21<>"",Q21<>""),ort($P21,$Q21,$AY$9:$AZ$9),"") ->  | AL21: =IF(AND($AA21<6,R21<>"",S21<>""),ort($R21,$S21,$AY$3:$AZ$3),"") ->  | AM21: =IF(AND($AA21<6,R21<>"",S21<>""),ort($R21,$S21,$AY$4:$AZ$5),"") ->  | AN21: =IF(AND($AA21<6,R21<>"",S21<>""),ort($R21,$S21,$AY$6:$AZ$7),"") ->  | AO21: =IF(AND($AA21=6,R21<>"",S21<>""),ort($R21,$S21,$AY$8:$AZ$8),"") ->  | AP21: =IF(AND($AA21=7,R21<>"",S21<>""),ort($R21,$S21,$AY$9:$AZ$9),"") ->  | AQ21: =IF(AND($AA21<6,T21<>"",U21<>""),ort($T21,$U21,$AY$3:$AZ$3),"") ->  | AR21: =IF(AND($AA21<6,T21<>"",U21<>""),ort($T21,$U21,$AY$4:$AZ$5),"") ->  | AS21: =IF(AND($AA21<6,T21<>"",U21<>""),ort($T21,$U21,$AY$6:$AZ$7),"") ->  | AT21: =IF(AND($AA21=6,T21<>"",U21<>""),ort($T21,$U21,$AY$8:$AZ$8),"") ->  | AU21: =IF(AND($AA21=7,T21<>"",U21<>""),ort($T21,$U21,$AY$9:$AZ$9),"") ->  | AW21: =COUNTA(Blad2!B12:B100)-COUNTIF(Blad2!B12:B100,"ATV") -> 2 | AX21: Aantal opgenomen verlofdagen | BE21: 00:00:00
L22: =DATE($B$3,$B$4,20) -> 2018-02-20 | M22: =DATE($B$3,$B$4,20) -> 2018-02-20 | N22: 0.3958333333 | O22: 14:57:30 | V22: 0.2274305556 | W22: 0.2274305556 | AA22: =IF(ISERROR(IF(NOT(ISERROR(MATCH($M22,Blad2!$A$2:$A$11,0))),7,WEEKDAY($M22,2))),"",IF(NOT(ISERROR(MATCH($M22,Blad2!$A$2:$A$11,0))),7,WEEKDAY($M22,2))) -> 2 | AB22: =IF(AND($AA22<6,N22<>"",O22<>""),ort($N22,$O22,$AY$3:$AZ$3),"") -> 0.2274305556 | AC22: =IF(AND($AA22<6,N22<>"",O22<>""),ort($N22,$O22,$AY$4:$AZ$5),"") ->  | AD22: =IF(AND($AA22<6,N22<>"",O22<>""),ort($N22,$O22,$AY$6:$AZ$7),"") ->  | AE22: =IF(AND($AA22=6,N22<>"",O22<>""),ort($N22,$O22,$AY$8:$AZ$8),"") ->  | AF22: =IF(AND($AA22=7,N22<>"",O22<>""),ort($N22,$O22,$AY$9:$AZ$9),"") ->  | AG22: =IF(AND($AA22<6,P22<>"",Q22<>""),ort($P22,$Q22,$AY$3:$AZ$3),"") ->  | AH22: =IF(AND($AA22<6,P22<>"",Q22<>""),ort($P22,$Q22,$AY$4:$AZ$5),"") ->  | AI22: =IF(AND($AA22<6,P22<>"",Q22<>""),ort($P22,$Q22,$AY$6:$AZ$7),"") ->  | AJ22: =IF(AND($AA22=6,P22<>"",Q22<>""),ort($P22,$Q22,$AY$8:$AZ$8),"") ->  | AK22: =IF(AND($AA22=7,P22<>"",Q22<>""),ort($P22,$Q22,$AY$9:$AZ$9),"") ->  | AL22: =IF(AND($AA22<6,R22<>"",S22<>""),ort($R22,$S22,$AY$3:$AZ$3),"") ->  | AM22: =IF(AND($AA22<6,R22<>"",S22<>""),ort($R22,$S22,$AY$4:$AZ$5),"") ->  | AN22: =IF(AND($AA22<6,R22<>"",S22<>""),ort($R22,$S22,$AY$6:$AZ$7),"") ->  | AO22: =IF(AND($AA22=6,R22<>"",S22<>""),ort($R22,$S22,$AY$8:$AZ$8),"") ->  | AP22: =IF(AND($AA22=7,R22<>"",S22<>""),ort($R22,$S22,$AY$9:$AZ$9),"") ->  | AQ22: =IF(AND($AA22<6,T22<>"",U22<>""),ort($T22,$U22,$AY$3:$AZ$3),"") ->  | AR22: =IF(AND($AA22<6,T22<>"",U22<>""),ort($T22,$U22,$AY$4:$AZ$5),"") ->  | AS22: =IF(AND($AA22<6,T22<>"",U22<>""),ort($T22,$U22,$AY$6:$AZ$7),"") ->  | AT22: =IF(AND($AA22=6,T22<>"",U22<>""),ort($T22,$U22,$AY$8:$AZ$8),"") ->  | AU22: =IF(AND($AA22=7,T22<>"",U22<>""),ort($T22,$U22,$AY$9:$AZ$9),"") ->  | BB22: 119 | BC22: 00:30:00 | BE22: 05:27:30
L23: =DATE($B$3,$B$4,21) -> 2018-02-21 | M23: =DATE($B$3,$B$4,21) -> 2018-02-21 | N23: 0.3958333333 | O23: 16:12:30 | V23: 0.2795138889 | W23: 0.2795138889 | AA23: =IF(ISERROR(IF(NOT(ISERROR(MATCH($M23,Blad2!$A$2:$A$11,0))),7,WEEKDAY($M23,2))),"",IF(NOT(ISERROR(MATCH($M23,Blad2!$A$2:$A$11,0))),7,WEEKDAY($M23,2))) -> 3 | AB23: =IF(AND($AA23<6,N23<>"",O23<>""),ort($N23,$O23,$AY$3:$AZ$3),"") -> 0.2795138889 | AC23: =IF(AND($AA23<6,N23<>"",O23<>""),ort($N23,$O23,$AY$4:$AZ$5),"") ->  | AD23: =IF(AND($AA23<6,N23<>"",O23<>""),ort($N23,$O23,$AY$6:$AZ$7),"") ->  | AE23: =IF(AND($AA23=6,N23<>"",O23<>""),ort($N23,$O23,$AY$8:$AZ$8),"") ->  | AF23: =IF(AND($AA23=7,N23<>"",O23<>""),ort($N23,$O23,$AY$9:$AZ$9),"") ->  | AG23: =IF(AND($AA23<6,P23<>"",Q23<>""),ort($P23,$Q23,$AY$3:$AZ$3),"") ->  | AH23: =IF(AND($AA23<6,P23<>"",Q23<>""),ort($P23,$Q23,$AY$4:$AZ$5),"") ->  | AI23: =IF(AND($AA23<6,P23<>"",Q23<>""),ort($P23,$Q23,$AY$6:$AZ$7),"") ->  | AJ23: =IF(AND($AA23=6,P23<>"",Q23<>""),ort($P23,$Q23,$AY$8:$AZ$8),"") ->  | AK23: =IF(AND($AA23=7,P23<>"",Q23<>""),ort($P23,$Q23,$AY$9:$AZ$9),"") ->  | AL23: =IF(AND($AA23<6,R23<>"",S23<>""),ort($R23,$S23,$AY$3:$AZ$3),"") ->  | AM23: =IF(AND($AA23<6,R23<>"",S23<>""),ort($R23,$S23,$AY$4:$AZ$5),"") ->  | AN23: =IF(AND($AA23<6,R23<>"",S23<>""),ort($R23,$S23,$AY$6:$AZ$7),"") ->  | AO23: =IF(AND($AA23=6,R23<>"",S23<>""),ort($R23,$S23,$AY$8:$AZ$8),"") ->  | AP23: =IF(AND($AA23=7,R23<>"",S23<>""),ort($R23,$S23,$AY$9:$AZ$9),"") ->  | AQ23: =IF(AND($AA23<6,T23<>"",U23<>""),ort($T23,$U23,$AY$3:$AZ$3),"") ->  | AR23: =IF(AND($AA23<6,T23<>"",U23<>""),ort($T23,$U23,$AY$4:$AZ$5),"") ->  | AS23: =IF(AND($AA23<6,T23<>"",U23<>""),ort($T23,$U23,$AY$6:$AZ$7),"") ->  | AT23: =IF(AND($AA23=6,T23<>"",U23<>""),ort($T23,$U23,$AY$8:$AZ$8),"") ->  | AU23: =IF(AND($AA23=7,T23<>"",U23<>""),ort($T23,$U23,$AY$9:$AZ$9),"") ->  | BB23: 149 | BC23: 00:30:00 | BE23: 06:42:30
L24: =DATE($B$3,$B$4,22) -> 2018-02-22 | M24: =DATE($B$3,$B$4,22) -> 2018-02-22 | N24: 0.3958333333 | O24: 15:42:30 | V24: 0.2586805556 | W24: 0.2586805556 | AA24: =IF(ISERROR(IF(NOT(ISERROR(MATCH($M24,Blad2!$A$2:$A$11,0))),7,WEEKDAY($M24,2))),"",IF(NOT(ISERROR(MATCH($M24,Blad2!$A$2:$A$11,0))),7,WEEKDAY($M24,2))) -> 4 | AB24: =IF(AND($AA24<6,N24<>"",O24<>""),ort($N24,$O24,$AY$3:$AZ$3),"") -> 0.2586805556 | AC24: =IF(AND($AA24<6,N24<>"",O24<>""),ort($N24,$O24,$AY$4:$AZ$5),"") ->  | AD24: =IF(AND($AA24<6,N24<>"",O24<>""),ort($N24,$O24,$AY$6:$AZ$7),"") ->  | AE24: =IF(AND($AA24=6,N24<>"",O24<>""),ort($N24,$O24,$AY$8:$AZ$8),"") ->  | AF24: =IF(AND($AA24=7,N24<>"",O24<>""),ort($N24,$O24,$AY$9:$AZ$9),"") ->  | AG24: =IF(AND($AA24<6,P24<>"",Q24<>""),ort($P24,$Q24,$AY$3:$AZ$3),"") ->  | AH24: =IF(AND($AA24<6,P24<>"",Q24<>""),ort($P24,$Q24,$AY$4:$AZ$5),"") ->  | AI24: =IF(AND($AA24<6,P24<>"",Q24<>""),ort($P24,$Q24,$AY$6:$AZ$7),"") ->  | AJ24: =IF(AND($AA24=6,P24<>"",Q24<>""),ort($P24,$Q24,$AY$8:$AZ$8),"") ->  | AK24: =IF(AND($AA24=7,P24<>"",Q24<>""),ort($P24,$Q24,$AY$9:$AZ$9),"") ->  | AL24: =IF(AND($AA24<6,R24<>"",S24<>""),ort($R24,$S24,$AY$3:$AZ$3),"") ->  | AM24: =IF(AND($AA24<6,R24<>"",S24<>""),ort($R24,$S24,$AY$4:$AZ$5),"") ->  | AN24: =IF(AND($AA24<6,R24<>"",S24<>""),ort($R24,$S24,$AY$6:$AZ$7),"") ->  | AO24: =IF(AND($AA24=6,R24<>"",S24<>""),ort($R24,$S24,$AY$8:$AZ$8),"") ->  | AP24: =IF(AND($AA24=7,R24<>"",S24<>""),ort($R24,$S24,$AY$9:$AZ$9),"") ->  | AQ24: =IF(AND($AA24<6,T24<>"",U24<>""),ort($T24,$U24,$AY$3:$AZ$3),"") ->  | AR24: =IF(AND($AA24<6,T24<>"",U24<>""),ort($T24,$U24,$AY$4:$AZ$5),"") ->  | AS24: =IF(AND($AA24<6,T24<>"",U24<>""),ort($T24,$U24,$AY$6:$AZ$7),"") ->  | AT24: =IF(AND($AA24=6,T24<>"",U24<>""),ort($T24,$U24,$AY$8:$AZ$8),"") ->  | AU24: =IF(AND($AA24=7,T24<>"",U24<>""),ort($T24,$U24,$AY$9:$AZ$9),"") ->  | BB24: 137 | BC24: 00:30:00 | BE24: 06:12:30
L25: =DATE($B$3,$B$4,23) -> 2018-02-23 | M25: =DATE($B$3,$B$4,23) -> 2018-02-23 | N25: 0.3958333333 | O25: 15:07:30 | V25: 0.234375 | W25: 0.234375 | AA25: =IF(ISERROR(IF(NOT(ISERROR(MATCH($M25,Blad2!$A$2:$A$11,0))),7,WEEKDAY($M25,2))),"",IF(NOT(ISERROR(MATCH($M25,Blad2!$A$2:$A$11,0))),7,WEEKDAY($M25,2))) -> 5 | AB25: =IF(AND($AA25<6,N25<>"",O25<>""),ort($N25,$O25,$AY$3:$AZ$3),"") -> 0.234375 | AC25: =IF(AND($AA25<6,N25<>"",O25<>""),ort($N25,$O25,$AY$4:$AZ$5),"") ->  | AD25: =IF(AND($AA25<6,N25<>"",O25<>""),ort($N25,$O25,$AY$6:$AZ$7),"") ->  | AE25: =IF(AND($AA25=6,N25<>"",O25<>""),ort($N25,$O25,$AY$8:$AZ$8),"") ->  | AF25: =IF(AND($AA25=7,N25<>"",O25<>""),ort($N25,$O25,$AY$9:$AZ$9),"") ->  | AG25: =IF(AND($AA25<6,P25<>"",Q25<>""),ort($P25,$Q25,$AY$3:$AZ$3),"") ->  | AH25: =IF(AND($AA25<6,P25<>"",Q25<>""),ort($P25,$Q25,$AY$4:$AZ$5),"") ->  | AI25: =IF(AND($AA25<6,P25<>"",Q25<>""),ort($P25,$Q25,$AY$6:$AZ$7),"") ->  | AJ25: =IF(AND($AA25=6,P25<>"",Q25<>""),ort($P25,$Q25,$AY$8:$AZ$8),"") ->  | AK25: =IF(AND($AA25=7,P25<>"",Q25<>""),ort($P25,$Q25,$AY$9:$AZ$9),"") ->  | AL25: =IF(AND($AA25<6,R25<>"",S25<>""),ort($R25,$S25,$AY$3:$AZ$3),"") ->  | AM25: =IF(AND($AA25<6,R25<>"",S25<>""),ort($R25,$S25,$AY$4:$AZ$5),"") ->  | AN25: =IF(AND($AA25<6,R25<>"",S25<>""),ort($R25,$S25,$AY$6:$AZ$7),"") ->  | AO25: =IF(AND($AA25=6,R25<>"",S25<>""),ort($R25,$S25,$AY$8:$AZ$8),"") ->  | AP25: =IF(AND($AA25=7,R25<>"",S25<>""),ort($R25,$S25,$AY$9:$AZ$9),"") ->  | AQ25: =IF(AND($AA25<6,T25<>"",U25<>""),ort($T25,$U25,$AY$3:$AZ$3),"") ->  | AR25: =IF(AND($AA25<6,T25<>"",U25<>""),ort($T25,$U25,$AY$4:$AZ$5),"") ->  | AS25: =IF(AND($AA25<6,T25<>"",U25<>""),ort($T25,$U25,$AY$6:$AZ$7),"") ->  | AT25: =IF(AND($AA25=6,T25<>"",U25<>""),ort($T25,$U25,$AY$8:$AZ$8),"") ->  | AU25: =IF(AND($AA25=7,T25<>"",U25<>""),ort($T25,$U25,$AY$9:$AZ$9),"") ->  | BB25: 123 | BC25: 00:30:00 | BE25: 05:37:30
L26: =DATE($B$3,$B$4,24) -> 2018-02-24 | M26: =DATE($B$3,$B$4,24) -> 2018-02-24 | O26: 00:00:00 | AA26: =IF(ISERROR(IF(NOT(ISERROR(MATCH($M26,Blad2!$A$2:$A$11,0))),7,WEEKDAY($M26,2))),"",IF(NOT(ISERROR(MATCH($M26,Blad2!$A$2:$A$11,0))),7,WEEKDAY($M26,2))) -> 6 | AB26: =IF(AND($AA26<6,N26<>"",O26<>""),ort($N26,$O26,$AY$3:$AZ$3),"") ->  | AC26: =IF(AND($AA26<6,N26<>"",O26<>""),ort($N26,$O26,$AY$4:$AZ$5),"") ->  | AD26: =IF(AND($AA26<6,N26<>"",O26<>""),ort($N26,$O26,$AY$6:$AZ$7),"") ->  | AE26: =IF(AND($AA26=6,N26<>"",O26<>""),ort($N26,$O26,$AY$8:$AZ$8),"") ->  | AF26: =IF(AND($AA26=7,N26<>"",O26<>""),ort($N26,$O26,$AY$9:$AZ$9),"") ->  | AG26: =IF(AND($AA26<6,P26<>"",Q26<>""),ort($P26,$Q26,$AY$3:$AZ$3),"") ->  | AH26: =IF(AND($AA26<6,P26<>"",Q26<>""),ort($P26,$Q26,$AY$4:$AZ$5),"") ->  | AI26: =IF(AND($AA26<6,P26<>"",Q26<>""),ort($P26,$Q26,$AY$6:$AZ$7),"") ->  | AJ26: =IF(AND($AA26=6,P26<>"",Q26<>""),ort($P26,$Q26,$AY$8:$AZ$8),"") ->  | AK26: =IF(AND($AA26=7,P26<>"",Q26<>""),ort($P26,$Q26,$AY$9:$AZ$9),"") ->  | AL26: =IF(AND($AA26<6,R26<>"",S26<>""),ort($R26,$S26,$AY$3:$AZ$3),"") ->  | AM26: =IF(AND($AA26<6,R26<>"",S26<>""),ort($R26,$S26,$AY$4:$AZ$5),"") ->  | AN26: =IF(AND($AA26<6,R26<>"",S26<>""),ort($R26,$S26,$AY$6:$AZ$7),"") ->  | AO26: =IF(AND($AA26=6,R26<>"",S26<>""),ort($R26,$S26,$AY$8:$AZ$8),"") ->  | AP26: =IF(AND($AA26=7,R26<>"",S26<>""),ort($R26,$S26,$AY$9:$AZ$9),"") ->  | AQ26: =IF(AND($AA26<6,T26<>"",U26<>""),ort($T26,$U26,$AY$3:$AZ$3),"") ->  | AR26: =IF(AND($AA26<6,T26<>"",U26<>""),ort($T26,$U26,$AY$4:$AZ$5),"") ->  | AS26: =IF(AND($AA26<6,T26<>"",U26<>""),ort($T26,$U26,$AY$6:$AZ$7),"") ->  | AT26: =IF(AND($AA26=6,T26<>"",U26<>""),ort($T26,$U26,$AY$8:$AZ$8),"") ->  | AU26: =IF(AND($AA26=7,T26<>"",U26<>""),ort($T26,$U26,$AY$9:$AZ$9),"") ->  | BE26: 00:00:00
L27: =DATE($B$3,$B$4,25) -> 2018-02-25 | M27: =DATE($B$3,$B$4,25) -> 2018-02-25 | O27: 00:00:00 | AA27: =IF(ISERROR(IF(NOT(ISERROR(MATCH($M27,Blad2!$A$2:$A$11,0))),7,WEEKDAY($M27,2))),"",IF(NOT(ISERROR(MATCH($M27,Blad2!$A$2:$A$11,0))),7,WEEKDAY($M27,2))) -> 7 | AB27: =IF(AND($AA27<6,N27<>"",O27<>""),ort($N27,$O27,$AY$3:$AZ$3),"") ->  | AC27: =IF(AND($AA27<6,N27<>"",O27<>""),ort($N27,$O27,$AY$4:$AZ$5),"") ->  | AD27: =IF(AND($AA27<6,N27<>"",O27<>""),ort($N27,$O27,$AY$6:$AZ$7),"") ->  | AE27: =IF(AND($AA27=6,N27<>"",O27<>""),ort($N27,$O27,$AY$8:$AZ$8),"") ->  | AF27: =IF(AND($AA27=7,N27<>"",O27<>""),ort($N27,$O27,$AY$9:$AZ$9),"") ->  | AG27: =IF(AND($AA27<6,P27<>"",Q27<>""),ort($P27,$Q27,$AY$3:$AZ$3),"") ->  | AH27: =IF(AND($AA27<6,P27<>"",Q27<>""),ort($P27,$Q27,$AY$4:$AZ$5),"") ->  | AI27: =IF(AND($AA27<6,P27<>"",Q27<>""),ort($P27,$Q27,$AY$6:$AZ$7),"") ->  | AJ27: =IF(AND($AA27=6,P27<>"",Q27<>""),ort($P27,$Q27,$AY$8:$AZ$8),"") ->  | AK27: =IF(AND($AA27=7,P27<>"",Q27<>""),ort($P27,$Q27,$AY$9:$AZ$9),"") ->  | AL27: =IF(AND($AA27<6,R27<>"",S27<>""),ort($R27,$S27,$AY$3:$AZ$3),"") ->  | AM27: =IF(AND($AA27<6,R27<>"",S27<>""),ort($R27,$S27,$AY$4:$AZ$5),"") ->  | AN27: =IF(AND($AA27<6,R27<>"",S27<>""),ort($R27,$S27,$AY$6:$AZ$7),"") ->  | AO27: =IF(AND($AA27=6,R27<>"",S27<>""),ort($R27,$S27,$AY$8:$AZ$8),"") ->  | AP27: =IF(AND($AA27=7,R27<>"",S27<>""),ort($R27,$S27,$AY$9:$AZ$9),"") ->  | AQ27: =IF(AND($AA27<6,T27<>"",U27<>""),ort($T27,$U27,$AY$3:$AZ$3),"") ->  | AR27: =IF(AND($AA27<6,T27<>"",U27<>""),ort($T27,$U27,$AY$4:$AZ$5),"") ->  | AS27: =IF(AND($AA27<6,T27<>"",U27<>""),ort($T27,$U27,$AY$6:$AZ$7),"") ->  | AT27: =IF(AND($AA27=6,T27<>"",U27<>""),ort($T27,$U27,$AY$8:$AZ$8),"") ->  | AU27: =IF(AND($AA27=7,T27<>"",U27<>""),ort($T27,$U27,$AY$9:$AZ$9),"") ->  | BE27: 00:00:00
K28: 9 | L28: =DATE($B$3,$B$4,26) -> 2018-02-26 | M28: =DATE($B$3,$B$4,26) -> 2018-02-26 | N28: 0.3958333333 | O28: 09:30:00 | AA28: =IF(ISERROR(IF(NOT(ISERROR(MATCH($M28,Blad2!$A$2:$A$11,0))),7,WEEKDAY($M28,2))),"",IF(NOT(ISERROR(MATCH($M28,Blad2!$A$2:$A$11,0))),7,WEEKDAY($M28,2))) -> 1 | AB28: =IF(AND($AA28<6,N28<>"",O28<>""),ort($N28,$O28,$AY$3:$AZ$3),"") ->  | AC28: =IF(AND($AA28<6,N28<>"",O28<>""),ort($N28,$O28,$AY$4:$AZ$5),"") ->  | AD28: =IF(AND($AA28<6,N28<>"",O28<>""),ort($N28,$O28,$AY$6:$AZ$7),"") ->  | AE28: =IF(AND($AA28=6,N28<>"",O28<>""),ort($N28,$O28,$AY$8:$AZ$8),"") ->  | AF28: =IF(AND($AA28=7,N28<>"",O28<>""),ort($N28,$O28,$AY$9:$AZ$9),"") ->  | AG28: =IF(AND($AA28<6,P28<>"",Q28<>""),ort($P28,$Q28,$AY$3:$AZ$3),"") ->  | AH28: =IF(AND($AA28<6,P28<>"",Q28<>""),ort($P28,$Q28,$AY$4:$AZ$5),"") ->  | AI28: =IF(AND($AA28<6,P28<>"",Q28<>""),ort($P28,$Q28,$AY$6:$AZ$7),"") ->  | AJ28: =IF(AND($AA28=6,P28<>"",Q28<>""),ort($P28,$Q28,$AY$8:$AZ$8),"") ->  | AK28: =IF(AND($AA28=7,P28<>"",Q28<>""),ort($P28,$Q28,$AY$9:$AZ$9),"") ->  | AL28: =IF(AND($AA28<6,R28<>"",S28<>""),ort($R28,$S28,$AY$3:$AZ$3),"") ->  | AM28: =IF(AND($AA28<6,R28<>"",S28<>""),ort($R28,$S28,$AY$4:$AZ$5),"") ->  | AN28: =IF(AND($AA28<6,R28<>"",S28<>""),ort($R28,$S28,$AY$6:$AZ$7),"") ->  | AO28: =IF(AND($AA28=6,R28<>"",S28<>""),ort($R28,$S28,$AY$8:$AZ$8),"") ->  | AP28: =IF(AND($AA28=7,R28<>"",S28<>""),ort($R28,$S28,$AY$9:$AZ$9),"") ->  | AQ28: =IF(AND($AA28<6,T28<>"",U28<>""),ort($T28,$U28,$AY$3:$AZ$3),"") ->  | AR28: =IF(AND($AA28<6,T28<>"",U28<>""),ort($T28,$U28,$AY$4:$AZ$5),"") ->  | AS28: =IF(AND($AA28<6,T28<>"",U28<>""),ort($T28,$U28,$AY$6:$AZ$7),"") ->  | AT28: =IF(AND($AA28=6,T28<>"",U28<>""),ort($T28,$U28,$AY$8:$AZ$8),"") ->  | AU28: =IF(AND($AA28=7,T28<>"",U28<>""),ort($T28,$U28,$AY$9:$AZ$9),"") ->  | BE28: 00:00:00
L29: =DATE($B$3,$B$4,27) -> 2018-02-27 | M29: =DATE($B$3,$B$4,27) -> 2018-02-27 | N29: 0.3958333333 | O29: 16:12:30 | V29: 0.2795138889 | W29: 0.2795138889 | AA29: =IF(ISERROR(IF(NOT(ISERROR(MATCH($M29,Blad2!$A$2:$A$11,0))),7,WEEKDAY($M29,2))),"",IF(NOT(ISERROR(MATCH($M29,Blad2!$A$2:$A$11,0))),7,WEEKDAY($M29,2))) -> 2 | AB29: =IF(AND($AA29<6,N29<>"",O29<>""),ort($N29,$O29,$AY$3:$AZ$3),"") -> 0.2795138889 | AC29: =IF(AND($AA29<6,N29<>"",O29<>""),ort($N29,$O29,$AY$4:$AZ$5),"") ->  | AD29: =IF(AND($AA29<6,N29<>"",O29<>""),ort($N29,$O29,$AY$6:$AZ$7),"") ->  | AE29: =IF(AND($AA29=6,N29<>"",O29<>""),ort($N29,$O29,$AY$8:$AZ$8),"") ->  | AF29: =IF(AND($AA29=7,N29<>"",O29<>""),ort($N29,$O29,$AY$9:$AZ$9),"") ->  | AG29: =IF(AND($AA29<6,P29<>"",Q29<>""),ort($P29,$Q29,$AY$3:$AZ$3),"") ->  | AH29: =IF(AND($AA29<6,P29<>"",Q29<>""),ort($P29,$Q29,$AY$4:$AZ$5),"") ->  | AI29: =IF(AND($AA29<6,P29<>"",Q29<>""),ort($P29,$Q29,$AY$6:$AZ$7),"") ->  | AJ29: =IF(AND($AA29=6,P29<>"",Q29<>""),ort($P29,$Q29,$AY$8:$AZ$8),"") ->  | AK29: =IF(AND($AA29=7,P29<>"",Q29<>""),ort($P29,$Q29,$AY$9:$AZ$9),"") ->  | AL29: =IF(AND($AA29<6,R29<>"",S29<>""),ort($R29,$S29,$AY$3:$AZ$3),"") ->  | AM29: =IF(AND($AA29<6,R29<>"",S29<>""),ort($R29,$S29,$AY$4:$AZ$5),"") ->  | AN29: =IF(AND($AA29<6,R29<>"",S29<>""),ort($R29,$S29,$AY$6:$AZ$7),"") ->  | AO29: =IF(AND($AA29=6,R29<>"",S29<>""),ort($R29,$S29,$AY$8:$AZ$8),"") ->  | AP29: =IF(AND($AA29=7,R29<>"",S29<>""),ort($R29,$S29,$AY$9:$AZ$9),"") ->  | AQ29: =IF(AND($AA29<6,T29<>"",U29<>""),ort($T29,$U29,$AY$3:$AZ$3),"") ->  | AR29: =IF(AND($AA29<6,T29<>"",U29<>""),ort($T29,$U29,$AY$4:$AZ$5),"") ->  | AS29: =IF(AND($AA29<6,T29<>"",U29<>""),ort($T29,$U29,$AY$6:$AZ$7),"") ->  | AT29: =IF(AND($AA29=6,T29<>"",U29<>""),ort($T29,$U29,$AY$8:$AZ$8),"") ->  | AU29: =IF(AND($AA29=7,T29<>"",U29<>""),ort($T29,$U29,$AY$9:$AZ$9),"") ->  | BB29: 149 | BC29: 00:30:00 | BE29: 06:42:30
L30: =DATE($B$3,$B$4,28) -> 2018-02-28 | M30: =DATE($B$3,$B$4,28) -> 2018-02-28 | N30: 0.3958333333 | O30: 16:40:00 | V30: 0.2986111111 | W30: 0.2986111111 | AA30: =IF(ISERROR(IF(NOT(ISERROR(MATCH($M30,Blad2!$A$2:$A$11,0))),7,WEEKDAY($M30,2))),"",IF(NOT(ISERROR(MATCH($M30,Blad2!$A$2:$A$11,0))),7,WEEKDAY($M30,2))) -> 3 | AB30: =IF(AND($AA30<6,N30<>"",O30<>""),ort($N30,$O30,$AY$3:$AZ$3),"") -> 0.2986111111 | AC30: =IF(AND($AA30<6,N30<>"",O30<>""),ort($N30,$O30,$AY$4:$AZ$5),"") ->  | AD30: =IF(AND($AA30<6,N30<>"",O30<>""),ort($N30,$O30,$AY$6:$AZ$7),"") ->  | AE30: =IF(AND($AA30=6,N30<>"",O30<>""),ort($N30,$O30,$AY$8:$AZ$8),"") ->  | AF30: =IF(AND($AA30=7,N30<>"",O30<>""),ort($N30,$O30,$AY$9:$AZ$9),"") ->  | AG30: =IF(AND($AA30<6,P30<>"",Q30<>""),ort($P30,$Q30,$AY$3:$AZ$3),"") ->  | AH30: =IF(AND($AA30<6,P30<>"",Q30<>""),ort($P30,$Q30,$AY$4:$AZ$5),"") ->  | AI30: =IF(AND($AA30<6,P30<>"",Q30<>""),ort($P30,$Q30,$AY$6:$AZ$7),"") ->  | AJ30: =IF(AND($AA30=6,P30<>"",Q30<>""),ort($P30,$Q30,$AY$8:$AZ$8),"") ->  | AK30: =IF(AND($AA30=7,P30<>"",Q30<>""),ort($P30,$Q30,$AY$9:$AZ$9),"") ->  | AL30: =IF(AND($AA30<6,R30<>"",S30<>""),ort($R30,$S30,$AY$3:$AZ$3),"") ->  | AM30: =IF(AND($AA30<6,R30<>"",S30<>""),ort($R30,$S30,$AY$4:$AZ$5),"") ->  | AN30: =IF(AND($AA30<6,R30<>"",S30<>""),ort($R30,$S30,$AY$6:$AZ$7),"") ->  | AO30: =IF(AND($AA30=6,R30<>"",S30<>""),ort($R30,$S30,$AY$8:$AZ$8),"") ->  | AP30: =IF(AND($AA30=7,R30<>"",S30<>""),ort($R30,$S30,$AY$9:$AZ$9),"") ->  | AQ30: =IF(AND($AA30<6,T30<>"",U30<>""),ort($T30,$U30,$AY$3:$AZ$3),"") ->  | AR30: =IF(AND($AA30<6,T30<>"",U30<>""),ort($T30,$U30,$AY$4:$AZ$5),"") ->  | AS30: =IF(AND($AA30<6,T30<>"",U30<>""),ort($T30,$U30,$AY$6:$AZ$7),"") ->  | AT30: =IF(AND($AA30=6,T30<>"",U30<>""),ort($T30,$U30,$AY$8:$AZ$8),"") ->  | AU30: =IF(AND($AA30=7,T30<>"",U30<>""),ort($T30,$U30,$AY$9:$AZ$9),"") ->  | BB30: 160 | BC30: 00:30:00 | BE30: 07:10:00
K31: =IF(L31="","",IF(WEEKDAY(L31)=2,1+INT((L31-DATE(YEAR(L31+4-WEEKDAY(L31+6)),1,5)+WEEKDAY(DATE(YEAR(L31+4-WEEKDAY(L31+6)),1,3)))/7),"")) ->  | L31: =IF(MONTH(L$30+1)<>MONTH(L$30),"",L$30+1) ->  | M31: =IF(MONTH(M$30+1)<>MONTH(M$30),"",M$30+1) ->  | O31: 00:00:00 | AA31: =IF(ISERROR(IF(NOT(ISERROR(MATCH($M31,Blad2!$A$2:$A$11,0))),7,WEEKDAY($M31,2))),"",IF(NOT(ISERROR(MATCH($M31,Blad2!$A$2:$A$11,0))),7,WEEKDAY($M31,2))) ->  | AB31: =IF(AND($AA31<6,N31<>"",O31<>""),ort($N31,$O31,$AY$3:$AZ$3),"") ->  | AC31: =IF(AND($AA31<6,N31<>"",O31<>""),ort($N31,$O31,$AY$4:$AZ$5),"") ->  | AD31: =IF(AND($AA31<6,N31<>"",O31<>""),ort($N31,$O31,$AY$6:$AZ$7),"") ->  | AE31: =IF(AND($AA31=6,N31<>"",O31<>""),ort($N31,$O31,$AY$8:$AZ$8),"") ->  | AF31: =IF(AND($AA31=7,N31<>"",O31<>""),ort($N31,$O31,$AY$9:$AZ$9),"") ->  | AG31: =IF(AND($AA31<6,P31<>"",Q31<>""),ort($P31,$Q31,$AY$3:$AZ$3),"") ->  | AH31: =IF(AND($AA31<6,P31<>"",Q31<>""),ort($P31,$Q31,$AY$4:$AZ$5),"") ->  | AI31: =IF(AND($AA31<6,P31<>"",Q31<>""),ort($P31,$Q31,$AY$6:$AZ$7),"") ->  | AJ31: =IF(AND($AA31=6,P31<>"",Q31<>""),ort($P31,$Q31,$AY$8:$AZ$8),"") ->  | AK31: =IF(AND($AA31=7,P31<>"",Q31<>""),ort($P31,$Q31,$AY$9:$AZ$9),"") ->  | AL31: =IF(AND($AA31<6,R31<>"",S31<>""),ort($R31,$S31,$AY$3:$AZ$3),"") ->  | AM31: =IF(AND($AA31<6,R31<>"",S31<>""),ort($R31,$S31,$AY$4:$AZ$5),"") ->  | AN31: =IF(AND($AA31<6,R31<>"",S31<>""),ort($R31,$S31,$AY$6:$AZ$7),"") ->  | AO31: =IF(AND($AA31=6,R31<>"",S31<>""),ort($R31,$S31,$AY$8:$AZ$8),"") ->  | AP31: =IF(AND($AA31=7,R31<>"",S31<>""),ort($R31,$S31,$AY$9:$AZ$9),"") ->  | AQ31: =IF(AND($AA31<6,T31<>"",U31<>""),ort($T31,$U31,$AY$3:$AZ$3),"") ->  | AR31: =IF(AND($AA31<6,T31<>"",U31<>""),ort($T31,$U31,$AY$4:$AZ$5),"") ->  | AS31: =IF(AND($AA31<6,T31<>"",U31<>""),ort($T31,$U31,$AY$6:$AZ$7),"") ->  | AT31: =IF(AND($AA31=6,T31<>"",U31<>""),ort($T31,$U31,$AY$8:$AZ$8),"") ->  | AU31: =IF(AND($AA31=7,T31<>"",U31<>""),ort($T31,$U31,$AY$9:$AZ$9),"") ->  | BE31: 00:00:00
B32: Totaal Uren incl 150 % | L32: =IF(L31="","",IF(MONTH($M31+1)<>MONTH($M31),"",$M31+1)) ->  | M32: =IF(M31="","",IF(MONTH($M31+1)<>MONTH($M31),"",$M31+1)) ->  | O32: 00:00:00 | AA32: =IF(ISERROR(IF(NOT(ISERROR(MATCH($M32,Blad2!$A$2:$A$11,0))),7,WEEKDAY($M32,2))),"",IF(NOT(ISERROR(MATCH($M32,Blad2!$A$2:$A$11,0))),7,WEEKDAY($M32,2))) ->  | AB32: =IF(AND($AA32<6,N32<>"",O32<>""),ort($N32,$O32,$AY$3:$AZ$3),"") ->  | AC32: =IF(AND($AA32<6,N32<>"",O32<>""),ort($N32,$O32,$AY$4:$AZ$5),"") ->  | AD32: =IF(AND($AA32<6,N32<>"",O32<>""),ort($N32,$O32,$AY$6:$AZ$7),"") ->  | AE32: =IF(AND($AA32=6,N32<>"",O32<>""),ort($N32,$O32,$AY$8:$AZ$8),"") ->  | AF32: =IF(AND($AA32=7,N32<>"",O32<>""),ort($N32,$O32,$AY$9:$AZ$9),"") ->  | AG32: =IF(AND($AA32<6,P32<>"",Q32<>""),ort($P32,$Q32,$AY$3:$AZ$3),"") ->  | AH32: =IF(AND($AA32<6,P32<>"",Q32<>""),ort($P32,$Q32,$AY$4:$AZ$5),"") ->  | AI32: =IF(AND($AA32<6,P32<>"",Q32<>""),ort($P32,$Q32,$AY$6:$AZ$7),"") ->  | AJ32: =IF(AND($AA32=6,P32<>"",Q32<>""),ort($P32,$Q32,$AY$8:$AZ$8),"") ->  | AK32: =IF(AND($AA32=7,P32<>"",Q32<>""),ort($P32,$Q32,$AY$9:$AZ$9),"") ->  | AL32: =IF(AND($AA32<6,R32<>"",S32<>""),ort($R32,$S32,$AY$3:$AZ$3),"") ->  | AM32: =IF(AND($AA32<6,R32<>"",S32<>""),ort($R32,$S32,$AY$4:$AZ$5),"") ->  | AN32: =IF(AND($AA32<6,R32<>"",S32<>""),ort($R32,$S32,$AY$6:$AZ$7),"") ->  | AO32: =IF(AND($AA32=6,R32<>"",S32<>""),ort($R32,$S32,$AY$8:$AZ$8),"") ->  | AP32: =IF(AND($AA32=7,R32<>"",S32<>""),ort($R32,$S32,$AY$9:$AZ$9),"") ->  | AQ32: =IF(AND($AA32<6,T32<>"",U32<>""),ort($T32,$U32,$AY$3:$AZ$3),"") ->  | AR32: =IF(AND($AA32<6,T32<>"",U32<>""),ort($T32,$U32,$AY$4:$AZ$5),"") ->  | AS32: =IF(AND($AA32<6,T32<>"",U32<>""),ort($T32,$U32,$AY$6:$AZ$7),"") ->  | AT32: =IF(AND($AA32=6,T32<>"",U32<>""),ort($T32,$U32,$AY$8:$AZ$8),"") ->  | AU32: =IF(AND($AA32=7,T32<>"",U32<>""),ort($T32,$U32,$AY$9:$AZ$9),"") ->  | BE32: 00:00:00
B33: =SUM(U36,W37) -> 3.980902778 | K33: =IF(L33="","",IF(WEEKDAY(L33)=2,1+INT((L33-DATE(YEAR(L33+4-WEEKDAY(L33+6)),1,5)+WEEKDAY(DATE(YEAR(L33+4-WEEKDAY(L33+6)),1,3)))/7),"")) ->  | L33: =IF(L32="","",IF(MONTH($M32+1)<>MONTH($M32),"",$M32+1)) ->  | M33: =IF(M32="","",IF(MONTH($M32+1)<>MONTH($M32),"",$M32+1)) ->  | O33: 00:00:00 | AA33: =IF(ISERROR(IF(NOT(ISERROR(MATCH($M33,Blad2!$A$2:$A$11,0))),7,WEEKDAY($M33,2))),"",IF(NOT(ISERROR(MATCH($M33,Blad2!$A$2:$A$11,0))),7,WEEKDAY($M33,2))) ->  | AB33: =IF(AND($AA33<6,N33<>"",O33<>""),ort($N33,$O33,$AY$3:$AZ$3),"") ->  | AC33: =IF(AND($AA33<6,N33<>"",O33<>""),ort($N33,$O33,$AY$4:$AZ$5),"") ->  | AD33: =IF(AND($AA33<6,N33<>"",O33<>""),ort($N33,$O33,$AY$6:$AZ$7),"") ->  | AE33: =IF(AND($AA33=6,N33<>"",O33<>""),ort($N33,$O33,$AY$8:$AZ$8),"") ->  | AF33: =IF(AND($AA33=7,N33<>"",O33<>""),ort($N33,$O33,$AY$9:$AZ$9),"") ->  | AG33: =IF(AND($AA33<6,P33<>"",Q33<>""),ort($P33,$Q33,$AY$3:$AZ$3),"") ->  | AH33: =IF(AND($AA33<6,P33<>"",Q33<>""),ort($P33,$Q33,$AY$4:$AZ$5),"") ->  | AI33: =IF(AND($AA33<6,P33<>"",Q33<>""),ort($P33,$Q33,$AY$6:$AZ$7),"") ->  | AJ33: =IF(AND($AA33=6,P33<>"",Q33<>""),ort($P33,$Q33,$AY$8:$AZ$8),"") ->  | AK33: =IF(AND($AA33=7,P33<>"",Q33<>""),ort($P33,$Q33,$AY$9:$AZ$9),"") ->  | AL33: =IF(AND($AA33<6,R33<>"",S33<>""),ort($R33,$S33,$AY$3:$AZ$3),"") ->  | AM33: =IF(AND($AA33<6,R33<>"",S33<>""),ort($R33,$S33,$AY$4:$AZ$5),"") ->  | AN33: =IF(AND($AA33<6,R33<>"",S33<>""),ort($R33,$S33,$AY$6:$AZ$7),"") ->  | AO33: =IF(AND($AA33=6,R33<>"",S33<>""),ort($R33,$S33,$AY$8:$AZ$8),"") ->  | AP33: =IF(AND($AA33=7,R33<>"",S33<>""),ort($R33,$S33,$AY$9:$AZ$9),"") ->  | AQ33: =IF(AND($AA33<6,T33<>"",U33<>""),ort($T33,$U33,$AY$3:$AZ$3),"") ->  | AR33: =IF(AND($AA33<6,T33<>"",U33<>""),ort($T33,$U33,$AY$4:$AZ$5),"") ->  | AS33: =IF(AND($AA33<6,T33<>"",U33<>""),ort($T33,$U33,$AY$6:$AZ$7),"") ->  | AT33: =IF(AND($AA33=6,T33<>"",U33<>""),ort($T33,$U33,$AY$8:$AZ$8),"") ->  | AU33: =IF(AND($AA33=7,T33<>"",U33<>""),ort($T33,$U33,$AY$9:$AZ$9),"") ->  | BE33: 00:00:00
W34: =SUM(W3:W33) -> 3.980902778 | X34: =SUM(X3:X33) -> 0 | Y34: 0 | Z34: 0
M35: Plus / Min Uren Incl 150 % Uren | S35: Contract Uren | U35: =SUM(B17) -> 3.75
M36: =SUM(B33-B17) -> 0.2309027778 | P36: 5 | R36: Gewerkte Uren 100 % | U36: =SUM(W34:X34) -> 3.980902778
M37: Uitbetalen / Verlof | P37: =SUM(M36*P36)*24 -> 27.70833333 | R37: Gewerkte Uren 150 % | U37: =SUM(Y34) -> 0 | V37: X 150% | W37: =SUM(U37*150%) -> 0
S38: Plus Uren
S39: Min Uren

Sheet Maart
O1: Test
C2: =TODAY() -> 2018-03-21 | J2: Feestdag | K2: wknr | L2: dag | M2: datum | N2: tijd in | O2: tijd uit | P2: tijd in | Q2: tijd uit | R2: tijd in | S2: tijd uit | T2: tijd in | U2: tijd uit | V2: werk tijd | W2: 1 | X2: 1.25 | Y2: 1.5 | Z2: 2 | AA2: hulp | AB2: 1 | AC2: 1.25 | AD2: 1.5 | AE2: 1.5 | AF2: 2 | AG2: 1 | AH2: 1.25 | AI2: 1.5 | AJ2: 1.5 | AK2: 2 | AL2: 1 | AM2: 1.25 | AN2: 1.5 | AO2: 1.5 | AP2: 2 | AQ2: 1 | AR2: 1.25 | AS2: 1.5 | AT2: 1.5 | AU2: 2 | AW2: onregelmatigheidstoeslag | BB2: Aantal | BC2: Laden | BD2: Lossen | BE2: Werktijd
B3: 2018 | D3: Kalender | J3: =IF(ISNA(VLOOKUP(M3,feestdagen,2,0)),"",VLOOKUP(M3,feestdagen,2,0)) ->  | K3: =WEEKNUM(L3,21) -> 9 | L3: =DATE($B$3,$B$4,1) -> 2018-03-01 | M3: =DATE($B$3,$B$4,1) -> 2018-03-01 | O3: =SUM(N3,BE3) -> 00:00:00 | V3: =IF(AND(W3="",X3="",Y3="",Z3=""),"",SUM(W3:Z3)) ->  | W3: =IF(AND(AB3="",AG3="",AL3="",AQ3=""),"",SUM(AB3,AG3,AL3,AQ3)) ->  | X3: =IF(AND(AC3="",AH3="",AM3="",AR3=""),"",SUM(AC3,AH3,AM3,AR3)) ->  | Y3: =IF(AND(AD3="",AE3="",AI3="",AJ3="",AN3="",AO3="",AS3="",AT3=""),"",SUM(AD3,AE3,AI3,AJ3,AN3,AO3,AS3,AT3)) ->  | Z3: =IF(AND(AF3="",AK3="",AP3="",AU3=""),"",SUM(AF3,AK3,AP3,AU3)) ->  | AA3: =IF(ISERROR(IF(NOT(ISERROR(MATCH($M3,Blad2!$A$2:$A$11,0))),7,WEEKDAY($M3,2))),"",IF(NOT(ISERROR(MATCH($M3,Blad2!$A$2:$A$11,0))),7,WEEKDAY($M3,2))) -> 4 | AB3: =IF(AND($AA3<6,N3<>"",O3<>""),ort($N3,$O3,$AY$3:$AZ$3),"") ->  | AC3: =IF(AND($AA3<6,N3<>"",O3<>""),ort($N3,$O3,$AY$4:$AZ$5),"") ->  | AD3: =IF(AND($AA3<6,N3<>"",O3<>""),ort($N3,$O3,$AY$6:$AZ$7),"") ->  | AE3: =IF(AND($AA3=6,N3<>"",O3<>""),ort($N3,$O3,$AY$8:$AZ$8),"") ->  | AF3: =IF(AND($AA3=7,N3<>"",O3<>""),ort($N3,$O3,$AY$9:$AZ$9),"") ->  | AG3: =IF(AND($AA3<6,P3<>"",Q3<>""),ort($P3,$Q3,$AY$3:$AZ$3),"") ->  | AH3: =IF(AND($AA3<6,P3<>"",Q3<>""),ort($P3,$Q3,$AY$4:$AZ$5),"") ->  | AI3: =IF(AND($AA3<6,P3<>"",Q3<>""),ort($P3,$Q3,$AY$6:$AZ$7),"") ->  | AJ3: =IF(AND($AA3=6,P3<>"",Q3<>""),ort($P3,$Q3,$AY$8:$AZ$8),"") ->  | AK3: =IF(AND($AA3=7,P3<>"",Q3<>""),ort($P3,$Q3,$AY$9:$AZ$9),"") ->  | AL3: =IF(AND($AA3<6,R3<>"",S3<>""),ort($R3,$S3,$AY$3:$AZ$3),"") ->  | AM3: =IF(AND($AA3<6,R3<>"",S3<>""),ort($R3,$S3,$AY$4:$AZ$5),"") ->  | AN3: =IF(AND($AA3<6,R3<>"",S3<>""),ort($R3,$S3,$AY$6:$AZ$7),"") ->  | AO3: =IF(AND($AA3=6,R3<>"",S3<>""),ort($R3,$S3,$AY$8:$AZ$8),"") ->  | AP3: =IF(AND($AA3=7,R3<>"",S3<>""),ort($R3,$S3,$AY$9:$AZ$9),"") ->  | AQ3: =IF(AND($AA3<6,T3<>"",U3<>""),ort($T3,$U3,$AY$3:$AZ$3),"") ->  | AR3: =IF(AND($AA3<6,T3<>"",U3<>""),ort($T3,$U3,$AY$4:$AZ$5),"") ->  | AS3: =IF(AND($AA3<6,T3<>"",U3<>""),ort($T3,$U3,$AY$6:$AZ$7),"") ->  | AT3: =IF(AND($AA3=6,T3<>"",U3<>""),ort($T3,$U3,$AY$8:$AZ$8),"") ->  | AU3: =IF(AND($AA3=7,T3<>"",U3<>""),ort($T3,$U3,$AY$9:$AZ$9),"") ->  | AW3: 1 | AX3: m-vr | AY3: 0.3958333333 | AZ3: 0.7291666667 | BE3: =SUM(BB3/26/24,BC3:BD3) -> 00:00:00
B4: 3 | C4: =DATE(B3,B4,1) -> 2018-03-01 | K4: =IF(WEEKDAY(L4)=2,1+INT((L4-DATE(YEAR(L4+4-WEEKDAY(L4+6)),1,5)+WEEKDAY(DATE(YEAR(L4+4-WEEKDAY(L4+6)),1,3)))/7),"") ->  | L4: =DATE($B$3,$B$4,2) -> 2018-03-02 | M4: =DATE($B$3,$B$4,2) -> 2018-03-02 | O4: =SUM(N4,BE4) -> 00:00:00 | V4: =IF(AND(W4="",X4="",Y4="",Z4=""),"",SUM(W4:Z4)) ->  | W4: =IF(AND(AB4="",AG4="",AL4="",AQ4=""),"",SUM(AB4,AG4,AL4,AQ4)) ->  | X4: =IF(AND(AC4="",AH4="",AM4="",AR4=""),"",SUM(AC4,AH4,AM4,AR4)) ->  | Y4: =IF(AND(AD4="",AE4="",AI4="",AJ4="",AN4="",AO4="",AS4="",AT4=""),"",SUM(AD4,AE4,AI4,AJ4,AN4,AO4,AS4,AT4)) ->  | Z4: =IF(AND(AF4="",AK4="",AP4="",AU4=""),"",SUM(AF4,AK4,AP4,AU4)) ->  | AA4: =IF(ISERROR(IF(NOT(ISERROR(MATCH($M4,Blad2!$A$2:$A$11,0))),7,WEEKDAY($M4,2))),"",IF(NOT(ISERROR(MATCH($M4,Blad2!$A$2:$A$11,0))),7,WEEKDAY($M4,2))) -> 5 | AB4: =IF(AND($AA4<6,N4<>"",O4<>""),ort($N4,$O4,$AY$3:$AZ$3),"") ->  | AC4: =IF(AND($AA4<6,N4<>"",O4<>""),ort($N4,$O4,$AY$4:$AZ$5),"") ->  | AD4: =IF(AND($AA4<6,N4<>"",O4<>""),ort($N4,$O4,$AY$6:$AZ$7),"") ->  | AE4: =IF(AND($AA4=6,N4<>"",O4<>""),ort($N4,$O4,$AY$8:$AZ$8),"") ->  | AF4: =IF(AND($AA4=7,N4<>"",O4<>""),ort($N4,$O4,$AY$9:$AZ$9),"") ->  | AG4: =IF(AND($AA4<6,P4<>"",Q4<>""),ort($P4,$Q4,$AY$3:$AZ$3),"") ->  | AH4: =IF(AND($AA4<6,P4<>"",Q4<>""),ort($P4,$Q4,$AY$4:$AZ$5),"") ->  | AI4: =IF(AND($AA4<6,P4<>"",Q4<>""),ort($P4,$Q4,$AY$6:$AZ$7),"") ->  | AJ4: =IF(AND($AA4=6,P4<>"",Q4<>""),ort($P4,$Q4,$AY$8:$AZ$8),"") ->  | AK4: =IF(AND($AA4=7,P4<>"",Q4<>""),ort($P4,$Q4,$AY$9:$AZ$9),"") ->  | AL4: =IF(AND($AA4<6,R4<>"",S4<>""),ort($R4,$S4,$AY$3:$AZ$3),"") ->  | AM4: =IF(AND($AA4<6,R4<>"",S4<>""),ort($R4,$S4,$AY$4:$AZ$5),"") ->  | AN4: =IF(AND($AA4<6,R4<>"",S4<>""),ort($R4,$S4,$AY$6:$AZ$7),"") ->  | AO4: =IF(AND($AA4=6,R4<>"",S4<>""),ort($R4,$S4,$AY$8:$AZ$8),"") ->  | AP4: =IF(AND($AA4=7,R4<>"",S4<>""),ort($R4,$S4,$AY$9:$AZ$9),"") ->  | AQ4: =IF(AND($AA4<6,T4<>"",U4<>""),ort($T4,$U4,$AY$3:$AZ$3),"") ->  | AR4: =IF(AND($AA4<6,T4<>"",U4<>""),ort($T4,$U4,$AY$4:$AZ$5),"") ->  | AS4: =IF(AND($AA4<6,T4<>"",U4<>""),ort($T4,$U4,$AY$6:$AZ$7),"") ->  | AT4: =IF(AND($AA4=6,T4<>"",U4<>""),ort($T4,$U4,$AY$8:$AZ$8),"") ->  | AU4: =IF(AND($AA4=7,T4<>"",U4<>""),ort($T4,$U4,$AY$9:$AZ$9),"") ->  | AW4: 1.25 | AX4: m-vr | AY4: 0.25 | AZ4: 0.3125 | BE4: 00:00:00
C5: Ma | D5: Di | E5: Wo | F5: Do | G5: Vr | H5: Za | I5: Zo | L5: =DATE($B$3,$B$4,3) -> 2018-03-03 | M5: =DATE($B$3,$B$4,3) -> 2018-03-03 | O5: 00:00:00 | W5: =IF(AND(AB5="",AG5="",AL5="",AQ5=""),"",SUM(AB5,AG5,AL5,AQ5)) ->  | Y5: =IF(AND(AD5="",AE5="",AI5="",AJ5="",AN5="",AO5="",AS5="",AT5=""),"",SUM(AD5,AE5,AI5,AJ5,AN5,AO5,AS5,AT5)) ->  | Z5: =IF(AND(AF5="",AK5="",AP5="",AU5=""),"",SUM(AF5,AK5,AP5,AU5)) ->  | AA5: =IF(ISERROR(IF(NOT(ISERROR(MATCH($M5,Blad2!$A$2:$A$11,0))),7,WEEKDAY($M5,2))),"",IF(NOT(ISERROR(MATCH($M5,Blad2!$A$2:$A$11,0))),7,WEEKDAY($M5,2))) -> 6 | AB5: =IF(AND($AA5<6,N5<>"",O5<>""),ort($N5,$O5,$AY$3:$AZ$3),"") ->  | AC5: =IF(AND($AA5<6,N5<>"",O5<>""),ort($N5,$O5,$AY$4:$AZ$5),"") ->  | AD5: =IF(AND($AA5<6,N5<>"",O5<>""),ort($N5,$O5,$AY$6:$AZ$7),"") ->  | AE5: =IF(AND($AA5=6,N5<>"",O5<>""),ort($N5,$O5,$AY$8:$AZ$8),"") ->  | AF5: =IF(AND($AA5=7,N5<>"",O5<>""),ort($N5,$O5,$AY$9:$AZ$9),"") ->  | AG5: =IF(AND($AA5<6,P5<>"",Q5<>""),ort($P5,$Q5,$AY$3:$AZ$3),"") ->  | AH5: =IF(AND($AA5<6,P5<>"",Q5<>""),ort($P5,$Q5,$AY$4:$AZ$5),"") ->  | AI5: =IF(AND($AA5<6,P5<>"",Q5<>""),ort($P5,$Q5,$AY$6:$AZ$7),"") ->  | AJ5: =IF(AND($AA5=6,P5<>"",Q5<>""),ort($P5,$Q5,$AY$8:$AZ$8),"") ->  | AK5: =IF(AND($AA5=7,P5<>"",Q5<>""),ort($P5,$Q5,$AY$9:$AZ$9),"") ->  | AL5: =IF(AND($AA5<6,R5<>"",S5<>""),ort($R5,$S5,$AY$3:$AZ$3),"") ->  | AM5: =IF(AND($AA5<6,R5<>"",S5<>""),ort($R5,$S5,$AY$4:$AZ$5),"") ->  | AN5: =IF(AND($AA5<6,R5<>"",S5<>""),ort($R5,$S5,$AY$6:$AZ$7),"") ->  | AO5: =IF(AND($AA5=6,R5<>"",S5<>""),ort($R5,$S5,$AY$8:$AZ$8),"") ->  | AP5: =IF(AND($AA5=7,R5<>"",S5<>""),ort($R5,$S5,$AY$9:$AZ$9),"") ->  | AQ5: =IF(AND($AA5<6,T5<>"",U5<>""),ort($T5,$U5,$AY$3:$AZ$3),"") ->  | AR5: =IF(AND($AA5<6,T5<>"",U5<>""),ort($T5,$U5,$AY$4:$AZ$5),"") ->  | AS5: =IF(AND($AA5<6,T5<>"",U5<>""),ort($T5,$U5,$AY$6:$AZ$7),"") ->  | AT5: =IF(AND($AA5=6,T5<>"",U5<>""),ort($T5,$U5,$AY$8:$AZ$8),"") ->  | AU5: =IF(AND($AA5=7,T5<>"",U5<>""),ort($T5,$U5,$AY$9:$AZ$9),"") ->  | AW5: 1.25 | AX5: m-vr | AY5: 0.75 | AZ5: 0.7708333333 | BE5: 00:00:00
C6: =IF(WEEKDAY(C4,2)=1,C4,"") ->  | D6: =IF(WEEKDAY(C4,2)=2,C4,IF(C6<>"",C6+1,"")) ->  | E6: =IF(WEEKDAY(C4,2)=3,C4,IF(D6<>"",D6+1,"")) ->  | F6: =IF(WEEKDAY(C4,2)=4,C4,IF(E6<>"",E6+1,"")) -> 2018-03-01 | G6: =IF(WEEKDAY(C4,2)=5,C4,IF(F6<>"",F6+1,"")) -> 2018-03-02 | H6: =IF(WEEKDAY(C4,2)=6,C4,IF(G6<>"",G6+1,"")) -> 2018-03-03 | I6: =IF(WEEKDAY(C4,2)=7,C4,IF(H6<>"",H6+1,"")) -> 2018-03-04 | L6: =DATE($B$3,$B$4,4) -> 2018-03-04 | M6: =DATE($B$3,$B$4,4) -> 2018-03-04 | O6: 00:00:00 | AA6: =IF(ISERROR(IF(NOT(ISERROR(MATCH($M6,Blad2!$A$2:$A$11,0))),7,WEEKDAY($M6,2))),"",IF(NOT(ISERROR(MATCH($M6,Blad2!$A$2:$A$11,0))),7,WEEKDAY($M6,2))) -> 7 | AB6: =IF(AND($AA6<6,N6<>"",O6<>""),ort($N6,$O6,$AY$3:$AZ$3),"") ->  | AC6: =IF(AND($AA6<6,N6<>"",O6<>""),ort($N6,$O6,$AY$4:$AZ$5),"") ->  | AD6: =IF(AND($AA6<6,N6<>"",O6<>""),ort($N6,$O6,$AY$6:$AZ$7),"") ->  | AE6: =IF(AND($AA6=6,N6<>"",O6<>""),ort($N6,$O6,$AY$8:$AZ$8),"") ->  | AF6: =IF(AND($AA6=7,N6<>"",O6<>""),ort($N6,$O6,$AY$9:$AZ$9),"") ->  | AG6: =IF(AND($AA6<6,P6<>"",Q6<>""),ort($P6,$Q6,$AY$3:$AZ$3),"") ->  | AH6: =IF(AND($AA6<6,P6<>"",Q6<>""),ort($P6,$Q6,$AY$4:$AZ$5),"") ->  | AI6: =IF(AND($AA6<6,P6<>"",Q6<>""),ort($P6,$Q6,$AY$6:$AZ$7),"") ->  | AJ6: =IF(AND($AA6=6,P6<>"",Q6<>""),ort($P6,$Q6,$AY$8:$AZ$8),"") ->  | AK6: =IF(AND($AA6=7,P6<>"",Q6<>""),ort($P6,$Q6,$AY$9:$AZ$9),"") ->  | AL6: =IF(AND($AA6<6,R6<>"",S6<>""),ort($R6,$S6,$AY$3:$AZ$3),"") ->  | AM6: =IF(AND($AA6<6,R6<>"",S6<>""),ort($R6,$S6,$AY$4:$AZ$5),"") ->  | AN6: =IF(AND($AA6<6,R6<>"",S6<>""),ort($R6,$S6,$AY$6:$AZ$7),"") ->  | AO6: =IF(AND($AA6=6,R6<>"",S6<>""),ort($R6,$S6,$AY$8:$AZ$8),"") ->  | AP6: =IF(AND($AA6=7,R6<>"",S6<>""),ort($R6,$S6,$AY$9:$AZ$9),"") ->  | AQ6: =IF(AND($AA6<6,T6<>"",U6<>""),ort($T6,$U6,$AY$3:$AZ$3),"") ->  | AR6: =IF(AND($AA6<6,T6<>"",U6<>""),ort($T6,$U6,$AY$4:$AZ$5),"") ->  | AS6: =IF(AND($AA6<6,T6<>"",U6<>""),ort($T6,$U6,$AY$6:$AZ$7),"") ->  | AT6: =IF(AND($AA6=6,T6<>"",U6<>""),ort($T6,$U6,$AY$8:$AZ$8),"") ->  | AU6: =IF(AND($AA6=7,T6<>"",U6<>""),ort($T6,$U6,$AY$9:$AZ$9),"") ->  | AW6: 1.5 | AX6: m-vr | AY6: 0 | AZ6: 0.25 | BE6: 00:00:00
C7: =I6+1 -> 2018-03-05 | D7: =C7+1 -> 2018-03-06 | E7: =D7+1 -> 2018-03-07 | F7: 2018-03-08 | G7: 2018-03-09 | H7: 2018-03-10 | I7: 2018-03-11 | K7: 10 | L7: =DATE($B$3,$B$4,5) -> 2018-03-05 | M7: =DATE($B$3,$B$4,5) -> 2018-03-05 | O7: 00:00:00 | AA7: =IF(ISERROR(IF(NOT(ISERROR(MATCH($M7,Blad2!$A$2:$A$11,0))),7,WEEKDAY($M7,2))),"",IF(NOT(ISERROR(MATCH($M7,Blad2!$A$2:$A$11,0))),7,WEEKDAY($M7,2))) -> 1 | AB7: =IF(AND($AA7<6,N7<>"",O7<>""),ort($N7,$O7,$AY$3:$AZ$3),"") ->  | AC7: =IF(AND($AA7<6,N7<>"",O7<>""),ort($N7,$O7,$AY$4:$AZ$5),"") ->  | AD7: =IF(AND($AA7<6,N7<>"",O7<>""),ort($N7,$O7,$AY$6:$AZ$7),"") ->  | AE7: =IF(AND($AA7=6,N7<>"",O7<>""),ort($N7,$O7,$AY$8:$AZ$8),"") ->  | AF7: =IF(AND($AA7=7,N7<>"",O7<>""),ort($N7,$O7,$AY$9:$AZ$9),"") ->  | AG7: =IF(AND($AA7<6,P7<>"",Q7<>""),ort($P7,$Q7,$AY$3:$AZ$3),"") ->  | AH7: =IF(AND($AA7<6,P7<>"",Q7<>""),ort($P7,$Q7,$AY$4:$AZ$5),"") ->  | AI7: =IF(AND($AA7<6,P7<>"",Q7<>""),ort($P7,$Q7,$AY$6:$AZ$7),"") ->  | AJ7: =IF(AND($AA7=6,P7<>"",Q7<>""),ort($P7,$Q7,$AY$8:$AZ$8),"") ->  | AK7: =IF(AND($AA7=7,P7<>"",Q7<>""),ort($P7,$Q7,$AY$9:$AZ$9),"") ->  | AL7: =IF(AND($AA7<6,R7<>"",S7<>""),ort($R7,$S7,$AY$3:$AZ$3),"") ->  | AM7: =IF(AND($AA7<6,R7<>"",S7<>""),ort($R7,$S7,$AY$4:$AZ$5),"") ->  | AN7: =IF(AND($AA7<6,R7<>"",S7<>""),ort($R7,$S7,$AY$6:$AZ$7),"") ->  | AO7: =IF(AND($AA7=6,R7<>"",S7<>""),ort($R7,$S7,$AY$8:$AZ$8),"") ->  | AP7: =IF(AND($AA7=7,R7<>"",S7<>""),ort($R7,$S7,$AY$9:$AZ$9),"") ->  | AQ7: =IF(AND($AA7<6,T7<>"",U7<>""),ort($T7,$U7,$AY$3:$AZ$3),"") ->  | AR7: =IF(AND($AA7<6,T7<>"",U7<>""),ort($T7,$U7,$AY$4:$AZ$5),"") ->  | AS7: =IF(AND($AA7<6,T7<>"",U7<>""),ort($T7,$U7,$AY$6:$AZ$7),"") ->  | AT7: =IF(AND($AA7=6,T7<>"",U7<>""),ort($T7,$U7,$AY$8:$AZ$8),"") ->  | AU7: =IF(AND($AA7=7,T7<>"",U7<>""),ort($T7,$U7,$AY$9:$AZ$9),"") ->  | AW7: 1.5 | AX7: m-vr | AY7: 0.7708333333 | AZ7: 1 | BE7: 00:00:00
C8: =I7+1 -> 2018-03-12 | D8: =C8+1 -> 2018-03-13 | E8: 2018-03-14 | F8: 2018-03-15 | G8: 2018-03-16 | H8: 2018-03-17 | I8: 2018-03-18 | L8: =DATE($B$3,$B$4,6) -> 2018-03-06 | M8: =DATE($B$3,$B$4,6) -> 2018-03-06 | O8: 00:00:00 | AA8: =IF(ISERROR(IF(NOT(ISERROR(MATCH($M8,Blad2!$A$2:$A$11,0))),7,WEEKDAY($M8,2))),"",IF(NOT(ISERROR(MATCH($M8,Blad2!$A$2:$A$11,0))),7,WEEKDAY($M8,2))) -> 2 | AB8: =IF(AND($AA8<6,N8<>"",O8<>""),ort($N8,$O8,$AY$3:$AZ$3),"") ->  | AC8: =IF(AND($AA8<6,N8<>"",O8<>""),ort($N8,$O8,$AY$4:$AZ$5),"") ->  | AD8: =IF(AND($AA8<6,N8<>"",O8<>""),ort($N8,$O8,$AY$6:$AZ$7),"") ->  | AE8: =IF(AND($AA8=6,N8<>"",O8<>""),ort($N8,$O8,$AY$8:$AZ$8),"") ->  | AF8: =IF(AND($AA8=7,N8<>"",O8<>""),ort($N8,$O8,$AY$9:$AZ$9),"") ->  | AG8: =IF(AND($AA8<6,P8<>"",Q8<>""),ort($P8,$Q8,$AY$3:$AZ$3),"") ->  | AH8: =IF(AND($AA8<6,P8<>"",Q8<>""),ort($P8,$Q8,$AY$4:$AZ$5),"") ->  | AI8: =IF(AND($AA8<6,P8<>"",Q8<>""),ort($P8,$Q8,$AY$6:$AZ$7),"") ->  | AJ8: =IF(AND($AA8=6,P8<>"",Q8<>""),ort($P8,$Q8,$AY$8:$AZ$8),"") ->  | AK8: =IF(AND($AA8=7,P8<>"",Q8<>""),ort($P8,$Q8,$AY$9:$AZ$9),"") ->  | AL8: =IF(AND($AA8<6,R8<>"",S8<>""),ort($R8,$S8,$AY$3:$AZ$3),"") ->  | AM8: =IF(AND($AA8<6,R8<>"",S8<>""),ort($R8,$S8,$AY$4:$AZ$5),"") ->  | AN8: =IF(AND($AA8<6,R8<>"",S8<>""),ort($R8,$S8,$AY$6:$AZ$7),"") ->  | AO8: =IF(AND($AA8=6,R8<>"",S8<>""),ort($R8,$S8,$AY$8:$AZ$8),"") ->  | AP8: =IF(AND($AA8=7,R8<>"",S8<>""),ort($R8,$S8,$AY$9:$AZ$9),"") ->  | AQ8: =IF(AND($AA8<6,T8<>"",U8<>""),ort($T8,$U8,$AY$3:$AZ$3),"") ->  | AR8: =IF(AND($AA8<6,T8<>"",U8<>""),ort($T8,$U8,$AY$4:$AZ$5),"") ->  | AS8: =IF(AND($AA8<6,T8<>"",U8<>""),ort($T8,$U8,$AY$6:$AZ$7),"") ->  | AT8: =IF(AND($AA8=6,T8<>"",U8<>""),ort($T8,$U8,$AY$8:$AZ$8),"") ->  | AU8: =IF(AND($AA8=7,T8<>"",U8<>""),ort($T8,$U8,$AY$9:$AZ$9),"") ->  | AW8: 1.5 | AX8: za | AY8: 0 | AZ8: 1 | BE8: 00:00:00
C9: =I8+1 -> 2018-03-19 | D9: =C9+1 -> 2018-03-20 | E9: 2018-03-21 | F9: 2018-03-22 | G9: 2018-03-23 | H9: 2018-03-24 | I9: 2018-03-25 | L9: =DATE($B$3,$B$4,7) -> 2018-03-07 | M9: =DATE($B$3,$B$4,7) -> 2018-03-07 | O9: 00:00:00 | AA9: =IF(ISERROR(IF(NOT(ISERROR(MATCH($M9,Blad2!$A$2:$A$11,0))),7,WEEKDAY($M9,2))),"",IF(NOT(ISERROR(MATCH($M9,Blad2!$A$2:$A$11,0))),7,WEEKDAY($M9,2))) -> 3 | AB9: =IF(AND($AA9<6,N9<>"",O9<>""),ort($N9,$O9,$AY$3:$AZ$3),"") ->  | AC9: =IF(AND($AA9<6,N9<>"",O9<>""),ort($N9,$O9,$AY$4:$AZ$5),"") ->  | AD9: =IF(AND($AA9<6,N9<>"",O9<>""),ort($N9,$O9,$AY$6:$AZ$7),"") ->  | AE9: =IF(AND($AA9=6,N9<>"",O9<>""),ort($N9,$O9,$AY$8:$AZ$8),"") ->  | AF9: =IF(AND($AA9=7,N9<>"",O9<>""),ort($N9,$O9,$AY$9:$AZ$9),"") ->  | AG9: =IF(AND($AA9<6,P9<>"",Q9<>""),ort($P9,$Q9,$AY$3:$AZ$3),"") ->  | AH9: =IF(AND($AA9<6,P9<>"",Q9<>""),ort($P9,$Q9,$AY$4:$AZ$5),"") ->  | AI9: =IF(AND($AA9<6,P9<>"",Q9<>""),ort($P9,$Q9,$AY$6:$AZ$7),"") ->  | AJ9: =IF(AND($AA9=6,P9<>"",Q9<>""),ort($P9,$Q9,$AY$8:$AZ$8),"") ->  | AK9: =IF(AND($AA9=7,P9<>"",Q9<>""),ort($P9,$Q9,$AY$9:$AZ$9),"") ->  | AL9: =IF(AND($AA9<6,R9<>"",S9<>""),ort($R9,$S9,$AY$3:$AZ$3),"") ->  | AM9: =IF(AND($AA9<6,R9<>"",S9<>""),ort($R9,$S9,$AY$4:$AZ$5),"") ->  | AN9: =IF(AND($AA9<6,R9<>"",S9<>""),ort($R9,$S9,$AY$6:$AZ$7),"") ->  | AO9: =IF(AND($AA9=6,R9<>"",S9<>""),ort($R9,$S9,$AY$8:$AZ$8),"") ->  | AP9: =IF(AND($AA9=7,R9<>"",S9<>""),ort($R9,$S9,$AY$9:$AZ$9),"") ->  | AQ9: =IF(AND($AA9<6,T9<>"",U9<>""),ort($T9,$U9,$AY$3:$AZ$3),"") ->  | AR9: =IF(AND($AA9<6,T9<>"",U9<>""),ort($T9,$U9,$AY$4:$AZ$5),"") ->  | AS9: =IF(AND($AA9<6,T9<>"",U9<>""),ort($T9,$U9,$AY$6:$AZ$7),"") ->  | AT9: =IF(AND($AA9=6,T9<>"",U9<>""),ort($T9,$U9,$AY$8:$AZ$8),"") ->  | AU9: =IF(AND($AA9=7,T9<>"",U9<>""),ort($T9,$U9,$AY$9:$AZ$9),"") ->  | AW9: 2 | AX9: zo/feest | AY9: 0 | AZ9: 1 | BE9: 00:00:00
C10: =IF(I9="","",IF(MONTH(I9+1)=MONTH(I9),I9+1,"")) -> 2018-03-26 | D10: =IF(C10="","",IF(MONTH(C10+1)=MONTH(C10),C10+1,"")) -> 2018-03-27 | E10: =IF(D10="","",IF(MONTH(D10+1)=MONTH(D10),D10+1,"")) -> 2018-03-28 | F10: 2018-03-29 | G10: 2018-03-30 | H10: 2018-03-31 | L10: =DATE($B$3,$B$4,8) -> 2018-03-08 | M10: =DATE($B$3,$B$4,8) -> 2018-03-08 | O10: 00:00:00 | AA10: =IF(ISERROR(IF(NOT(ISERROR(MATCH($M10,Blad2!$A$2:$A$11,0))),7,WEEKDAY($M10,2))),"",IF(NOT(ISERROR(MATCH($M10,Blad2!$A$2:$A$11,0))),7,WEEKDAY($M10,2))) -> 4 | AB10: =IF(AND($AA10<6,N10<>"",O10<>""),ort($N10,$O10,$AY$3:$AZ$3),"") ->  | AC10: =IF(AND($AA10<6,N10<>"",O10<>""),ort($N10,$O10,$AY$4:$AZ$5),"") ->  | AD10: =IF(AND($AA10<6,N10<>"",O10<>""),ort($N10,$O10,$AY$6:$AZ$7),"") ->  | AE10: =IF(AND($AA10=6,N10<>"",O10<>""),ort($N10,$O10,$AY$8:$AZ$8),"") ->  | AF10: =IF(AND($AA10=7,N10<>"",O10<>""),ort($N10,$O10,$AY$9:$AZ$9),"") ->  | AG10: =IF(AND($AA10<6,P10<>"",Q10<>""),ort($P10,$Q10,$AY$3:$AZ$3),"") ->  | AH10: =IF(AND($AA10<6,P10<>"",Q10<>""),ort($P10,$Q10,$AY$4:$AZ$5),"") ->  | AI10: =IF(AND($AA10<6,P10<>"",Q10<>""),ort($P10,$Q10,$AY$6:$AZ$7),"") ->  | AJ10: =IF(AND($AA10=6,P10<>"",Q10<>""),ort($P10,$Q10,$AY$8:$AZ$8),"") ->  | AK10: =IF(AND($AA10=7,P10<>"",Q10<>""),ort($P10,$Q10,$AY$9:$AZ$9),"") ->  | AL10: =IF(AND($AA10<6,R10<>"",S10<>""),ort($R10,$S10,$AY$3:$AZ$3),"") ->  | AM10: =IF(AND($AA10<6,R10<>"",S10<>""),ort($R10,$S10,$AY$4:$AZ$5),"") ->  | AN10: =IF(AND($AA10<6,R10<>"",S10<>""),ort($R10,$S10,$AY$6:$AZ$7),"") ->  | AO10: =IF(AND($AA10=6,R10<>"",S10<>""),ort($R10,$S10,$AY$8:$AZ$8),"") ->  | AP10: =IF(AND($AA10=7,R10<>"",S10<>""),ort($R10,$S10,$AY$9:$AZ$9),"") ->  | AQ10: =IF(AND($AA10<6,T10<>"",U10<>""),ort($T10,$U10,$AY$3:$AZ$3),"") ->  | AR10: =IF(AND($AA10<6,T10<>"",U10<>""),ort($T10,$U10,$AY$4:$AZ$5),"") ->  | AS10: =IF(AND($AA10<6,T10<>"",U10<>""),ort($T10,$U10,$AY$6:$AZ$7),"") ->  | AT10: =IF(AND($AA10=6,T10<>"",U10<>""),ort($T10,$U10,$AY$8:$AZ$8),"") ->  | AU10: =IF(AND($AA10=7,T10<>"",U10<>""),ort($T10,$U10,$AY$9:$AZ$9),"") ->  | BE10: 00:00:00
C11: =IF(I10="","",IF(MONTH(I10+1)=MONTH(I10),I10+1,"")) ->  | D11: =IF(C11="","",IF(MONTH(C11+1)=MONTH(C11),C11+1,"")) ->  | L11: =DATE($B$3,$B$4,9) -> 2018-03-09 | M11: =DATE($B$3,$B$4,9) -> 2018-03-09 | O11: 00:00:00 | AA11: =IF(ISERROR(IF(NOT(ISERROR(MATCH($M11,Blad2!$A$2:$A$11,0))),7,WEEKDAY($M11,2))),"",IF(NOT(ISERROR(MATCH($M11,Blad2!$A$2:$A$11,0))),7,WEEKDAY($M11,2))) -> 5 | AB11: =IF(AND($AA11<6,N11<>"",O11<>""),ort($N11,$O11,$AY$3:$AZ$3),"") ->  | AC11: =IF(AND($AA11<6,N11<>"",O11<>""),ort($N11,$O11,$AY$4:$AZ$5),"") ->  | AD11: =IF(AND($AA11<6,N11<>"",O11<>""),ort($N11,$O11,$AY$6:$AZ$7),"") ->  | AE11: =IF(AND($AA11=6,N11<>"",O11<>""),ort($N11,$O11,$AY$8:$AZ$8),"") ->  | AF11: =IF(AND($AA11=7,N11<>"",O11<>""),ort($N11,$O11,$AY$9:$AZ$9),"") ->  | AG11: =IF(AND($AA11<6,P11<>"",Q11<>""),ort($P11,$Q11,$AY$3:$AZ$3),"") ->  | AH11: =IF(AND($AA11<6,P11<>"",Q11<>""),ort($P11,$Q11,$AY$4:$AZ$5),"") ->  | AI11: =IF(AND($AA11<6,P11<>"",Q11<>""),ort($P11,$Q11,$AY$6:$AZ$7),"") ->  | AJ11: =IF(AND($AA11=6,P11<>"",Q11<>""),ort($P11,$Q11,$AY$8:$AZ$8),"") ->  | AK11: =IF(AND($AA11=7,P11<>"",Q11<>""),ort($P11,$Q11,$AY$9:$AZ$9),"") ->  | AL11: =IF(AND($AA11<6,R11<>"",S11<>""),ort($R11,$S11,$AY$3:$AZ$3),"") ->  | AM11: =IF(AND($AA11<6,R11<>"",S11<>""),ort($R11,$S11,$AY$4:$AZ$5),"") ->  | AN11: =IF(AND($AA11<6,R11<>"",S11<>""),ort($R11,$S11,$AY$6:$AZ$7),"") ->  | AO11: =IF(AND($AA11=6,R11<>"",S11<>""),ort($R11,$S11,$AY$8:$AZ$8),"") ->  | AP11: =IF(AND($AA11=7,R11<>"",S11<>""),ort($R11,$S11,$AY$9:$AZ$9),"") ->  | AQ11: =IF(AND($AA11<6,T11<>"",U11<>""),ort($T11,$U11,$AY$3:$AZ$3),"") ->  | AR11: =IF(AND($AA11<6,T11<>"",U11<>""),ort($T11,$U11,$AY$4:$AZ$5),"") ->  | AS11: =IF(AND($AA11<6,T11<>"",U11<>""),ort($T11,$U11,$AY$6:$AZ$7),"") ->  | AT11: =IF(AND($AA11=6,T11<>"",U11<>""),ort($T11,$U11,$AY$8:$AZ$8),"") ->  | AU11: =IF(AND($AA11=7,T11<>"",U11<>""),ort($T11,$U11,$AY$9:$AZ$9),"") ->  | BE11: 00:00:00
L12: =DATE($B$3,$B$4,10) -> 2018-03-10 | M12: =DATE($B$3,$B$4,10) -> 2018-03-10 | O12: 00:00:00 | AA12: =IF(ISERROR(IF(NOT(ISERROR(MATCH($M12,Blad2!$A$2:$A$11,0))),7,WEEKDAY($M12,2))),"",IF(NOT(ISERROR(MATCH($M12,Blad2!$A$2:$A$11,0))),7,WEEKDAY($M12,2))) -> 6 | AB12: =IF(AND($AA12<6,N12<>"",O12<>""),ort($N12,$O12,$AY$3:$AZ$3),"") ->  | AC12: =IF(AND($AA12<6,N12<>"",O12<>""),ort($N12,$O12,$AY$4:$AZ$5),"") ->  | AD12: =IF(AND($AA12<6,N12<>"",O12<>""),ort($N12,$O12,$AY$6:$AZ$7),"") ->  | AE12: =IF(AND($AA12=6,N12<>"",O12<>""),ort($N12,$O12,$AY$8:$AZ$8),"") ->  | AF12: =IF(AND($AA12=7,N12<>"",O12<>""),ort($N12,$O12,$AY$9:$AZ$9),"") ->  | AG12: =IF(AND($AA12<6,P12<>"",Q12<>""),ort($P12,$Q12,$AY$3:$AZ$3),"") ->  | AH12: =IF(AND($AA12<6,P12<>"",Q12<>""),ort($P12,$Q12,$AY$4:$AZ$5),"") ->  | AI12: =IF(AND($AA12<6,P12<>"",Q12<>""),ort($P12,$Q12,$AY$6:$AZ$7),"") ->  | AJ12: =IF(AND($AA12=6,P12<>"",Q12<>""),ort($P12,$Q12,$AY$8:$AZ$8),"") ->  | AK12: =IF(AND($AA12=7,P12<>"",Q12<>""),ort($P12,$Q12,$AY$9:$AZ$9),"") ->  | AL12: =IF(AND($AA12<6,R12<>"",S12<>""),ort($R12,$S12,$AY$3:$AZ$3),"") ->  | AM12: =IF(AND($AA12<6,R12<>"",S12<>""),ort($R12,$S12,$AY$4:$AZ$5),"") ->  | AN12: =IF(AND($AA12<6,R12<>"",S12<>""),ort($R12,$S12,$AY$6:$AZ$7),"") ->  | AO12: =IF(AND($AA12=6,R12<>"",S12<>""),ort($R12,$S12,$AY$8:$AZ$8),"") ->  | AP12: =IF(AND($AA12=7,R12<>"",S12<>""),ort($R12,$S12,$AY$9:$AZ$9),"") ->  | AQ12: =IF(AND($AA12<6,T12<>"",U12<>""),ort($T12,$U12,$AY$3:$AZ$3),"") ->  | AR12: =IF(AND($AA12<6,T12<>"",U12<>""),ort($T12,$U12,$AY$4:$AZ$5),"") ->  | AS12: =IF(AND($AA12<6,T12<>"",U12<>""),ort($T12,$U12,$AY$6:$AZ$7),"") ->  | AT12: =IF(AND($AA12=6,T12<>"",U12<>""),ort($T12,$U12,$AY$8:$AZ$8),"") ->  | AU12: =IF(AND($AA12=7,T12<>"",U12<>""),ort($T12,$U12,$AY$9:$AZ$9),"") ->  | BE12: 00:00:00
B13: Werkdagen deze maand | L13: =DATE($B$3,$B$4,11) -> 2018-03-11 | M13: =DATE($B$3,$B$4,11) -> 2018-03-11 | O13: 00:00:00 | AA13: =IF(ISERROR(IF(NOT(ISERROR(MATCH($M13,Blad2!$A$2:$A$11,0))),7,WEEKDAY($M13,2))),"",IF(NOT(ISERROR(MATCH($M13,Blad2!$A$2:$A$11,0))),7,WEEKDAY($M13,2))) -> 7 | AB13: =IF(AND($AA13<6,N13<>"",O13<>""),ort($N13,$O13,$AY$3:$AZ$3),"") ->  | AC13: =IF(AND($AA13<6,N13<>"",O13<>""),ort($N13,$O13,$AY$4:$AZ$5),"") ->  | AD13: =IF(AND($AA13<6,N13<>"",O13<>""),ort($N13,$O13,$AY$6:$AZ$7),"") ->  | AE13: =IF(AND($AA13=6,N13<>"",O13<>""),ort($N13,$O13,$AY$8:$AZ$8),"") ->  | AF13: =IF(AND($AA13=7,N13<>"",O13<>""),ort($N13,$O13,$AY$9:$AZ$9),"") ->  | AG13: =IF(AND($AA13<6,P13<>"",Q13<>""),ort($P13,$Q13,$AY$3:$AZ$3),"") ->  | AH13: =IF(AND($AA13<6,P13<>"",Q13<>""),ort($P13,$Q13,$AY$4:$AZ$5),"") ->  | AI13: =IF(AND($AA13<6,P13<>"",Q13<>""),ort($P13,$Q13,$AY$6:$AZ$7),"") ->  | AJ13: =IF(AND($AA13=6,P13<>"",Q13<>""),ort($P13,$Q13,$AY$8:$AZ$8),"") ->  | AK13: =IF(AND($AA13=7,P13<>"",Q13<>""),ort($P13,$Q13,$AY$9:$AZ$9),"") ->  | AL13: =IF(AND($AA13<6,R13<>"",S13<>""),ort($R13,$S13,$AY$3:$AZ$3),"") ->  | AM13: =IF(AND($AA13<6,R13<>"",S13<>""),ort($R13,$S13,$AY$4:$AZ$5),"") ->  | AN13: =IF(AND($AA13<6,R13<>"",S13<>""),ort($R13,$S13,$AY$6:$AZ$7),"") ->  | AO13: =IF(AND($AA13=6,R13<>"",S13<>""),ort($R13,$S13,$AY$8:$AZ$8),"") ->  | AP13: =IF(AND($AA13=7,R13<>"",S13<>""),ort($R13,$S13,$AY$9:$AZ$9),"") ->  | AQ13: =IF(AND($AA13<6,T13<>"",U13<>""),ort($T13,$U13,$AY$3:$AZ$3),"") ->  | AR13: =IF(AND($AA13<6,T13<>"",U13<>""),ort($T13,$U13,$AY$4:$AZ$5),"") ->  | AS13: =IF(AND($AA13<6,T13<>"",U13<>""),ort($T13,$U13,$AY$6:$AZ$7),"") ->  | AT13: =IF(AND($AA13=6,T13<>"",U13<>""),ort($T13,$U13,$AY$8:$AZ$8),"") ->  | AU13: =IF(AND($AA13=7,T13<>"",U13<>""),ort($T13,$U13,$AY$9:$AZ$9),"") ->  | BE13: 00:00:00
B14: =NETWORKDAYS($L$3,EOMONTH($L$3,0),Blad2!A2:A97)&" dagen" -> 22 dagen | K14: 11 | L14: =DATE($B$3,$B$4,12) -> 2018-03-12 | M14: =DATE($B$3,$B$4,12) -> 2018-03-12 | O14: 00:00:00 | AA14: =IF(ISERROR(IF(NOT(ISERROR(MATCH($M14,Blad2!$A$2:$A$11,0))),7,WEEKDAY($M14,2))),"",IF(NOT(ISERROR(MATCH($M14,Blad2!$A$2:$A$11,0))),7,WEEKDAY($M14,2))) -> 1 | AB14: =IF(AND($AA14<6,N14<>"",O14<>""),ort($N14,$O14,$AY$3:$AZ$3),"") ->  | AC14: =IF(AND($AA14<6,N14<>"",O14<>""),ort($N14,$O14,$AY$4:$AZ$5),"") ->  | AD14: =IF(AND($AA14<6,N14<>"",O14<>""),ort($N14,$O14,$AY$6:$AZ$7),"") ->  | AE14: =IF(AND($AA14=6,N14<>"",O14<>""),ort($N14,$O14,$AY$8:$AZ$8),"") ->  | AF14: =IF(AND($AA14=7,N14<>"",O14<>""),ort($N14,$O14,$AY$9:$AZ$9),"") ->  | AG14: =IF(AND($AA14<6,P14<>"",Q14<>""),ort($P14,$Q14,$AY$3:$AZ$3),"") ->  | AH14: =IF(AND($AA14<6,P14<>"",Q14<>""),ort($P14,$Q14,$AY$4:$AZ$5),"") ->  | AI14: =IF(AND($AA14<6,P14<>"",Q14<>""),ort($P14,$Q14,$AY$6:$AZ$7),"") ->  | AJ14: =IF(AND($AA14=6,P14<>"",Q14<>""),ort($P14,$Q14,$AY$8:$AZ$8),"") ->  | AK14: =IF(AND($AA14=7,P14<>"",Q14<>""),ort($P14,$Q14,$AY$9:$AZ$9),"") ->  | AL14: =IF(AND($AA14<6,R14<>"",S14<>""),ort($R14,$S14,$AY$3:$AZ$3),"") ->  | AM14: =IF(AND($AA14<6,R14<>"",S14<>""),ort($R14,$S14,$AY$4:$AZ$5),"") ->  | AN14: =IF(AND($AA14<6,R14<>"",S14<>""),ort($R14,$S14,$AY$6:$AZ$7),"") ->  | AO14: =IF(AND($AA14=6,R14<>"",S14<>""),ort($R14,$S14,$AY$8:$AZ$8),"") ->  | AP14: =IF(AND($AA14=7,R14<>"",S14<>""),ort($R14,$S14,$AY$9:$AZ$9),"") ->  | AQ14: =IF(AND($AA14<6,T14<>"",U14<>""),ort($T14,$U14,$AY$3:$AZ$3),"") ->  | AR14: =IF(AND($AA14<6,T14<>"",U14<>""),ort($T14,$U14,$AY$4:$AZ$5),"") ->  | AS14: =IF(AND($AA14<6,T14<>"",U14<>""),ort($T14,$U14,$AY$6:$AZ$7),"") ->  | AT14: =IF(AND($AA14=6,T14<>"",U14<>""),ort($T14,$U14,$AY$8:$AZ$8),"") ->  | AU14: =IF(AND($AA14=7,T14<>"",U14<>""),ort($T14,$U14,$AY$9:$AZ$9),"") ->  | BE14: 00:00:00
L15: =DATE($B$3,$B$4,13) -> 2018-03-13 | M15: =DATE($B$3,$B$4,13) -> 2018-03-13 | O15: 00:00:00 | AA15: =IF(ISERROR(IF(NOT(ISERROR(MATCH($M15,Blad2!$A$2:$A$11,0))),7,WEEKDAY($M15,2))),"",IF(NOT(ISERROR(MATCH($M15,Blad2!$A$2:$A$11,0))),7,WEEKDAY($M15,2))) -> 2 | AB15: =IF(AND($AA15<6,N15<>"",O15<>""),ort($N15,$O15,$AY$3:$AZ$3),"") ->  | AC15: =IF(AND($AA15<6,N15<>"",O15<>""),ort($N15,$O15,$AY$4:$AZ$5),"") ->  | AD15: =IF(AND($AA15<6,N15<>"",O15<>""),ort($N15,$O15,$AY$6:$AZ$7),"") ->  | AE15: =IF(AND($AA15=6,N15<>"",O15<>""),ort($N15,$O15,$AY$8:$AZ$8),"") ->  | AF15: =IF(AND($AA15=7,N15<>"",O15<>""),ort($N15,$O15,$AY$9:$AZ$9),"") ->  | AG15: =IF(AND($AA15<6,P15<>"",Q15<>""),ort($P15,$Q15,$AY$3:$AZ$3),"") ->  | AH15: =IF(AND($AA15<6,P15<>"",Q15<>""),ort($P15,$Q15,$AY$4:$AZ$5),"") ->  | AI15: =IF(AND($AA15<6,P15<>"",Q15<>""),ort($P15,$Q15,$AY$6:$AZ$7),"") ->  | AJ15: =IF(AND($AA15=6,P15<>"",Q15<>""),ort($P15,$Q15,$AY$8:$AZ$8),"") ->  | AK15: =IF(AND($AA15=7,P15<>"",Q15<>""),ort($P15,$Q15,$AY$9:$AZ$9),"") ->  | AL15: =IF(AND($AA15<6,R15<>"",S15<>""),ort($R15,$S15,$AY$3:$AZ$3),"") ->  | AM15: =IF(AND($AA15<6,R15<>"",S15<>""),ort($R15,$S15,$AY$4:$AZ$5),"") ->  | AN15: =IF(AND($AA15<6,R15<>"",S15<>""),ort($R15,$S15,$AY$6:$AZ$7),"") ->  | AO15: =IF(AND($AA15=6,R15<>"",S15<>""),ort($R15,$S15,$AY$8:$AZ$8),"") ->  | AP15: =IF(AND($AA15=7,R15<>"",S15<>""),ort($R15,$S15,$AY$9:$AZ$9),"") ->  | AQ15: =IF(AND($AA15<6,T15<>"",U15<>""),ort($T15,$U15,$AY$3:$AZ$3),"") ->  | AR15: =IF(AND($AA15<6,T15<>"",U15<>""),ort($T15,$U15,$AY$4:$AZ$5),"") ->  | AS15: =IF(AND($AA15<6,T15<>"",U15<>""),ort($T15,$U15,$AY$6:$AZ$7),"") ->  | AT15: =IF(AND($AA15=6,T15<>"",U15<>""),ort($T15,$U15,$AY$8:$AZ$8),"") ->  | AU15: =IF(AND($AA15=7,T15<>"",U15<>""),ort($T15,$U15,$AY$9:$AZ$9),"") ->  | BE15: =SUM(BB15/26/24,BC15:BD15) -> 00:00:00
B16: Contract Uren | L16: =DATE($B$3,$B$4,14) -> 2018-03-14 | M16: =DATE($B$3,$B$4,14) -> 2018-03-14 | O16: 00:00:00 | AA16: =IF(ISERROR(IF(NOT(ISERROR(MATCH($M16,Blad2!$A$2:$A$11,0))),7,WEEKDAY($M16,2))),"",IF(NOT(ISERROR(MATCH($M16,Blad2!$A$2:$A$11,0))),7,WEEKDAY($M16,2))) -> 3 | AB16: =IF(AND($AA16<6,N16<>"",O16<>""),ort($N16,$O16,$AY$3:$AZ$3),"") ->  | AC16: =IF(AND($AA16<6,N16<>"",O16<>""),ort($N16,$O16,$AY$4:$AZ$5),"") ->  | AD16: =IF(AND($AA16<6,N16<>"",O16<>""),ort($N16,$O16,$AY$6:$AZ$7),"") ->  | AE16: =IF(AND($AA16=6,N16<>"",O16<>""),ort($N16,$O16,$AY$8:$AZ$8),"") ->  | AF16: =IF(AND($AA16=7,N16<>"",O16<>""),ort($N16,$O16,$AY$9:$AZ$9),"") ->  | AG16: =IF(AND($AA16<6,P16<>"",Q16<>""),ort($P16,$Q16,$AY$3:$AZ$3),"") ->  | AH16: =IF(AND($AA16<6,P16<>"",Q16<>""),ort($P16,$Q16,$AY$4:$AZ$5),"") ->  | AI16: =IF(AND($AA16<6,P16<>"",Q16<>""),ort($P16,$Q16,$AY$6:$AZ$7),"") ->  | AJ16: =IF(AND($AA16=6,P16<>"",Q16<>""),ort($P16,$Q16,$AY$8:$AZ$8),"") ->  | AK16: =IF(AND($AA16=7,P16<>"",Q16<>""),ort($P16,$Q16,$AY$9:$AZ$9),"") ->  | AL16: =IF(AND($AA16<6,R16<>"",S16<>""),ort($R16,$S16,$AY$3:$AZ$3),"") ->  | AM16: =IF(AND($AA16<6,R16<>"",S16<>""),ort($R16,$S16,$AY$4:$AZ$5),"") ->  | AN16: =IF(AND($AA16<6,R16<>"",S16<>""),ort($R16,$S16,$AY$6:$AZ$7),"") ->  | AO16: =IF(AND($AA16=6,R16<>"",S16<>""),ort($R16,$S16,$AY$8:$AZ$8),"") ->  | AP16: =IF(AND($AA16=7,R16<>"",S16<>""),ort($R16,$S16,$AY$9:$AZ$9),"") ->  | AQ16: =IF(AND($AA16<6,T16<>"",U16<>""),ort($T16,$U16,$AY$3:$AZ$3),"") ->  | AR16: =IF(AND($AA16<6,T16<>"",U16<>""),ort($T16,$U16,$AY$4:$AZ$5),"") ->  | AS16: =IF(AND($AA16<6,T16<>"",U16<>""),ort($T16,$U16,$AY$6:$AZ$7),"") ->  | AT16: =IF(AND($AA16=6,T16<>"",U16<>""),ort($T16,$U16,$AY$8:$AZ$8),"") ->  | AU16: =IF(AND($AA16=7,T16<>"",U16<>""),ort($T16,$U16,$AY$9:$AZ$9),"") ->  | BE16: =SUM(BB16/26/24,BC16:BD16) -> 00:00:00
B17: 3.75 | L17: =DATE($B$3,$B$4,15) -> 2018-03-15 | M17: =DATE($B$3,$B$4,15) -> 2018-03-15 | O17: 00:00:00 | AA17: =IF(ISERROR(IF(NOT(ISERROR(MATCH($M17,Blad2!$A$2:$A$11,0))),7,WEEKDAY($M17,2))),"",IF(NOT(ISERROR(MATCH($M17,Blad2!$A$2:$A$11,0))),7,WEEKDAY($M17,2))) -> 4 | AB17: =IF(AND($AA17<6,N17<>"",O17<>""),ort($N17,$O17,$AY$3:$AZ$3),"") ->  | AC17: =IF(AND($AA17<6,N17<>"",O17<>""),ort($N17,$O17,$AY$4:$AZ$5),"") ->  | AD17: =IF(AND($AA17<6,N17<>"",O17<>""),ort($N17,$O17,$AY$6:$AZ$7),"") ->  | AE17: =IF(AND($AA17=6,N17<>"",O17<>""),ort($N17,$O17,$AY$8:$AZ$8),"") ->  | AF17: =IF(AND($AA17=7,N17<>"",O17<>""),ort($N17,$O17,$AY$9:$AZ$9),"") ->  | AG17: =IF(AND($AA17<6,P17<>"",Q17<>""),ort($P17,$Q17,$AY$3:$AZ$3),"") ->  | AH17: =IF(AND($AA17<6,P17<>"",Q17<>""),ort($P17,$Q17,$AY$4:$AZ$5),"") ->  | AI17: =IF(AND($AA17<6,P17<>"",Q17<>""),ort($P17,$Q17,$AY$6:$AZ$7),"") ->  | AJ17: =IF(AND($AA17=6,P17<>"",Q17<>""),ort($P17,$Q17,$AY$8:$AZ$8),"") ->  | AK17: =IF(AND($AA17=7,P17<>"",Q17<>""),ort($P17,$Q17,$AY$9:$AZ$9),"") ->  | AL17: =IF(AND($AA17<6,R17<>"",S17<>""),ort($R17,$S17,$AY$3:$AZ$3),"") ->  | AM17: =IF(AND($AA17<6,R17<>"",S17<>""),ort($R17,$S17,$AY$4:$AZ$5),"") ->  | AN17: =IF(AND($AA17<6,R17<>"",S17<>""),ort($R17,$S17,$AY$6:$AZ$7),"") ->  | AO17: =IF(AND($AA17=6,R17<>"",S17<>""),ort($R17,$S17,$AY$8:$AZ$8),"") ->  | AP17: =IF(AND($AA17=7,R17<>"",S17<>""),ort($R17,$S17,$AY$9:$AZ$9),"") ->  | AQ17: =IF(AND($AA17<6,T17<>"",U17<>""),ort($T17,$U17,$AY$3:$AZ$3),"") ->  | AR17: =IF(AND($AA17<6,T17<>"",U17<>""),ort($T17,$U17,$AY$4:$AZ$5),"") ->  | AS17: =IF(AND($AA17<6,T17<>"",U17<>""),ort($T17,$U17,$AY$6:$AZ$7),"") ->  | AT17: =IF(AND($AA17=6,T17<>"",U17<>""),ort($T17,$U17,$AY$8:$AZ$8),"") ->  | AU17: =IF(AND($AA17=7,T17<>"",U17<>""),ort($T17,$U17,$AY$9:$AZ$9),"") ->  | BE17: 00:00:00
L18: =DATE($B$3,$B$4,16) -> 2018-03-16 | M18: =DATE($B$3,$B$4,16) -> 2018-03-16 | O18: 00:00:00 | AA18: =IF(ISERROR(IF(NOT(ISERROR(MATCH($M18,Blad2!$A$2:$A$11,0))),7,WEEKDAY($M18,2))),"",IF(NOT(ISERROR(MATCH($M18,Blad2!$A$2:$A$11,0))),7,WEEKDAY($M18,2))) -> 5 | AB18: =IF(AND($AA18<6,N18<>"",O18<>""),ort($N18,$O18,$AY$3:$AZ$3),"") ->  | AC18: =IF(AND($AA18<6,N18<>"",O18<>""),ort($N18,$O18,$AY$4:$AZ$5),"") ->  | AD18: =IF(AND($AA18<6,N18<>"",O18<>""),ort($N18,$O18,$AY$6:$AZ$7),"") ->  | AE18: =IF(AND($AA18=6,N18<>"",O18<>""),ort($N18,$O18,$AY$8:$AZ$8),"") ->  | AF18: =IF(AND($AA18=7,N18<>"",O18<>""),ort($N18,$O18,$AY$9:$AZ$9),"") ->  | AG18: =IF(AND($AA18<6,P18<>"",Q18<>""),ort($P18,$Q18,$AY$3:$AZ$3),"") ->  | AH18: =IF(AND($AA18<6,P18<>"",Q18<>""),ort($P18,$Q18,$AY$4:$AZ$5),"") ->  | AI18: =IF(AND($AA18<6,P18<>"",Q18<>""),ort($P18,$Q18,$AY$6:$AZ$7),"") ->  | AJ18: =IF(AND($AA18=6,P18<>"",Q18<>""),ort($P18,$Q18,$AY$8:$AZ$8),"") ->  | AK18: =IF(AND($AA18=7,P18<>"",Q18<>""),ort($P18,$Q18,$AY$9:$AZ$9),"") ->  | AL18: =IF(AND($AA18<6,R18<>"",S18<>""),ort($R18,$S18,$AY$3:$AZ$3),"") ->  | AM18: =IF(AND($AA18<6,R18<>"",S18<>""),ort($R18,$S18,$AY$4:$AZ$5),"") ->  | AN18: =IF(AND($AA18<6,R18<>"",S18<>""),ort($R18,$S18,$AY$6:$AZ$7),"") ->  | AO18: =IF(AND($AA18=6,R18<>"",S18<>""),ort($R18,$S18,$AY$8:$AZ$8),"") ->  | AP18: =IF(AND($AA18=7,R18<>"",S18<>""),ort($R18,$S18,$AY$9:$AZ$9),"") ->  | AQ18: =IF(AND($AA18<6,T18<>"",U18<>""),ort($T18,$U18,$AY$3:$AZ$3),"") ->  | AR18: =IF(AND($AA18<6,T18<>"",U18<>""),ort($T18,$U18,$AY$4:$AZ$5),"") ->  | AS18: =IF(AND($AA18<6,T18<>"",U18<>""),ort($T18,$U18,$AY$6:$AZ$7),"") ->  | AT18: =IF(AND($AA18=6,T18<>"",U18<>""),ort($T18,$U18,$AY$8:$AZ$8),"") ->  | AU18: =IF(AND($AA18=7,T18<>"",U18<>""),ort($T18,$U18,$AY$9:$AZ$9),"") ->  | BE18: 00:00:00
B19: Gewerkte uren deze maand | L19: =DATE($B$3,$B$4,17) -> 2018-03-17 | M19: =DATE($B$3,$B$4,17) -> 2018-03-17 | O19: 00:00:00 | AA19: =IF(ISERROR(IF(NOT(ISERROR(MATCH($M19,Blad2!$A$2:$A$11,0))),7,WEEKDAY($M19,2))),"",IF(NOT(ISERROR(MATCH($M19,Blad2!$A$2:$A$11,0))),7,WEEKDAY($M19,2))) -> 6 | AB19: =IF(AND($AA19<6,N19<>"",O19<>""),ort($N19,$O19,$AY$3:$AZ$3),"") ->  | AC19: =IF(AND($AA19<6,N19<>"",O19<>""),ort($N19,$O19,$AY$4:$AZ$5),"") ->  | AD19: =IF(AND($AA19<6,N19<>"",O19<>""),ort($N19,$O19,$AY$6:$AZ$7),"") ->  | AE19: =IF(AND($AA19=6,N19<>"",O19<>""),ort($N19,$O19,$AY$8:$AZ$8),"") ->  | AF19: =IF(AND($AA19=7,N19<>"",O19<>""),ort($N19,$O19,$AY$9:$AZ$9),"") ->  | AG19: =IF(AND($AA19<6,P19<>"",Q19<>""),ort($P19,$Q19,$AY$3:$AZ$3),"") ->  | AH19: =IF(AND($AA19<6,P19<>"",Q19<>""),ort($P19,$Q19,$AY$4:$AZ$5),"") ->  | AI19: =IF(AND($AA19<6,P19<>"",Q19<>""),ort($P19,$Q19,$AY$6:$AZ$7),"") ->  | AJ19: =IF(AND($AA19=6,P19<>"",Q19<>""),ort($P19,$Q19,$AY$8:$AZ$8),"") ->  | AK19: =IF(AND($AA19=7,P19<>"",Q19<>""),ort($P19,$Q19,$AY$9:$AZ$9),"") ->  | AL19: =IF(AND($AA19<6,R19<>"",S19<>""),ort($R19,$S19,$AY$3:$AZ$3),"") ->  | AM19: =IF(AND($AA19<6,R19<>"",S19<>""),ort($R19,$S19,$AY$4:$AZ$5),"") ->  | AN19: =IF(AND($AA19<6,R19<>"",S19<>""),ort($R19,$S19,$AY$6:$AZ$7),"") ->  | AO19: =IF(AND($AA19=6,R19<>"",S19<>""),ort($R19,$S19,$AY$8:$AZ$8),"") ->  | AP19: =IF(AND($AA19=7,R19<>"",S19<>""),ort($R19,$S19,$AY$9:$AZ$9),"") ->  | AQ19: =IF(AND($AA19<6,T19<>"",U19<>""),ort($T19,$U19,$AY$3:$AZ$3),"") ->  | AR19: =IF(AND($AA19<6,T19<>"",U19<>""),ort($T19,$U19,$AY$4:$AZ$5),"") ->  | AS19: =IF(AND($AA19<6,T19<>"",U19<>""),ort($T19,$U19,$AY$6:$AZ$7),"") ->  | AT19: =IF(AND($AA19=6,T19<>"",U19<>""),ort($T19,$U19,$AY$8:$AZ$8),"") ->  | AU19: =IF(AND($AA19=7,T19<>"",U19<>""),ort($T19,$U19,$AY$9:$AZ$9),"") ->  | BE19: 00:00:00
B20: =SUM($V$3:$V$33) -> 0 | L20: =DATE($B$3,$B$4,18) -> 2018-03-18 | M20: =DATE($B$3,$B$4,18) -> 2018-03-18 | O20: 00:00:00 | AA20: =IF(ISERROR(IF(NOT(ISERROR(MATCH($M20,Blad2!$A$2:$A$11,0))),7,WEEKDAY($M20,2))),"",IF(NOT(ISERROR(MATCH($M20,Blad2!$A$2:$A$11,0))),7,WEEKDAY($M20,2))) -> 7 | AB20: =IF(AND($AA20<6,N20<>"",O20<>""),ort($N20,$O20,$AY$3:$AZ$3),"") ->  | AC20: =IF(AND($AA20<6,N20<>"",O20<>""),ort($N20,$O20,$AY$4:$AZ$5),"") ->  | AD20: =IF(AND($AA20<6,N20<>"",O20<>""),ort($N20,$O20,$AY$6:$AZ$7),"") ->  | AE20: =IF(AND($AA20=6,N20<>"",O20<>""),ort($N20,$O20,$AY$8:$AZ$8),"") ->  | AF20: =IF(AND($AA20=7,N20<>"",O20<>""),ort($N20,$O20,$AY$9:$AZ$9),"") ->  | AG20: =IF(AND($AA20<6,P20<>"",Q20<>""),ort($P20,$Q20,$AY$3:$AZ$3),"") ->  | AH20: =IF(AND($AA20<6,P20<>"",Q20<>""),ort($P20,$Q20,$AY$4:$AZ$5),"") ->  | AI20: =IF(AND($AA20<6,P20<>"",Q20<>""),ort($P20,$Q20,$AY$6:$AZ$7),"") ->  | AJ20: =IF(AND($AA20=6,P20<>"",Q20<>""),ort($P20,$Q20,$AY$8:$AZ$8),"") ->  | AK20: =IF(AND($AA20=7,P20<>"",Q20<>""),ort($P20,$Q20,$AY$9:$AZ$9),"") ->  | AL20: =IF(AND($AA20<6,R20<>"",S20<>""),ort($R20,$S20,$AY$3:$AZ$3),"") ->  | AM20: =IF(AND($AA20<6,R20<>"",S20<>""),ort($R20,$S20,$AY$4:$AZ$5),"") ->  | AN20: =IF(AND($AA20<6,R20<>"",S20<>""),ort($R20,$S20,$AY$6:$AZ$7),"") ->  | AO20: =IF(AND($AA20=6,R20<>"",S20<>""),ort($R20,$S20,$AY$8:$AZ$8),"") ->  | AP20: =IF(AND($AA20=7,R20<>"",S20<>""),ort($R20,$S20,$AY$9:$AZ$9),"") ->  | AQ20: =IF(AND($AA20<6,T20<>"",U20<>""),ort($T20,$U20,$AY$3:$AZ$3),"") ->  | AR20: =IF(AND($AA20<6,T20<>"",U20<>""),ort($T20,$U20,$AY$4:$AZ$5),"") ->  | AS20: =IF(AND($AA20<6,T20<>"",U20<>""),ort($T20,$U20,$AY$6:$AZ$7),"") ->  | AT20: =IF(AND($AA20=6,T20<>"",U20<>""),ort($T20,$U20,$AY$8:$AZ$8),"") ->  | AU20: =IF(AND($AA20=7,T20<>"",U20<>""),ort($T20,$U20,$AY$9:$AZ$9),"") ->  | AW20: =COUNTA(Blad2!B12:B100)-COUNTIF(Blad2!B12:B100,"Verlof") -> 0 | AX20: Aantal opgenomen ATV-dagen | BE20: 00:00:00
K21: 12 | L21: =DATE($B$3,$B$4,19) -> 2018-03-19 | M21: =DATE($B$3,$B$4,19) -> 2018-03-19 | O21: 00:00:00 | AA21: =IF(ISERROR(IF(NOT(ISERROR(MATCH($M21,Blad2!$A$2:$A$11,0))),7,WEEKDAY($M21,2))),"",IF(NOT(ISERROR(MATCH($M21,Blad2!$A$2:$A$11,0))),7,WEEKDAY($M21,2))) -> 1 | AB21: =IF(AND($AA21<6,N21<>"",O21<>""),ort($N21,$O21,$AY$3:$AZ$3),"") ->  | AC21: =IF(AND($AA21<6,N21<>"",O21<>""),ort($N21,$O21,$AY$4:$AZ$5),"") ->  | AD21: =IF(AND($AA21<6,N21<>"",O21<>""),ort($N21,$O21,$AY$6:$AZ$7),"") ->  | AE21: =IF(AND($AA21=6,N21<>"",O21<>""),ort($N21,$O21,$AY$8:$AZ$8),"") ->  | AF21: =IF(AND($AA21=7,N21<>"",O21<>""),ort($N21,$O21,$AY$9:$AZ$9),"") ->  | AG21: =IF(AND($AA21<6,P21<>"",Q21<>""),ort($P21,$Q21,$AY$3:$AZ$3),"") ->  | AH21: =IF(AND($AA21<6,P21<>"",Q21<>""),ort($P21,$Q21,$AY$4:$AZ$5),"") ->  | AI21: =IF(AND($AA21<6,P21<>"",Q21<>""),ort($P21,$Q21,$AY$6:$AZ$7),"") ->  | AJ21: =IF(AND($AA21=6,P21<>"",Q21<>""),ort($P21,$Q21,$AY$8:$AZ$8),"") ->  | AK21: =IF(AND($AA21=7,P21<>"",Q21<>""),ort($P21,$Q21,$AY$9:$AZ$9),"") ->  | AL21: =IF(AND($AA21<6,R21<>"",S21<>""),ort($R21,$S21,$AY$3:$AZ$3),"") ->  | AM21: =IF(AND($AA21<6,R21<>"",S21<>""),ort($R21,$S21,$AY$4:$AZ$5),"") ->  | AN21: =IF(AND($AA21<6,R21<>"",S21<>""),ort($R21,$S21,$AY$6:$AZ$7),"") ->  | AO21: =IF(AND($AA21=6,R21<>"",S21<>""),ort($R21,$S21,$AY$8:$AZ$8),"") ->  | AP21: =IF(AND($AA21=7,R21<>"",S21<>""),ort($R21,$S21,$AY$9:$AZ$9),"") ->  | AQ21: =IF(AND($AA21<6,T21<>"",U21<>""),ort($T21,$U21,$AY$3:$AZ$3),"") ->  | AR21: =IF(AND($AA21<6,T21<>"",U21<>""),ort($T21,$U21,$AY$4:$AZ$5),"") ->  | AS21: =IF(AND($AA21<6,T21<>"",U21<>""),ort($T21,$U21,$AY$6:$AZ$7),"") ->  | AT21: =IF(AND($AA21=6,T21<>"",U21<>""),ort($T21,$U21,$AY$8:$AZ$8),"") ->  | AU21: =IF(AND($AA21=7,T21<>"",U21<>""),ort($T21,$U21,$AY$9:$AZ$9),"") ->  | AW21: 0 | AX21: Aantal opgenomen verlofdagen | BE21: 00:00:00
L22: =DATE($B$3,$B$4,20) -> 2018-03-20 | M22: =DATE($B$3,$B$4,20) -> 2018-03-20 | O22: 00:00:00 | AA22: =IF(ISERROR(IF(NOT(ISERROR(MATCH($M22,Blad2!$A$2:$A$11,0))),7,WEEKDAY($M22,2))),"",IF(NOT(ISERROR(MATCH($M22,Blad2!$A$2:$A$11,0))),7,WEEKDAY($M22,2))) -> 2 | AB22: =IF(AND($AA22<6,N22<>"",O22<>""),ort($N22,$O22,$AY$3:$AZ$3),"") ->  | AC22: =IF(AND($AA22<6,N22<>"",O22<>""),ort($N22,$O22,$AY$4:$AZ$5),"") ->  | AD22: =IF(AND($AA22<6,N22<>"",O22<>""),ort($N22,$O22,$AY$6:$AZ$7),"") ->  | AE22: =IF(AND($AA22=6,N22<>"",O22<>""),ort($N22,$O22,$AY$8:$AZ$8),"") ->  | AF22: =IF(AND($AA22=7,N22<>"",O22<>""),ort($N22,$O22,$AY$9:$AZ$9),"") ->  | AG22: =IF(AND($AA22<6,P22<>"",Q22<>""),ort($P22,$Q22,$AY$3:$AZ$3),"") ->  | AH22: =IF(AND($AA22<6,P22<>"",Q22<>""),ort($P22,$Q22,$AY$4:$AZ$5),"") ->  | AI22: =IF(AND($AA22<6,P22<>"",Q22<>""),ort($P22,$Q22,$AY$6:$AZ$7),"") ->  | AJ22: =IF(AND($AA22=6,P22<>"",Q22<>""),ort($P22,$Q22,$AY$8:$AZ$8),"") ->  | AK22: =IF(AND($AA22=7,P22<>"",Q22<>""),ort($P22,$Q22,$AY$9:$AZ$9),"") ->  | AL22: =IF(AND($AA22<6,R22<>"",S22<>""),ort($R22,$S22,$AY$3:$AZ$3),"") ->  | AM22: =IF(AND($AA22<6,R22<>"",S22<>""),ort($R22,$S22,$AY$4:$AZ$5),"") ->  | AN22: =IF(AND($AA22<6,R22<>"",S22<>""),ort($R22,$S22,$AY$6:$AZ$7),"") ->  | AO22: =IF(AND($AA22=6,R22<>"",S22<>""),ort($R22,$S22,$AY$8:$AZ$8),"") ->  | AP22: =IF(AND($AA22=7,R22<>"",S22<>""),ort($R22,$S22,$AY$9:$AZ$9),"") ->  | AQ22: =IF(AND($AA22<6,T22<>"",U22<>""),ort($T22,$U22,$AY$3:$AZ$3),"") ->  | AR22: =IF(AND($AA22<6,T22<>"",U22<>""),ort($T22,$U22,$AY$4:$AZ$5),"") ->  | AS22: =IF(AND($AA22<6,T22<>"",U22<>""),ort($T22,$U22,$AY$6:$AZ$7),"") ->  | AT22: =IF(AND($AA22=6,T22<>"",U22<>""),ort($T22,$U22,$AY$8:$AZ$8),"") ->  | AU22: =IF(AND($AA22=7,T22<>"",U22<>""),ort($T22,$U22,$AY$9:$AZ$9),"") ->  | BE22: 00:00:00
L23: =DATE($B$3,$B$4,21) -> 2018-03-21 | M23: =DATE($B$3,$B$4,21) -> 2018-03-21 | O23: 00:00:00 | AA23: =IF(ISERROR(IF(NOT(ISERROR(MATCH($M23,Blad2!$A$2:$A$11,0))),7,WEEKDAY($M23,2))),"",IF(NOT(ISERROR(MATCH($M23,Blad2!$A$2:$A$11,0))),7,WEEKDAY($M23,2))) -> 3 | AB23: =IF(AND($AA23<6,N23<>"",O23<>""),ort($N23,$O23,$AY$3:$AZ$3),"") ->  | AC23: =IF(AND($AA23<6,N23<>"",O23<>""),ort($N23,$O23,$AY$4:$AZ$5),"") ->  | AD23: =IF(AND($AA23<6,N23<>"",O23<>""),ort($N23,$O23,$AY$6:$AZ$7),"") ->  | AE23: =IF(AND($AA23=6,N23<>"",O23<>""),ort($N23,$O23,$AY$8:$AZ$8),"") ->  | AF23: =IF(AND($AA23=7,N23<>"",O23<>""),ort($N23,$O23,$AY$9:$AZ$9),"") ->  | AG23: =IF(AND($AA23<6,P23<>"",Q23<>""),ort($P23,$Q23,$AY$3:$AZ$3),"") ->  | AH23: =IF(AND($AA23<6,P23<>"",Q23<>""),ort($P23,$Q23,$AY$4:$AZ$5),"") ->  | AI23: =IF(AND($AA23<6,P23<>"",Q23<>""),ort($P23,$Q23,$AY$6:$AZ$7),"") ->  | AJ23: =IF(AND($AA23=6,P23<>"",Q23<>""),ort($P23,$Q23,$AY$8:$AZ$8),"") ->  | AK23: =IF(AND($AA23=7,P23<>"",Q23<>""),ort($P23,$Q23,$AY$9:$AZ$9),"") ->  | AL23: =IF(AND($AA23<6,R23<>"",S23<>""),ort($R23,$S23,$AY$3:$AZ$3),"") ->  | AM23: =IF(AND($AA23<6,R23<>"",S23<>""),ort($R23,$S23,$AY$4:$AZ$5),"") ->  | AN23: =IF(AND($AA23<6,R23<>"",S23<>""),ort($R23,$S23,$AY$6:$AZ$7),"") ->  | AO23: =IF(AND($AA23=6,R23<>"",S23<>""),ort($R23,$S23,$AY$8:$AZ$8),"") ->  | AP23: =IF(AND($AA23=7,R23<>"",S23<>""),ort($R23,$S23,$AY$9:$AZ$9),"") ->  | AQ23: =IF(AND($AA23<6,T23<>"",U23<>""),ort($T23,$U23,$AY$3:$AZ$3),"") ->  | AR23: =IF(AND($AA23<6,T23<>"",U23<>""),ort($T23,$U23,$AY$4:$AZ$5),"") ->  | AS23: =IF(AND($AA23<6,T23<>"",U23<>""),ort($T23,$U23,$AY$6:$AZ$7),"") ->  | AT23: =IF(AND($AA23=6,T23<>"",U23<>""),ort($T23,$U23,$AY$8:$AZ$8),"") ->  | AU23: =IF(AND($AA23=7,T23<>"",U23<>""),ort($T23,$U23,$AY$9:$AZ$9),"") ->  | BE23: 00:00:00
L24: =DATE($B$3,$B$4,22) -> 2018-03-22 | M24: =DATE($B$3,$B$4,22) -> 2018-03-22 | O24: 00:00:00 | AA24: =IF(ISERROR(IF(NOT(ISERROR(MATCH($M24,Blad2!$A$2:$A$11,0))),7,WEEKDAY($M24,2))),"",IF(NOT(ISERROR(MATCH($M24,Blad2!$A$2:$A$11,0))),7,WEEKDAY($M24,2))) -> 4 | AB24: =IF(AND($AA24<6,N24<>"",O24<>""),ort($N24,$O24,$AY$3:$AZ$3),"") ->  | AC24: =IF(AND($AA24<6,N24<>"",O24<>""),ort($N24,$O24,$AY$4:$AZ$5),"") ->  | AD24: =IF(AND($AA24<6,N24<>"",O24<>""),ort($N24,$O24,$AY$6:$AZ$7),"") ->  | AE24: =IF(AND($AA24=6,N24<>"",O24<>""),ort($N24,$O24,$AY$8:$AZ$8),"") ->  | AF24: =IF(AND($AA24=7,N24<>"",O24<>""),ort($N24,$O24,$AY$9:$AZ$9),"") ->  | AG24: =IF(AND($AA24<6,P24<>"",Q24<>""),ort($P24,$Q24,$AY$3:$AZ$3),"") ->  | AH24: =IF(AND($AA24<6,P24<>"",Q24<>""),ort($P24,$Q24,$AY$4:$AZ$5),"") ->  | AI24: =IF(AND($AA24<6,P24<>"",Q24<>""),ort($P24,$Q24,$AY$6:$AZ$7),"") ->  | AJ24: =IF(AND($AA24=6,P24<>"",Q24<>""),ort($P24,$Q24,$AY$8:$AZ$8),"") ->  | AK24: =IF(AND($AA24=7,P24<>"",Q24<>""),ort($P24,$Q24,$AY$9:$AZ$9),"") ->  | AL24: =IF(AND($AA24<6,R24<>"",S24<>""),ort($R24,$S24,$AY$3:$AZ$3),"") ->  | AM24: =IF(AND($AA24<6,R24<>"",S24<>""),ort($R24,$S24,$AY$4:$AZ$5),"") ->  | AN24: =IF(AND($AA24<6,R24<>"",S24<>""),ort($R24,$S24,$AY$6:$AZ$7),"") ->  | AO24: =IF(AND($AA24=6,R24<>"",S24<>""),ort($R24,$S24,$AY$8:$AZ$8),"") ->  | AP24: =IF(AND($AA24=7,R24<>"",S24<>""),ort($R24,$S24,$AY$9:$AZ$9),"") ->  | AQ24: =IF(AND($AA24<6,T24<>"",U24<>""),ort($T24,$U24,$AY$3:$AZ$3),"") ->  | AR24: =IF(AND($AA24<6,T24<>"",U24<>""),ort($T24,$U24,$AY$4:$AZ$5),"") ->  | AS24: =IF(AND($AA24<6,T24<>"",U24<>""),ort($T24,$U24,$AY$6:$AZ$7),"") ->  | AT24: =IF(AND($AA24=6,T24<>"",U24<>""),ort($T24,$U24,$AY$8:$AZ$8),"") ->  | AU24: =IF(AND($AA24=7,T24<>"",U24<>""),ort($T24,$U24,$AY$9:$AZ$9),"") ->  | BE24: 00:00:00
L25: =DATE($B$3,$B$4,23) -> 2018-03-23 | M25: =DATE($B$3,$B$4,23) -> 2018-03-23 | O25: 00:00:00 | AA25: =IF(ISERROR(IF(NOT(ISERROR(MATCH($M25,Blad2!$A$2:$A$11,0))),7,WEEKDAY($M25,2))),"",IF(NOT(ISERROR(MATCH($M25,Blad2!$A$2:$A$11,0))),7,WEEKDAY($M25,2))) -> 5 | AB25: =IF(AND($AA25<6,N25<>"",O25<>""),ort($N25,$O25,$AY$3:$AZ$3),"") ->  | AC25: =IF(AND($AA25<6,N25<>"",O25<>""),ort($N25,$O25,$AY$4:$AZ$5),"") ->  | AD25: =IF(AND($AA25<6,N25<>"",O25<>""),ort($N25,$O25,$AY$6:$AZ$7),"") ->  | AE25: =IF(AND($AA25=6,N25<>"",O25<>""),ort($N25,$O25,$AY$8:$AZ$8),"") ->  | AF25: =IF(AND($AA25=7,N25<>"",O25<>""),ort($N25,$O25,$AY$9:$AZ$9),"") ->  | AG25: =IF(AND($AA25<6,P25<>"",Q25<>""),ort($P25,$Q25,$AY$3:$AZ$3),"") ->  | AH25: =IF(AND($AA25<6,P25<>"",Q25<>""),ort($P25,$Q25,$AY$4:$AZ$5),"") ->  | AI25: =IF(AND($AA25<6,P25<>"",Q25<>""),ort($P25,$Q25,$AY$6:$AZ$7),"") ->  | AJ25: =IF(AND($AA25=6,P25<>"",Q25<>""),ort($P25,$Q25,$AY$8:$AZ$8),"") ->  | AK25: =IF(AND($AA25=7,P25<>"",Q25<>""),ort($P25,$Q25,$AY$9:$AZ$9),"") ->  | AL25: =IF(AND($AA25<6,R25<>"",S25<>""),ort($R25,$S25,$AY$3:$AZ$3),"") ->  | AM25: =IF(AND($AA25<6,R25<>"",S25<>""),ort($R25,$S25,$AY$4:$AZ$5),"") ->  | AN25: =IF(AND($AA25<6,R25<>"",S25<>""),ort($R25,$S25,$AY$6:$AZ$7),"") ->  | AO25: =IF(AND($AA25=6,R25<>"",S25<>""),ort($R25,$S25,$AY$8:$AZ$8),"") ->  | AP25: =IF(AND($AA25=7,R25<>"",S25<>""),ort($R25,$S25,$AY$9:$AZ$9),"") ->  | AQ25: =IF(AND($AA25<6,T25<>"",U25<>""),ort($T25,$U25,$AY$3:$AZ$3),"") ->  | AR25: =IF(AND($AA25<6,T25<>"",U25<>""),ort($T25,$U25,$AY$4:$AZ$5),"") ->  | AS25: =IF(AND($AA25<6,T25<>"",U25<>""),ort($T25,$U25,$AY$6:$AZ$7),"") ->  | AT25: =IF(AND($AA25=6,T25<>"",U25<>""),ort($T25,$U25,$AY$8:$AZ$8),"") ->  | AU25: =IF(AND($AA25=7,T25<>"",U25<>""),ort($T25,$U25,$AY$9:$AZ$9),"") ->  | BE25: 00:00:00
L26: =DATE($B$3,$B$4,24) -> 2018-03-24 | M26: =DATE($B$3,$B$4,24) -> 2018-03-24 | O26: 00:00:00 | AA26: =IF(ISERROR(IF(NOT(ISERROR(MATCH($M26,Blad2!$A$2:$A$11,0))),7,WEEKDAY($M26,2))),"",IF(NOT(ISERROR(MATCH($M26,Blad2!$A$2:$A$11,0))),7,WEEKDAY($M26,2))) -> 6 | AB26: =IF(AND($AA26<6,N26<>"",O26<>""),ort($N26,$O26,$AY$3:$AZ$3),"") ->  | AC26: =IF(AND($AA26<6,N26<>"",O26<>""),ort($N26,$O26,$AY$4:$AZ$5),"") ->  | AD26: =IF(AND($AA26<6,N26<>"",O26<>""),ort($N26,$O26,$AY$6:$AZ$7),"") ->  | AE26: =IF(AND($AA26=6,N26<>"",O26<>""),ort($N26,$O26,$AY$8:$AZ$8),"") ->  | AF26: =IF(AND($AA26=7,N26<>"",O26<>""),ort($N26,$O26,$AY$9:$AZ$9),"") ->  | AG26: =IF(AND($AA26<6,P26<>"",Q26<>""),ort($P26,$Q26,$AY$3:$AZ$3),"") ->  | AH26: =IF(AND($AA26<6,P26<>"",Q26<>""),ort($P26,$Q26,$AY$4:$AZ$5),"") ->  | AI26: =IF(AND($AA26<6,P26<>"",Q26<>""),ort($P26,$Q26,$AY$6:$AZ$7),"") ->  | AJ26: =IF(AND($AA26=6,P26<>"",Q26<>""),ort($P26,$Q26,$AY$8:$AZ$8),"") ->  | AK26: =IF(AND($AA26=7,P26<>"",Q26<>""),ort($P26,$Q26,$AY$9:$AZ$9),"") ->  | AL26: =IF(AND($AA26<6,R26<>"",S26<>""),ort($R26,$S26,$AY$3:$AZ$3),"") ->  | AM26: =IF(AND($AA26<6,R26<>"",S26<>""),ort($R26,$S26,$AY$4:$AZ$5),"") ->  | AN26: =IF(AND($AA26<6,R26<>"",S26<>""),ort($R26,$S26,$AY$6:$AZ$7),"") ->  | AO26: =IF(AND($AA26=6,R26<>"",S26<>""),ort($R26,$S26,$AY$8:$AZ$8),"") ->  | AP26: =IF(AND($AA26=7,R26<>"",S26<>""),ort($R26,$S26,$AY$9:$AZ$9),"") ->  | AQ26: =IF(AND($AA26<6,T26<>"",U26<>""),ort($T26,$U26,$AY$3:$AZ$3),"") ->  | AR26: =IF(AND($AA26<6,T26<>"",U26<>""),ort($T26,$U26,$AY$4:$AZ$5),"") ->  | AS26: =IF(AND($AA26<6,T26<>"",U26<>""),ort($T26,$U26,$AY$6:$AZ$7),"") ->  | AT26: =IF(AND($AA26=6,T26<>"",U26<>""),ort($T26,$U26,$AY$8:$AZ$8),"") ->  | AU26: =IF(AND($AA26=7,T26<>"",U26<>""),ort($T26,$U26,$AY$9:$AZ$9),"") ->  | BE26: 00:00:00
L27: =DATE($B$3,$B$4,25) -> 2018-03-25 | M27: =DATE($B$3,$B$4,25) -> 2018-03-25 | O27: 00:00:00 | AA27: =IF(ISERROR(IF(NOT(ISERROR(MATCH($M27,Blad2!$A$2:$A$11,0))),7,WEEKDAY($M27,2))),"",IF(NOT(ISERROR(MATCH($M27,Blad2!$A$2:$A$11,0))),7,WEEKDAY($M27,2))) -> 7 | AB27: =IF(AND($AA27<6,N27<>"",O27<>""),ort($N27,$O27,$AY$3:$AZ$3),"") ->  | AC27: =IF(AND($AA27<6,N27<>"",O27<>""),ort($N27,$O27,$AY$4:$AZ$5),"") ->  | AD27: =IF(AND($AA27<6,N27<>"",O27<>""),ort($N27,$O27,$AY$6:$AZ$7),"") ->  | AE27: =IF(AND($AA27=6,N27<>"",O27<>""),ort($N27,$O27,$AY$8:$AZ$8),"") ->  | AF27: =IF(AND($AA27=7,N27<>"",O27<>""),ort($N27,$O27,$AY$9:$AZ$9),"") ->  | AG27: =IF(AND($AA27<6,P27<>"",Q27<>""),ort($P27,$Q27,$AY$3:$AZ$3),"") ->  | AH27: =IF(AND($AA27<6,P27<>"",Q27<>""),ort($P27,$Q27,$AY$4:$AZ$5),"") ->  | AI27: =IF(AND($AA27<6,P27<>"",Q27<>""),ort($P27,$Q27,$AY$6:$AZ$7),"") ->  | AJ27: =IF(AND($AA27=6,P27<>"",Q27<>""),ort($P27,$Q27,$AY$8:$AZ$8),"") ->  | AK27: =IF(AND($AA27=7,P27<>"",Q27<>""),ort($P27,$Q27,$AY$9:$AZ$9),"") ->  | AL27: =IF(AND($AA27<6,R27<>"",S27<>""),ort($R27,$S27,$AY$3:$AZ$3),"") ->  | AM27: =IF(AND($AA27<6,R27<>"",S27<>""),ort($R27,$S27,$AY$4:$AZ$5),"") ->  | AN27: =IF(AND($AA27<6,R27<>"",S27<>""),ort($R27,$S27,$AY$6:$AZ$7),"") ->  | AO27: =IF(AND($AA27=6,R27<>"",S27<>""),ort($R27,$S27,$AY$8:$AZ$8),"") ->  | AP27: =IF(AND($AA27=7,R27<>"",S27<>""),ort($R27,$S27,$AY$9:$AZ$9),"") ->  | AQ27: =IF(AND($AA27<6,T27<>"",U27<>""),ort($T27,$U27,$AY$3:$AZ$3),"") ->  | AR27: =IF(AND($AA27<6,T27<>"",U27<>""),ort($T27,$U27,$AY$4:$AZ$5),"") ->  | AS27: =IF(AND($AA27<6,T27<>"",U27<>""),ort($T27,$U27,$AY$6:$AZ$7),"") ->  | AT27: =IF(AND($AA27=6,T27<>"",U27<>""),ort($T27,$U27,$AY$8:$AZ$8),"") ->  | AU27: =IF(AND($AA27=7,T27<>"",U27<>""),ort($T27,$U27,$AY$9:$AZ$9),"") ->  | BE27: 00:00:00
K28: 13 | L28: =DATE($B$3,$B$4,26) -> 2018-03-26 | M28: =DATE($B$3,$B$4,26) -> 2018-03-26 | O28: 00:00:00 | AA28: =IF(ISERROR(IF(NOT(ISERROR(MATCH($M28,Blad2!$A$2:$A$11,0))),7,WEEKDAY($M28,2))),"",IF(NOT(ISERROR(MATCH($M28,Blad2!$A$2:$A$11,0))),7,WEEKDAY($M28,2))) -> 1 | AB28: =IF(AND($AA28<6,N28<>"",O28<>""),ort($N28,$O28,$AY$3:$AZ$3),"") ->  | AC28: =IF(AND($AA28<6,N28<>"",O28<>""),ort($N28,$O28,$AY$4:$AZ$5),"") ->  | AD28: =IF(AND($AA28<6,N28<>"",O28<>""),ort($N28,$O28,$AY$6:$AZ$7),"") ->  | AE28: =IF(AND($AA28=6,N28<>"",O28<>""),ort($N28,$O28,$AY$8:$AZ$8),"") ->  | AF28: =IF(AND($AA28=7,N28<>"",O28<>""),ort($N28,$O28,$AY$9:$AZ$9),"") ->  | AG28: =IF(AND($AA28<6,P28<>"",Q28<>""),ort($P28,$Q28,$AY$3:$AZ$3),"") ->  | AH28: =IF(AND($AA28<6,P28<>"",Q28<>""),ort($P28,$Q28,$AY$4:$AZ$5),"") ->  | AI28: =IF(AND($AA28<6,P28<>"",Q28<>""),ort($P28,$Q28,$AY$6:$AZ$7),"") ->  | AJ28: =IF(AND($AA28=6,P28<>"",Q28<>""),ort($P28,$Q28,$AY$8:$AZ$8),"") ->  | AK28: =IF(AND($AA28=7,P28<>"",Q28<>""),ort($P28,$Q28,$AY$9:$AZ$9),"") ->  | AL28: =IF(AND($AA28<6,R28<>"",S28<>""),ort($R28,$S28,$AY$3:$AZ$3),"") ->  | AM28: =IF(AND($AA28<6,R28<>"",S28<>""),ort($R28,$S28,$AY$4:$AZ$5),"") ->  | AN28: =IF(AND($AA28<6,R28<>"",S28<>""),ort($R28,$S28,$AY$6:$AZ$7),"") ->  | AO28: =IF(AND($AA28=6,R28<>"",S28<>""),ort($R28,$S28,$AY$8:$AZ$8),"") ->  | AP28: =IF(AND($AA28=7,R28<>"",S28<>""),ort($R28,$S28,$AY$9:$AZ$9),"") ->  | AQ28: =IF(AND($AA28<6,T28<>"",U28<>""),ort($T28,$U28,$AY$3:$AZ$3),"") ->  | AR28: =IF(AND($AA28<6,T28<>"",U28<>""),ort($T28,$U28,$AY$4:$AZ$5),"") ->  | AS28: =IF(AND($AA28<6,T28<>"",U28<>""),ort($T28,$U28,$AY$6:$AZ$7),"") ->  | AT28: =IF(AND($AA28=6,T28<>"",U28<>""),ort($T28,$U28,$AY$8:$AZ$8),"") ->  | AU28: =IF(AND($AA28=7,T28<>"",U28<>""),ort($T28,$U28,$AY$9:$AZ$9),"") ->  | BE28: 00:00:00
L29: =DATE($B$3,$B$4,27) -> 2018-03-27 | M29: =DATE($B$3,$B$4,27) -> 2018-03-27 | O29: 00:00:00 | AA29: =IF(ISERROR(IF(NOT(ISERROR(MATCH($M29,Blad2!$A$2:$A$11,0))),7,WEEKDAY($M29,2))),"",IF(NOT(ISERROR(MATCH($M29,Blad2!$A$2:$A$11,0))),7,WEEKDAY($M29,2))) -> 2 | AB29: =IF(AND($AA29<6,N29<>"",O29<>""),ort($N29,$O29,$AY$3:$AZ$3),"") ->  | AC29: =IF(AND($AA29<6,N29<>"",O29<>""),ort($N29,$O29,$AY$4:$AZ$5),"") ->  | AD29: =IF(AND($AA29<6,N29<>"",O29<>""),ort($N29,$O29,$AY$6:$AZ$7),"") ->  | AE29: =IF(AND($AA29=6,N29<>"",O29<>""),ort($N29,$O29,$AY$8:$AZ$8),"") ->  | AF29: =IF(AND($AA29=7,N29<>"",O29<>""),ort($N29,$O29,$AY$9:$AZ$9),"") ->  | AG29: =IF(AND($AA29<6,P29<>"",Q29<>""),ort($P29,$Q29,$AY$3:$AZ$3),"") ->  | AH29: =IF(AND($AA29<6,P29<>"",Q29<>""),ort($P29,$Q29,$AY$4:$AZ$5),"") ->  | AI29: =IF(AND($AA29<6,P29<>"",Q29<>""),ort($P29,$Q29,$AY$6:$AZ$7),"") ->  | AJ29: =IF(AND($AA29=6,P29<>"",Q29<>""),ort($P29,$Q29,$AY$8:$AZ$8),"") ->  | AK29: =IF(AND($AA29=7,P29<>"",Q29<>""),ort($P29,$Q29,$AY$9:$AZ$9),"") ->  | AL29: =IF(AND($AA29<6,R29<>"",S29<>""),ort($R29,$S29,$AY$3:$AZ$3),"") ->  | AM29: =IF(AND($AA29<6,R29<>"",S29<>""),ort($R29,$S29,$AY$4:$AZ$5),"") ->  | AN29: =IF(AND($AA29<6,R29<>"",S29<>""),ort($R29,$S29,$AY$6:$AZ$7),"") ->  | AO29: =IF(AND($AA29=6,R29<>"",S29<>""),ort($R29,$S29,$AY$8:$AZ$8),"") ->  | AP29: =IF(AND($AA29=7,R29<>"",S29<>""),ort($R29,$S29,$AY$9:$AZ$9),"") ->  | AQ29: =IF(AND($AA29<6,T29<>"",U29<>""),ort($T29,$U29,$AY$3:$AZ$3),"") ->  | AR29: =IF(AND($AA29<6,T29<>"",U29<>""),ort($T29,$U29,$AY$4:$AZ$5),"") ->  | AS29: =IF(AND($AA29<6,T29<>"",U29<>""),ort($T29,$U29,$AY$6:$AZ$7),"") ->  | AT29: =IF(AND($AA29=6,T29<>"",U29<>""),ort($T29,$U29,$AY$8:$AZ$8),"") ->  | AU29: =IF(AND($AA29=7,T29<>"",U29<>""),ort($T29,$U29,$AY$9:$AZ$9),"") ->  | BE29: 00:00:00
L30: =DATE($B$3,$B$4,28) -> 2018-03-28 | M30: =DATE($B$3,$B$4,28) -> 2018-03-28 | O30: 00:00:00 | AA30: =IF(ISERROR(IF(NOT(ISERROR(MATCH($M30,Blad2!$A$2:$A$11,0))),7,WEEKDAY($M30,2))),"",IF(NOT(ISERROR(MATCH($M30,Blad2!$A$2:$A$11,0))),7,WEEKDAY($M30,2))) -> 3 | AB30: =IF(AND($AA30<6,N30<>"",O30<>""),ort($N30,$O30,$AY$3:$AZ$3),"") ->  | AC30: =IF(AND($AA30<6,N30<>"",O30<>""),ort($N30,$O30,$AY$4:$AZ$5),"") ->  | AD30: =IF(AND($AA30<6,N30<>"",O30<>""),ort($N30,$O30,$AY$6:$AZ$7),"") ->  | AE30: =IF(AND($AA30=6,N30<>"",O30<>""),ort($N30,$O30,$AY$8:$AZ$8),"") ->  | AF30: =IF(AND($AA30=7,N30<>"",O30<>""),ort($N30,$O30,$AY$9:$AZ$9),"") ->  | AG30: =IF(AND($AA30<6,P30<>"",Q30<>""),ort($P30,$Q30,$AY$3:$AZ$3),"") ->  | AH30: =IF(AND($AA30<6,P30<>"",Q30<>""),ort($P30,$Q30,$AY$4:$AZ$5),"") ->  | AI30: =IF(AND($AA30<6,P30<>"",Q30<>""),ort($P30,$Q30,$AY$6:$AZ$7),"") ->  | AJ30: =IF(AND($AA30=6,P30<>"",Q30<>""),ort($P30,$Q30,$AY$8:$AZ$8),"") ->  | AK30: =IF(AND($AA30=7,P30<>"",Q30<>""),ort($P30,$Q30,$AY$9:$AZ$9),"") ->  | AL30: =IF(AND($AA30<6,R30<>"",S30<>""),ort($R30,$S30,$AY$3:$AZ$3),"") ->  | AM30: =IF(AND($AA30<6,R30<>"",S30<>""),ort($R30,$S30,$AY$4:$AZ$5),"") ->  | AN30: =IF(AND($AA30<6,R30<>"",S30<>""),ort($R30,$S30,$AY$6:$AZ$7),"") ->  | AO30: =IF(AND($AA30=6,R30<>"",S30<>""),ort($R30,$S30,$AY$8:$AZ$8),"") ->  | AP30: =IF(AND($AA30=7,R30<>"",S30<>""),ort($R30,$S30,$AY$9:$AZ$9),"") ->  | AQ30: =IF(AND($AA30<6,T30<>"",U30<>""),ort($T30,$U30,$AY$3:$AZ$3),"") ->  | AR30: =IF(AND($AA30<6,T30<>"",U30<>""),ort($T30,$U30,$AY$4:$AZ$5),"") ->  | AS30: =IF(AND($AA30<6,T30<>"",U30<>""),ort($T30,$U30,$AY$6:$AZ$7),"") ->  | AT30: =IF(AND($AA30=6,T30<>"",U30<>""),ort($T30,$U30,$AY$8:$AZ$8),"") ->  | AU30: =IF(AND($AA30=7,T30<>"",U30<>""),ort($T30,$U30,$AY$9:$AZ$9),"") ->  | BE30: 00:00:00
K31: =IF(L31="","",IF(WEEKDAY(L31)=2,1+INT((L31-DATE(YEAR(L31+4-WEEKDAY(L31+6)),1,5)+WEEKDAY(DATE(YEAR(L31+4-WEEKDAY(L31+6)),1,3)))/7),"")) ->  | L31: =IF(MONTH(L$30+1)<>MONTH(L$30),"",L$30+1) -> 2018-03-29 | M31: =IF(MONTH(M$30+1)<>MONTH(M$30),"",M$30+1) -> 2018-03-29 | O31: 00:00:00 | AA31: =IF(ISERROR(IF(NOT(ISERROR(MATCH($M31,Blad2!$A$2:$A$11,0))),7,WEEKDAY($M31,2))),"",IF(NOT(ISERROR(MATCH($M31,Blad2!$A$2:$A$11,0))),7,WEEKDAY($M31,2))) -> 4 | AB31: =IF(AND($AA31<6,N31<>"",O31<>""),ort($N31,$O31,$AY$3:$AZ$3),"") ->  | AC31: =IF(AND($AA31<6,N31<>"",O31<>""),ort($N31,$O31,$AY$4:$AZ$5),"") ->  | AD31: =IF(AND($AA31<6,N31<>"",O31<>""),ort($N31,$O31,$AY$6:$AZ$7),"") ->  | AE31: =IF(AND($AA31=6,N31<>"",O31<>""),ort($N31,$O31,$AY$8:$AZ$8),"") ->  | AF31: =IF(AND($AA31=7,N31<>"",O31<>""),ort($N31,$O31,$AY$9:$AZ$9),"") ->  | AG31: =IF(AND($AA31<6,P31<>"",Q31<>""),ort($P31,$Q31,$AY$3:$AZ$3),"") ->  | AH31: =IF(AND($AA31<6,P31<>"",Q31<>""),ort($P31,$Q31,$AY$4:$AZ$5),"") ->  | AI31: =IF(AND($AA31<6,P31<>"",Q31<>""),ort($P31,$Q31,$AY$6:$AZ$7),"") ->  | AJ31: =IF(AND($AA31=6,P31<>"",Q31<>""),ort($P31,$Q31,$AY$8:$AZ$8),"") ->  | AK31: =IF(AND($AA31=7,P31<>"",Q31<>""),ort($P31,$Q31,$AY$9:$AZ$9),"") ->  | AL31: =IF(AND($AA31<6,R31<>"",S31<>""),ort($R31,$S31,$AY$3:$AZ$3),"") ->  | AM31: =IF(AND($AA31<6,R31<>"",S31<>""),ort($R31,$S31,$AY$4:$AZ$5),"") ->  | AN31: =IF(AND($AA31<6,R31<>"",S31<>""),ort($R31,$S31,$AY$6:$AZ$7),"") ->  | AO31: =IF(AND($AA31=6,R31<>"",S31<>""),ort($R31,$S31,$AY$8:$AZ$8),"") ->  | AP31: =IF(AND($AA31=7,R31<>"",S31<>""),ort($R31,$S31,$AY$9:$AZ$9),"") ->  | AQ31: =IF(AND($AA31<6,T31<>"",U31<>""),ort($T31,$U31,$AY$3:$AZ$3),"") ->  | AR31: =IF(AND($AA31<6,T31<>"",U31<>""),ort($T31,$U31,$AY$4:$AZ$5),"") ->  | AS31: =IF(AND($AA31<6,T31<>"",U31<>""),ort($T31,$U31,$AY$6:$AZ$7),"") ->  | AT31: =IF(AND($AA31=6,T31<>"",U31<>""),ort($T31,$U31,$AY$8:$AZ$8),"") ->  | AU31: =IF(AND($AA31=7,T31<>"",U31<>""),ort($T31,$U31,$AY$9:$AZ$9),"") ->  | BE31: 00:00:00
B32: Totaal Uren incl 150 % | L32: =IF(L31="","",IF(MONTH($M31+1)<>MONTH($M31),"",$M31+1)) -> 2018-03-30 | M32: =IF(M31="","",IF(MONTH($M31+1)<>MONTH($M31),"",$M31+1)) -> 2018-03-30 | O32: 00:00:00 | AA32: =IF(ISERROR(IF(NOT(ISERROR(MATCH($M32,Blad2!$A$2:$A$11,0))),7,WEEKDAY($M32,2))),"",IF(NOT(ISERROR(MATCH($M32,Blad2!$A$2:$A$11,0))),7,WEEKDAY($M32,2))) -> 5 | AB32: =IF(AND($AA32<6,N32<>"",O32<>""),ort($N32,$O32,$AY$3:$AZ$3),"") ->  | AC32: =IF(AND($AA32<6,N32<>"",O32<>""),ort($N32,$O32,$AY$4:$AZ$5),"") ->  | AD32: =IF(AND($AA32<6,N32<>"",O32<>""),ort($N32,$O32,$AY$6:$AZ$7),"") ->  | AE32: =IF(AND($AA32=6,N32<>"",O32<>""),ort($N32,$O32,$AY$8:$AZ$8),"") ->  | AF32: =IF(AND($AA32=7,N32<>"",O32<>""),ort($N32,$O32,$AY$9:$AZ$9),"") ->  | AG32: =IF(AND($AA32<6,P32<>"",Q32<>""),ort($P32,$Q32,$AY$3:$AZ$3),"") ->  | AH32: =IF(AND($AA32<6,P32<>"",Q32<>""),ort($P32,$Q32,$AY$4:$AZ$5),"") ->  | AI32: =IF(AND($AA32<6,P32<>"",Q32<>""),ort($P32,$Q32,$AY$6:$AZ$7),"") ->  | AJ32: =IF(AND($AA32=6,P32<>"",Q32<>""),ort($P32,$Q32,$AY$8:$AZ$8),"") ->  | AK32: =IF(AND($AA32=7,P32<>"",Q32<>""),ort($P32,$Q32,$AY$9:$AZ$9),"") ->  | AL32: =IF(AND($AA32<6,R32<>"",S32<>""),ort($R32,$S32,$AY$3:$AZ$3),"") ->  | AM32: =IF(AND($AA32<6,R32<>"",S32<>""),ort($R32,$S32,$AY$4:$AZ$5),"") ->  | AN32: =IF(AND($AA32<6,R32<>"",S32<>""),ort($R32,$S32,$AY$6:$AZ$7),"") ->  | AO32: =IF(AND($AA32=6,R32<>"",S32<>""),ort($R32,$S32,$AY$8:$AZ$8),"") ->  | AP32: =IF(AND($AA32=7,R32<>"",S32<>""),ort($R32,$S32,$AY$9:$AZ$9),"") ->  | AQ32: =IF(AND($AA32<6,T32<>"",U32<>""),ort($T32,$U32,$AY$3:$AZ$3),"") ->  | AR32: =IF(AND($AA32<6,T32<>"",U32<>""),ort($T32,$U32,$AY$4:$AZ$5),"") ->  | AS32: =IF(AND($AA32<6,T32<>"",U32<>""),ort($T32,$U32,$AY$6:$AZ$7),"") ->  | AT32: =IF(AND($AA32=6,T32<>"",U32<>""),ort($T32,$U32,$AY$8:$AZ$8),"") ->  | AU32: =IF(AND($AA32=7,T32<>"",U32<>""),ort($T32,$U32,$AY$9:$AZ$9),"") ->  | BE32: 00:00:00
B33: =SUM(U36,W37) -> 0 | K33: =IF(L33="","",IF(WEEKDAY(L33)=2,1+INT((L33-DATE(YEAR(L33+4-WEEKDAY(L33+6)),1,5)+WEEKDAY(DATE(YEAR(L33+4-WEEKDAY(L33+6)),1,3)))/7),"")) ->  | L33: =IF(L32="","",IF(MONTH($M32+1)<>MONTH($M32),"",$M32+1)) -> 2018-03-31 | M33: =IF(M32="","",IF(MONTH($M32+1)<>MONTH($M32),"",$M32+1)) -> 2018-03-31 | O33: 00:00:00 | AA33: =IF(ISERROR(IF(NOT(ISERROR(MATCH($M33,Blad2!$A$2:$A$11,0))),7,WEEKDAY($M33,2))),"",IF(NOT(ISERROR(MATCH($M33,Blad2!$A$2:$A$11,0))),7,WEEKDAY($M33,2))) -> 6 | AB33: =IF(AND($AA33<6,N33<>"",O33<>""),ort($N33,$O33,$AY$3:$AZ$3),"") ->  | AC33: =IF(AND($AA33<6,N33<>"",O33<>""),ort($N33,$O33,$AY$4:$AZ$5),"") ->  | AD33: =IF(AND($AA33<6,N33<>"",O33<>""),ort($N33,$O33,$AY$6:$AZ$7),"") ->  | AE33: =IF(AND($AA33=6,N33<>"",O33<>""),ort($N33,$O33,$AY$8:$AZ$8),"") ->  | AF33: =IF(AND($AA33=7,N33<>"",O33<>""),ort($N33,$O33,$AY$9:$AZ$9),"") ->  | AG33: =IF(AND($AA33<6,P33<>"",Q33<>""),ort($P33,$Q33,$AY$3:$AZ$3),"") ->  | AH33: =IF(AND($AA33<6,P33<>"",Q33<>""),ort($P33,$Q33,$AY$4:$AZ$5),"") ->  | AI33: =IF(AND($AA33<6,P33<>"",Q33<>""),ort($P33,$Q33,$AY$6:$AZ$7),"") ->  | AJ33: =IF(AND($AA33=6,P33<>"",Q33<>""),ort($P33,$Q33,$AY$8:$AZ$8),"") ->  | AK33: =IF(AND($AA33=7,P33<>"",Q33<>""),ort($P33,$Q33,$AY$9:$AZ$9),"") ->  | AL33: =IF(AND($AA33<6,R33<>"",S33<>""),ort($R33,$S33,$AY$3:$AZ$3),"") ->  | AM33: =IF(AND($AA33<6,R33<>"",S33<>""),ort($R33,$S33,$AY$4:$AZ$5),"") ->  | AN33: =IF(AND($AA33<6,R33<>"",S33<>""),ort($R33,$S33,$AY$6:$AZ$7),"") ->  | AO33: =IF(AND($AA33=6,R33<>"",S33<>""),ort($R33,$S33,$AY$8:$AZ$8),"") ->  | AP33: =IF(AND($AA33=7,R33<>"",S33<>""),ort($R33,$S33,$AY$9:$AZ$9),"") ->  | AQ33: =IF(AND($AA33<6,T33<>"",U33<>""),ort($T33,$U33,$AY$3:$AZ$3),"") ->  | AR33: =IF(AND($AA33<6,T33<>"",U33<>""),ort($T33,$U33,$AY$4:$AZ$5),"") ->  | AS33: =IF(AND($AA33<6,T33<>"",U33<>""),ort($T33,$U33,$AY$6:$AZ$7),"") ->  | AT33: =IF(AND($AA33=6,T33<>"",U33<>""),ort($T33,$U33,$AY$8:$AZ$8),"") ->  | AU33: =IF(AND($AA33=7,T33<>"",U33<>""),ort($T33,$U33,$AY$9:$AZ$9),"") ->  | BE33: 00:00:00
W34: =SUM(W3:W33) -> 0 | X34: =SUM(X3:X33) -> 0 | Y34: 0 | Z34: 0
M35: Plus / Min Uren Incl 150 % Uren | S35: Contract Uren | U35: =SUM(B17) -> 3.75
M36: =SUM(B33-B17) -> -3.75 | P36: 5 | R36: Gewerkte Uren 100 % | U36: =SUM(W34:X34) -> 0
M37: Uitbetalen / Verlof | P37: =SUM(M36*P36)*24 -> -450 | R37: Gewerkte Uren 150 % | U37: =SUM(Y34) -> 0 | V37: X 150% | W37: =SUM(U37*150%) -> 0
S38: Plus Uren
S39: Min Uren

Sheet April
O1: Test
C2: =TODAY() -> 2018-03-21 | J2: Feestdag | K2: wknr | L2: dag | M2: datum | N2: tijd in | O2: tijd uit | P2: tijd in | Q2: tijd uit | R2: tijd in | S2: tijd uit | T2: tijd in | U2: tijd uit | V2: werk tijd | W2: 1 | X2: 1.25 | Y2: 1.5 | Z2: 2 | AA2: hulp | AB2: 1 | AC2: 1.25 | AD2: 1.5 | AE2: 1.5 | AF2: 2 | AG2: 1 | AH2: 1.25 | AI2: 1.5 | AJ2: 1.5 | AK2: 2 | AL2: 1 | AM2: 1.25 | AN2: 1.5 | AO2: 1.5 | AP2: 2 | AQ2: 1 | AR2: 1.25 | AS2: 1.5 | AT2: 1.5 | AU2: 2 | AW2: onregelmatigheidstoeslag | BB2: Stops | BC2: Laden | BD2: Lossen | BE2: Werktijd
B3: 2018 | D3: Kalender | J3: =IF(ISNA(VLOOKUP(M3,feestdagen,2,0)),"",VLOOKUP(M3,feestdagen,2,0)) ->  | K3: =WEEKNUM(L3,21) -> 13 | L3: =DATE($B$3,$B$4,1) -> 2018-04-01 | M3: =DATE($B$3,$B$4,1) -> 2018-04-01 | O3: =SUM(N3,BE3) -> 00:00:00 | V3: =IF(AND(W3="",X3="",Y3="",Z3=""),"",SUM(W3:Z3)) ->  | W3: =IF(AND(AB3="",AG3="",AL3="",AQ3=""),"",SUM(AB3,AG3,AL3,AQ3)) ->  | X3: =IF(AND(AC3="",AH3="",AM3="",AR3=""),"",SUM(AC3,AH3,AM3,AR3)) ->  | Y3: =IF(AND(AD3="",AE3="",AI3="",AJ3="",AN3="",AO3="",AS3="",AT3=""),"",SUM(AD3,AE3,AI3,AJ3,AN3,AO3,AS3,AT3)) ->  | Z3: =IF(AND(AF3="",AK3="",AP3="",AU3=""),"",SUM(AF3,AK3,AP3,AU3)) ->  | AA3: =IF(ISERROR(IF(NOT(ISERROR(MATCH($M3,Blad2!$A$2:$A$11,0))),7,WEEKDAY($M3,2))),"",IF(NOT(ISERROR(MATCH($M3,Blad2!$A$2:$A$11,0))),7,WEEKDAY($M3,2))) -> 7 | AB3: =IF(AND($AA3<6,N3<>"",O3<>""),ort($N3,$O3,$AY$3:$AZ$3),"") ->  | AC3: =IF(AND($AA3<6,N3<>"",O3<>""),ort($N3,$O3,$AY$4:$AZ$5),"") ->  | AD3: =IF(AND($AA3<6,N3<>"",O3<>""),ort($N3,$O3,$AY$6:$AZ$7),"") ->  | AE3: =IF(AND($AA3=6,N3<>"",O3<>""),ort($N3,$O3,$AY$8:$AZ$8),"") ->  | AF3: =IF(AND($AA3=7,N3<>"",O3<>""),ort($N3,$O3,$AY$9:$AZ$9),"") ->  | AG3: =IF(AND($AA3<6,P3<>"",Q3<>""),ort($P3,$Q3,$AY$3:$AZ$3),"") ->  | AH3: =IF(AND($AA3<6,P3<>"",Q3<>""),ort($P3,$Q3,$AY$4:$AZ$5),"") ->  | AI3: =IF(AND($AA3<6,P3<>"",Q3<>""),ort($P3,$Q3,$AY$6:$AZ$7),"") ->  | AJ3: =IF(AND($AA3=6,P3<>"",Q3<>""),ort($P3,$Q3,$AY$8:$AZ$8),"") ->  | AK3: =IF(AND($AA3=7,P3<>"",Q3<>""),ort($P3,$Q3,$AY$9:$AZ$9),"") ->  | AL3: =IF(AND($AA3<6,R3<>"",S3<>""),ort($R3,$S3,$AY$3:$AZ$3),"") ->  | AM3: =IF(AND($AA3<6,R3<>"",S3<>""),ort($R3,$S3,$AY$4:$AZ$5),"") ->  | AN3: =IF(AND($AA3<6,R3<>"",S3<>""),ort($R3,$S3,$AY$6:$AZ$7),"") ->  | AO3: =IF(AND($AA3=6,R3<>"",S3<>""),ort($R3,$S3,$AY$8:$AZ$8),"") ->  | AP3: =IF(AND($AA3=7,R3<>"",S3<>""),ort($R3,$S3,$AY$9:$AZ$9),"") ->  | AQ3: =IF(AND($AA3<6,T3<>"",U3<>""),ort($T3,$U3,$AY$3:$AZ$3),"") ->  | AR3: =IF(AND($AA3<6,T3<>"",U3<>""),ort($T3,$U3,$AY$4:$AZ$5),"") ->  | AS3: =IF(AND($AA3<6,T3<>"",U3<>""),ort($T3,$U3,$AY$6:$AZ$7),"") ->  | AT3: =IF(AND($AA3=6,T3<>"",U3<>""),ort($T3,$U3,$AY$8:$AZ$8),"") ->  | AU3: =IF(AND($AA3=7,T3<>"",U3<>""),ort($T3,$U3,$AY$9:$AZ$9),"") ->  | AW3: 1 | AX3: m-vr | AY3: 0.3958333333 | AZ3: 0.7291666667 | BE3: =SUM(BB3/20/24,BC3:BD3) -> 00:00:00
B4: 4 | C4: =DATE(B3,B4,1) -> 2018-04-01 | K4: =IF(WEEKDAY(L4)=2,1+INT((L4-DATE(YEAR(L4+4-WEEKDAY(L4+6)),1,5)+WEEKDAY(DATE(YEAR(L4+4-WEEKDAY(L4+6)),1,3)))/7),"") -> 14 | L4: =DATE($B$3,$B$4,2) -> 2018-04-02 | M4: =DATE($B$3,$B$4,2) -> 2018-04-02 | O4: =SUM(N4,BE4) -> 00:00:00 | V4: =IF(AND(W4="",X4="",Y4="",Z4=""),"",SUM(W4:Z4)) ->  | W4: =IF(AND(AB4="",AG4="",AL4="",AQ4=""),"",SUM(AB4,AG4,AL4,AQ4)) ->  | X4: =IF(AND(AC4="",AH4="",AM4="",AR4=""),"",SUM(AC4,AH4,AM4,AR4)) ->  | Y4: =IF(AND(AD4="",AE4="",AI4="",AJ4="",AN4="",AO4="",AS4="",AT4=""),"",SUM(AD4,AE4,AI4,AJ4,AN4,AO4,AS4,AT4)) ->  | Z4: =IF(AND(AF4="",AK4="",AP4="",AU4=""),"",SUM(AF4,AK4,AP4,AU4)) ->  | AA4: =IF(ISERROR(IF(NOT(ISERROR(MATCH($M4,Blad2!$A$2:$A$11,0))),7,WEEKDAY($M4,2))),"",IF(NOT(ISERROR(MATCH($M4,Blad2!$A$2:$A$11,0))),7,WEEKDAY($M4,2))) -> 1 | AB4: =IF(AND($AA4<6,N4<>"",O4<>""),ort($N4,$O4,$AY$3:$AZ$3),"") ->  | AC4: =IF(AND($AA4<6,N4<>"",O4<>""),ort($N4,$O4,$AY$4:$AZ$5),"") ->  | AD4: =IF(AND($AA4<6,N4<>"",O4<>""),ort($N4,$O4,$AY$6:$AZ$7),"") ->  | AE4: =IF(AND($AA4=6,N4<>"",O4<>""),ort($N4,$O4,$AY$8:$AZ$8),"") ->  | AF4: =IF(AND($AA4=7,N4<>"",O4<>""),ort($N4,$O4,$AY$9:$AZ$9),"") ->  | AG4: =IF(AND($AA4<6,P4<>"",Q4<>""),ort($P4,$Q4,$AY$3:$AZ$3),"") ->  | AH4: =IF(AND($AA4<6,P4<>"",Q4<>""),ort($P4,$Q4,$AY$4:$AZ$5),"") ->  | AI4: =IF(AND($AA4<6,P4<>"",Q4<>""),ort($P4,$Q4,$AY$6:$AZ$7),"") ->  | AJ4: =IF(AND($AA4=6,P4<>"",Q4<>""),ort($P4,$Q4,$AY$8:$AZ$8),"") ->  | AK4: =IF(AND($AA4=7,P4<>"",Q4<>""),ort($P4,$Q4,$AY$9:$AZ$9),"") ->  | AL4: =IF(AND($AA4<6,R4<>"",S4<>""),ort($R4,$S4,$AY$3:$AZ$3),"") ->  | AM4: =IF(AND($AA4<6,R4<>"",S4<>""),ort($R4,$S4,$AY$4:$AZ$5),"") ->  | AN4: =IF(AND($AA4<6,R4<>"",S4<>""),ort($R4,$S4,$AY$6:$AZ$7),"") ->  | AO4: =IF(AND($AA4=6,R4<>"",S4<>""),ort($R4,$S4,$AY$8:$AZ$8),"") ->  | AP4: =IF(AND($AA4=7,R4<>"",S4<>""),ort($R4,$S4,$AY$9:$AZ$9),"") ->  | AQ4: =IF(AND($AA4<6,T4<>"",U4<>""),ort($T4,$U4,$AY$3:$AZ$3),"") ->  | AR4: =IF(AND($AA4<6,T4<>"",U4<>""),ort($T4,$U4,$AY$4:$AZ$5),"") ->  | AS4: =IF(AND($AA4<6,T4<>"",U4<>""),ort($T4,$U4,$AY$6:$AZ$7),"") ->  | AT4: =IF(AND($AA4=6,T4<>"",U4<>""),ort($T4,$U4,$AY$8:$AZ$8),"") ->  | AU4: =IF(AND($AA4=7,T4<>"",U4<>""),ort($T4,$U4,$AY$9:$AZ$9),"") ->  | AW4: 1.25 | AX4: m-vr | AY4: 0.25 | AZ4: 0.3125 | BE4: =SUM(BB4/20/24,BC4:BD4) -> 00:00:00
C5: Ma | D5: Di | E5: Wo | F5: Do | G5: Vr | H5: Za | I5: Zo | L5: =DATE($B$3,$B$4,3) -> 2018-04-03 | M5: =DATE($B$3,$B$4,3) -> 2018-04-03 | O5: 00:00:00 | W5: =IF(AND(AB5="",AG5="",AL5="",AQ5=""),"",SUM(AB5,AG5,AL5,AQ5)) ->  | Y5: =IF(AND(AD5="",AE5="",AI5="",AJ5="",AN5="",AO5="",AS5="",AT5=""),"",SUM(AD5,AE5,AI5,AJ5,AN5,AO5,AS5,AT5)) ->  | Z5: =IF(AND(AF5="",AK5="",AP5="",AU5=""),"",SUM(AF5,AK5,AP5,AU5)) ->  | AA5: =IF(ISERROR(IF(NOT(ISERROR(MATCH($M5,Blad2!$A$2:$A$11,0))),7,WEEKDAY($M5,2))),"",IF(NOT(ISERROR(MATCH($M5,Blad2!$A$2:$A$11,0))),7,WEEKDAY($M5,2))) -> 2 | AB5: =IF(AND($AA5<6,N5<>"",O5<>""),ort($N5,$O5,$AY$3:$AZ$3),"") ->  | AC5: =IF(AND($AA5<6,N5<>"",O5<>""),ort($N5,$O5,$AY$4:$AZ$5),"") ->  | AD5: =IF(AND($AA5<6,N5<>"",O5<>""),ort($N5,$O5,$AY$6:$AZ$7),"") ->  | AE5: =IF(AND($AA5=6,N5<>"",O5<>""),ort($N5,$O5,$AY$8:$AZ$8),"") ->  | AF5: =IF(AND($AA5=7,N5<>"",O5<>""),ort($N5,$O5,$AY$9:$AZ$9),"") ->  | AG5: =IF(AND($AA5<6,P5<>"",Q5<>""),ort($P5,$Q5,$AY$3:$AZ$3),"") ->  | AH5: =IF(AND($AA5<6,P5<>"",Q5<>""),ort($P5,$Q5,$AY$4:$AZ$5),"") ->  | AI5: =IF(AND($AA5<6,P5<>"",Q5<>""),ort($P5,$Q5,$AY$6:$AZ$7),"") ->  | AJ5: =IF(AND($AA5=6,P5<>"",Q5<>""),ort($P5,$Q5,$AY$8:$AZ$8),"") ->  | AK5: =IF(AND($AA5=7,P5<>"",Q5<>""),ort($P5,$Q5,$AY$9:$AZ$9),"") ->  | AL5: =IF(AND($AA5<6,R5<>"",S5<>""),ort($R5,$S5,$AY$3:$AZ$3),"") ->  | AM5: =IF(AND($AA5<6,R5<>"",S5<>""),ort($R5,$S5,$AY$4:$AZ$5),"") ->  | AN5: =IF(AND($AA5<6,R5<>"",S5<>""),ort($R5,$S5,$AY$6:$AZ$7),"") ->  | AO5: =IF(AND($AA5=6,R5<>"",S5<>""),ort($R5,$S5,$AY$8:$AZ$8),"") ->  | AP5: =IF(AND($AA5=7,R5<>"",S5<>""),ort($R5,$S5,$AY$9:$AZ$9),"") ->  | AQ5: =IF(AND($AA5<6,T5<>"",U5<>""),ort($T5,$U5,$AY$3:$AZ$3),"") ->  | AR5: =IF(AND($AA5<6,T5<>"",U5<>""),ort($T5,$U5,$AY$4:$AZ$5),"") ->  | AS5: =IF(AND($AA5<6,T5<>"",U5<>""),ort($T5,$U5,$AY$6:$AZ$7),"") ->  | AT5: =IF(AND($AA5=6,T5<>"",U5<>""),ort($T5,$U5,$AY$8:$AZ$8),"") ->  | AU5: =IF(AND($AA5=7,T5<>"",U5<>""),ort($T5,$U5,$AY$9:$AZ$9),"") ->  | AW5: 1.25 | AX5: m-vr | AY5: 0.7291666667 | AZ5: 0.7708333333 | BE5: 00:00:00
C6: =IF(WEEKDAY(C4,2)=1,C4,"") ->  | D6: =IF(WEEKDAY(C4,2)=2,C4,IF(C6<>"",C6+1,"")) ->  | E6: =IF(WEEKDAY(C4,2)=3,C4,IF(D6<>"",D6+1,"")) ->  | F6: =IF(WEEKDAY(C4,2)=4,C4,IF(E6<>"",E6+1,"")) ->  | G6: =IF(WEEKDAY(C4,2)=5,C4,IF(F6<>"",F6+1,"")) ->  | H6: =IF(WEEKDAY(C4,2)=6,C4,IF(G6<>"",G6+1,"")) ->  | I6: =IF(WEEKDAY(C4,2)=7,C4,IF(H6<>"",H6+1,"")) -> 2018-04-01 | L6: =DATE($B$3,$B$4,4) -> 2018-04-04 | M6: =DATE($B$3,$B$4,4) -> 2018-04-04 | O6: 00:00:00 | AA6: =IF(ISERROR(IF(NOT(ISERROR(MATCH($M6,Blad2!$A$2:$A$11,0))),7,WEEKDAY($M6,2))),"",IF(NOT(ISERROR(MATCH($M6,Blad2!$A$2:$A$11,0))),7,WEEKDAY($M6,2))) -> 3 | AB6: =IF(AND($AA6<6,N6<>"",O6<>""),ort($N6,$O6,$AY$3:$AZ$3),"") ->  | AC6: =IF(AND($AA6<6,N6<>"",O6<>""),ort($N6,$O6,$AY$4:$AZ$5),"") ->  | AD6: =IF(AND($AA6<6,N6<>"",O6<>""),ort($N6,$O6,$AY$6:$AZ$7),"") ->  | AE6: =IF(AND($AA6=6,N6<>"",O6<>""),ort($N6,$O6,$AY$8:$AZ$8),"") ->  | AF6: =IF(AND($AA6=7,N6<>"",O6<>""),ort($N6,$O6,$AY$9:$AZ$9),"") ->  | AG6: =IF(AND($AA6<6,P6<>"",Q6<>""),ort($P6,$Q6,$AY$3:$AZ$3),"") ->  | AH6: =IF(AND($AA6<6,P6<>"",Q6<>""),ort($P6,$Q6,$AY$4:$AZ$5),"") ->  | AI6: =IF(AND($AA6<6,P6<>"",Q6<>""),ort($P6,$Q6,$AY$6:$AZ$7),"") ->  | AJ6: =IF(AND($AA6=6,P6<>"",Q6<>""),ort($P6,$Q6,$AY$8:$AZ$8),"") ->  | AK6: =IF(AND($AA6=7,P6<>"",Q6<>""),ort($P6,$Q6,$AY$9:$AZ$9),"") ->  | AL6: =IF(AND($AA6<6,R6<>"",S6<>""),ort($R6,$S6,$AY$3:$AZ$3),"") ->  | AM6: =IF(AND($AA6<6,R6<>"",S6<>""),ort($R6,$S6,$AY$4:$AZ$5),"") ->  | AN6: =IF(AND($AA6<6,R6<>"",S6<>""),ort($R6,$S6,$AY$6:$AZ$7),"") ->  | AO6: =IF(AND($AA6=6,R6<>"",S6<>""),ort($R6,$S6,$AY$8:$AZ$8),"") ->  | AP6: =IF(AND($AA6=7,R6<>"",S6<>""),ort($R6,$S6,$AY$9:$AZ$9),"") ->  | AQ6: =IF(AND($AA6<6,T6<>"",U6<>""),ort($T6,$U6,$AY$3:$AZ$3),"") ->  | AR6: =IF(AND($AA6<6,T6<>"",U6<>""),ort($T6,$U6,$AY$4:$AZ$5),"") ->  | AS6: =IF(AND($AA6<6,T6<>"",U6<>""),ort($T6,$U6,$AY$6:$AZ$7),"") ->  | AT6: =IF(AND($AA6=6,T6<>"",U6<>""),ort($T6,$U6,$AY$8:$AZ$8),"") ->  | AU6: =IF(AND($AA6=7,T6<>"",U6<>""),ort($T6,$U6,$AY$9:$AZ$9),"") ->  | AW6: 1.5 | AX6: m-vr | AY6: 0 | AZ6: 0.25 | BE6: 00:00:00
C7: =I6+1 -> 2018-04-02 | D7: =C7+1 -> 2018-04-03 | E7: =D7+1 -> 2018-04-04 | F7: 2018-04-05 | G7: 2018-04-06 | H7: 2018-04-07 | I7: 2018-04-08 | L7: =DATE($B$3,$B$4,5) -> 2018-04-05 | M7: =DATE($B$3,$B$4,5) -> 2018-04-05 | O7: 00:00:00 | AA7: =IF(ISERROR(IF(NOT(ISERROR(MATCH($M7,Blad2!$A$2:$A$11,0))),7,WEEKDAY($M7,2))),"",IF(NOT(ISERROR(MATCH($M7,Blad2!$A$2:$A$11,0))),7,WEEKDAY($M7,2))) -> 4 | AB7: =IF(AND($AA7<6,N7<>"",O7<>""),ort($N7,$O7,$AY$3:$AZ$3),"") ->  | AC7: =IF(AND($AA7<6,N7<>"",O7<>""),ort($N7,$O7,$AY$4:$AZ$5),"") ->  | AD7: =IF(AND($AA7<6,N7<>"",O7<>""),ort($N7,$O7,$AY$6:$AZ$7),"") ->  | AE7: =IF(AND($AA7=6,N7<>"",O7<>""),ort($N7,$O7,$AY$8:$AZ$8),"") ->  | AF7: =IF(AND($AA7=7,N7<>"",O7<>""),ort($N7,$O7,$AY$9:$AZ$9),"") ->  | AG7: =IF(AND($AA7<6,P7<>"",Q7<>""),ort($P7,$Q7,$AY$3:$AZ$3),"") ->  | AH7: =IF(AND($AA7<6,P7<>"",Q7<>""),ort($P7,$Q7,$AY$4:$AZ$5),"") ->  | AI7: =IF(AND($AA7<6,P7<>"",Q7<>""),ort($P7,$Q7,$AY$6:$AZ$7),"") ->  | AJ7: =IF(AND($AA7=6,P7<>"",Q7<>""),ort($P7,$Q7,$AY$8:$AZ$8),"") ->  | AK7: =IF(AND($AA7=7,P7<>"",Q7<>""),ort($P7,$Q7,$AY$9:$AZ$9),"") ->  | AL7: =IF(AND($AA7<6,R7<>"",S7<>""),ort($R7,$S7,$AY$3:$AZ$3),"") ->  | AM7: =IF(AND($AA7<6,R7<>"",S7<>""),ort($R7,$S7,$AY$4:$AZ$5),"") ->  | AN7: =IF(AND($AA7<6,R7<>"",S7<>""),ort($R7,$S7,$AY$6:$AZ$7),"") ->  | AO7: =IF(AND($AA7=6,R7<>"",S7<>""),ort($R7,$S7,$AY$8:$AZ$8),"") ->  | AP7: =IF(AND($AA7=7,R7<>"",S7<>""),ort($R7,$S7,$AY$9:$AZ$9),"") ->  | AQ7: =IF(AND($AA7<6,T7<>"",U7<>""),ort($T7,$U7,$AY$3:$AZ$3),"") ->  | AR7: =IF(AND($AA7<6,T7<>"",U7<>""),ort($T7,$U7,$AY$4:$AZ$5),"") ->  | AS7: =IF(AND($AA7<6,T7<>"",U7<>""),ort($T7,$U7,$AY$6:$AZ$7),"") ->  | AT7: =IF(AND($AA7=6,T7<>"",U7<>""),ort($T7,$U7,$AY$8:$AZ$8),"") ->  | AU7: =IF(AND($AA7=7,T7<>"",U7<>""),ort($T7,$U7,$AY$9:$AZ$9),"") ->  | AW7: 1.5 | AX7: m-vr | AY7: 0.7708333333 | AZ7: 1 | BE7: =SUM(BB7/18/24,BC7:BD7) -> 00:00:00
C8: =I7+1 -> 2018-04-09 | D8: =C8+1 -> 2018-04-10 | E8: 2018-04-11 | F8: 2018-04-12 | G8: 2018-04-13 | H8: 2018-04-14 | I8: 2018-04-15 | L8: =DATE($B$3,$B$4,6) -> 2018-04-06 | M8: =DATE($B$3,$B$4,6) -> 2018-04-06 | O8: 00:00:00 | AA8: =IF(ISERROR(IF(NOT(ISERROR(MATCH($M8,Blad2!$A$2:$A$11,0))),7,WEEKDAY($M8,2))),"",IF(NOT(ISERROR(MATCH($M8,Blad2!$A$2:$A$11,0))),7,WEEKDAY($M8,2))) -> 5 | AB8: =IF(AND($AA8<6,N8<>"",O8<>""),ort($N8,$O8,$AY$3:$AZ$3),"") ->  | AC8: =IF(AND($AA8<6,N8<>"",O8<>""),ort($N8,$O8,$AY$4:$AZ$5),"") ->  | AD8: =IF(AND($AA8<6,N8<>"",O8<>""),ort($N8,$O8,$AY$6:$AZ$7),"") ->  | AE8: =IF(AND($AA8=6,N8<>"",O8<>""),ort($N8,$O8,$AY$8:$AZ$8),"") ->  | AF8: =IF(AND($AA8=7,N8<>"",O8<>""),ort($N8,$O8,$AY$9:$AZ$9),"") ->  | AG8: =IF(AND($AA8<6,P8<>"",Q8<>""),ort($P8,$Q8,$AY$3:$AZ$3),"") ->  | AH8: =IF(AND($AA8<6,P8<>"",Q8<>""),ort($P8,$Q8,$AY$4:$AZ$5),"") ->  | AI8: =IF(AND($AA8<6,P8<>"",Q8<>""),ort($P8,$Q8,$AY$6:$AZ$7),"") ->  | AJ8: =IF(AND($AA8=6,P8<>"",Q8<>""),ort($P8,$Q8,$AY$8:$AZ$8),"") ->  | AK8: =IF(AND($AA8=7,P8<>"",Q8<>""),ort($P8,$Q8,$AY$9:$AZ$9),"") ->  | AL8: =IF(AND($AA8<6,R8<>"",S8<>""),ort($R8,$S8,$AY$3:$AZ$3),"") ->  | AM8: =IF(AND($AA8<6,R8<>"",S8<>""),ort($R8,$S8,$AY$4:$AZ$5),"") ->  | AN8: =IF(AND($AA8<6,R8<>"",S8<>""),ort($R8,$S8,$AY$6:$AZ$7),"") ->  | AO8: =IF(AND($AA8=6,R8<>"",S8<>""),ort($R8,$S8,$AY$8:$AZ$8),"") ->  | AP8: =IF(AND($AA8=7,R8<>"",S8<>""),ort($R8,$S8,$AY$9:$AZ$9),"") ->  | AQ8: =IF(AND($AA8<6,T8<>"",U8<>""),ort($T8,$U8,$AY$3:$AZ$3),"") ->  | AR8: =IF(AND($AA8<6,T8<>"",U8<>""),ort($T8,$U8,$AY$4:$AZ$5),"") ->  | AS8: =IF(AND($AA8<6,T8<>"",U8<>""),ort($T8,$U8,$AY$6:$AZ$7),"") ->  | AT8: =IF(AND($AA8=6,T8<>"",U8<>""),ort($T8,$U8,$AY$8:$AZ$8),"") ->  | AU8: =IF(AND($AA8=7,T8<>"",U8<>""),ort($T8,$U8,$AY$9:$AZ$9),"") ->  | AW8: 1.5 | AX8: za | AY8: 0 | AZ8: 1 | BE8: =SUM(BB8/19/24,BC8:BD8) -> 00:00:00
C9: =I8+1 -> 2018-04-16 | D9: =C9+1 -> 2018-04-17 | E9: 2018-04-18 | F9: 2018-04-19 | G9: 2018-04-20 | H9: 2018-04-21 | I9: 2018-04-22 | L9: =DATE($B$3,$B$4,7) -> 2018-04-07 | M9: =DATE($B$3,$B$4,7) -> 2018-04-07 | O9: 00:00:00 | AA9: =IF(ISERROR(IF(NOT(ISERROR(MATCH($M9,Blad2!$A$2:$A$11,0))),7,WEEKDAY($M9,2))),"",IF(NOT(ISERROR(MATCH($M9,Blad2!$A$2:$A$11,0))),7,WEEKDAY($M9,2))) -> 7 | AB9: =IF(AND($AA9<6,N9<>"",O9<>""),ort($N9,$O9,$AY$3:$AZ$3),"") ->  | AC9: =IF(AND($AA9<6,N9<>"",O9<>""),ort($N9,$O9,$AY$4:$AZ$5),"") ->  | AD9: =IF(AND($AA9<6,N9<>"",O9<>""),ort($N9,$O9,$AY$6:$AZ$7),"") ->  | AE9: =IF(AND($AA9=6,N9<>"",O9<>""),ort($N9,$O9,$AY$8:$AZ$8),"") ->  | AF9: =IF(AND($AA9=7,N9<>"",O9<>""),ort($N9,$O9,$AY$9:$AZ$9),"") ->  | AG9: =IF(AND($AA9<6,P9<>"",Q9<>""),ort($P9,$Q9,$AY$3:$AZ$3),"") ->  | AH9: =IF(AND($AA9<6,P9<>"",Q9<>""),ort($P9,$Q9,$AY$4:$AZ$5),"") ->  | AI9: =IF(AND($AA9<6,P9<>"",Q9<>""),ort($P9,$Q9,$AY$6:$AZ$7),"") ->  | AJ9: =IF(AND($AA9=6,P9<>"",Q9<>""),ort($P9,$Q9,$AY$8:$AZ$8),"") ->  | AK9: =IF(AND($AA9=7,P9<>"",Q9<>""),ort($P9,$Q9,$AY$9:$AZ$9),"") ->  | AL9: =IF(AND($AA9<6,R9<>"",S9<>""),ort($R9,$S9,$AY$3:$AZ$3),"") ->  | AM9: =IF(AND($AA9<6,R9<>"",S9<>""),ort($R9,$S9,$AY$4:$AZ$5),"") ->  | AN9: =IF(AND($AA9<6,R9<>"",S9<>""),ort($R9,$S9,$AY$6:$AZ$7),"") ->  | AO9: =IF(AND($AA9=6,R9<>"",S9<>""),ort($R9,$S9,$AY$8:$AZ$8),"") ->  | AP9: =IF(AND($AA9=7,R9<>"",S9<>""),ort($R9,$S9,$AY$9:$AZ$9),"") ->  | AQ9: =IF(AND($AA9<6,T9<>"",U9<>""),ort($T9,$U9,$AY$3:$AZ$3),"") ->  | AR9: =IF(AND($AA9<6,T9<>"",U9<>""),ort($T9,$U9,$AY$4:$AZ$5),"") ->  | AS9: =IF(AND($AA9<6,T9<>"",U9<>""),ort($T9,$U9,$AY$6:$AZ$7),"") ->  | AT9: =IF(AND($AA9=6,T9<>"",U9<>""),ort($T9,$U9,$AY$8:$AZ$8),"") ->  | AU9: =IF(AND($AA9=7,T9<>"",U9<>""),ort($T9,$U9,$AY$9:$AZ$9),"") ->  | AW9: 2 | AX9: zo/feest | AY9: 0 | AZ9: 1 | BE9: =SUM(BB9/19/24,BC9:BD9) -> 00:00:00
C10: =IF(I9="","",IF(MONTH(I9+1)=MONTH(I9),I9+1,"")) -> 2018-04-23 | D10: =IF(C10="","",IF(MONTH(C10+1)=MONTH(C10),C10+1,"")) -> 2018-04-24 | E10: =IF(D10="","",IF(MONTH(D10+1)=MONTH(D10),D10+1,"")) -> 2018-04-25 | F10: 2018-04-26 | G10: 2018-04-27 | H10: 2018-04-28 | I10: 2018-04-29 | J10: =IF(ISNA(VLOOKUP(M9,feestdagen,2,0)),"",VLOOKUP(M9,feestdagen,2,0)) -> Paasdag | L10: =DATE($B$3,$B$4,8) -> 2018-04-08 | M10: =DATE($B$3,$B$4,8) -> 2018-04-08 | O10: 00:00:00 | AA10: =IF(ISERROR(IF(NOT(ISERROR(MATCH($M10,Blad2!$A$2:$A$11,0))),7,WEEKDAY($M10,2))),"",IF(NOT(ISERROR(MATCH($M10,Blad2!$A$2:$A$11,0))),7,WEEKDAY($M10,2))) -> 7 | AB10: =IF(AND($AA10<6,N10<>"",O10<>""),ort($N10,$O10,$AY$3:$AZ$3),"") ->  | AC10: =IF(AND($AA10<6,N10<>"",O10<>""),ort($N10,$O10,$AY$4:$AZ$5),"") ->  | AD10: =IF(AND($AA10<6,N10<>"",O10<>""),ort($N10,$O10,$AY$6:$AZ$7),"") ->  | AE10: =IF(AND($AA10=6,N10<>"",O10<>""),ort($N10,$O10,$AY$8:$AZ$8),"") ->  | AF10: =IF(AND($AA10=7,N10<>"",O10<>""),ort($N10,$O10,$AY$9:$AZ$9),"") ->  | AG10: =IF(AND($AA10<6,P10<>"",Q10<>""),ort($P10,$Q10,$AY$3:$AZ$3),"") ->  | AH10: =IF(AND($AA10<6,P10<>"",Q10<>""),ort($P10,$Q10,$AY$4:$AZ$5),"") ->  | AI10: =IF(AND($AA10<6,P10<>"",Q10<>""),ort($P10,$Q10,$AY$6:$AZ$7),"") ->  | AJ10: =IF(AND($AA10=6,P10<>"",Q10<>""),ort($P10,$Q10,$AY$8:$AZ$8),"") ->  | AK10: =IF(AND($AA10=7,P10<>"",Q10<>""),ort($P10,$Q10,$AY$9:$AZ$9),"") ->  | AL10: =IF(AND($AA10<6,R10<>"",S10<>""),ort($R10,$S10,$AY$3:$AZ$3),"") ->  | AM10: =IF(AND($AA10<6,R10<>"",S10<>""),ort($R10,$S10,$AY$4:$AZ$5),"") ->  | AN10: =IF(AND($AA10<6,R10<>"",S10<>""),ort($R10,$S10,$AY$6:$AZ$7),"") ->  | AO10: =IF(AND($AA10=6,R10<>"",S10<>""),ort($R10,$S10,$AY$8:$AZ$8),"") ->  | AP10: =IF(AND($AA10=7,R10<>"",S10<>""),ort($R10,$S10,$AY$9:$AZ$9),"") ->  | AQ10: =IF(AND($AA10<6,T10<>"",U10<>""),ort($T10,$U10,$AY$3:$AZ$3),"") ->  | AR10: =IF(AND($AA10<6,T10<>"",U10<>""),ort($T10,$U10,$AY$4:$AZ$5),"") ->  | AS10: =IF(AND($AA10<6,T10<>"",U10<>""),ort($T10,$U10,$AY$6:$AZ$7),"") ->  | AT10: =IF(AND($AA10=6,T10<>"",U10<>""),ort($T10,$U10,$AY$8:$AZ$8),"") ->  | AU10: =IF(AND($AA10=7,T10<>"",U10<>""),ort($T10,$U10,$AY$9:$AZ$9),"") ->  | BE10: =SUM(BB10/18/24,BC10:BD10) -> 00:00:00
C11: =IF(I10="","",IF(MONTH(I10+1)=MONTH(I10),I10+1,"")) -> 2018-04-30 | D11: =IF(C11="","",IF(MONTH(C11+1)=MONTH(C11),C11+1,"")) ->  | J11: =IF(ISNA(VLOOKUP(M10,feestdagen,2,0)),"",VLOOKUP(M10,feestdagen,2,0)) -> Paasmaandag | K11: 15 | L11: =DATE($B$3,$B$4,9) -> 2018-04-09 | M11: =DATE($B$3,$B$4,9) -> 2018-04-09 | O11: 00:00:00 | AA11: =IF(ISERROR(IF(NOT(ISERROR(MATCH($M11,Blad2!$A$2:$A$11,0))),7,WEEKDAY($M11,2))),"",IF(NOT(ISERROR(MATCH($M11,Blad2!$A$2:$A$11,0))),7,WEEKDAY($M11,2))) -> 1 | AB11: =IF(AND($AA11<6,N11<>"",O11<>""),ort($N11,$O11,$AY$3:$AZ$3),"") ->  | AC11: =IF(AND($AA11<6,N11<>"",O11<>""),ort($N11,$O11,$AY$4:$AZ$5),"") ->  | AD11: =IF(AND($AA11<6,N11<>"",O11<>""),ort($N11,$O11,$AY$6:$AZ$7),"") ->  | AE11: =IF(AND($AA11=6,N11<>"",O11<>""),ort($N11,$O11,$AY$8:$AZ$8),"") ->  | AF11: =IF(AND($AA11=7,N11<>"",O11<>""),ort($N11,$O11,$AY$9:$AZ$9),"") ->  | AG11: =IF(AND($AA11<6,P11<>"",Q11<>""),ort($P11,$Q11,$AY$3:$AZ$3),"") ->  | AH11: =IF(AND($AA11<6,P11<>"",Q11<>""),ort($P11,$Q11,$AY$4:$AZ$5),"") ->  | AI11: =IF(AND($AA11<6,P11<>"",Q11<>""),ort($P11,$Q11,$AY$6:$AZ$7),"") ->  | AJ11: =IF(AND($AA11=6,P11<>"",Q11<>""),ort($P11,$Q11,$AY$8:$AZ$8),"") ->  | AK11: =IF(AND($AA11=7,P11<>"",Q11<>""),ort($P11,$Q11,$AY$9:$AZ$9),"") ->  | AL11: =IF(AND($AA11<6,R11<>"",S11<>""),ort($R11,$S11,$AY$3:$AZ$3),"") ->  | AM11: =IF(AND($AA11<6,R11<>"",S11<>""),ort($R11,$S11,$AY$4:$AZ$5),"") ->  | AN11: =IF(AND($AA11<6,R11<>"",S11<>""),ort($R11,$S11,$AY$6:$AZ$7),"") ->  | AO11: =IF(AND($AA11=6,R11<>"",S11<>""),ort($R11,$S11,$AY$8:$AZ$8),"") ->  | AP11: =IF(AND($AA11=7,R11<>"",S11<>""),ort($R11,$S11,$AY$9:$AZ$9),"") ->  | AQ11: =IF(AND($AA11<6,T11<>"",U11<>""),ort($T11,$U11,$AY$3:$AZ$3),"") ->  | AR11: =IF(AND($AA11<6,T11<>"",U11<>""),ort($T11,$U11,$AY$4:$AZ$5),"") ->  | AS11: =IF(AND($AA11<6,T11<>"",U11<>""),ort($T11,$U11,$AY$6:$AZ$7),"") ->  | AT11: =IF(AND($AA11=6,T11<>"",U11<>""),ort($T11,$U11,$AY$8:$AZ$8),"") ->  | AU11: =IF(AND($AA11=7,T11<>"",U11<>""),ort($T11,$U11,$AY$9:$AZ$9),"") ->  | BE11: 00:00:00
L12: =DATE($B$3,$B$4,10) -> 2018-04-10 | M12: =DATE($B$3,$B$4,10) -> 2018-04-10 | O12: 00:00:00 | AA12: =IF(ISERROR(IF(NOT(ISERROR(MATCH($M12,Blad2!$A$2:$A$11,0))),7,WEEKDAY($M12,2))),"",IF(NOT(ISERROR(MATCH($M12,Blad2!$A$2:$A$11,0))),7,WEEKDAY($M12,2))) -> 2 | AB12: =IF(AND($AA12<6,N12<>"",O12<>""),ort($N12,$O12,$AY$3:$AZ$3),"") ->  | AC12: =IF(AND($AA12<6,N12<>"",O12<>""),ort($N12,$O12,$AY$4:$AZ$5),"") ->  | AD12: =IF(AND($AA12<6,N12<>"",O12<>""),ort($N12,$O12,$AY$6:$AZ$7),"") ->  | AE12: =IF(AND($AA12=6,N12<>"",O12<>""),ort($N12,$O12,$AY$8:$AZ$8),"") ->  | AF12: =IF(AND($AA12=7,N12<>"",O12<>""),ort($N12,$O12,$AY$9:$AZ$9),"") ->  | AG12: =IF(AND($AA12<6,P12<>"",Q12<>""),ort($P12,$Q12,$AY$3:$AZ$3),"") ->  | AH12: =IF(AND($AA12<6,P12<>"",Q12<>""),ort($P12,$Q12,$AY$4:$AZ$5),"") ->  | AI12: =IF(AND($AA12<6,P12<>"",Q12<>""),ort($P12,$Q12,$AY$6:$AZ$7),"") ->  | AJ12: =IF(AND($AA12=6,P12<>"",Q12<>""),ort($P12,$Q12,$AY$8:$AZ$8),"") ->  | AK12: =IF(AND($AA12=7,P12<>"",Q12<>""),ort($P12,$Q12,$AY$9:$AZ$9),"") ->  | AL12: =IF(AND($AA12<6,R12<>"",S12<>""),ort($R12,$S12,$AY$3:$AZ$3),"") ->  | AM12: =IF(AND($AA12<6,R12<>"",S12<>""),ort($R12,$S12,$AY$4:$AZ$5),"") ->  | AN12: =IF(AND($AA12<6,R12<>"",S12<>""),ort($R12,$S12,$AY$6:$AZ$7),"") ->  | AO12: =IF(AND($AA12=6,R12<>"",S12<>""),ort($R12,$S12,$AY$8:$AZ$8),"") ->  | AP12: =IF(AND($AA12=7,R12<>"",S12<>""),ort($R12,$S12,$AY$9:$AZ$9),"") ->  | AQ12: =IF(AND($AA12<6,T12<>"",U12<>""),ort($T12,$U12,$AY$3:$AZ$3),"") ->  | AR12: =IF(AND($AA12<6,T12<>"",U12<>""),ort($T12,$U12,$AY$4:$AZ$5),"") ->  | AS12: =IF(AND($AA12<6,T12<>"",U12<>""),ort($T12,$U12,$AY$6:$AZ$7),"") ->  | AT12: =IF(AND($AA12=6,T12<>"",U12<>""),ort($T12,$U12,$AY$8:$AZ$8),"") ->  | AU12: =IF(AND($AA12=7,T12<>"",U12<>""),ort($T12,$U12,$AY$9:$AZ$9),"") ->  | BE12: 00:00:00
B13: Werkdagen deze maand | L13: =DATE($B$3,$B$4,11) -> 2018-04-11 | M13: =DATE($B$3,$B$4,11) -> 2018-04-11 | O13: 00:00:00 | AA13: =IF(ISERROR(IF(NOT(ISERROR(MATCH($M13,Blad2!$A$2:$A$11,0))),7,WEEKDAY($M13,2))),"",IF(NOT(ISERROR(MATCH($M13,Blad2!$A$2:$A$11,0))),7,WEEKDAY($M13,2))) -> 3 | AB13: =IF(AND($AA13<6,N13<>"",O13<>""),ort($N13,$O13,$AY$3:$AZ$3),"") ->  | AC13: =IF(AND($AA13<6,N13<>"",O13<>""),ort($N13,$O13,$AY$4:$AZ$5),"") ->  | AD13: =IF(AND($AA13<6,N13<>"",O13<>""),ort($N13,$O13,$AY$6:$AZ$7),"") ->  | AE13: =IF(AND($AA13=6,N13<>"",O13<>""),ort($N13,$O13,$AY$8:$AZ$8),"") ->  | AF13: =IF(AND($AA13=7,N13<>"",O13<>""),ort($N13,$O13,$AY$9:$AZ$9),"") ->  | AG13: =IF(AND($AA13<6,P13<>"",Q13<>""),ort($P13,$Q13,$AY$3:$AZ$3),"") ->  | AH13: =IF(AND($AA13<6,P13<>"",Q13<>""),ort($P13,$Q13,$AY$4:$AZ$5),"") ->  | AI13: =IF(AND($AA13<6,P13<>"",Q13<>""),ort($P13,$Q13,$AY$6:$AZ$7),"") ->  | AJ13: =IF(AND($AA13=6,P13<>"",Q13<>""),ort($P13,$Q13,$AY$8:$AZ$8),"") ->  | AK13: =IF(AND($AA13=7,P13<>"",Q13<>""),ort($P13,$Q13,$AY$9:$AZ$9),"") ->  | AL13: =IF(AND($AA13<6,R13<>"",S13<>""),ort($R13,$S13,$AY$3:$AZ$3),"") ->  | AM13: =IF(AND($AA13<6,R13<>"",S13<>""),ort($R13,$S13,$AY$4:$AZ$5),"") ->  | AN13: =IF(AND($AA13<6,R13<>"",S13<>""),ort($R13,$S13,$AY$6:$AZ$7),"") ->  | AO13: =IF(AND($AA13=6,R13<>"",S13<>""),ort($R13,$S13,$AY$8:$AZ$8),"") ->  | AP13: =IF(AND($AA13=7,R13<>"",S13<>""),ort($R13,$S13,$AY$9:$AZ$9),"") ->  | AQ13: =IF(AND($AA13<6,T13<>"",U13<>""),ort($T13,$U13,$AY$3:$AZ$3),"") ->  | AR13: =IF(AND($AA13<6,T13<>"",U13<>""),ort($T13,$U13,$AY$4:$AZ$5),"") ->  | AS13: =IF(AND($AA13<6,T13<>"",U13<>""),ort($T13,$U13,$AY$6:$AZ$7),"") ->  | AT13: =IF(AND($AA13=6,T13<>"",U13<>""),ort($T13,$U13,$AY$8:$AZ$8),"") ->  | AU13: =IF(AND($AA13=7,T13<>"",U13<>""),ort($T13,$U13,$AY$9:$AZ$9),"") ->  | BE13: 00:00:00
B14: =NETWORKDAYS($L$3,EOMONTH($L$3,0),Blad2!A2:A97)&" dagen" -> 20 dagen | L14: =DATE($B$3,$B$4,12) -> 2018-04-12 | M14: =DATE($B$3,$B$4,12) -> 2018-04-12 | O14: 00:00:00 | AA14: =IF(ISERROR(IF(NOT(ISERROR(MATCH($M14,Blad2!$A$2:$A$11,0))),7,WEEKDAY($M14,2))),"",IF(NOT(ISERROR(MATCH($M14,Blad2!$A$2:$A$11,0))),7,WEEKDAY($M14,2))) -> 4 | AB14: =IF(AND($AA14<6,N14<>"",O14<>""),ort($N14,$O14,$AY$3:$AZ$3),"") ->  | AC14: =IF(AND($AA14<6,N14<>"",O14<>""),ort($N14,$O14,$AY$4:$AZ$5),"") ->  | AD14: =IF(AND($AA14<6,N14<>"",O14<>""),ort($N14,$O14,$AY$6:$AZ$7),"") ->  | AE14: =IF(AND($AA14=6,N14<>"",O14<>""),ort($N14,$O14,$AY$8:$AZ$8),"") ->  | AF14: =IF(AND($AA14=7,N14<>"",O14<>""),ort($N14,$O14,$AY$9:$AZ$9),"") ->  | AG14: =IF(AND($AA14<6,P14<>"",Q14<>""),ort($P14,$Q14,$AY$3:$AZ$3),"") ->  | AH14: =IF(AND($AA14<6,P14<>"",Q14<>""),ort($P14,$Q14,$AY$4:$AZ$5),"") ->  | AI14: =IF(AND($AA14<6,P14<>"",Q14<>""),ort($P14,$Q14,$AY$6:$AZ$7),"") ->  | AJ14: =IF(AND($AA14=6,P14<>"",Q14<>""),ort($P14,$Q14,$AY$8:$AZ$8),"") ->  | AK14: =IF(AND($AA14=7,P14<>"",Q14<>""),ort($P14,$Q14,$AY$9:$AZ$9),"") ->  | AL14: =IF(AND($AA14<6,R14<>"",S14<>""),ort($R14,$S14,$AY$3:$AZ$3),"") ->  | AM14: =IF(AND($AA14<6,R14<>"",S14<>""),ort($R14,$S14,$AY$4:$AZ$5),"") ->  | AN14: =IF(AND($AA14<6,R14<>"",S14<>""),ort($R14,$S14,$AY$6:$AZ$7),"") ->  | AO14: =IF(AND($AA14=6,R14<>"",S14<>""),ort($R14,$S14,$AY$8:$AZ$8),"") ->  | AP14: =IF(AND($AA14=7,R14<>"",S14<>""),ort($R14,$S14,$AY$9:$AZ$9),"") ->  | AQ14: =IF(AND($AA14<6,T14<>"",U14<>""),ort($T14,$U14,$AY$3:$AZ$3),"") ->  | AR14: =IF(AND($AA14<6,T14<>"",U14<>""),ort($T14,$U14,$AY$4:$AZ$5),"") ->  | AS14: =IF(AND($AA14<6,T14<>"",U14<>""),ort($T14,$U14,$AY$6:$AZ$7),"") ->  | AT14: =IF(AND($AA14=6,T14<>"",U14<>""),ort($T14,$U14,$AY$8:$AZ$8),"") ->  | AU14: =IF(AND($AA14=7,T14<>"",U14<>""),ort($T14,$U14,$AY$9:$AZ$9),"") ->  | BE14: 00:00:00
L15: =DATE($B$3,$B$4,13) -> 2018-04-13 | M15: =DATE($B$3,$B$4,13) -> 2018-04-13 | O15: 00:00:00 | AA15: =IF(ISERROR(IF(NOT(ISERROR(MATCH($M15,Blad2!$A$2:$A$11,0))),7,WEEKDAY($M15,2))),"",IF(NOT(ISERROR(MATCH($M15,Blad2!$A$2:$A$11,0))),7,WEEKDAY($M15,2))) -> 5 | AB15: =IF(AND($AA15<6,N15<>"",O15<>""),ort($N15,$O15,$AY$3:$AZ$3),"") ->  | AC15: =IF(AND($AA15<6,N15<>"",O15<>""),ort($N15,$O15,$AY$4:$AZ$5),"") ->  | AD15: =IF(AND($AA15<6,N15<>"",O15<>""),ort($N15,$O15,$AY$6:$AZ$7),"") ->  | AE15: =IF(AND($AA15=6,N15<>"",O15<>""),ort($N15,$O15,$AY$8:$AZ$8),"") ->  | AF15: =IF(AND($AA15=7,N15<>"",O15<>""),ort($N15,$O15,$AY$9:$AZ$9),"") ->  | AG15: =IF(AND($AA15<6,P15<>"",Q15<>""),ort($P15,$Q15,$AY$3:$AZ$3),"") ->  | AH15: =IF(AND($AA15<6,P15<>"",Q15<>""),ort($P15,$Q15,$AY$4:$AZ$5),"") ->  | AI15: =IF(AND($AA15<6,P15<>"",Q15<>""),ort($P15,$Q15,$AY$6:$AZ$7),"") ->  | AJ15: =IF(AND($AA15=6,P15<>"",Q15<>""),ort($P15,$Q15,$AY$8:$AZ$8),"") ->  | AK15: =IF(AND($AA15=7,P15<>"",Q15<>""),ort($P15,$Q15,$AY$9:$AZ$9),"") ->  | AL15: =IF(AND($AA15<6,R15<>"",S15<>""),ort($R15,$S15,$AY$3:$AZ$3),"") ->  | AM15: =IF(AND($AA15<6,R15<>"",S15<>""),ort($R15,$S15,$AY$4:$AZ$5),"") ->  | AN15: =IF(AND($AA15<6,R15<>"",S15<>""),ort($R15,$S15,$AY$6:$AZ$7),"") ->  | AO15: =IF(AND($AA15=6,R15<>"",S15<>""),ort($R15,$S15,$AY$8:$AZ$8),"") ->  | AP15: =IF(AND($AA15=7,R15<>"",S15<>""),ort($R15,$S15,$AY$9:$AZ$9),"") ->  | AQ15: =IF(AND($AA15<6,T15<>"",U15<>""),ort($T15,$U15,$AY$3:$AZ$3),"") ->  | AR15: =IF(AND($AA15<6,T15<>"",U15<>""),ort($T15,$U15,$AY$4:$AZ$5),"") ->  | AS15: =IF(AND($AA15<6,T15<>"",U15<>""),ort($T15,$U15,$AY$6:$AZ$7),"") ->  | AT15: =IF(AND($AA15=6,T15<>"",U15<>""),ort($T15,$U15,$AY$8:$AZ$8),"") ->  | AU15: =IF(AND($AA15=7,T15<>"",U15<>""),ort($T15,$U15,$AY$9:$AZ$9),"") ->  | BE15: 00:00:00
B16: Contract Uren | L16: =DATE($B$3,$B$4,14) -> 2018-04-14 | M16: =DATE($B$3,$B$4,14) -> 2018-04-14 | O16: 00:00:00 | AA16: =IF(ISERROR(IF(NOT(ISERROR(MATCH($M16,Blad2!$A$2:$A$11,0))),7,WEEKDAY($M16,2))),"",IF(NOT(ISERROR(MATCH($M16,Blad2!$A$2:$A$11,0))),7,WEEKDAY($M16,2))) -> 6 | AB16: =IF(AND($AA16<6,N16<>"",O16<>""),ort($N16,$O16,$AY$3:$AZ$3),"") ->  | AC16: =IF(AND($AA16<6,N16<>"",O16<>""),ort($N16,$O16,$AY$4:$AZ$5),"") ->  | AD16: =IF(AND($AA16<6,N16<>"",O16<>""),ort($N16,$O16,$AY$6:$AZ$7),"") ->  | AE16: =IF(AND($AA16=6,N16<>"",O16<>""),ort($N16,$O16,$AY$8:$AZ$8),"") ->  | AF16: =IF(AND($AA16=7,N16<>"",O16<>""),ort($N16,$O16,$AY$9:$AZ$9),"") ->  | AG16: =IF(AND($AA16<6,P16<>"",Q16<>""),ort($P16,$Q16,$AY$3:$AZ$3),"") ->  | AH16: =IF(AND($AA16<6,P16<>"",Q16<>""),ort($P16,$Q16,$AY$4:$AZ$5),"") ->  | AI16: =IF(AND($AA16<6,P16<>"",Q16<>""),ort($P16,$Q16,$AY$6:$AZ$7),"") ->  | AJ16: =IF(AND($AA16=6,P16<>"",Q16<>""),ort($P16,$Q16,$AY$8:$AZ$8),"") ->  | AK16: =IF(AND($AA16=7,P16<>"",Q16<>""),ort($P16,$Q16,$AY$9:$AZ$9),"") ->  | AL16: =IF(AND($AA16<6,R16<>"",S16<>""),ort($R16,$S16,$AY$3:$AZ$3),"") ->  | AM16: =IF(AND($AA16<6,R16<>"",S16<>""),ort($R16,$S16,$AY$4:$AZ$5),"") ->  | AN16: =IF(AND($AA16<6,R16<>"",S16<>""),ort($R16,$S16,$AY$6:$AZ$7),"") ->  | AO16: =IF(AND($AA16=6,R16<>"",S16<>""),ort($R16,$S16,$AY$8:$AZ$8),"") ->  | AP16: =IF(AND($AA16=7,R16<>"",S16<>""),ort($R16,$S16,$AY$9:$AZ$9),"") ->  | AQ16: =IF(AND($AA16<6,T16<>"",U16<>""),ort($T16,$U16,$AY$3:$AZ$3),"") ->  | AR16: =IF(AND($AA16<6,T16<>"",U16<>""),ort($T16,$U16,$AY$4:$AZ$5),"") ->  | AS16: =IF(AND($AA16<6,T16<>"",U16<>""),ort($T16,$U16,$AY$6:$AZ$7),"") ->  | AT16: =IF(AND($AA16=6,T16<>"",U16<>""),ort($T16,$U16,$AY$8:$AZ$8),"") ->  | AU16: =IF(AND($AA16=7,T16<>"",U16<>""),ort($T16,$U16,$AY$9:$AZ$9),"") ->  | BE16: 00:00:00
B17: 3.75 | L17: =DATE($B$3,$B$4,15) -> 2018-04-15 | M17: =DATE($B$3,$B$4,15) -> 2018-04-15 | O17: 00:00:00 | AA17: =IF(ISERROR(IF(NOT(ISERROR(MATCH($M17,Blad2!$A$2:$A$11,0))),7,WEEKDAY($M17,2))),"",IF(NOT(ISERROR(MATCH($M17,Blad2!$A$2:$A$11,0))),7,WEEKDAY($M17,2))) -> 7 | AB17: =IF(AND($AA17<6,N17<>"",O17<>""),ort($N17,$O17,$AY$3:$AZ$3),"") ->  | AC17: =IF(AND($AA17<6,N17<>"",O17<>""),ort($N17,$O17,$AY$4:$AZ$5),"") ->  | AD17: =IF(AND($AA17<6,N17<>"",O17<>""),ort($N17,$O17,$AY$6:$AZ$7),"") ->  | AE17: =IF(AND($AA17=6,N17<>"",O17<>""),ort($N17,$O17,$AY$8:$AZ$8),"") ->  | AF17: =IF(AND($AA17=7,N17<>"",O17<>""),ort($N17,$O17,$AY$9:$AZ$9),"") ->  | AG17: =IF(AND($AA17<6,P17<>"",Q17<>""),ort($P17,$Q17,$AY$3:$AZ$3),"") ->  | AH17: =IF(AND($AA17<6,P17<>"",Q17<>""),ort($P17,$Q17,$AY$4:$AZ$5),"") ->  | AI17: =IF(AND($AA17<6,P17<>"",Q17<>""),ort($P17,$Q17,$AY$6:$AZ$7),"") ->  | AJ17: =IF(AND($AA17=6,P17<>"",Q17<>""),ort($P17,$Q17,$AY$8:$AZ$8),"") ->  | AK17: =IF(AND($AA17=7,P17<>"",Q17<>""),ort($P17,$Q17,$AY$9:$AZ$9),"") ->  | AL17: =IF(AND($AA17<6,R17<>"",S17<>""),ort($R17,$S17,$AY$3:$AZ$3),"") ->  | AM17: =IF(AND($AA17<6,R17<>"",S17<>""),ort($R17,$S17,$AY$4:$AZ$5),"") ->  | AN17: =IF(AND($AA17<6,R17<>"",S17<>""),ort($R17,$S17,$AY$6:$AZ$7),"") ->  | AO17: =IF(AND($AA17=6,R17<>"",S17<>""),ort($R17,$S17,$AY$8:$AZ$8),"") ->  | AP17: =IF(AND($AA17=7,R17<>"",S17<>""),ort($R17,$S17,$AY$9:$AZ$9),"") ->  | AQ17: =IF(AND($AA17<6,T17<>"",U17<>""),ort($T17,$U17,$AY$3:$AZ$3),"") ->  | AR17: =IF(AND($AA17<6,T17<>"",U17<>""),ort($T17,$U17,$AY$4:$AZ$5),"") ->  | AS17: =IF(AND($AA17<6,T17<>"",U17<>""),ort($T17,$U17,$AY$6:$AZ$7),"") ->  | AT17: =IF(AND($AA17=6,T17<>"",U17<>""),ort($T17,$U17,$AY$8:$AZ$8),"") ->  | AU17: =IF(AND($AA17=7,T17<>"",U17<>""),ort($T17,$U17,$AY$9:$AZ$9),"") ->  | BE17: 00:00:00
K18: 16 | L18: =DATE($B$3,$B$4,16) -> 2018-04-16 | M18: =DATE($B$3,$B$4,16) -> 2018-04-16 | O18: 00:00:00 | AA18: =IF(ISERROR(IF(NOT(ISERROR(MATCH($M18,Blad2!$A$2:$A$11,0))),7,WEEKDAY($M18,2))),"",IF(NOT(ISERROR(MATCH($M18,Blad2!$A$2:$A$11,0))),7,WEEKDAY($M18,2))) -> 1 | AB18: =IF(AND($AA18<6,N18<>"",O18<>""),ort($N18,$O18,$AY$3:$AZ$3),"") ->  | AC18: =IF(AND($AA18<6,N18<>"",O18<>""),ort($N18,$O18,$AY$4:$AZ$5),"") ->  | AD18: =IF(AND($AA18<6,N18<>"",O18<>""),ort($N18,$O18,$AY$6:$AZ$7),"") ->  | AE18: =IF(AND($AA18=6,N18<>"",O18<>""),ort($N18,$O18,$AY$8:$AZ$8),"") ->  | AF18: =IF(AND($AA18=7,N18<>"",O18<>""),ort($N18,$O18,$AY$9:$AZ$9),"") ->  | AG18: =IF(AND($AA18<6,P18<>"",Q18<>""),ort($P18,$Q18,$AY$3:$AZ$3),"") ->  | AH18: =IF(AND($AA18<6,P18<>"",Q18<>""),ort($P18,$Q18,$AY$4:$AZ$5),"") ->  | AI18: =IF(AND($AA18<6,P18<>"",Q18<>""),ort($P18,$Q18,$AY$6:$AZ$7),"") ->  | AJ18: =IF(AND($AA18=6,P18<>"",Q18<>""),ort($P18,$Q18,$AY$8:$AZ$8),"") ->  | AK18: =IF(AND($AA18=7,P18<>"",Q18<>""),ort($P18,$Q18,$AY$9:$AZ$9),"") ->  | AL18: =IF(AND($AA18<6,R18<>"",S18<>""),ort($R18,$S18,$AY$3:$AZ$3),"") ->  | AM18: =IF(AND($AA18<6,R18<>"",S18<>""),ort($R18,$S18,$AY$4:$AZ$5),"") ->  | AN18: =IF(AND($AA18<6,R18<>"",S18<>""),ort($R18,$S18,$AY$6:$AZ$7),"") ->  | AO18: =IF(AND($AA18=6,R18<>"",S18<>""),ort($R18,$S18,$AY$8:$AZ$8),"") ->  | AP18: =IF(AND($AA18=7,R18<>"",S18<>""),ort($R18,$S18,$AY$9:$AZ$9),"") ->  | AQ18: =IF(AND($AA18<6,T18<>"",U18<>""),ort($T18,$U18,$AY$3:$AZ$3),"") ->  | AR18: =IF(AND($AA18<6,T18<>"",U18<>""),ort($T18,$U18,$AY$4:$AZ$5),"") ->  | AS18: =IF(AND($AA18<6,T18<>"",U18<>""),ort($T18,$U18,$AY$6:$AZ$7),"") ->  | AT18: =IF(AND($AA18=6,T18<>"",U18<>""),ort($T18,$U18,$AY$8:$AZ$8),"") ->  | AU18: =IF(AND($AA18=7,T18<>"",U18<>""),ort($T18,$U18,$AY$9:$AZ$9),"") ->  | BE18: 00:00:00
B19: Gewerkte uren deze maand | L19: =DATE($B$3,$B$4,17) -> 2018-04-17 | M19: =DATE($B$3,$B$4,17) -> 2018-04-17 | O19: 00:00:00 | AA19: =IF(ISERROR(IF(NOT(ISERROR(MATCH($M19,Blad2!$A$2:$A$11,0))),7,WEEKDAY($M19,2))),"",IF(NOT(ISERROR(MATCH($M19,Blad2!$A$2:$A$11,0))),7,WEEKDAY($M19,2))) -> 2 | AB19: =IF(AND($AA19<6,N19<>"",O19<>""),ort($N19,$O19,$AY$3:$AZ$3),"") ->  | AC19: =IF(AND($AA19<6,N19<>"",O19<>""),ort($N19,$O19,$AY$4:$AZ$5),"") ->  | AD19: =IF(AND($AA19<6,N19<>"",O19<>""),ort($N19,$O19,$AY$6:$AZ$7),"") ->  | AE19: =IF(AND($AA19=6,N19<>"",O19<>""),ort($N19,$O19,$AY$8:$AZ$8),"") ->  | AF19: =IF(AND($AA19=7,N19<>"",O19<>""),ort($N19,$O19,$AY$9:$AZ$9),"") ->  | AG19: =IF(AND($AA19<6,P19<>"",Q19<>""),ort($P19,$Q19,$AY$3:$AZ$3),"") ->  | AH19: =IF(AND($AA19<6,P19<>"",Q19<>""),ort($P19,$Q19,$AY$4:$AZ$5),"") ->  | AI19: =IF(AND($AA19<6,P19<>"",Q19<>""),ort($P19,$Q19,$AY$6:$AZ$7),"") ->  | AJ19: =IF(AND($AA19=6,P19<>"",Q19<>""),ort($P19,$Q19,$AY$8:$AZ$8),"") ->  | AK19: =IF(AND($AA19=7,P19<>"",Q19<>""),ort($P19,$Q19,$AY$9:$AZ$9),"") ->  | AL19: =IF(AND($AA19<6,R19<>"",S19<>""),ort($R19,$S19,$AY$3:$AZ$3),"") ->  | AM19: =IF(AND($AA19<6,R19<>"",S19<>""),ort($R19,$S19,$AY$4:$AZ$5),"") ->  | AN19: =IF(AND($AA19<6,R19<>"",S19<>""),ort($R19,$S19,$AY$6:$AZ$7),"") ->  | AO19: =IF(AND($AA19=6,R19<>"",S19<>""),ort($R19,$S19,$AY$8:$AZ$8),"") ->  | AP19: =IF(AND($AA19=7,R19<>"",S19<>""),ort($R19,$S19,$AY$9:$AZ$9),"") ->  | AQ19: =IF(AND($AA19<6,T19<>"",U19<>""),ort($T19,$U19,$AY$3:$AZ$3),"") ->  | AR19: =IF(AND($AA19<6,T19<>"",U19<>""),ort($T19,$U19,$AY$4:$AZ$5),"") ->  | AS19: =IF(AND($AA19<6,T19<>"",U19<>""),ort($T19,$U19,$AY$6:$AZ$7),"") ->  | AT19: =IF(AND($AA19=6,T19<>"",U19<>""),ort($T19,$U19,$AY$8:$AZ$8),"") ->  | AU19: =IF(AND($AA19=7,T19<>"",U19<>""),ort($T19,$U19,$AY$9:$AZ$9),"") ->  | BE19: 00:00:00
B20: =SUM($V$3:$V$33) -> 0 | L20: =DATE($B$3,$B$4,18) -> 2018-04-18 | M20: =DATE($B$3,$B$4,18) -> 2018-04-18 | O20: 00:00:00 | AA20: =IF(ISERROR(IF(NOT(ISERROR(MATCH($M20,Blad2!$A$2:$A$11,0))),7,WEEKDAY($M20,2))),"",IF(NOT(ISERROR(MATCH($M20,Blad2!$A$2:$A$11,0))),7,WEEKDAY($M20,2))) -> 3 | AB20: =IF(AND($AA20<6,N20<>"",O20<>""),ort($N20,$O20,$AY$3:$AZ$3),"") ->  | AC20: =IF(AND($AA20<6,N20<>"",O20<>""),ort($N20,$O20,$AY$4:$AZ$5),"") ->  | AD20: =IF(AND($AA20<6,N20<>"",O20<>""),ort($N20,$O20,$AY$6:$AZ$7),"") ->  | AE20: =IF(AND($AA20=6,N20<>"",O20<>""),ort($N20,$O20,$AY$8:$AZ$8),"") ->  | AF20: =IF(AND($AA20=7,N20<>"",O20<>""),ort($N20,$O20,$AY$9:$AZ$9),"") ->  | AG20: =IF(AND($AA20<6,P20<>"",Q20<>""),ort($P20,$Q20,$AY$3:$AZ$3),"") ->  | AH20: =IF(AND($AA20<6,P20<>"",Q20<>""),ort($P20,$Q20,$AY$4:$AZ$5),"") ->  | AI20: =IF(AND($AA20<6,P20<>"",Q20<>""),ort($P20,$Q20,$AY$6:$AZ$7),"") ->  | AJ20: =IF(AND($AA20=6,P20<>"",Q20<>""),ort($P20,$Q20,$AY$8:$AZ$8),"") ->  | AK20: =IF(AND($AA20=7,P20<>"",Q20<>""),ort($P20,$Q20,$AY$9:$AZ$9),"") ->  | AL20: =IF(AND($AA20<6,R20<>"",S20<>""),ort($R20,$S20,$AY$3:$AZ$3),"") ->  | AM20: =IF(AND($AA20<6,R20<>"",S20<>""),ort($R20,$S20,$AY$4:$AZ$5),"") ->  | AN20: =IF(AND($AA20<6,R20<>"",S20<>""),ort($R20,$S20,$AY$6:$AZ$7),"") ->  | AO20: =IF(AND($AA20=6,R20<>"",S20<>""),ort($R20,$S20,$AY$8:$AZ$8),"") ->  | AP20: =IF(AND($AA20=7,R20<>"",S20<>""),ort($R20,$S20,$AY$9:$AZ$9),"") ->  | AQ20: =IF(AND($AA20<6,T20<>"",U20<>""),ort($T20,$U20,$AY$3:$AZ$3),"") ->  | AR20: =IF(AND($AA20<6,T20<>"",U20<>""),ort($T20,$U20,$AY$4:$AZ$5),"") ->  | AS20: =IF(AND($AA20<6,T20<>"",U20<>""),ort($T20,$U20,$AY$6:$AZ$7),"") ->  | AT20: =IF(AND($AA20=6,T20<>"",U20<>""),ort($T20,$U20,$AY$8:$AZ$8),"") ->  | AU20: =IF(AND($AA20=7,T20<>"",U20<>""),ort($T20,$U20,$AY$9:$AZ$9),"") ->  | AW20: =COUNTA(Blad2!B12:B100)-COUNTIF(Blad2!B12:B100,"Verlof") -> 0 | AX20: Aantal opgenomen ATV-dagen | BE20: 00:00:00
L21: =DATE($B$3,$B$4,19) -> 2018-04-19 | M21: =DATE($B$3,$B$4,19) -> 2018-04-19 | O21: 00:00:00 | AA21: =IF(ISERROR(IF(NOT(ISERROR(MATCH($M21,Blad2!$A$2:$A$11,0))),7,WEEKDAY($M21,2))),"",IF(NOT(ISERROR(MATCH($M21,Blad2!$A$2:$A$11,0))),7,WEEKDAY($M21,2))) -> 4 | AB21: =IF(AND($AA21<6,N21<>"",O21<>""),ort($N21,$O21,$AY$3:$AZ$3),"") ->  | AC21: =IF(AND($AA21<6,N21<>"",O21<>""),ort($N21,$O21,$AY$4:$AZ$5),"") ->  | AD21: =IF(AND($AA21<6,N21<>"",O21<>""),ort($N21,$O21,$AY$6:$AZ$7),"") ->  | AE21: =IF(AND($AA21=6,N21<>"",O21<>""),ort($N21,$O21,$AY$8:$AZ$8),"") ->  | AF21: =IF(AND($AA21=7,N21<>"",O21<>""),ort($N21,$O21,$AY$9:$AZ$9),"") ->  | AG21: =IF(AND($AA21<6,P21<>"",Q21<>""),ort($P21,$Q21,$AY$3:$AZ$3),"") ->  | AH21: =IF(AND($AA21<6,P21<>"",Q21<>""),ort($P21,$Q21,$AY$4:$AZ$5),"") ->  | AI21: =IF(AND($AA21<6,P21<>"",Q21<>""),ort($P21,$Q21,$AY$6:$AZ$7),"") ->  | AJ21: =IF(AND($AA21=6,P21<>"",Q21<>""),ort($P21,$Q21,$AY$8:$AZ$8),"") ->  | AK21: =IF(AND($AA21=7,P21<>"",Q21<>""),ort($P21,$Q21,$AY$9:$AZ$9),"") ->  | AL21: =IF(AND($AA21<6,R21<>"",S21<>""),ort($R21,$S21,$AY$3:$AZ$3),"") ->  | AM21: =IF(AND($AA21<6,R21<>"",S21<>""),ort($R21,$S21,$AY$4:$AZ$5),"") ->  | AN21: =IF(AND($AA21<6,R21<>"",S21<>""),ort($R21,$S21,$AY$6:$AZ$7),"") ->  | AO21: =IF(AND($AA21=6,R21<>"",S21<>""),ort($R21,$S21,$AY$8:$AZ$8),"") ->  | AP21: =IF(AND($AA21=7,R21<>"",S21<>""),ort($R21,$S21,$AY$9:$AZ$9),"") ->  | AQ21: =IF(AND($AA21<6,T21<>"",U21<>""),ort($T21,$U21,$AY$3:$AZ$3),"") ->  | AR21: =IF(AND($AA21<6,T21<>"",U21<>""),ort($T21,$U21,$AY$4:$AZ$5),"") ->  | AS21: =IF(AND($AA21<6,T21<>"",U21<>""),ort($T21,$U21,$AY$6:$AZ$7),"") ->  | AT21: =IF(AND($AA21=6,T21<>"",U21<>""),ort($T21,$U21,$AY$8:$AZ$8),"") ->  | AU21: =IF(AND($AA21=7,T21<>"",U21<>""),ort($T21,$U21,$AY$9:$AZ$9),"") ->  | AW21: =COUNTA(Blad2!B12:B100)-COUNTIF(Blad2!B12:B100,"ATV") -> 2 | AX21: Aantal opgenomen verlofdagen | BE21: 00:00:00
L22: =DATE($B$3,$B$4,20) -> 2018-04-20 | M22: =DATE($B$3,$B$4,20) -> 2018-04-20 | O22: 00:00:00 | AA22: =IF(ISERROR(IF(NOT(ISERROR(MATCH($M22,Blad2!$A$2:$A$11,0))),7,WEEKDAY($M22,2))),"",IF(NOT(ISERROR(MATCH($M22,Blad2!$A$2:$A$11,0))),7,WEEKDAY($M22,2))) -> 5 | AB22: =IF(AND($AA22<6,N22<>"",O22<>""),ort($N22,$O22,$AY$3:$AZ$3),"") ->  | AC22: =IF(AND($AA22<6,N22<>"",O22<>""),ort($N22,$O22,$AY$4:$AZ$5),"") ->  | AD22: =IF(AND($AA22<6,N22<>"",O22<>""),ort($N22,$O22,$AY$6:$AZ$7),"") ->  | AE22: =IF(AND($AA22=6,N22<>"",O22<>""),ort($N22,$O22,$AY$8:$AZ$8),"") ->  | AF22: =IF(AND($AA22=7,N22<>"",O22<>""),ort($N22,$O22,$AY$9:$AZ$9),"") ->  | AG22: =IF(AND($AA22<6,P22<>"",Q22<>""),ort($P22,$Q22,$AY$3:$AZ$3),"") ->  | AH22: =IF(AND($AA22<6,P22<>"",Q22<>""),ort($P22,$Q22,$AY$4:$AZ$5),"") ->  | AI22: =IF(AND($AA22<6,P22<>"",Q22<>""),ort($P22,$Q22,$AY$6:$AZ$7),"") ->  | AJ22: =IF(AND($AA22=6,P22<>"",Q22<>""),ort($P22,$Q22,$AY$8:$AZ$8),"") ->  | AK22: =IF(AND($AA22=7,P22<>"",Q22<>""),ort($P22,$Q22,$AY$9:$AZ$9),"") ->  | AL22: =IF(AND($AA22<6,R22<>"",S22<>""),ort($R22,$S22,$AY$3:$AZ$3),"") ->  | AM22: =IF(AND($AA22<6,R22<>"",S22<>""),ort($R22,$S22,$AY$4:$AZ$5),"") ->  | AN22: =IF(AND($AA22<6,R22<>"",S22<>""),ort($R22,$S22,$AY$6:$AZ$7),"") ->  | AO22: =IF(AND($AA22=6,R22<>"",S22<>""),ort($R22,$S22,$AY$8:$AZ$8),"") ->  | AP22: =IF(AND($AA22=7,R22<>"",S22<>""),ort($R22,$S22,$AY$9:$AZ$9),"") ->  | AQ22: =IF(AND($AA22<6,T22<>"",U22<>""),ort($T22,$U22,$AY$3:$AZ$3),"") ->  | AR22: =IF(AND($AA22<6,T22<>"",U22<>""),ort($T22,$U22,$AY$4:$AZ$5),"") ->  | AS22: =IF(AND($AA22<6,T22<>"",U22<>""),ort($T22,$U22,$AY$6:$AZ$7),"") ->  | AT22: =IF(AND($AA22=6,T22<>"",U22<>""),ort($T22,$U22,$AY$8:$AZ$8),"") ->  | AU22: =IF(AND($AA22=7,T22<>"",U22<>""),ort($T22,$U22,$AY$9:$AZ$9),"") ->  | BE22: 00:00:00
L23: =DATE($B$3,$B$4,21) -> 2018-04-21 | M23: =DATE($B$3,$B$4,21) -> 2018-04-21 | O23: 00:00:00 | AA23: =IF(ISERROR(IF(NOT(ISERROR(MATCH($M23,Blad2!$A$2:$A$11,0))),7,WEEKDAY($M23,2))),"",IF(NOT(ISERROR(MATCH($M23,Blad2!$A$2:$A$11,0))),7,WEEKDAY($M23,2))) -> 6 | AB23: =IF(AND($AA23<6,N23<>"",O23<>""),ort($N23,$O23,$AY$3:$AZ$3),"") ->  | AC23: =IF(AND($AA23<6,N23<>"",O23<>""),ort($N23,$O23,$AY$4:$AZ$5),"") ->  | AD23: =IF(AND($AA23<6,N23<>"",O23<>""),ort($N23,$O23,$AY$6:$AZ$7),"") ->  | AE23: =IF(AND($AA23=6,N23<>"",O23<>""),ort($N23,$O23,$AY$8:$AZ$8),"") ->  | AF23: =IF(AND($AA23=7,N23<>"",O23<>""),ort($N23,$O23,$AY$9:$AZ$9),"") ->  | AG23: =IF(AND($AA23<6,P23<>"",Q23<>""),ort($P23,$Q23,$AY$3:$AZ$3),"") ->  | AH23: =IF(AND($AA23<6,P23<>"",Q23<>""),ort($P23,$Q23,$AY$4:$AZ$5),"") ->  | AI23: =IF(AND($AA23<6,P23<>"",Q23<>""),ort($P23,$Q23,$AY$6:$AZ$7),"") ->  | AJ23: =IF(AND($AA23=6,P23<>"",Q23<>""),ort($P23,$Q23,$AY$8:$AZ$8),"") ->  | AK23: =IF(AND($AA23=7,P23<>"",Q23<>""),ort($P23,$Q23,$AY$9:$AZ$9),"") ->  | AL23: =IF(AND($AA23<6,R23<>"",S23<>""),ort($R23,$S23,$AY$3:$AZ$3),"") ->  | AM23: =IF(AND($AA23<6,R23<>"",S23<>""),ort($R23,$S23,$AY$4:$AZ$5),"") ->  | AN23: =IF(AND($AA23<6,R23<>"",S23<>""),ort($R23,$S23,$AY$6:$AZ$7),"") ->  | AO23: =IF(AND($AA23=6,R23<>"",S23<>""),ort($R23,$S23,$AY$8:$AZ$8),"") ->  | AP23: =IF(AND($AA23=7,R23<>"",S23<>""),ort($R23,$S23,$AY$9:$AZ$9),"") ->  | AQ23: =IF(AND($AA23<6,T23<>"",U23<>""),ort($T23,$U23,$AY$3:$AZ$3),"") ->  | AR23: =IF(AND($AA23<6,T23<>"",U23<>""),ort($T23,$U23,$AY$4:$AZ$5),"") ->  | AS23: =IF(AND($AA23<6,T23<>"",U23<>""),ort($T23,$U23,$AY$6:$AZ$7),"") ->  | AT23: =IF(AND($AA23=6,T23<>"",U23<>""),ort($T23,$U23,$AY$8:$AZ$8),"") ->  | AU23: =IF(AND($AA23=7,T23<>"",U23<>""),ort($T23,$U23,$AY$9:$AZ$9),"") ->  | BE23: 00:00:00
L24: =DATE($B$3,$B$4,22) -> 2018-04-22 | M24: =DATE($B$3,$B$4,22) -> 2018-04-22 | O24: 00:00:00 | AA24: =IF(ISERROR(IF(NOT(ISERROR(MATCH($M24,Blad2!$A$2:$A$11,0))),7,WEEKDAY($M24,2))),"",IF(NOT(ISERROR(MATCH($M24,Blad2!$A$2:$A$11,0))),7,WEEKDAY($M24,2))) -> 7 | AB24: =IF(AND($AA24<6,N24<>"",O24<>""),ort($N24,$O24,$AY$3:$AZ$3),"") ->  | AC24: =IF(AND($AA24<6,N24<>"",O24<>""),ort($N24,$O24,$AY$4:$AZ$5),"") ->  | AD24: =IF(AND($AA24<6,N24<>"",O24<>""),ort($N24,$O24,$AY$6:$AZ$7),"") ->  | AE24: =IF(AND($AA24=6,N24<>"",O24<>""),ort($N24,$O24,$AY$8:$AZ$8),"") ->  | AF24: =IF(AND($AA24=7,N24<>"",O24<>""),ort($N24,$O24,$AY$9:$AZ$9),"") ->  | AG24: =IF(AND($AA24<6,P24<>"",Q24<>""),ort($P24,$Q24,$AY$3:$AZ$3),"") ->  | AH24: =IF(AND($AA24<6,P24<>"",Q24<>""),ort($P24,$Q24,$AY$4:$AZ$5),"") ->  | AI24: =IF(AND($AA24<6,P24<>"",Q24<>""),ort($P24,$Q24,$AY$6:$AZ$7),"") ->  | AJ24: =IF(AND($AA24=6,P24<>"",Q24<>""),ort($P24,$Q24,$AY$8:$AZ$8),"") ->  | AK24: =IF(AND($AA24=7,P24<>"",Q24<>""),ort($P24,$Q24,$AY$9:$AZ$9),"") ->  | AL24: =IF(AND($AA24<6,R24<>"",S24<>""),ort($R24,$S24,$AY$3:$AZ$3),"") ->  | AM24: =IF(AND($AA24<6,R24<>"",S24<>""),ort($R24,$S24,$AY$4:$AZ$5),"") ->  | AN24: =IF(AND($AA24<6,R24<>"",S24<>""),ort($R24,$S24,$AY$6:$AZ$7),"") ->  | AO24: =IF(AND($AA24=6,R24<>"",S24<>""),ort($R24,$S24,$AY$8:$AZ$8),"") ->  | AP24: =IF(AND($AA24=7,R24<>"",S24<>""),ort($R24,$S24,$AY$9:$AZ$9),"") ->  | AQ24: =IF(AND($AA24<6,T24<>"",U24<>""),ort($T24,$U24,$AY$3:$AZ$3),"") ->  | AR24: =IF(AND($AA24<6,T24<>"",U24<>""),ort($T24,$U24,$AY$4:$AZ$5),"") ->  | AS24: =IF(AND($AA24<6,T24<>"",U24<>""),ort($T24,$U24,$AY$6:$AZ$7),"") ->  | AT24: =IF(AND($AA24=6,T24<>"",U24<>""),ort($T24,$U24,$AY$8:$AZ$8),"") ->  | AU24: =IF(AND($AA24=7,T24<>"",U24<>""),ort($T24,$U24,$AY$9:$AZ$9),"") ->  | BE24: 00:00:00
K25: 17 | L25: =DATE($B$3,$B$4,23) -> 2018-04-23 | M25: =DATE($B$3,$B$4,23) -> 2018-04-23 | O25: 00:00:00 | AA25: =IF(ISERROR(IF(NOT(ISERROR(MATCH($M25,Blad2!$A$2:$A$11,0))),7,WEEKDAY($M25,2))),"",IF(NOT(ISERROR(MATCH($M25,Blad2!$A$2:$A$11,0))),7,WEEKDAY($M25,2))) -> 1 | AB25: =IF(AND($AA25<6,N25<>"",O25<>""),ort($N25,$O25,$AY$3:$AZ$3),"") ->  | AC25: =IF(AND($AA25<6,N25<>"",O25<>""),ort($N25,$O25,$AY$4:$AZ$5),"") ->  | AD25: =IF(AND($AA25<6,N25<>"",O25<>""),ort($N25,$O25,$AY$6:$AZ$7),"") ->  | AE25: =IF(AND($AA25=6,N25<>"",O25<>""),ort($N25,$O25,$AY$8:$AZ$8),"") ->  | AF25: =IF(AND($AA25=7,N25<>"",O25<>""),ort($N25,$O25,$AY$9:$AZ$9),"") ->  | AG25: =IF(AND($AA25<6,P25<>"",Q25<>""),ort($P25,$Q25,$AY$3:$AZ$3),"") ->  | AH25: =IF(AND($AA25<6,P25<>"",Q25<>""),ort($P25,$Q25,$AY$4:$AZ$5),"") ->  | AI25: =IF(AND($AA25<6,P25<>"",Q25<>""),ort($P25,$Q25,$AY$6:$AZ$7),"") ->  | AJ25: =IF(AND($AA25=6,P25<>"",Q25<>""),ort($P25,$Q25,$AY$8:$AZ$8),"") ->  | AK25: =IF(AND($AA25=7,P25<>"",Q25<>""),ort($P25,$Q25,$AY$9:$AZ$9),"") ->  | AL25: =IF(AND($AA25<6,R25<>"",S25<>""),ort($R25,$S25,$AY$3:$AZ$3),"") ->  | AM25: =IF(AND($AA25<6,R25<>"",S25<>""),ort($R25,$S25,$AY$4:$AZ$5),"") ->  | AN25: =IF(AND($AA25<6,R25<>"",S25<>""),ort($R25,$S25,$AY$6:$AZ$7),"") ->  | AO25: =IF(AND($AA25=6,R25<>"",S25<>""),ort($R25,$S25,$AY$8:$AZ$8),"") ->  | AP25: =IF(AND($AA25=7,R25<>"",S25<>""),ort($R25,$S25,$AY$9:$AZ$9),"") ->  | AQ25: =IF(AND($AA25<6,T25<>"",U25<>""),ort($T25,$U25,$AY$3:$AZ$3),"") ->  | AR25: =IF(AND($AA25<6,T25<>"",U25<>""),ort($T25,$U25,$AY$4:$AZ$5),"") ->  | AS25: =IF(AND($AA25<6,T25<>"",U25<>""),ort($T25,$U25,$AY$6:$AZ$7),"") ->  | AT25: =IF(AND($AA25=6,T25<>"",U25<>""),ort($T25,$U25,$AY$8:$AZ$8),"") ->  | AU25: =IF(AND($AA25=7,T25<>"",U25<>""),ort($T25,$U25,$AY$9:$AZ$9),"") ->  | BE25: 00:00:00
L26: =DATE($B$3,$B$4,24) -> 2018-04-24 | M26: =DATE($B$3,$B$4,24) -> 2018-04-24 | O26: 00:00:00 | AA26: =IF(ISERROR(IF(NOT(ISERROR(MATCH($M26,Blad2!$A$2:$A$11,0))),7,WEEKDAY($M26,2))),"",IF(NOT(ISERROR(MATCH($M26,Blad2!$A$2:$A$11,0))),7,WEEKDAY($M26,2))) -> 2 | AB26: =IF(AND($AA26<6,N26<>"",O26<>""),ort($N26,$O26,$AY$3:$AZ$3),"") ->  | AC26: =IF(AND($AA26<6,N26<>"",O26<>""),ort($N26,$O26,$AY$4:$AZ$5),"") ->  | AD26: =IF(AND($AA26<6,N26<>"",O26<>""),ort($N26,$O26,$AY$6:$AZ$7),"") ->  | AE26: =IF(AND($AA26=6,N26<>"",O26<>""),ort($N26,$O26,$AY$8:$AZ$8),"") ->  | AF26: =IF(AND($AA26=7,N26<>"",O26<>""),ort($N26,$O26,$AY$9:$AZ$9),"") ->  | AG26: =IF(AND($AA26<6,P26<>"",Q26<>""),ort($P26,$Q26,$AY$3:$AZ$3),"") ->  | AH26: =IF(AND($AA26<6,P26<>"",Q26<>""),ort($P26,$Q26,$AY$4:$AZ$5),"") ->  | AI26: =IF(AND($AA26<6,P26<>"",Q26<>""),ort($P26,$Q26,$AY$6:$AZ$7),"") ->  | AJ26: =IF(AND($AA26=6,P26<>"",Q26<>""),ort($P26,$Q26,$AY$8:$AZ$8),"") ->  | AK26: =IF(AND($AA26=7,P26<>"",Q26<>""),ort($P26,$Q26,$AY$9:$AZ$9),"") ->  | AL26: =IF(AND($AA26<6,R26<>"",S26<>""),ort($R26,$S26,$AY$3:$AZ$3),"") ->  | AM26: =IF(AND($AA26<6,R26<>"",S26<>""),ort($R26,$S26,$AY$4:$AZ$5),"") ->  | AN26: =IF(AND($AA26<6,R26<>"",S26<>""),ort($R26,$S26,$AY$6:$AZ$7),"") ->  | AO26: =IF(AND($AA26=6,R26<>"",S26<>""),ort($R26,$S26,$AY$8:$AZ$8),"") ->  | AP26: =IF(AND($AA26=7,R26<>"",S26<>""),ort($R26,$S26,$AY$9:$AZ$9),"") ->  | AQ26: =IF(AND($AA26<6,T26<>"",U26<>""),ort($T26,$U26,$AY$3:$AZ$3),"") ->  | AR26: =IF(AND($AA26<6,T26<>"",U26<>""),ort($T26,$U26,$AY$4:$AZ$5),"") ->  | AS26: =IF(AND($AA26<6,T26<>"",U26<>""),ort($T26,$U26,$AY$6:$AZ$7),"") ->  | AT26: =IF(AND($AA26=6,T26<>"",U26<>""),ort($T26,$U26,$AY$8:$AZ$8),"") ->  | AU26: =IF(AND($AA26=7,T26<>"",U26<>""),ort($T26,$U26,$AY$9:$AZ$9),"") ->  | BE26: 00:00:00
L27: =DATE($B$3,$B$4,25) -> 2018-04-25 | M27: =DATE($B$3,$B$4,25) -> 2018-04-25 | O27: 00:00:00 | AA27: =IF(ISERROR(IF(NOT(ISERROR(MATCH($M27,Blad2!$A$2:$A$11,0))),7,WEEKDAY($M27,2))),"",IF(NOT(ISERROR(MATCH($M27,Blad2!$A$2:$A$11,0))),7,WEEKDAY($M27,2))) -> 3 | AB27: =IF(AND($AA27<6,N27<>"",O27<>""),ort($N27,$O27,$AY$3:$AZ$3),"") ->  | AC27: =IF(AND($AA27<6,N27<>"",O27<>""),ort($N27,$O27,$AY$4:$AZ$5),"") ->  | AD27: =IF(AND($AA27<6,N27<>"",O27<>""),ort($N27,$O27,$AY$6:$AZ$7),"") ->  | AE27: =IF(AND($AA27=6,N27<>"",O27<>""),ort($N27,$O27,$AY$8:$AZ$8),"") ->  | AF27: =IF(AND($AA27=7,N27<>"",O27<>""),ort($N27,$O27,$AY$9:$AZ$9),"") ->  | AG27: =IF(AND($AA27<6,P27<>"",Q27<>""),ort($P27,$Q27,$AY$3:$AZ$3),"") ->  | AH27: =IF(AND($AA27<6,P27<>"",Q27<>""),ort($P27,$Q27,$AY$4:$AZ$5),"") ->  | AI27: =IF(AND($AA27<6,P27<>"",Q27<>""),ort($P27,$Q27,$AY$6:$AZ$7),"") ->  | AJ27: =IF(AND($AA27=6,P27<>"",Q27<>""),ort($P27,$Q27,$AY$8:$AZ$8),"") ->  | AK27: =IF(AND($AA27=7,P27<>"",Q27<>""),ort($P27,$Q27,$AY$9:$AZ$9),"") ->  | AL27: =IF(AND($AA27<6,R27<>"",S27<>""),ort($R27,$S27,$AY$3:$AZ$3),"") ->  | AM27: =IF(AND($AA27<6,R27<>"",S27<>""),ort($R27,$S27,$AY$4:$AZ$5),"") ->  | AN27: =IF(AND($AA27<6,R27<>"",S27<>""),ort($R27,$S27,$AY$6:$AZ$7),"") ->  | AO27: =IF(AND($AA27=6,R27<>"",S27<>""),ort($R27,$S27,$AY$8:$AZ$8),"") ->  | AP27: =IF(AND($AA27=7,R27<>"",S27<>""),ort($R27,$S27,$AY$9:$AZ$9),"") ->  | AQ27: =IF(AND($AA27<6,T27<>"",U27<>""),ort($T27,$U27,$AY$3:$AZ$3),"") ->  | AR27: =IF(AND($AA27<6,T27<>"",U27<>""),ort($T27,$U27,$AY$4:$AZ$5),"") ->  | AS27: =IF(AND($AA27<6,T27<>"",U27<>""),ort($T27,$U27,$AY$6:$AZ$7),"") ->  | AT27: =IF(AND($AA27=6,T27<>"",U27<>""),ort($T27,$U27,$AY$8:$AZ$8),"") ->  | AU27: =IF(AND($AA27=7,T27<>"",U27<>""),ort($T27,$U27,$AY$9:$AZ$9),"") ->  | BE27: 00:00:00
L28: =DATE($B$3,$B$4,26) -> 2018-04-26 | M28: =DATE($B$3,$B$4,26) -> 2018-04-26 | O28: 00:00:00 | AA28: =IF(ISERROR(IF(NOT(ISERROR(MATCH($M28,Blad2!$A$2:$A$11,0))),7,WEEKDAY($M28,2))),"",IF(NOT(ISERROR(MATCH($M28,Blad2!$A$2:$A$11,0))),7,WEEKDAY($M28,2))) -> 4 | AB28: =IF(AND($AA28<6,N28<>"",O28<>""),ort($N28,$O28,$AY$3:$AZ$3),"") ->  | AC28: =IF(AND($AA28<6,N28<>"",O28<>""),ort($N28,$O28,$AY$4:$AZ$5),"") ->  | AD28: =IF(AND($AA28<6,N28<>"",O28<>""),ort($N28,$O28,$AY$6:$AZ$7),"") ->  | AE28: =IF(AND($AA28=6,N28<>"",O28<>""),ort($N28,$O28,$AY$8:$AZ$8),"") ->  | AF28: =IF(AND($AA28=7,N28<>"",O28<>""),ort($N28,$O28,$AY$9:$AZ$9),"") ->  | AG28: =IF(AND($AA28<6,P28<>"",Q28<>""),ort($P28,$Q28,$AY$3:$AZ$3),"") ->  | AH28: =IF(AND($AA28<6,P28<>"",Q28<>""),ort($P28,$Q28,$AY$4:$AZ$5),"") ->  | AI28: =IF(AND($AA28<6,P28<>"",Q28<>""),ort($P28,$Q28,$AY$6:$AZ$7),"") ->  | AJ28: =IF(AND($AA28=6,P28<>"",Q28<>""),ort($P28,$Q28,$AY$8:$AZ$8),"") ->  | AK28: =IF(AND($AA28=7,P28<>"",Q28<>""),ort($P28,$Q28,$AY$9:$AZ$9),"") ->  | AL28: =IF(AND($AA28<6,R28<>"",S28<>""),ort($R28,$S28,$AY$3:$AZ$3),"") ->  | AM28: =IF(AND($AA28<6,R28<>"",S28<>""),ort($R28,$S28,$AY$4:$AZ$5),"") ->  | AN28: =IF(AND($AA28<6,R28<>"",S28<>""),ort($R28,$S28,$AY$6:$AZ$7),"") ->  | AO28: =IF(AND($AA28=6,R28<>"",S28<>""),ort($R28,$S28,$AY$8:$AZ$8),"") ->  | AP28: =IF(AND($AA28=7,R28<>"",S28<>""),ort($R28,$S28,$AY$9:$AZ$9),"") ->  | AQ28: =IF(AND($AA28<6,T28<>"",U28<>""),ort($T28,$U28,$AY$3:$AZ$3),"") ->  | AR28: =IF(AND($AA28<6,T28<>"",U28<>""),ort($T28,$U28,$AY$4:$AZ$5),"") ->  | AS28: =IF(AND($AA28<6,T28<>"",U28<>""),ort($T28,$U28,$AY$6:$AZ$7),"") ->  | AT28: =IF(AND($AA28=6,T28<>"",U28<>""),ort($T28,$U28,$AY$8:$AZ$8),"") ->  | AU28: =IF(AND($AA28=7,T28<>"",U28<>""),ort($T28,$U28,$AY$9:$AZ$9),"") ->  | BE28: 00:00:00
J29: Koningsdag | L29: =DATE($B$3,$B$4,27) -> 2018-04-27 | M29: =DATE($B$3,$B$4,27) -> 2018-04-27 | O29: 00:00:00 | AA29: =IF(ISERROR(IF(NOT(ISERROR(MATCH($M29,Blad2!$A$2:$A$11,0))),7,WEEKDAY($M29,2))),"",IF(NOT(ISERROR(MATCH($M29,Blad2!$A$2:$A$11,0))),7,WEEKDAY($M29,2))) -> 7 | AB29: =IF(AND($AA29<6,N29<>"",O29<>""),ort($N29,$O29,$AY$3:$AZ$3),"") ->  | AC29: =IF(AND($AA29<6,N29<>"",O29<>""),ort($N29,$O29,$AY$4:$AZ$5),"") ->  | AD29: =IF(AND($AA29<6,N29<>"",O29<>""),ort($N29,$O29,$AY$6:$AZ$7),"") ->  | AE29: =IF(AND($AA29=6,N29<>"",O29<>""),ort($N29,$O29,$AY$8:$AZ$8),"") ->  | AF29: =IF(AND($AA29=7,N29<>"",O29<>""),ort($N29,$O29,$AY$9:$AZ$9),"") ->  | AG29: =IF(AND($AA29<6,P29<>"",Q29<>""),ort($P29,$Q29,$AY$3:$AZ$3),"") ->  | AH29: =IF(AND($AA29<6,P29<>"",Q29<>""),ort($P29,$Q29,$AY$4:$AZ$5),"") ->  | AI29: =IF(AND($AA29<6,P29<>"",Q29<>""),ort($P29,$Q29,$AY$6:$AZ$7),"") ->  | AJ29: =IF(AND($AA29=6,P29<>"",Q29<>""),ort($P29,$Q29,$AY$8:$AZ$8),"") ->  | AK29: =IF(AND($AA29=7,P29<>"",Q29<>""),ort($P29,$Q29,$AY$9:$AZ$9),"") ->  | AL29: =IF(AND($AA29<6,R29<>"",S29<>""),ort($R29,$S29,$AY$3:$AZ$3),"") ->  | AM29: =IF(AND($AA29<6,R29<>"",S29<>""),ort($R29,$S29,$AY$4:$AZ$5),"") ->  | AN29: =IF(AND($AA29<6,R29<>"",S29<>""),ort($R29,$S29,$AY$6:$AZ$7),"") ->  | AO29: =IF(AND($AA29=6,R29<>"",S29<>""),ort($R29,$S29,$AY$8:$AZ$8),"") ->  | AP29: =IF(AND($AA29=7,R29<>"",S29<>""),ort($R29,$S29,$AY$9:$AZ$9),"") ->  | AQ29: =IF(AND($AA29<6,T29<>"",U29<>""),ort($T29,$U29,$AY$3:$AZ$3),"") ->  | AR29: =IF(AND($AA29<6,T29<>"",U29<>""),ort($T29,$U29,$AY$4:$AZ$5),"") ->  | AS29: =IF(AND($AA29<6,T29<>"",U29<>""),ort($T29,$U29,$AY$6:$AZ$7),"") ->  | AT29: =IF(AND($AA29=6,T29<>"",U29<>""),ort($T29,$U29,$AY$8:$AZ$8),"") ->  | AU29: =IF(AND($AA29=7,T29<>"",U29<>""),ort($T29,$U29,$AY$9:$AZ$9),"") ->  | BE29: 00:00:00
L30: =DATE($B$3,$B$4,28) -> 2018-04-28 | M30: =DATE($B$3,$B$4,28) -> 2018-04-28 | O30: 00:00:00 | AA30: =IF(ISERROR(IF(NOT(ISERROR(MATCH($M30,Blad2!$A$2:$A$11,0))),7,WEEKDAY($M30,2))),"",IF(NOT(ISERROR(MATCH($M30,Blad2!$A$2:$A$11,0))),7,WEEKDAY($M30,2))) -> 6 | AB30: =IF(AND($AA30<6,N30<>"",O30<>""),ort($N30,$O30,$AY$3:$AZ$3),"") ->  | AC30: =IF(AND($AA30<6,N30<>"",O30<>""),ort($N30,$O30,$AY$4:$AZ$5),"") ->  | AD30: =IF(AND($AA30<6,N30<>"",O30<>""),ort($N30,$O30,$AY$6:$AZ$7),"") ->  | AE30: =IF(AND($AA30=6,N30<>"",O30<>""),ort($N30,$O30,$AY$8:$AZ$8),"") ->  | AF30: =IF(AND($AA30=7,N30<>"",O30<>""),ort($N30,$O30,$AY$9:$AZ$9),"") ->  | AG30: =IF(AND($AA30<6,P30<>"",Q30<>""),ort($P30,$Q30,$AY$3:$AZ$3),"") ->  | AH30: =IF(AND($AA30<6,P30<>"",Q30<>""),ort($P30,$Q30,$AY$4:$AZ$5),"") ->  | AI30: =IF(AND($AA30<6,P30<>"",Q30<>""),ort($P30,$Q30,$AY$6:$AZ$7),"") ->  | AJ30: =IF(AND($AA30=6,P30<>"",Q30<>""),ort($P30,$Q30,$AY$8:$AZ$8),"") ->  | AK30: =IF(AND($AA30=7,P30<>"",Q30<>""),ort($P30,$Q30,$AY$9:$AZ$9),"") ->  | AL30: =IF(AND($AA30<6,R30<>"",S30<>""),ort($R30,$S30,$AY$3:$AZ$3),"") ->  | AM30: =IF(AND($AA30<6,R30<>"",S30<>""),ort($R30,$S30,$AY$4:$AZ$5),"") ->  | AN30: =IF(AND($AA30<6,R30<>"",S30<>""),ort($R30,$S30,$AY$6:$AZ$7),"") ->  | AO30: =IF(AND($AA30=6,R30<>"",S30<>""),ort($R30,$S30,$AY$8:$AZ$8),"") ->  | AP30: =IF(AND($AA30=7,R30<>"",S30<>""),ort($R30,$S30,$AY$9:$AZ$9),"") ->  | AQ30: =IF(AND($AA30<6,T30<>"",U30<>""),ort($T30,$U30,$AY$3:$AZ$3),"") ->  | AR30: =IF(AND($AA30<6,T30<>"",U30<>""),ort($T30,$U30,$AY$4:$AZ$5),"") ->  | AS30: =IF(AND($AA30<6,T30<>"",U30<>""),ort($T30,$U30,$AY$6:$AZ$7),"") ->  | AT30: =IF(AND($AA30=6,T30<>"",U30<>""),ort($T30,$U30,$AY$8:$AZ$8),"") ->  | AU30: =IF(AND($AA30=7,T30<>"",U30<>""),ort($T30,$U30,$AY$9:$AZ$9),"") ->  | BE30: 00:00:00
K31: =IF(L31="","",IF(WEEKDAY(L31)=2,1+INT((L31-DATE(YEAR(L31+4-WEEKDAY(L31+6)),1,5)+WEEKDAY(DATE(YEAR(L31+4-WEEKDAY(L31+6)),1,3)))/7),"")) ->  | L31: =IF(MONTH(L$30+1)<>MONTH(L$30),"",L$30+1) -> 2018-04-29 | M31: =IF(MONTH(M$30+1)<>MONTH(M$30),"",M$30+1) -> 2018-04-29 | O31: 00:00:00 | AA31: =IF(ISERROR(IF(NOT(ISERROR(MATCH($M31,Blad2!$A$2:$A$11,0))),7,WEEKDAY($M31,2))),"",IF(NOT(ISERROR(MATCH($M31,Blad2!$A$2:$A$11,0))),7,WEEKDAY($M31,2))) -> 7 | AB31: =IF(AND($AA31<6,N31<>"",O31<>""),ort($N31,$O31,$AY$3:$AZ$3),"") ->  | AC31: =IF(AND($AA31<6,N31<>"",O31<>""),ort($N31,$O31,$AY$4:$AZ$5),"") ->  | AD31: =IF(AND($AA31<6,N31<>"",O31<>""),ort($N31,$O31,$AY$6:$AZ$7),"") ->  | AE31: =IF(AND($AA31=6,N31<>"",O31<>""),ort($N31,$O31,$AY$8:$AZ$8),"") ->  | AF31: =IF(AND($AA31=7,N31<>"",O31<>""),ort($N31,$O31,$AY$9:$AZ$9),"") ->  | AG31: =IF(AND($AA31<6,P31<>"",Q31<>""),ort($P31,$Q31,$AY$3:$AZ$3),"") ->  | AH31: =IF(AND($AA31<6,P31<>"",Q31<>""),ort($P31,$Q31,$AY$4:$AZ$5),"") ->  | AI31: =IF(AND($AA31<6,P31<>"",Q31<>""),ort($P31,$Q31,$AY$6:$AZ$7),"") ->  | AJ31: =IF(AND($AA31=6,P31<>"",Q31<>""),ort($P31,$Q31,$AY$8:$AZ$8),"") ->  | AK31: =IF(AND($AA31=7,P31<>"",Q31<>""),ort($P31,$Q31,$AY$9:$AZ$9),"") ->  | AL31: =IF(AND($AA31<6,R31<>"",S31<>""),ort($R31,$S31,$AY$3:$AZ$3),"") ->  | AM31: =IF(AND($AA31<6,R31<>"",S31<>""),ort($R31,$S31,$AY$4:$AZ$5),"") ->  | AN31: =IF(AND($AA31<6,R31<>"",S31<>""),ort($R31,$S31,$AY$6:$AZ$7),"") ->  | AO31: =IF(AND($AA31=6,R31<>"",S31<>""),ort($R31,$S31,$AY$8:$AZ$8),"") ->  | AP31: =IF(AND($AA31=7,R31<>"",S31<>""),ort($R31,$S31,$AY$9:$AZ$9),"") ->  | AQ31: =IF(AND($AA31<6,T31<>"",U31<>""),ort($T31,$U31,$AY$3:$AZ$3),"") ->  | AR31: =IF(AND($AA31<6,T31<>"",U31<>""),ort($T31,$U31,$AY$4:$AZ$5),"") ->  | AS31: =IF(AND($AA31<6,T31<>"",U31<>""),ort($T31,$U31,$AY$6:$AZ$7),"") ->  | AT31: =IF(AND($AA31=6,T31<>"",U31<>""),ort($T31,$U31,$AY$8:$AZ$8),"") ->  | AU31: =IF(AND($AA31=7,T31<>"",U31<>""),ort($T31,$U31,$AY$9:$AZ$9),"") ->  | BE31: 00:00:00
B32: Totaal Uren incl 150 % | K32: 18 | L32: =IF(L31="","",IF(MONTH($M31+1)<>MONTH($M31),"",$M31+1)) -> 2018-04-30 | M32: =IF(M31="","",IF(MONTH($M31+1)<>MONTH($M31),"",$M31+1)) -> 2018-04-30 | O32: 00:00:00 | AA32: =IF(ISERROR(IF(NOT(ISERROR(MATCH($M32,Blad2!$A$2:$A$11,0))),7,WEEKDAY($M32,2))),"",IF(NOT(ISERROR(MATCH($M32,Blad2!$A$2:$A$11,0))),7,WEEKDAY($M32,2))) -> 1 | AB32: =IF(AND($AA32<6,N32<>"",O32<>""),ort($N32,$O32,$AY$3:$AZ$3),"") ->  | AC32: =IF(AND($AA32<6,N32<>"",O32<>""),ort($N32,$O32,$AY$4:$AZ$5),"") ->  | AD32: =IF(AND($AA32<6,N32<>"",O32<>""),ort($N32,$O32,$AY$6:$AZ$7),"") ->  | AE32: =IF(AND($AA32=6,N32<>"",O32<>""),ort($N32,$O32,$AY$8:$AZ$8),"") ->  | AF32: =IF(AND($AA32=7,N32<>"",O32<>""),ort($N32,$O32,$AY$9:$AZ$9),"") ->  | AG32: =IF(AND($AA32<6,P32<>"",Q32<>""),ort($P32,$Q32,$AY$3:$AZ$3),"") ->  | AH32: =IF(AND($AA32<6,P32<>"",Q32<>""),ort($P32,$Q32,$AY$4:$AZ$5),"") ->  | AI32: =IF(AND($AA32<6,P32<>"",Q32<>""),ort($P32,$Q32,$AY$6:$AZ$7),"") ->  | AJ32: =IF(AND($AA32=6,P32<>"",Q32<>""),ort($P32,$Q32,$AY$8:$AZ$8),"") ->  | AK32: =IF(AND($AA32=7,P32<>"",Q32<>""),ort($P32,$Q32,$AY$9:$AZ$9),"") ->  | AL32: =IF(AND($AA32<6,R32<>"",S32<>""),ort($R32,$S32,$AY$3:$AZ$3),"") ->  | AM32: =IF(AND($AA32<6,R32<>"",S32<>""),ort($R32,$S32,$AY$4:$AZ$5),"") ->  | AN32: =IF(AND($AA32<6,R32<>"",S32<>""),ort($R32,$S32,$AY$6:$AZ$7),"") ->  | AO32: =IF(AND($AA32=6,R32<>"",S32<>""),ort($R32,$S32,$AY$8:$AZ$8),"") ->  | AP32: =IF(AND($AA32=7,R32<>"",S32<>""),ort($R32,$S32,$AY$9:$AZ$9),"") ->  | AQ32: =IF(AND($AA32<6,T32<>"",U32<>""),ort($T32,$U32,$AY$3:$AZ$3),"") ->  | AR32: =IF(AND($AA32<6,T32<>"",U32<>""),ort($T32,$U32,$AY$4:$AZ$5),"") ->  | AS32: =IF(AND($AA32<6,T32<>"",U32<>""),ort($T32,$U32,$AY$6:$AZ$7),"") ->  | AT32: =IF(AND($AA32=6,T32<>"",U32<>""),ort($T32,$U32,$AY$8:$AZ$8),"") ->  | AU32: =IF(AND($AA32=7,T32<>"",U32<>""),ort($T32,$U32,$AY$9:$AZ$9),"") ->  | BE32: 00:00:00
B33: =SUM(U36,W37) -> 0 | K33: =IF(L33="","",IF(WEEKDAY(L33)=2,1+INT((L33-DATE(YEAR(L33+4-WEEKDAY(L33+6)),1,5)+WEEKDAY(DATE(YEAR(L33+4-WEEKDAY(L33+6)),1,3)))/7),"")) ->  | L33: =IF(L32="","",IF(MONTH($M32+1)<>MONTH($M32),"",$M32+1)) ->  | M33: =IF(M32="","",IF(MONTH($M32+1)<>MONTH($M32),"",$M32+1)) ->  | O33: 00:00:00 | AA33: =IF(ISERROR(IF(NOT(ISERROR(MATCH($M33,Blad2!$A$2:$A$11,0))),7,WEEKDAY($M33,2))),"",IF(NOT(ISERROR(MATCH($M33,Blad2!$A$2:$A$11,0))),7,WEEKDAY($M33,2))) ->  | AB33: =IF(AND($AA33<6,N33<>"",O33<>""),ort($N33,$O33,$AY$3:$AZ$3),"") ->  | AC33: =IF(AND($AA33<6,N33<>"",O33<>""),ort($N33,$O33,$AY$4:$AZ$5),"") ->  | AD33: =IF(AND($AA33<6,N33<>"",O33<>""),ort($N33,$O33,$AY$6:$AZ$7),"") ->  | AE33: =IF(AND($AA33=6,N33<>"",O33<>""),ort($N33,$O33,$AY$8:$AZ$8),"") ->  | AF33: =IF(AND($AA33=7,N33<>"",O33<>""),ort($N33,$O33,$AY$9:$AZ$9),"") ->  | AG33: =IF(AND($AA33<6,P33<>"",Q33<>""),ort($P33,$Q33,$AY$3:$AZ$3),"") ->  | AH33: =IF(AND($AA33<6,P33<>"",Q33<>""),ort($P33,$Q33,$AY$4:$AZ$5),"") ->  | AI33: =IF(AND($AA33<6,P33<>"",Q33<>""),ort($P33,$Q33,$AY$6:$AZ$7),"") ->  | AJ33: =IF(AND($AA33=6,P33<>"",Q33<>""),ort($P33,$Q33,$AY$8:$AZ$8),"") ->  | AK33: =IF(AND($AA33=7,P33<>"",Q33<>""),ort($P33,$Q33,$AY$9:$AZ$9),"") ->  | AL33: =IF(AND($AA33<6,R33<>"",S33<>""),ort($R33,$S33,$AY$3:$AZ$3),"") ->  | AM33: =IF(AND($AA33<6,R33<>"",S33<>""),ort($R33,$S33,$AY$4:$AZ$5),"") ->  | AN33: =IF(AND($AA33<6,R33<>"",S33<>""),ort($R33,$S33,$AY$6:$AZ$7),"") ->  | AO33: =IF(AND($AA33=6,R33<>"",S33<>""),ort($R33,$S33,$AY$8:$AZ$8),"") ->  | AP33: =IF(AND($AA33=7,R33<>"",S33<>""),ort($R33,$S33,$AY$9:$AZ$9),"") ->  | AQ33: =IF(AND($AA33<6,T33<>"",U33<>""),ort($T33,$U33,$AY$3:$AZ$3),"") ->  | AR33: =IF(AND($AA33<6,T33<>"",U33<>""),ort($T33,$U33,$AY$4:$AZ$5),"") ->  | AS33: =IF(AND($AA33<6,T33<>"",U33<>""),ort($T33,$U33,$AY$6:$AZ$7),"") ->  | AT33: =IF(AND($AA33=6,T33<>"",U33<>""),ort($T33,$U33,$AY$8:$AZ$8),"") ->  | AU33: =IF(AND($AA33=7,T33<>"",U33<>""),ort($T33,$U33,$AY$9:$AZ$9),"") ->  | BE33: 00:00:00
W34: =SUM(W3:W33) -> 0 | X34: =SUM(X3:X33) -> 0 | Y34: 0 | Z34: 0
M35: Plus / Min Uren Incl 150 % Uren | S35: Contract Uren | U35: =SUM(B17) -> 3.75
M36: =SUM(B33-B17) -> -3.75 | P36: 5 | R36: Gewerkte Uren 100 % | U36: =SUM(W34:X34) -> 0
M37: Uitbetalen / Verlof | P37: =SUM(M36*P36)*24 -> -450 | R37: Gewerkte Uren 150 % | U37: =SUM(Y34) -> 0 | V37: X 150% | W37: =SUM(U37*150%) -> 0
S38: Plus Uren
S39: Min Uren

Sheet Mei
O1: Test
C2: =TODAY() -> 2018-03-21 | J2: Feestdag | K2: wknr | L2: dag | M2: datum | N2: tijd in | O2: tijd uit | P2: tijd in | Q2: tijd uit | R2: tijd in | S2: tijd uit | T2: tijd in | U2: tijd uit | V2: werk tijd | W2: 1 | X2: 1.25 | Y2: 1.5 | Z2: 2 | AA2: hulp | AB2: 1 | AC2: 1.25 | AD2: 1.5 | AE2: 1.5 | AF2: 2 | AG2: 1 | AH2: 1.25 | AI2: 1.5 | AJ2: 1.5 | AK2: 2 | AL2: 1 | AM2: 1.25 | AN2: 1.5 | AO2: 1.5 | AP2: 2 | AQ2: 1 | AR2: 1.25 | AS2: 1.5 | AT2: 1.5 | AU2: 2 | AW2: onregelmatigheidstoeslag | BB2: Stops | BC2: Laden | BD2: Lossen | BE2: Werktijd
B3: 2018 | D3: Kalender | J3: =IF(ISNA(VLOOKUP(M3,feestdagen,2,0)),"",VLOOKUP(M3,feestdagen,2,0)) ->  | K3: =WEEKNUM(L3,21) -> 18 | L3: =DATE($B$3,$B$4,1) -> 2018-05-01 | M3: =DATE($B$3,$B$4,1) -> 2018-05-01 | O3: =SUM(N3,BE3) -> 00:00:00 | V3: =IF(AND(W3="",X3="",Y3="",Z3=""),"",SUM(W3:Z3)) ->  | W3: =IF(AND(AB3="",AG3="",AL3="",AQ3=""),"",SUM(AB3,AG3,AL3,AQ3)) ->  | X3: =IF(AND(AC3="",AH3="",AM3="",AR3=""),"",SUM(AC3,AH3,AM3,AR3)) ->  | Y3: =IF(AND(AD3="",AE3="",AI3="",AJ3="",AN3="",AO3="",AS3="",AT3=""),"",SUM(AD3,AE3,AI3,AJ3,AN3,AO3,AS3,AT3)) ->  | Z3: =IF(AND(AF3="",AK3="",AP3="",AU3=""),"",SUM(AF3,AK3,AP3,AU3)) ->  | AA3: =IF(ISERROR(IF(NOT(ISERROR(MATCH($M3,Blad2!$A$2:$A$11,0))),7,WEEKDAY($M3,2))),"",IF(NOT(ISERROR(MATCH($M3,Blad2!$A$2:$A$11,0))),7,WEEKDAY($M3,2))) -> 2 | AB3: =IF(AND($AA3<6,N3<>"",O3<>""),ort($N3,$O3,$AY$3:$AZ$3),"") ->  | AC3: =IF(AND($AA3<6,N3<>"",O3<>""),ort($N3,$O3,$AY$4:$AZ$5),"") ->  | AD3: =IF(AND($AA3<6,N3<>"",O3<>""),ort($N3,$O3,$AY$6:$AZ$7),"") ->  | AE3: =IF(AND($AA3=6,N3<>"",O3<>""),ort($N3,$O3,$AY$8:$AZ$8),"") ->  | AF3: =IF(AND($AA3=7,N3<>"",O3<>""),ort($N3,$O3,$AY$9:$AZ$9),"") ->  | AG3: =IF(AND($AA3<6,P3<>"",Q3<>""),ort($P3,$Q3,$AY$3:$AZ$3),"") ->  | AH3: =IF(AND($AA3<6,P3<>"",Q3<>""),ort($P3,$Q3,$AY$4:$AZ$5),"") ->  | AI3: =IF(AND($AA3<6,P3<>"",Q3<>""),ort($P3,$Q3,$AY$6:$AZ$7),"") ->  | AJ3: =IF(AND($AA3=6,P3<>"",Q3<>""),ort($P3,$Q3,$AY$8:$AZ$8),"") ->  | AK3: =IF(AND($AA3=7,P3<>"",Q3<>""),ort($P3,$Q3,$AY$9:$AZ$9),"") ->  | AL3: =IF(AND($AA3<6,R3<>"",S3<>""),ort($R3,$S3,$AY$3:$AZ$3),"") ->  | AM3: =IF(AND($AA3<6,R3<>"",S3<>""),ort($R3,$S3,$AY$4:$AZ$5),"") ->  | AN3: =IF(AND($AA3<6,R3<>"",S3<>""),ort($R3,$S3,$AY$6:$AZ$7),"") ->  | AO3: =IF(AND($AA3=6,R3<>"",S3<>""),ort($R3,$S3,$AY$8:$AZ$8),"") ->  | AP3: =IF(AND($AA3=7,R3<>"",S3<>""),ort($R3,$S3,$AY$9:$AZ$9),"") ->  | AQ3: =IF(AND($AA3<6,T3<>"",U3<>""),ort($T3,$U3,$AY$3:$AZ$3),"") ->  | AR3: =IF(AND($AA3<6,T3<>"",U3<>""),ort($T3,$U3,$AY$4:$AZ$5),"") ->  | AS3: =IF(AND($AA3<6,T3<>"",U3<>""),ort($T3,$U3,$AY$6:$AZ$7),"") ->  | AT3: =IF(AND($AA3=6,T3<>"",U3<>""),ort($T3,$U3,$AY$8:$AZ$8),"") ->  | AU3: =IF(AND($AA3=7,T3<>"",U3<>""),ort($T3,$U3,$AY$9:$AZ$9),"") ->  | AW3: 1 | AX3: m-vr | AY3: 0.3958333333 | AZ3: 0.7291666667 | BE3: =SUM(BB3/20/24,BC3:BD3) -> 00:00:00
B4: 5 | C4: =DATE(B3,B4,1) -> 2018-05-01 | K4: =IF(WEEKDAY(L4)=2,1+INT((L4-DATE(YEAR(L4+4-WEEKDAY(L4+6)),1,5)+WEEKDAY(DATE(YEAR(L4+4-WEEKDAY(L4+6)),1,3)))/7),"") ->  | L4: =DATE($B$3,$B$4,2) -> 2018-05-02 | M4: =DATE($B$3,$B$4,2) -> 2018-05-02 | O4: =SUM(N4,BE4) -> 00:00:00 | V4: =IF(AND(W4="",X4="",Y4="",Z4=""),"",SUM(W4:Z4)) ->  | W4: =IF(AND(AB4="",AG4="",AL4="",AQ4=""),"",SUM(AB4,AG4,AL4,AQ4)) ->  | X4: =IF(AND(AC4="",AH4="",AM4="",AR4=""),"",SUM(AC4,AH4,AM4,AR4)) ->  | Y4: =IF(AND(AD4="",AE4="",AI4="",AJ4="",AN4="",AO4="",AS4="",AT4=""),"",SUM(AD4,AE4,AI4,AJ4,AN4,AO4,AS4,AT4)) ->  | Z4: =IF(AND(AF4="",AK4="",AP4="",AU4=""),"",SUM(AF4,AK4,AP4,AU4)) ->  | AA4: =IF(ISERROR(IF(NOT(ISERROR(MATCH($M4,Blad2!$A$2:$A$11,0))),7,WEEKDAY($M4,2))),"",IF(NOT(ISERROR(MATCH($M4,Blad2!$A$2:$A$11,0))),7,WEEKDAY($M4,2))) -> 3 | AB4: =IF(AND($AA4<6,N4<>"",O4<>""),ort($N4,$O4,$AY$3:$AZ$3),"") ->  | AC4: =IF(AND($AA4<6,N4<>"",O4<>""),ort($N4,$O4,$AY$4:$AZ$5),"") ->  | AD4: =IF(AND($AA4<6,N4<>"",O4<>""),ort($N4,$O4,$AY$6:$AZ$7),"") ->  | AE4: =IF(AND($AA4=6,N4<>"",O4<>""),ort($N4,$O4,$AY$8:$AZ$8),"") ->  | AF4: =IF(AND($AA4=7,N4<>"",O4<>""),ort($N4,$O4,$AY$9:$AZ$9),"") ->  | AG4: =IF(AND($AA4<6,P4<>"",Q4<>""),ort($P4,$Q4,$AY$3:$AZ$3),"") ->  | AH4: =IF(AND($AA4<6,P4<>"",Q4<>""),ort($P4,$Q4,$AY$4:$AZ$5),"") ->  | AI4: =IF(AND($AA4<6,P4<>"",Q4<>""),ort($P4,$Q4,$AY$6:$AZ$7),"") ->  | AJ4: =IF(AND($AA4=6,P4<>"",Q4<>""),ort($P4,$Q4,$AY$8:$AZ$8),"") ->  | AK4: =IF(AND($AA4=7,P4<>"",Q4<>""),ort($P4,$Q4,$AY$9:$AZ$9),"") ->  | AL4: =IF(AND($AA4<6,R4<>"",S4<>""),ort($R4,$S4,$AY$3:$AZ$3),"") ->  | AM4: =IF(AND($AA4<6,R4<>"",S4<>""),ort($R4,$S4,$AY$4:$AZ$5),"") ->  | AN4: =IF(AND($AA4<6,R4<>"",S4<>""),ort($R4,$S4,$AY$6:$AZ$7),"") ->  | AO4: =IF(AND($AA4=6,R4<>"",S4<>""),ort($R4,$S4,$AY$8:$AZ$8),"") ->  | AP4: =IF(AND($AA4=7,R4<>"",S4<>""),ort($R4,$S4,$AY$9:$AZ$9),"") ->  | AQ4: =IF(AND($AA4<6,T4<>"",U4<>""),ort($T4,$U4,$AY$3:$AZ$3),"") ->  | AR4: =IF(AND($AA4<6,T4<>"",U4<>""),ort($T4,$U4,$AY$4:$AZ$5),"") ->  | AS4: =IF(AND($AA4<6,T4<>"",U4<>""),ort($T4,$U4,$AY$6:$AZ$7),"") ->  | AT4: =IF(AND($AA4=6,T4<>"",U4<>""),ort($T4,$U4,$AY$8:$AZ$8),"") ->  | AU4: =IF(AND($AA4=7,T4<>"",U4<>""),ort($T4,$U4,$AY$9:$AZ$9),"") ->  | AW4: 1.25 | AX4: m-vr | AY4: 0.25 | AZ4: 0.3125 | BE4: =SUM(BB4/20/24,BC4:BD4) -> 00:00:00
C5: Ma | D5: Di | E5: Wo | F5: Do | G5: Vr | H5: Za | I5: Zo | L5: =DATE($B$3,$B$4,3) -> 2018-05-03 | M5: =DATE($B$3,$B$4,3) -> 2018-05-03 | O5: 00:00:00 | W5: =IF(AND(AB5="",AG5="",AL5="",AQ5=""),"",SUM(AB5,AG5,AL5,AQ5)) ->  | Y5: =IF(AND(AD5="",AE5="",AI5="",AJ5="",AN5="",AO5="",AS5="",AT5=""),"",SUM(AD5,AE5,AI5,AJ5,AN5,AO5,AS5,AT5)) ->  | Z5: =IF(AND(AF5="",AK5="",AP5="",AU5=""),"",SUM(AF5,AK5,AP5,AU5)) ->  | AA5: =IF(ISERROR(IF(NOT(ISERROR(MATCH($M5,Blad2!$A$2:$A$11,0))),7,WEEKDAY($M5,2))),"",IF(NOT(ISERROR(MATCH($M5,Blad2!$A$2:$A$11,0))),7,WEEKDAY($M5,2))) -> 4 | AB5: =IF(AND($AA5<6,N5<>"",O5<>""),ort($N5,$O5,$AY$3:$AZ$3),"") ->  | AC5: =IF(AND($AA5<6,N5<>"",O5<>""),ort($N5,$O5,$AY$4:$AZ$5),"") ->  | AD5: =IF(AND($AA5<6,N5<>"",O5<>""),ort($N5,$O5,$AY$6:$AZ$7),"") ->  | AE5: =IF(AND($AA5=6,N5<>"",O5<>""),ort($N5,$O5,$AY$8:$AZ$8),"") ->  | AF5: =IF(AND($AA5=7,N5<>"",O5<>""),ort($N5,$O5,$AY$9:$AZ$9),"") ->  | AG5: =IF(AND($AA5<6,P5<>"",Q5<>""),ort($P5,$Q5,$AY$3:$AZ$3),"") ->  | AH5: =IF(AND($AA5<6,P5<>"",Q5<>""),ort($P5,$Q5,$AY$4:$AZ$5),"") ->  | AI5: =IF(AND($AA5<6,P5<>"",Q5<>""),ort($P5,$Q5,$AY$6:$AZ$7),"") ->  | AJ5: =IF(AND($AA5=6,P5<>"",Q5<>""),ort($P5,$Q5,$AY$8:$AZ$8),"") ->  | AK5: =IF(AND($AA5=7,P5<>"",Q5<>""),ort($P5,$Q5,$AY$9:$AZ$9),"") ->  | AL5: =IF(AND($AA5<6,R5<>"",S5<>""),ort($R5,$S5,$AY$3:$AZ$3),"") ->  | AM5: =IF(AND($AA5<6,R5<>"",S5<>""),ort($R5,$S5,$AY$4:$AZ$5),"") ->  | AN5: =IF(AND($AA5<6,R5<>"",S5<>""),ort($R5,$S5,$AY$6:$AZ$7),"") ->  | AO5: =IF(AND($AA5=6,R5<>"",S5<>""),ort($R5,$S5,$AY$8:$AZ$8),"") ->  | AP5: =IF(AND($AA5=7,R5<>"",S5<>""),ort($R5,$S5,$AY$9:$AZ$9),"") ->  | AQ5: =IF(AND($AA5<6,T5<>"",U5<>""),ort($T5,$U5,$AY$3:$AZ$3),"") ->  | AR5: =IF(AND($AA5<6,T5<>"",U5<>""),ort($T5,$U5,$AY$4:$AZ$5),"") ->  | AS5: =IF(AND($AA5<6,T5<>"",U5<>""),ort($T5,$U5,$AY$6:$AZ$7),"") ->  | AT5: =IF(AND($AA5=6,T5<>"",U5<>""),ort($T5,$U5,$AY$8:$AZ$8),"") ->  | AU5: =IF(AND($AA5=7,T5<>"",U5<>""),ort($T5,$U5,$AY$9:$AZ$9),"") ->  | AW5: 1.25 | AX5: m-vr | AY5: 0.7291666667 | AZ5: 0.7708333333 | BE5: 00:00:00
C6: =IF(WEEKDAY(C4,2)=1,C4,"") ->  | D6: =IF(WEEKDAY(C4,2)=2,C4,IF(C6<>"",C6+1,"")) -> 2018-05-01 | E6: =IF(WEEKDAY(C4,2)=3,C4,IF(D6<>"",D6+1,"")) -> 2018-05-02 | F6: =IF(WEEKDAY(C4,2)=4,C4,IF(E6<>"",E6+1,"")) -> 2018-05-03 | G6: =IF(WEEKDAY(C4,2)=5,C4,IF(F6<>"",F6+1,"")) -> 2018-05-04 | H6: =IF(WEEKDAY(C4,2)=6,C4,IF(G6<>"",G6+1,"")) -> 2018-05-05 | I6: =IF(WEEKDAY(C4,2)=7,C4,IF(H6<>"",H6+1,"")) -> 2018-05-06 | L6: =DATE($B$3,$B$4,4) -> 2018-05-04 | M6: =DATE($B$3,$B$4,4) -> 2018-05-04 | O6: 00:00:00 | AA6: =IF(ISERROR(IF(NOT(ISERROR(MATCH($M6,Blad2!$A$2:$A$11,0))),7,WEEKDAY($M6,2))),"",IF(NOT(ISERROR(MATCH($M6,Blad2!$A$2:$A$11,0))),7,WEEKDAY($M6,2))) -> 5 | AB6: =IF(AND($AA6<6,N6<>"",O6<>""),ort($N6,$O6,$AY$3:$AZ$3),"") ->  | AC6: =IF(AND($AA6<6,N6<>"",O6<>""),ort($N6,$O6,$AY$4:$AZ$5),"") ->  | AD6: =IF(AND($AA6<6,N6<>"",O6<>""),ort($N6,$O6,$AY$6:$AZ$7),"") ->  | AE6: =IF(AND($AA6=6,N6<>"",O6<>""),ort($N6,$O6,$AY$8:$AZ$8),"") ->  | AF6: =IF(AND($AA6=7,N6<>"",O6<>""),ort($N6,$O6,$AY$9:$AZ$9),"") ->  | AG6: =IF(AND($AA6<6,P6<>"",Q6<>""),ort($P6,$Q6,$AY$3:$AZ$3),"") ->  | AH6: =IF(AND($AA6<6,P6<>"",Q6<>""),ort($P6,$Q6,$AY$4:$AZ$5),"") ->  | AI6: =IF(AND($AA6<6,P6<>"",Q6<>""),ort($P6,$Q6,$AY$6:$AZ$7),"") ->  | AJ6: =IF(AND($AA6=6,P6<>"",Q6<>""),ort($P6,$Q6,$AY$8:$AZ$8),"") ->  | AK6: =IF(AND($AA6=7,P6<>"",Q6<>""),ort($P6,$Q6,$AY$9:$AZ$9),"") ->  | AL6: =IF(AND($AA6<6,R6<>"",S6<>""),ort($R6,$S6,$AY$3:$AZ$3),"") ->  | AM6: =IF(AND($AA6<6,R6<>"",S6<>""),ort($R6,$S6,$AY$4:$AZ$5),"") ->  | AN6: =IF(AND($AA6<6,R6<>"",S6<>""),ort($R6,$S6,$AY$6:$AZ$7),"") ->  | AO6: =IF(AND($AA6=6,R6<>"",S6<>""),ort($R6,$S6,$AY$8:$AZ$8),"") ->  | AP6: =IF(AND($AA6=7,R6<>"",S6<>""),ort($R6,$S6,$AY$9:$AZ$9),"") ->  | AQ6: =IF(AND($AA6<6,T6<>"",U6<>""),ort($T6,$U6,$AY$3:$AZ$3),"") ->  | AR6: =IF(AND($AA6<6,T6<>"",U6<>""),ort($T6,$U6,$AY$4:$AZ$5),"") ->  | AS6: =IF(AND($AA6<6,T6<>"",U6<>""),ort($T6,$U6,$AY$6:$AZ$7),"") ->  | AT6: =IF(AND($AA6=6,T6<>"",U6<>""),ort($T6,$U6,$AY$8:$AZ$8),"") ->  | AU6: =IF(AND($AA6=7,T6<>"",U6<>""),ort($T6,$U6,$AY$9:$AZ$9),"") ->  | AW6: 1.5 | AX6: m-vr | AY6: 0 | AZ6: 0.25 | BE6: 00:00:00
C7: =I6+1 -> 2018-05-07 | D7: =C7+1 -> 2018-05-08 | E7: =D7+1 -> 2018-05-09 | F7: 2018-05-10 | G7: 2018-05-11 | H7: 2018-05-12 | I7: 2018-05-13 | L7: =DATE($B$3,$B$4,5) -> 2018-05-05 | M7: =DATE($B$3,$B$4,5) -> 2018-05-05 | O7: 00:00:00 | AA7: =IF(ISERROR(IF(NOT(ISERROR(MATCH($M7,Blad2!$A$2:$A$11,0))),7,WEEKDAY($M7,2))),"",IF(NOT(ISERROR(MATCH($M7,Blad2!$A$2:$A$11,0))),7,WEEKDAY($M7,2))) -> 6 | AB7: =IF(AND($AA7<6,N7<>"",O7<>""),ort($N7,$O7,$AY$3:$AZ$3),"") ->  | AC7: =IF(AND($AA7<6,N7<>"",O7<>""),ort($N7,$O7,$AY$4:$AZ$5),"") ->  | AD7: =IF(AND($AA7<6,N7<>"",O7<>""),ort($N7,$O7,$AY$6:$AZ$7),"") ->  | AE7: =IF(AND($AA7=6,N7<>"",O7<>""),ort($N7,$O7,$AY$8:$AZ$8),"") ->  | AF7: =IF(AND($AA7=7,N7<>"",O7<>""),ort($N7,$O7,$AY$9:$AZ$9),"") ->  | AG7: =IF(AND($AA7<6,P7<>"",Q7<>""),ort($P7,$Q7,$AY$3:$AZ$3),"") ->  | AH7: =IF(AND($AA7<6,P7<>"",Q7<>""),ort($P7,$Q7,$AY$4:$AZ$5),"") ->  | AI7: =IF(AND($AA7<6,P7<>"",Q7<>""),ort($P7,$Q7,$AY$6:$AZ$7),"") ->  | AJ7: =IF(AND($AA7=6,P7<>"",Q7<>""),ort($P7,$Q7,$AY$8:$AZ$8),"") ->  | AK7: =IF(AND($AA7=7,P7<>"",Q7<>""),ort($P7,$Q7,$AY$9:$AZ$9),"") ->  | AL7: =IF(AND($AA7<6,R7<>"",S7<>""),ort($R7,$S7,$AY$3:$AZ$3),"") ->  | AM7: =IF(AND($AA7<6,R7<>"",S7<>""),ort($R7,$S7,$AY$4:$AZ$5),"") ->  | AN7: =IF(AND($AA7<6,R7<>"",S7<>""),ort($R7,$S7,$AY$6:$AZ$7),"") ->  | AO7: =IF(AND($AA7=6,R7<>"",S7<>""),ort($R7,$S7,$AY$8:$AZ$8),"") ->  | AP7: =IF(AND($AA7=7,R7<>"",S7<>""),ort($R7,$S7,$AY$9:$AZ$9),"") ->  | AQ7: =IF(AND($AA7<6,T7<>"",U7<>""),ort($T7,$U7,$AY$3:$AZ$3),"") ->  | AR7: =IF(AND($AA7<6,T7<>"",U7<>""),ort($T7,$U7,$AY$4:$AZ$5),"") ->  | AS7: =IF(AND($AA7<6,T7<>"",U7<>""),ort($T7,$U7,$AY$6:$AZ$7),"") ->  | AT7: =IF(AND($AA7=6,T7<>"",U7<>""),ort($T7,$U7,$AY$8:$AZ$8),"") ->  | AU7: =IF(AND($AA7=7,T7<>"",U7<>""),ort($T7,$U7,$AY$9:$AZ$9),"") ->  | AW7: 1.5 | AX7: m-vr | AY7: 0.7708333333 | AZ7: 1 | BE7: =SUM(BB7/18/24,BC7:BD7) -> 00:00:00
C8: =I7+1 -> 2018-05-14 | D8: =C8+1 -> 2018-05-15 | E8: 2018-05-16 | F8: 2018-05-17 | G8: 2018-05-18 | H8: 2018-05-19 | I8: 2018-05-20 | L8: =DATE($B$3,$B$4,6) -> 2018-05-06 | M8: =DATE($B$3,$B$4,6) -> 2018-05-06 | O8: 00:00:00 | AA8: =IF(ISERROR(IF(NOT(ISERROR(MATCH($M8,Blad2!$A$2:$A$11,0))),7,WEEKDAY($M8,2))),"",IF(NOT(ISERROR(MATCH($M8,Blad2!$A$2:$A$11,0))),7,WEEKDAY($M8,2))) -> 7 | AB8: =IF(AND($AA8<6,N8<>"",O8<>""),ort($N8,$O8,$AY$3:$AZ$3),"") ->  | AC8: =IF(AND($AA8<6,N8<>"",O8<>""),ort($N8,$O8,$AY$4:$AZ$5),"") ->  | AD8: =IF(AND($AA8<6,N8<>"",O8<>""),ort($N8,$O8,$AY$6:$AZ$7),"") ->  | AE8: =IF(AND($AA8=6,N8<>"",O8<>""),ort($N8,$O8,$AY$8:$AZ$8),"") ->  | AF8: =IF(AND($AA8=7,N8<>"",O8<>""),ort($N8,$O8,$AY$9:$AZ$9),"") ->  | AG8: =IF(AND($AA8<6,P8<>"",Q8<>""),ort($P8,$Q8,$AY$3:$AZ$3),"") ->  | AH8: =IF(AND($AA8<6,P8<>"",Q8<>""),ort($P8,$Q8,$AY$4:$AZ$5),"") ->  | AI8: =IF(AND($AA8<6,P8<>"",Q8<>""),ort($P8,$Q8,$AY$6:$AZ$7),"") ->  | AJ8: =IF(AND($AA8=6,P8<>"",Q8<>""),ort($P8,$Q8,$AY$8:$AZ$8),"") ->  | AK8: =IF(AND($AA8=7,P8<>"",Q8<>""),ort($P8,$Q8,$AY$9:$AZ$9),"") ->  | AL8: =IF(AND($AA8<6,R8<>"",S8<>""),ort($R8,$S8,$AY$3:$AZ$3),"") ->  | AM8: =IF(AND($AA8<6,R8<>"",S8<>""),ort($R8,$S8,$AY$4:$AZ$5),"") ->  | AN8: =IF(AND($AA8<6,R8<>"",S8<>""),ort($R8,$S8,$AY$6:$AZ$7),"") ->  | AO8: =IF(AND($AA8=6,R8<>"",S8<>""),ort($R8,$S8,$AY$8:$AZ$8),"") ->  | AP8: =IF(AND($AA8=7,R8<>"",S8<>""),ort($R8,$S8,$AY$9:$AZ$9),"") ->  | AQ8: =IF(AND($AA8<6,T8<>"",U8<>""),ort($T8,$U8,$AY$3:$AZ$3),"") ->  | AR8: =IF(AND($AA8<6,T8<>"",U8<>""),ort($T8,$U8,$AY$4:$AZ$5),"") ->  | AS8: =IF(AND($AA8<6,T8<>"",U8<>""),ort($T8,$U8,$AY$6:$AZ$7),"") ->  | AT8: =IF(AND($AA8=6,T8<>"",U8<>""),ort($T8,$U8,$AY$8:$AZ$8),"") ->  | AU8: =IF(AND($AA8=7,T8<>"",U8<>""),ort($T8,$U8,$AY$9:$AZ$9),"") ->  | AW8: 1.5 | AX8: za | AY8: 0 | AZ8: 1 | BE8: =SUM(BB8/19/24,BC8:BD8) -> 00:00:00
C9: =I8+1 -> 2018-05-21 | D9: =C9+1 -> 2018-05-22 | E9: 2018-05-23 | F9: 2018-05-24 | G9: 2018-05-25 | H9: 2018-05-26 | I9: 2018-05-27 | K9: 19 | L9: =DATE($B$3,$B$4,7) -> 2018-05-07 | M9: =DATE($B$3,$B$4,7) -> 2018-05-07 | O9: 00:00:00 | AA9: =IF(ISERROR(IF(NOT(ISERROR(MATCH($M9,Blad2!$A$2:$A$11,0))),7,WEEKDAY($M9,2))),"",IF(NOT(ISERROR(MATCH($M9,Blad2!$A$2:$A$11,0))),7,WEEKDAY($M9,2))) -> 1 | AB9: =IF(AND($AA9<6,N9<>"",O9<>""),ort($N9,$O9,$AY$3:$AZ$3),"") ->  | AC9: =IF(AND($AA9<6,N9<>"",O9<>""),ort($N9,$O9,$AY$4:$AZ$5),"") ->  | AD9: =IF(AND($AA9<6,N9<>"",O9<>""),ort($N9,$O9,$AY$6:$AZ$7),"") ->  | AE9: =IF(AND($AA9=6,N9<>"",O9<>""),ort($N9,$O9,$AY$8:$AZ$8),"") ->  | AF9: =IF(AND($AA9=7,N9<>"",O9<>""),ort($N9,$O9,$AY$9:$AZ$9),"") ->  | AG9: =IF(AND($AA9<6,P9<>"",Q9<>""),ort($P9,$Q9,$AY$3:$AZ$3),"") ->  | AH9: =IF(AND($AA9<6,P9<>"",Q9<>""),ort($P9,$Q9,$AY$4:$AZ$5),"") ->  | AI9: =IF(AND($AA9<6,P9<>"",Q9<>""),ort($P9,$Q9,$AY$6:$AZ$7),"") ->  | AJ9: =IF(AND($AA9=6,P9<>"",Q9<>""),ort($P9,$Q9,$AY$8:$AZ$8),"") ->  | AK9: =IF(AND($AA9=7,P9<>"",Q9<>""),ort($P9,$Q9,$AY$9:$AZ$9),"") ->  | AL9: =IF(AND($AA9<6,R9<>"",S9<>""),ort($R9,$S9,$AY$3:$AZ$3),"") ->  | AM9: =IF(AND($AA9<6,R9<>"",S9<>""),ort($R9,$S9,$AY$4:$AZ$5),"") ->  | AN9: =IF(AND($AA9<6,R9<>"",S9<>""),ort($R9,$S9,$AY$6:$AZ$7),"") ->  | AO9: =IF(AND($AA9=6,R9<>"",S9<>""),ort($R9,$S9,$AY$8:$AZ$8),"") ->  | AP9: =IF(AND($AA9=7,R9<>"",S9<>""),ort($R9,$S9,$AY$9:$AZ$9),"") ->  | AQ9: =IF(AND($AA9<6,T9<>"",U9<>""),ort($T9,$U9,$AY$3:$AZ$3),"") ->  | AR9: =IF(AND($AA9<6,T9<>"",U9<>""),ort($T9,$U9,$AY$4:$AZ$5),"") ->  | AS9: =IF(AND($AA9<6,T9<>"",U9<>""),ort($T9,$U9,$AY$6:$AZ$7),"") ->  | AT9: =IF(AND($AA9=6,T9<>"",U9<>""),ort($T9,$U9,$AY$8:$AZ$8),"") ->  | AU9: =IF(AND($AA9=7,T9<>"",U9<>""),ort($T9,$U9,$AY$9:$AZ$9),"") ->  | AW9: 2 | AX9: zo/feest | AY9: 0 | AZ9: 1 | BE9: =SUM(BB9/19/24,BC9:BD9) -> 00:00:00
C10: =IF(I9="","",IF(MONTH(I9+1)=MONTH(I9),I9+1,"")) -> 2018-05-28 | D10: =IF(C10="","",IF(MONTH(C10+1)=MONTH(C10),C10+1,"")) -> 2018-05-29 | E10: =IF(D10="","",IF(MONTH(D10+1)=MONTH(D10),D10+1,"")) -> 2018-05-30 | F10: 2018-05-31 | L10: =DATE($B$3,$B$4,8) -> 2018-05-08 | M10: =DATE($B$3,$B$4,8) -> 2018-05-08 | O10: 00:00:00 | AA10: =IF(ISERROR(IF(NOT(ISERROR(MATCH($M10,Blad2!$A$2:$A$11,0))),7,WEEKDAY($M10,2))),"",IF(NOT(ISERROR(MATCH($M10,Blad2!$A$2:$A$11,0))),7,WEEKDAY($M10,2))) -> 2 | AB10: =IF(AND($AA10<6,N10<>"",O10<>""),ort($N10,$O10,$AY$3:$AZ$3),"") ->  | AC10: =IF(AND($AA10<6,N10<>"",O10<>""),ort($N10,$O10,$AY$4:$AZ$5),"") ->  | AD10: =IF(AND($AA10<6,N10<>"",O10<>""),ort($N10,$O10,$AY$6:$AZ$7),"") ->  | AE10: =IF(AND($AA10=6,N10<>"",O10<>""),ort($N10,$O10,$AY$8:$AZ$8),"") ->  | AF10: =IF(AND($AA10=7,N10<>"",O10<>""),ort($N10,$O10,$AY$9:$AZ$9),"") ->  | AG10: =IF(AND($AA10<6,P10<>"",Q10<>""),ort($P10,$Q10,$AY$3:$AZ$3),"") ->  | AH10: =IF(AND($AA10<6,P10<>"",Q10<>""),ort($P10,$Q10,$AY$4:$AZ$5),"") ->  | AI10: =IF(AND($AA10<6,P10<>"",Q10<>""),ort($P10,$Q10,$AY$6:$AZ$7),"") ->  | AJ10: =IF(AND($AA10=6,P10<>"",Q10<>""),ort($P10,$Q10,$AY$8:$AZ$8),"") ->  | AK10: =IF(AND($AA10=7,P10<>"",Q10<>""),ort($P10,$Q10,$AY$9:$AZ$9),"") ->  | AL10: =IF(AND($AA10<6,R10<>"",S10<>""),ort($R10,$S10,$AY$3:$AZ$3),"") ->  | AM10: =IF(AND($AA10<6,R10<>"",S10<>""),ort($R10,$S10,$AY$4:$AZ$5),"") ->  | AN10: =IF(AND($AA10<6,R10<>"",S10<>""),ort($R10,$S10,$AY$6:$AZ$7),"") ->  | AO10: =IF(AND($AA10=6,R10<>"",S10<>""),ort($R10,$S10,$AY$8:$AZ$8),"") ->  | AP10: =IF(AND($AA10=7,R10<>"",S10<>""),ort($R10,$S10,$AY$9:$AZ$9),"") ->  | AQ10: =IF(AND($AA10<6,T10<>"",U10<>""),ort($T10,$U10,$AY$3:$AZ$3),"") ->  | AR10: =IF(AND($AA10<6,T10<>"",U10<>""),ort($T10,$U10,$AY$4:$AZ$5),"") ->  | AS10: =IF(AND($AA10<6,T10<>"",U10<>""),ort($T10,$U10,$AY$6:$AZ$7),"") ->  | AT10: =IF(AND($AA10=6,T10<>"",U10<>""),ort($T10,$U10,$AY$8:$AZ$8),"") ->  | AU10: =IF(AND($AA10=7,T10<>"",U10<>""),ort($T10,$U10,$AY$9:$AZ$9),"") ->  | BE10: =SUM(BB10/18/24,BC10:BD10) -> 00:00:00
C11: =IF(I10="","",IF(MONTH(I10+1)=MONTH(I10),I10+1,"")) ->  | D11: =IF(C11="","",IF(MONTH(C11+1)=MONTH(C11),C11+1,"")) ->  | L11: =DATE($B$3,$B$4,9) -> 2018-05-09 | M11: =DATE($B$3,$B$4,9) -> 2018-05-09 | O11: 00:00:00 | AA11: =IF(ISERROR(IF(NOT(ISERROR(MATCH($M11,Blad2!$A$2:$A$11,0))),7,WEEKDAY($M11,2))),"",IF(NOT(ISERROR(MATCH($M11,Blad2!$A$2:$A$11,0))),7,WEEKDAY($M11,2))) -> 3 | AB11: =IF(AND($AA11<6,N11<>"",O11<>""),ort($N11,$O11,$AY$3:$AZ$3),"") ->  | AC11: =IF(AND($AA11<6,N11<>"",O11<>""),ort($N11,$O11,$AY$4:$AZ$5),"") ->  | AD11: =IF(AND($AA11<6,N11<>"",O11<>""),ort($N11,$O11,$AY$6:$AZ$7),"") ->  | AE11: =IF(AND($AA11=6,N11<>"",O11<>""),ort($N11,$O11,$AY$8:$AZ$8),"") ->  | AF11: =IF(AND($AA11=7,N11<>"",O11<>""),ort($N11,$O11,$AY$9:$AZ$9),"") ->  | AG11: =IF(AND($AA11<6,P11<>"",Q11<>""),ort($P11,$Q11,$AY$3:$AZ$3),"") ->  | AH11: =IF(AND($AA11<6,P11<>"",Q11<>""),ort($P11,$Q11,$AY$4:$AZ$5),"") ->  | AI11: =IF(AND($AA11<6,P11<>"",Q11<>""),ort($P11,$Q11,$AY$6:$AZ$7),"") ->  | AJ11: =IF(AND($AA11=6,P11<>"",Q11<>""),ort($P11,$Q11,$AY$8:$AZ$8),"") ->  | AK11: =IF(AND($AA11=7,P11<>"",Q11<>""),ort($P11,$Q11,$AY$9:$AZ$9),"") ->  | AL11: =IF(AND($AA11<6,R11<>"",S11<>""),ort($R11,$S11,$AY$3:$AZ$3),"") ->  | AM11: =IF(AND($AA11<6,R11<>"",S11<>""),ort($R11,$S11,$AY$4:$AZ$5),"") ->  | AN11: =IF(AND($AA11<6,R11<>"",S11<>""),ort($R11,$S11,$AY$6:$AZ$7),"") ->  | AO11: =IF(AND($AA11=6,R11<>"",S11<>""),ort($R11,$S11,$AY$8:$AZ$8),"") ->  | AP11: =IF(AND($AA11=7,R11<>"",S11<>""),ort($R11,$S11,$AY$9:$AZ$9),"") ->  | AQ11: =IF(AND($AA11<6,T11<>"",U11<>""),ort($T11,$U11,$AY$3:$AZ$3),"") ->  | AR11: =IF(AND($AA11<6,T11<>"",U11<>""),ort($T11,$U11,$AY$4:$AZ$5),"") ->  | AS11: =IF(AND($AA11<6,T11<>"",U11<>""),ort($T11,$U11,$AY$6:$AZ$7),"") ->  | AT11: =IF(AND($AA11=6,T11<>"",U11<>""),ort($T11,$U11,$AY$8:$AZ$8),"") ->  | AU11: =IF(AND($AA11=7,T11<>"",U11<>""),ort($T11,$U11,$AY$9:$AZ$9),"") ->  | BE11: 00:00:00
L12: =DATE($B$3,$B$4,10) -> 2018-05-10 | M12: =DATE($B$3,$B$4,10) -> 2018-05-10 | O12: 00:00:00 | AA12: =IF(ISERROR(IF(NOT(ISERROR(MATCH($M12,Blad2!$A$2:$A$11,0))),7,WEEKDAY($M12,2))),"",IF(NOT(ISERROR(MATCH($M12,Blad2!$A$2:$A$11,0))),7,WEEKDAY($M12,2))) -> 4 | AB12: =IF(AND($AA12<6,N12<>"",O12<>""),ort($N12,$O12,$AY$3:$AZ$3),"") ->  | AC12: =IF(AND($AA12<6,N12<>"",O12<>""),ort($N12,$O12,$AY$4:$AZ$5),"") ->  | AD12: =IF(AND($AA12<6,N12<>"",O12<>""),ort($N12,$O12,$AY$6:$AZ$7),"") ->  | AE12: =IF(AND($AA12=6,N12<>"",O12<>""),ort($N12,$O12,$AY$8:$AZ$8),"") ->  | AF12: =IF(AND($AA12=7,N12<>"",O12<>""),ort($N12,$O12,$AY$9:$AZ$9),"") ->  | AG12: =IF(AND($AA12<6,P12<>"",Q12<>""),ort($P12,$Q12,$AY$3:$AZ$3),"") ->  | AH12: =IF(AND($AA12<6,P12<>"",Q12<>""),ort($P12,$Q12,$AY$4:$AZ$5),"") ->  | AI12: =IF(AND($AA12<6,P12<>"",Q12<>""),ort($P12,$Q12,$AY$6:$AZ$7),"") ->  | AJ12: =IF(AND($AA12=6,P12<>"",Q12<>""),ort($P12,$Q12,$AY$8:$AZ$8),"") ->  | AK12: =IF(AND($AA12=7,P12<>"",Q12<>""),ort($P12,$Q12,$AY$9:$AZ$9),"") ->  | AL12: =IF(AND($AA12<6,R12<>"",S12<>""),ort($R12,$S12,$AY$3:$AZ$3),"") ->  | AM12: =IF(AND($AA12<6,R12<>"",S12<>""),ort($R12,$S12,$AY$4:$AZ$5),"") ->  | AN12: =IF(AND($AA12<6,R12<>"",S12<>""),ort($R12,$S12,$AY$6:$AZ$7),"") ->  | AO12: =IF(AND($AA12=6,R12<>"",S12<>""),ort($R12,$S12,$AY$8:$AZ$8),"") ->  | AP12: =IF(AND($AA12=7,R12<>"",S12<>""),ort($R12,$S12,$AY$9:$AZ$9),"") ->  | AQ12: =IF(AND($AA12<6,T12<>"",U12<>""),ort($T12,$U12,$AY$3:$AZ$3),"") ->  | AR12: =IF(AND($AA12<6,T12<>"",U12<>""),ort($T12,$U12,$AY$4:$AZ$5),"") ->  | AS12: =IF(AND($AA12<6,T12<>"",U12<>""),ort($T12,$U12,$AY$6:$AZ$7),"") ->  | AT12: =IF(AND($AA12=6,T12<>"",U12<>""),ort($T12,$U12,$AY$8:$AZ$8),"") ->  | AU12: =IF(AND($AA12=7,T12<>"",U12<>""),ort($T12,$U12,$AY$9:$AZ$9),"") ->  | BE12: 00:00:00
B13: Werkdagen deze maand | L13: =DATE($B$3,$B$4,11) -> 2018-05-11 | M13: =DATE($B$3,$B$4,11) -> 2018-05-11 | O13: 00:00:00 | AA13: =IF(ISERROR(IF(NOT(ISERROR(MATCH($M13,Blad2!$A$2:$A$11,0))),7,WEEKDAY($M13,2))),"",IF(NOT(ISERROR(MATCH($M13,Blad2!$A$2:$A$11,0))),7,WEEKDAY($M13,2))) -> 5 | AB13: =IF(AND($AA13<6,N13<>"",O13<>""),ort($N13,$O13,$AY$3:$AZ$3),"") ->  | AC13: =IF(AND($AA13<6,N13<>"",O13<>""),ort($N13,$O13,$AY$4:$AZ$5),"") ->  | AD13: =IF(AND($AA13<6,N13<>"",O13<>""),ort($N13,$O13,$AY$6:$AZ$7),"") ->  | AE13: =IF(AND($AA13=6,N13<>"",O13<>""),ort($N13,$O13,$AY$8:$AZ$8),"") ->  | AF13: =IF(AND($AA13=7,N13<>"",O13<>""),ort($N13,$O13,$AY$9:$AZ$9),"") ->  | AG13: =IF(AND($AA13<6,P13<>"",Q13<>""),ort($P13,$Q13,$AY$3:$AZ$3),"") ->  | AH13: =IF(AND($AA13<6,P13<>"",Q13<>""),ort($P13,$Q13,$AY$4:$AZ$5),"") ->  | AI13: =IF(AND($AA13<6,P13<>"",Q13<>""),ort($P13,$Q13,$AY$6:$AZ$7),"") ->  | AJ13: =IF(AND($AA13=6,P13<>"",Q13<>""),ort($P13,$Q13,$AY$8:$AZ$8),"") ->  | AK13: =IF(AND($AA13=7,P13<>"",Q13<>""),ort($P13,$Q13,$AY$9:$AZ$9),"") ->  | AL13: =IF(AND($AA13<6,R13<>"",S13<>""),ort($R13,$S13,$AY$3:$AZ$3),"") ->  | AM13: =IF(AND($AA13<6,R13<>"",S13<>""),ort($R13,$S13,$AY$4:$AZ$5),"") ->  | AN13: =IF(AND($AA13<6,R13<>"",S13<>""),ort($R13,$S13,$AY$6:$AZ$7),"") ->  | AO13: =IF(AND($AA13=6,R13<>"",S13<>""),ort($R13,$S13,$AY$8:$AZ$8),"") ->  | AP13: =IF(AND($AA13=7,R13<>"",S13<>""),ort($R13,$S13,$AY$9:$AZ$9),"") ->  | AQ13: =IF(AND($AA13<6,T13<>"",U13<>""),ort($T13,$U13,$AY$3:$AZ$3),"") ->  | AR13: =IF(AND($AA13<6,T13<>"",U13<>""),ort($T13,$U13,$AY$4:$AZ$5),"") ->  | AS13: =IF(AND($AA13<6,T13<>"",U13<>""),ort($T13,$U13,$AY$6:$AZ$7),"") ->  | AT13: =IF(AND($AA13=6,T13<>"",U13<>""),ort($T13,$U13,$AY$8:$AZ$8),"") ->  | AU13: =IF(AND($AA13=7,T13<>"",U13<>""),ort($T13,$U13,$AY$9:$AZ$9),"") ->  | BE13: 00:00:00
B14: =NETWORKDAYS($L$3,EOMONTH($L$3,0),Blad2!A2:A97)&" dagen" -> 22 dagen | L14: =DATE($B$3,$B$4,12) -> 2018-05-12 | M14: =DATE($B$3,$B$4,12) -> 2018-05-12 | O14: 00:00:00 | AA14: =IF(ISERROR(IF(NOT(ISERROR(MATCH($M14,Blad2!$A$2:$A$11,0))),7,WEEKDAY($M14,2))),"",IF(NOT(ISERROR(MATCH($M14,Blad2!$A$2:$A$11,0))),7,WEEKDAY($M14,2))) -> 6 | AB14: =IF(AND($AA14<6,N14<>"",O14<>""),ort($N14,$O14,$AY$3:$AZ$3),"") ->  | AC14: =IF(AND($AA14<6,N14<>"",O14<>""),ort($N14,$O14,$AY$4:$AZ$5),"") ->  | AD14: =IF(AND($AA14<6,N14<>"",O14<>""),ort($N14,$O14,$AY$6:$AZ$7),"") ->  | AE14: =IF(AND($AA14=6,N14<>"",O14<>""),ort($N14,$O14,$AY$8:$AZ$8),"") ->  | AF14: =IF(AND($AA14=7,N14<>"",O14<>""),ort($N14,$O14,$AY$9:$AZ$9),"") ->  | AG14: =IF(AND($AA14<6,P14<>"",Q14<>""),ort($P14,$Q14,$AY$3:$AZ$3),"") ->  | AH14: =IF(AND($AA14<6,P14<>"",Q14<>""),ort($P14,$Q14,$AY$4:$AZ$5),"") ->  | AI14: =IF(AND($AA14<6,P14<>"",Q14<>""),ort($P14,$Q14,$AY$6:$AZ$7),"") ->  | AJ14: =IF(AND($AA14=6,P14<>"",Q14<>""),ort($P14,$Q14,$AY$8:$AZ$8),"") ->  | AK14: =IF(AND($AA14=7,P14<>"",Q14<>""),ort($P14,$Q14,$AY$9:$AZ$9),"") ->  | AL14: =IF(AND($AA14<6,R14<>"",S14<>""),ort($R14,$S14,$AY$3:$AZ$3),"") ->  | AM14: =IF(AND($AA14<6,R14<>"",S14<>""),ort($R14,$S14,$AY$4:$AZ$5),"") ->  | AN14: =IF(AND($AA14<6,R14<>"",S14<>""),ort($R14,$S14,$AY$6:$AZ$7),"") ->  | AO14: =IF(AND($AA14=6,R14<>"",S14<>""),ort($R14,$S14,$AY$8:$AZ$8),"") ->  | AP14: =IF(AND($AA14=7,R14<>"",S14<>""),ort($R14,$S14,$AY$9:$AZ$9),"") ->  | AQ14: =IF(AND($AA14<6,T14<>"",U14<>""),ort($T14,$U14,$AY$3:$AZ$3),"") ->  | AR14: =IF(AND($AA14<6,T14<>"",U14<>""),ort($T14,$U14,$AY$4:$AZ$5),"") ->  | AS14: =IF(AND($AA14<6,T14<>"",U14<>""),ort($T14,$U14,$AY$6:$AZ$7),"") ->  | AT14: =IF(AND($AA14=6,T14<>"",U14<>""),ort($T14,$U14,$AY$8:$AZ$8),"") ->  | AU14: =IF(AND($AA14=7,T14<>"",U14<>""),ort($T14,$U14,$AY$9:$AZ$9),"") ->  | BE14: 00:00:00
L15: =DATE($B$3,$B$4,13) -> 2018-05-13 | M15: =DATE($B$3,$B$4,13) -> 2018-05-13 | O15: 00:00:00 | AA15: =IF(ISERROR(IF(NOT(ISERROR(MATCH($M15,Blad2!$A$2:$A$11,0))),7,WEEKDAY($M15,2))),"",IF(NOT(ISERROR(MATCH($M15,Blad2!$A$2:$A$11,0))),7,WEEKDAY($M15,2))) -> 7 | AB15: =IF(AND($AA15<6,N15<>"",O15<>""),ort($N15,$O15,$AY$3:$AZ$3),"") ->  | AC15: =IF(AND($AA15<6,N15<>"",O15<>""),ort($N15,$O15,$AY$4:$AZ$5),"") ->  | AD15: =IF(AND($AA15<6,N15<>"",O15<>""),ort($N15,$O15,$AY$6:$AZ$7),"") ->  | AE15: =IF(AND($AA15=6,N15<>"",O15<>""),ort($N15,$O15,$AY$8:$AZ$8),"") ->  | AF15: =IF(AND($AA15=7,N15<>"",O15<>""),ort($N15,$O15,$AY$9:$AZ$9),"") ->  | AG15: =IF(AND($AA15<6,P15<>"",Q15<>""),ort($P15,$Q15,$AY$3:$AZ$3),"") ->  | AH15: =IF(AND($AA15<6,P15<>"",Q15<>""),ort($P15,$Q15,$AY$4:$AZ$5),"") ->  | AI15: =IF(AND($AA15<6,P15<>"",Q15<>""),ort($P15,$Q15,$AY$6:$AZ$7),"") ->  | AJ15: =IF(AND($AA15=6,P15<>"",Q15<>""),ort($P15,$Q15,$AY$8:$AZ$8),"") ->  | AK15: =IF(AND($AA15=7,P15<>"",Q15<>""),ort($P15,$Q15,$AY$9:$AZ$9),"") ->  | AL15: =IF(AND($AA15<6,R15<>"",S15<>""),ort($R15,$S15,$AY$3:$AZ$3),"") ->  | AM15: =IF(AND($AA15<6,R15<>"",S15<>""),ort($R15,$S15,$AY$4:$AZ$5),"") ->  | AN15: =IF(AND($AA15<6,R15<>"",S15<>""),ort($R15,$S15,$AY$6:$AZ$7),"") ->  | AO15: =IF(AND($AA15=6,R15<>"",S15<>""),ort($R15,$S15,$AY$8:$AZ$8),"") ->  | AP15: =IF(AND($AA15=7,R15<>"",S15<>""),ort($R15,$S15,$AY$9:$AZ$9),"") ->  | AQ15: =IF(AND($AA15<6,T15<>"",U15<>""),ort($T15,$U15,$AY$3:$AZ$3),"") ->  | AR15: =IF(AND($AA15<6,T15<>"",U15<>""),ort($T15,$U15,$AY$4:$AZ$5),"") ->  | AS15: =IF(AND($AA15<6,T15<>"",U15<>""),ort($T15,$U15,$AY$6:$AZ$7),"") ->  | AT15: =IF(AND($AA15=6,T15<>"",U15<>""),ort($T15,$U15,$AY$8:$AZ$8),"") ->  | AU15: =IF(AND($AA15=7,T15<>"",U15<>""),ort($T15,$U15,$AY$9:$AZ$9),"") ->  | BE15: 00:00:00
B16: Contract Uren | K16: 20 | L16: =DATE($B$3,$B$4,14) -> 2018-05-14 | M16: =DATE($B$3,$B$4,14) -> 2018-05-14 | O16: 00:00:00 | AA16: =IF(ISERROR(IF(NOT(ISERROR(MATCH($M16,Blad2!$A$2:$A$11,0))),7,WEEKDAY($M16,2))),"",IF(NOT(ISERROR(MATCH($M16,Blad2!$A$2:$A$11,0))),7,WEEKDAY($M16,2))) -> 1 | AB16: =IF(AND($AA16<6,N16<>"",O16<>""),ort($N16,$O16,$AY$3:$AZ$3),"") ->  | AC16: =IF(AND($AA16<6,N16<>"",O16<>""),ort($N16,$O16,$AY$4:$AZ$5),"") ->  | AD16: =IF(AND($AA16<6,N16<>"",O16<>""),ort($N16,$O16,$AY$6:$AZ$7),"") ->  | AE16: =IF(AND($AA16=6,N16<>"",O16<>""),ort($N16,$O16,$AY$8:$AZ$8),"") ->  | AF16: =IF(AND($AA16=7,N16<>"",O16<>""),ort($N16,$O16,$AY$9:$AZ$9),"") ->  | AG16: =IF(AND($AA16<6,P16<>"",Q16<>""),ort($P16,$Q16,$AY$3:$AZ$3),"") ->  | AH16: =IF(AND($AA16<6,P16<>"",Q16<>""),ort($P16,$Q16,$AY$4:$AZ$5),"") ->  | AI16: =IF(AND($AA16<6,P16<>"",Q16<>""),ort($P16,$Q16,$AY$6:$AZ$7),"") ->  | AJ16: =IF(AND($AA16=6,P16<>"",Q16<>""),ort($P16,$Q16,$AY$8:$AZ$8),"") ->  | AK16: =IF(AND($AA16=7,P16<>"",Q16<>""),ort($P16,$Q16,$AY$9:$AZ$9),"") ->  | AL16: =IF(AND($AA16<6,R16<>"",S16<>""),ort($R16,$S16,$AY$3:$AZ$3),"") ->  | AM16: =IF(AND($AA16<6,R16<>"",S16<>""),ort($R16,$S16,$AY$4:$AZ$5),"") ->  | AN16: =IF(AND($AA16<6,R16<>"",S16<>""),ort($R16,$S16,$AY$6:$AZ$7),"") ->  | AO16: =IF(AND($AA16=6,R16<>"",S16<>""),ort($R16,$S16,$AY$8:$AZ$8),"") ->  | AP16: =IF(AND($AA16=7,R16<>"",S16<>""),ort($R16,$S16,$AY$9:$AZ$9),"") ->  | AQ16: =IF(AND($AA16<6,T16<>"",U16<>""),ort($T16,$U16,$AY$3:$AZ$3),"") ->  | AR16: =IF(AND($AA16<6,T16<>"",U16<>""),ort($T16,$U16,$AY$4:$AZ$5),"") ->  | AS16: =IF(AND($AA16<6,T16<>"",U16<>""),ort($T16,$U16,$AY$6:$AZ$7),"") ->  | AT16: =IF(AND($AA16=6,T16<>"",U16<>""),ort($T16,$U16,$AY$8:$AZ$8),"") ->  | AU16: =IF(AND($AA16=7,T16<>"",U16<>""),ort($T16,$U16,$AY$9:$AZ$9),"") ->  | BE16: 00:00:00
B17: 3.75 | L17: =DATE($B$3,$B$4,15) -> 2018-05-15 | M17: =DATE($B$3,$B$4,15) -> 2018-05-15 | O17: 00:00:00 | AA17: =IF(ISERROR(IF(NOT(ISERROR(MATCH($M17,Blad2!$A$2:$A$11,0))),7,WEEKDAY($M17,2))),"",IF(NOT(ISERROR(MATCH($M17,Blad2!$A$2:$A$11,0))),7,WEEKDAY($M17,2))) -> 2 | AB17: =IF(AND($AA17<6,N17<>"",O17<>""),ort($N17,$O17,$AY$3:$AZ$3),"") ->  | AC17: =IF(AND($AA17<6,N17<>"",O17<>""),ort($N17,$O17,$AY$4:$AZ$5),"") ->  | AD17: =IF(AND($AA17<6,N17<>"",O17<>""),ort($N17,$O17,$AY$6:$AZ$7),"") ->  | AE17: =IF(AND($AA17=6,N17<>"",O17<>""),ort($N17,$O17,$AY$8:$AZ$8),"") ->  | AF17: =IF(AND($AA17=7,N17<>"",O17<>""),ort($N17,$O17,$AY$9:$AZ$9),"") ->  | AG17: =IF(AND($AA17<6,P17<>"",Q17<>""),ort($P17,$Q17,$AY$3:$AZ$3),"") ->  | AH17: =IF(AND($AA17<6,P17<>"",Q17<>""),ort($P17,$Q17,$AY$4:$AZ$5),"") ->  | AI17: =IF(AND($AA17<6,P17<>"",Q17<>""),ort($P17,$Q17,$AY$6:$AZ$7),"") ->  | AJ17: =IF(AND($AA17=6,P17<>"",Q17<>""),ort($P17,$Q17,$AY$8:$AZ$8),"") ->  | AK17: =IF(AND($AA17=7,P17<>"",Q17<>""),ort($P17,$Q17,$AY$9:$AZ$9),"") ->  | AL17: =IF(AND($AA17<6,R17<>"",S17<>""),ort($R17,$S17,$AY$3:$AZ$3),"") ->  | AM17: =IF(AND($AA17<6,R17<>"",S17<>""),ort($R17,$S17,$AY$4:$AZ$5),"") ->  | AN17: =IF(AND($AA17<6,R17<>"",S17<>""),ort($R17,$S17,$AY$6:$AZ$7),"") ->  | AO17: =IF(AND($AA17=6,R17<>"",S17<>""),ort($R17,$S17,$AY$8:$AZ$8),"") ->  | AP17: =IF(AND($AA17=7,R17<>"",S17<>""),ort($R17,$S17,$AY$9:$AZ$9),"") ->  | AQ17: =IF(AND($AA17<6,T17<>"",U17<>""),ort($T17,$U17,$AY$3:$AZ$3),"") ->  | AR17: =IF(AND($AA17<6,T17<>"",U17<>""),ort($T17,$U17,$AY$4:$AZ$5),"") ->  | AS17: =IF(AND($AA17<6,T17<>"",U17<>""),ort($T17,$U17,$AY$6:$AZ$7),"") ->  | AT17: =IF(AND($AA17=6,T17<>"",U17<>""),ort($T17,$U17,$AY$8:$AZ$8),"") ->  | AU17: =IF(AND($AA17=7,T17<>"",U17<>""),ort($T17,$U17,$AY$9:$AZ$9),"") ->  | BE17: 00:00:00
J18: Hemelvaartsdag | L18: =DATE($B$3,$B$4,16) -> 2018-05-16 | M18: =DATE($B$3,$B$4,16) -> 2018-05-16 | O18: 00:00:00 | AA18: =IF(ISERROR(IF(NOT(ISERROR(MATCH($M18,Blad2!$A$2:$A$11,0))),7,WEEKDAY($M18,2))),"",IF(NOT(ISERROR(MATCH($M18,Blad2!$A$2:$A$11,0))),7,WEEKDAY($M18,2))) -> 7 | AB18: =IF(AND($AA18<6,N18<>"",O18<>""),ort($N18,$O18,$AY$3:$AZ$3),"") ->  | AC18: =IF(AND($AA18<6,N18<>"",O18<>""),ort($N18,$O18,$AY$4:$AZ$5),"") ->  | AD18: =IF(AND($AA18<6,N18<>"",O18<>""),ort($N18,$O18,$AY$6:$AZ$7),"") ->  | AE18: =IF(AND($AA18=6,N18<>"",O18<>""),ort($N18,$O18,$AY$8:$AZ$8),"") ->  | AF18: =IF(AND($AA18=7,N18<>"",O18<>""),ort($N18,$O18,$AY$9:$AZ$9),"") ->  | AG18: =IF(AND($AA18<6,P18<>"",Q18<>""),ort($P18,$Q18,$AY$3:$AZ$3),"") ->  | AH18: =IF(AND($AA18<6,P18<>"",Q18<>""),ort($P18,$Q18,$AY$4:$AZ$5),"") ->  | AI18: =IF(AND($AA18<6,P18<>"",Q18<>""),ort($P18,$Q18,$AY$6:$AZ$7),"") ->  | AJ18: =IF(AND($AA18=6,P18<>"",Q18<>""),ort($P18,$Q18,$AY$8:$AZ$8),"") ->  | AK18: =IF(AND($AA18=7,P18<>"",Q18<>""),ort($P18,$Q18,$AY$9:$AZ$9),"") ->  | AL18: =IF(AND($AA18<6,R18<>"",S18<>""),ort($R18,$S18,$AY$3:$AZ$3),"") ->  | AM18: =IF(AND($AA18<6,R18<>"",S18<>""),ort($R18,$S18,$AY$4:$AZ$5),"") ->  | AN18: =IF(AND($AA18<6,R18<>"",S18<>""),ort($R18,$S18,$AY$6:$AZ$7),"") ->  | AO18: =IF(AND($AA18=6,R18<>"",S18<>""),ort($R18,$S18,$AY$8:$AZ$8),"") ->  | AP18: =IF(AND($AA18=7,R18<>"",S18<>""),ort($R18,$S18,$AY$9:$AZ$9),"") ->  | AQ18: =IF(AND($AA18<6,T18<>"",U18<>""),ort($T18,$U18,$AY$3:$AZ$3),"") ->  | AR18: =IF(AND($AA18<6,T18<>"",U18<>""),ort($T18,$U18,$AY$4:$AZ$5),"") ->  | AS18: =IF(AND($AA18<6,T18<>"",U18<>""),ort($T18,$U18,$AY$6:$AZ$7),"") ->  | AT18: =IF(AND($AA18=6,T18<>"",U18<>""),ort($T18,$U18,$AY$8:$AZ$8),"") ->  | AU18: =IF(AND($AA18=7,T18<>"",U18<>""),ort($T18,$U18,$AY$9:$AZ$9),"") ->  | BE18: 00:00:00
B19: Gewerkte uren deze maand | L19: =DATE($B$3,$B$4,17) -> 2018-05-17 | M19: =DATE($B$3,$B$4,17) -> 2018-05-17 | O19: 00:00:00 | AA19: =IF(ISERROR(IF(NOT(ISERROR(MATCH($M19,Blad2!$A$2:$A$11,0))),7,WEEKDAY($M19,2))),"",IF(NOT(ISERROR(MATCH($M19,Blad2!$A$2:$A$11,0))),7,WEEKDAY($M19,2))) -> 4 | AB19: =IF(AND($AA19<6,N19<>"",O19<>""),ort($N19,$O19,$AY$3:$AZ$3),"") ->  | AC19: =IF(AND($AA19<6,N19<>"",O19<>""),ort($N19,$O19,$AY$4:$AZ$5),"") ->  | AD19: =IF(AND($AA19<6,N19<>"",O19<>""),ort($N19,$O19,$AY$6:$AZ$7),"") ->  | AE19: =IF(AND($AA19=6,N19<>"",O19<>""),ort($N19,$O19,$AY$8:$AZ$8),"") ->  | AF19: =IF(AND($AA19=7,N19<>"",O19<>""),ort($N19,$O19,$AY$9:$AZ$9),"") ->  | AG19: =IF(AND($AA19<6,P19<>"",Q19<>""),ort($P19,$Q19,$AY$3:$AZ$3),"") ->  | AH19: =IF(AND($AA19<6,P19<>"",Q19<>""),ort($P19,$Q19,$AY$4:$AZ$5),"") ->  | AI19: =IF(AND($AA19<6,P19<>"",Q19<>""),ort($P19,$Q19,$AY$6:$AZ$7),"") ->  | AJ19: =IF(AND($AA19=6,P19<>"",Q19<>""),ort($P19,$Q19,$AY$8:$AZ$8),"") ->  | AK19: =IF(AND($AA19=7,P19<>"",Q19<>""),ort($P19,$Q19,$AY$9:$AZ$9),"") ->  | AL19: =IF(AND($AA19<6,R19<>"",S19<>""),ort($R19,$S19,$AY$3:$AZ$3),"") ->  | AM19: =IF(AND($AA19<6,R19<>"",S19<>""),ort($R19,$S19,$AY$4:$AZ$5),"") ->  | AN19: =IF(AND($AA19<6,R19<>"",S19<>""),ort($R19,$S19,$AY$6:$AZ$7),"") ->  | AO19: =IF(AND($AA19=6,R19<>"",S19<>""),ort($R19,$S19,$AY$8:$AZ$8),"") ->  | AP19: =IF(AND($AA19=7,R19<>"",S19<>""),ort($R19,$S19,$AY$9:$AZ$9),"") ->  | AQ19: =IF(AND($AA19<6,T19<>"",U19<>""),ort($T19,$U19,$AY$3:$AZ$3),"") ->  | AR19: =IF(AND($AA19<6,T19<>"",U19<>""),ort($T19,$U19,$AY$4:$AZ$5),"") ->  | AS19: =IF(AND($AA19<6,T19<>"",U19<>""),ort($T19,$U19,$AY$6:$AZ$7),"") ->  | AT19: =IF(AND($AA19=6,T19<>"",U19<>""),ort($T19,$U19,$AY$8:$AZ$8),"") ->  | AU19: =IF(AND($AA19=7,T19<>"",U19<>""),ort($T19,$U19,$AY$9:$AZ$9),"") ->  | BE19: 00:00:00
B20: =SUM($V$3:$V$33) -> 0 | L20: =DATE($B$3,$B$4,18) -> 2018-05-18 | M20: =DATE($B$3,$B$4,18) -> 2018-05-18 | O20: 00:00:00 | AA20: =IF(ISERROR(IF(NOT(ISERROR(MATCH($M20,Blad2!$A$2:$A$11,0))),7,WEEKDAY($M20,2))),"",IF(NOT(ISERROR(MATCH($M20,Blad2!$A$2:$A$11,0))),7,WEEKDAY($M20,2))) -> 5 | AB20: =IF(AND($AA20<6,N20<>"",O20<>""),ort($N20,$O20,$AY$3:$AZ$3),"") ->  | AC20: =IF(AND($AA20<6,N20<>"",O20<>""),ort($N20,$O20,$AY$4:$AZ$5),"") ->  | AD20: =IF(AND($AA20<6,N20<>"",O20<>""),ort($N20,$O20,$AY$6:$AZ$7),"") ->  | AE20: =IF(AND($AA20=6,N20<>"",O20<>""),ort($N20,$O20,$AY$8:$AZ$8),"") ->  | AF20: =IF(AND($AA20=7,N20<>"",O20<>""),ort($N20,$O20,$AY$9:$AZ$9),"") ->  | AG20: =IF(AND($AA20<6,P20<>"",Q20<>""),ort($P20,$Q20,$AY$3:$AZ$3),"") ->  | AH20: =IF(AND($AA20<6,P20<>"",Q20<>""),ort($P20,$Q20,$AY$4:$AZ$5),"") ->  | AI20: =IF(AND($AA20<6,P20<>"",Q20<>""),ort($P20,$Q20,$AY$6:$AZ$7),"") ->  | AJ20: =IF(AND($AA20=6,P20<>"",Q20<>""),ort($P20,$Q20,$AY$8:$AZ$8),"") ->  | AK20: =IF(AND($AA20=7,P20<>"",Q20<>""),ort($P20,$Q20,$AY$9:$AZ$9),"") ->  | AL20: =IF(AND($AA20<6,R20<>"",S20<>""),ort($R20,$S20,$AY$3:$AZ$3),"") ->  | AM20: =IF(AND($AA20<6,R20<>"",S20<>""),ort($R20,$S20,$AY$4:$AZ$5),"") ->  | AN20: =IF(AND($AA20<6,R20<>"",S20<>""),ort($R20,$S20,$AY$6:$AZ$7),"") ->  | AO20: =IF(AND($AA20=6,R20<>"",S20<>""),ort($R20,$S20,$AY$8:$AZ$8),"") ->  | AP20: =IF(AND($AA20=7,R20<>"",S20<>""),ort($R20,$S20,$AY$9:$AZ$9),"") ->  | AQ20: =IF(AND($AA20<6,T20<>"",U20<>""),ort($T20,$U20,$AY$3:$AZ$3),"") ->  | AR20: =IF(AND($AA20<6,T20<>"",U20<>""),ort($T20,$U20,$AY$4:$AZ$5),"") ->  | AS20: =IF(AND($AA20<6,T20<>"",U20<>""),ort($T20,$U20,$AY$6:$AZ$7),"") ->  | AT20: =IF(AND($AA20=6,T20<>"",U20<>""),ort($T20,$U20,$AY$8:$AZ$8),"") ->  | AU20: =IF(AND($AA20=7,T20<>"",U20<>""),ort($T20,$U20,$AY$9:$AZ$9),"") ->  | AW20: =COUNTA(Blad2!B12:B100)-COUNTIF(Blad2!B12:B100,"Verlof") -> 0 | AX20: Aantal opgenomen ATV-dagen | BE20: 00:00:00
L21: =DATE($B$3,$B$4,19) -> 2018-05-19 | M21: =DATE($B$3,$B$4,19) -> 2018-05-19 | O21: 00:00:00 | AA21: =IF(ISERROR(IF(NOT(ISERROR(MATCH($M21,Blad2!$A$2:$A$11,0))),7,WEEKDAY($M21,2))),"",IF(NOT(ISERROR(MATCH($M21,Blad2!$A$2:$A$11,0))),7,WEEKDAY($M21,2))) -> 6 | AB21: =IF(AND($AA21<6,N21<>"",O21<>""),ort($N21,$O21,$AY$3:$AZ$3),"") ->  | AC21: =IF(AND($AA21<6,N21<>"",O21<>""),ort($N21,$O21,$AY$4:$AZ$5),"") ->  | AD21: =IF(AND($AA21<6,N21<>"",O21<>""),ort($N21,$O21,$AY$6:$AZ$7),"") ->  | AE21: =IF(AND($AA21=6,N21<>"",O21<>""),ort($N21,$O21,$AY$8:$AZ$8),"") ->  | AF21: =IF(AND($AA21=7,N21<>"",O21<>""),ort($N21,$O21,$AY$9:$AZ$9),"") ->  | AG21: =IF(AND($AA21<6,P21<>"",Q21<>""),ort($P21,$Q21,$AY$3:$AZ$3),"") ->  | AH21: =IF(AND($AA21<6,P21<>"",Q21<>""),ort($P21,$Q21,$AY$4:$AZ$5),"") ->  | AI21: =IF(AND($AA21<6,P21<>"",Q21<>""),ort($P21,$Q21,$AY$6:$AZ$7),"") ->  | AJ21: =IF(AND($AA21=6,P21<>"",Q21<>""),ort($P21,$Q21,$AY$8:$AZ$8),"") ->  | AK21: =IF(AND($AA21=7,P21<>"",Q21<>""),ort($P21,$Q21,$AY$9:$AZ$9),"") ->  | AL21: =IF(AND($AA21<6,R21<>"",S21<>""),ort($R21,$S21,$AY$3:$AZ$3),"") ->  | AM21: =IF(AND($AA21<6,R21<>"",S21<>""),ort($R21,$S21,$AY$4:$AZ$5),"") ->  | AN21: =IF(AND($AA21<6,R21<>"",S21<>""),ort($R21,$S21,$AY$6:$AZ$7),"") ->  | AO21: =IF(AND($AA21=6,R21<>"",S21<>""),ort($R21,$S21,$AY$8:$AZ$8),"") ->  | AP21: =IF(AND($AA21=7,R21<>"",S21<>""),ort($R21,$S21,$AY$9:$AZ$9),"") ->  | AQ21: =IF(AND($AA21<6,T21<>"",U21<>""),ort($T21,$U21,$AY$3:$AZ$3),"") ->  | AR21: =IF(AND($AA21<6,T21<>"",U21<>""),ort($T21,$U21,$AY$4:$AZ$5),"") ->  | AS21: =IF(AND($AA21<6,T21<>"",U21<>""),ort($T21,$U21,$AY$6:$AZ$7),"") ->  | AT21: =IF(AND($AA21=6,T21<>"",U21<>""),ort($T21,$U21,$AY$8:$AZ$8),"") ->  | AU21: =IF(AND($AA21=7,T21<>"",U21<>""),ort($T21,$U21,$AY$9:$AZ$9),"") ->  | AW21: =COUNTA(Blad2!B12:B100)-COUNTIF(Blad2!B12:B100,"ATV") -> 2 | AX21: Aantal opgenomen verlofdagen | BE21: 00:00:00
L22: =DATE($B$3,$B$4,20) -> 2018-05-20 | M22: =DATE($B$3,$B$4,20) -> 2018-05-20 | O22: 00:00:00 | AA22: =IF(ISERROR(IF(NOT(ISERROR(MATCH($M22,Blad2!$A$2:$A$11,0))),7,WEEKDAY($M22,2))),"",IF(NOT(ISERROR(MATCH($M22,Blad2!$A$2:$A$11,0))),7,WEEKDAY($M22,2))) -> 7 | AB22: =IF(AND($AA22<6,N22<>"",O22<>""),ort($N22,$O22,$AY$3:$AZ$3),"") ->  | AC22: =IF(AND($AA22<6,N22<>"",O22<>""),ort($N22,$O22,$AY$4:$AZ$5),"") ->  | AD22: =IF(AND($AA22<6,N22<>"",O22<>""),ort($N22,$O22,$AY$6:$AZ$7),"") ->  | AE22: =IF(AND($AA22=6,N22<>"",O22<>""),ort($N22,$O22,$AY$8:$AZ$8),"") ->  | AF22: =IF(AND($AA22=7,N22<>"",O22<>""),ort($N22,$O22,$AY$9:$AZ$9),"") ->  | AG22: =IF(AND($AA22<6,P22<>"",Q22<>""),ort($P22,$Q22,$AY$3:$AZ$3),"") ->  | AH22: =IF(AND($AA22<6,P22<>"",Q22<>""),ort($P22,$Q22,$AY$4:$AZ$5),"") ->  | AI22: =IF(AND($AA22<6,P22<>"",Q22<>""),ort($P22,$Q22,$AY$6:$AZ$7),"") ->  | AJ22: =IF(AND($AA22=6,P22<>"",Q22<>""),ort($P22,$Q22,$AY$8:$AZ$8),"") ->  | AK22: =IF(AND($AA22=7,P22<>"",Q22<>""),ort($P22,$Q22,$AY$9:$AZ$9),"") ->  | AL22: =IF(AND($AA22<6,R22<>"",S22<>""),ort($R22,$S22,$AY$3:$AZ$3),"") ->  | AM22: =IF(AND($AA22<6,R22<>"",S22<>""),ort($R22,$S22,$AY$4:$AZ$5),"") ->  | AN22: =IF(AND($AA22<6,R22<>"",S22<>""),ort($R22,$S22,$AY$6:$AZ$7),"") ->  | AO22: =IF(AND($AA22=6,R22<>"",S22<>""),ort($R22,$S22,$AY$8:$AZ$8),"") ->  | AP22: =IF(AND($AA22=7,R22<>"",S22<>""),ort($R22,$S22,$AY$9:$AZ$9),"") ->  | AQ22: =IF(AND($AA22<6,T22<>"",U22<>""),ort($T22,$U22,$AY$3:$AZ$3),"") ->  | AR22: =IF(AND($AA22<6,T22<>"",U22<>""),ort($T22,$U22,$AY$4:$AZ$5),"") ->  | AS22: =IF(AND($AA22<6,T22<>"",U22<>""),ort($T22,$U22,$AY$6:$AZ$7),"") ->  | AT22: =IF(AND($AA22=6,T22<>"",U22<>""),ort($T22,$U22,$AY$8:$AZ$8),"") ->  | AU22: =IF(AND($AA22=7,T22<>"",U22<>""),ort($T22,$U22,$AY$9:$AZ$9),"") ->  | BE22: 00:00:00
K23: 21 | L23: =DATE($B$3,$B$4,21) -> 2018-05-21 | M23: =DATE($B$3,$B$4,21) -> 2018-05-21 | O23: 00:00:00 | AA23: =IF(ISERROR(IF(NOT(ISERROR(MATCH($M23,Blad2!$A$2:$A$11,0))),7,WEEKDAY($M23,2))),"",IF(NOT(ISERROR(MATCH($M23,Blad2!$A$2:$A$11,0))),7,WEEKDAY($M23,2))) -> 1 | AB23: =IF(AND($AA23<6,N23<>"",O23<>""),ort($N23,$O23,$AY$3:$AZ$3),"") ->  | AC23: =IF(AND($AA23<6,N23<>"",O23<>""),ort($N23,$O23,$AY$4:$AZ$5),"") ->  | AD23: =IF(AND($AA23<6,N23<>"",O23<>""),ort($N23,$O23,$AY$6:$AZ$7),"") ->  | AE23: =IF(AND($AA23=6,N23<>"",O23<>""),ort($N23,$O23,$AY$8:$AZ$8),"") ->  | AF23: =IF(AND($AA23=7,N23<>"",O23<>""),ort($N23,$O23,$AY$9:$AZ$9),"") ->  | AG23: =IF(AND($AA23<6,P23<>"",Q23<>""),ort($P23,$Q23,$AY$3:$AZ$3),"") ->  | AH23: =IF(AND($AA23<6,P23<>"",Q23<>""),ort($P23,$Q23,$AY$4:$AZ$5),"") ->  | AI23: =IF(AND($AA23<6,P23<>"",Q23<>""),ort($P23,$Q23,$AY$6:$AZ$7),"") ->  | AJ23: =IF(AND($AA23=6,P23<>"",Q23<>""),ort($P23,$Q23,$AY$8:$AZ$8),"") ->  | AK23: =IF(AND($AA23=7,P23<>"",Q23<>""),ort($P23,$Q23,$AY$9:$AZ$9),"") ->  | AL23: =IF(AND($AA23<6,R23<>"",S23<>""),ort($R23,$S23,$AY$3:$AZ$3),"") ->  | AM23: =IF(AND($AA23<6,R23<>"",S23<>""),ort($R23,$S23,$AY$4:$AZ$5),"") ->  | AN23: =IF(AND($AA23<6,R23<>"",S23<>""),ort($R23,$S23,$AY$6:$AZ$7),"") ->  | AO23: =IF(AND($AA23=6,R23<>"",S23<>""),ort($R23,$S23,$AY$8:$AZ$8),"") ->  | AP23: =IF(AND($AA23=7,R23<>"",S23<>""),ort($R23,$S23,$AY$9:$AZ$9),"") ->  | AQ23: =IF(AND($AA23<6,T23<>"",U23<>""),ort($T23,$U23,$AY$3:$AZ$3),"") ->  | AR23: =IF(AND($AA23<6,T23<>"",U23<>""),ort($T23,$U23,$AY$4:$AZ$5),"") ->  | AS23: =IF(AND($AA23<6,T23<>"",U23<>""),ort($T23,$U23,$AY$6:$AZ$7),"") ->  | AT23: =IF(AND($AA23=6,T23<>"",U23<>""),ort($T23,$U23,$AY$8:$AZ$8),"") ->  | AU23: =IF(AND($AA23=7,T23<>"",U23<>""),ort($T23,$U23,$AY$9:$AZ$9),"") ->  | BE23: 00:00:00
L24: =DATE($B$3,$B$4,22) -> 2018-05-22 | M24: =DATE($B$3,$B$4,22) -> 2018-05-22 | O24: 00:00:00 | AA24: =IF(ISERROR(IF(NOT(ISERROR(MATCH($M24,Blad2!$A$2:$A$11,0))),7,WEEKDAY($M24,2))),"",IF(NOT(ISERROR(MATCH($M24,Blad2!$A$2:$A$11,0))),7,WEEKDAY($M24,2))) -> 2 | AB24: =IF(AND($AA24<6,N24<>"",O24<>""),ort($N24,$O24,$AY$3:$AZ$3),"") ->  | AC24: =IF(AND($AA24<6,N24<>"",O24<>""),ort($N24,$O24,$AY$4:$AZ$5),"") ->  | AD24: =IF(AND($AA24<6,N24<>"",O24<>""),ort($N24,$O24,$AY$6:$AZ$7),"") ->  | AE24: =IF(AND($AA24=6,N24<>"",O24<>""),ort($N24,$O24,$AY$8:$AZ$8),"") ->  | AF24: =IF(AND($AA24=7,N24<>"",O24<>""),ort($N24,$O24,$AY$9:$AZ$9),"") ->  | AG24: =IF(AND($AA24<6,P24<>"",Q24<>""),ort($P24,$Q24,$AY$3:$AZ$3),"") ->  | AH24: =IF(AND($AA24<6,P24<>"",Q24<>""),ort($P24,$Q24,$AY$4:$AZ$5),"") ->  | AI24: =IF(AND($AA24<6,P24<>"",Q24<>""),ort($P24,$Q24,$AY$6:$AZ$7),"") ->  | AJ24: =IF(AND($AA24=6,P24<>"",Q24<>""),ort($P24,$Q24,$AY$8:$AZ$8),"") ->  | AK24: =IF(AND($AA24=7,P24<>"",Q24<>""),ort($P24,$Q24,$AY$9:$AZ$9),"") ->  | AL24: =IF(AND($AA24<6,R24<>"",S24<>""),ort($R24,$S24,$AY$3:$AZ$3),"") ->  | AM24: =IF(AND($AA24<6,R24<>"",S24<>""),ort($R24,$S24,$AY$4:$AZ$5),"") ->  | AN24: =IF(AND($AA24<6,R24<>"",S24<>""),ort($R24,$S24,$AY$6:$AZ$7),"") ->  | AO24: =IF(AND($AA24=6,R24<>"",S24<>""),ort($R24,$S24,$AY$8:$AZ$8),"") ->  | AP24: =IF(AND($AA24=7,R24<>"",S24<>""),ort($R24,$S24,$AY$9:$AZ$9),"") ->  | AQ24: =IF(AND($AA24<6,T24<>"",U24<>""),ort($T24,$U24,$AY$3:$AZ$3),"") ->  | AR24: =IF(AND($AA24<6,T24<>"",U24<>""),ort($T24,$U24,$AY$4:$AZ$5),"") ->  | AS24: =IF(AND($AA24<6,T24<>"",U24<>""),ort($T24,$U24,$AY$6:$AZ$7),"") ->  | AT24: =IF(AND($AA24=6,T24<>"",U24<>""),ort($T24,$U24,$AY$8:$AZ$8),"") ->  | AU24: =IF(AND($AA24=7,T24<>"",U24<>""),ort($T24,$U24,$AY$9:$AZ$9),"") ->  | BE24: 00:00:00
L25: =DATE($B$3,$B$4,23) -> 2018-05-23 | M25: =DATE($B$3,$B$4,23) -> 2018-05-23 | O25: 00:00:00 | AA25: =IF(ISERROR(IF(NOT(ISERROR(MATCH($M25,Blad2!$A$2:$A$11,0))),7,WEEKDAY($M25,2))),"",IF(NOT(ISERROR(MATCH($M25,Blad2!$A$2:$A$11,0))),7,WEEKDAY($M25,2))) -> 3 | AB25: =IF(AND($AA25<6,N25<>"",O25<>""),ort($N25,$O25,$AY$3:$AZ$3),"") ->  | AC25: =IF(AND($AA25<6,N25<>"",O25<>""),ort($N25,$O25,$AY$4:$AZ$5),"") ->  | AD25: =IF(AND($AA25<6,N25<>"",O25<>""),ort($N25,$O25,$AY$6:$AZ$7),"") ->  | AE25: =IF(AND($AA25=6,N25<>"",O25<>""),ort($N25,$O25,$AY$8:$AZ$8),"") ->  | AF25: =IF(AND($AA25=7,N25<>"",O25<>""),ort($N25,$O25,$AY$9:$AZ$9),"") ->  | AG25: =IF(AND($AA25<6,P25<>"",Q25<>""),ort($P25,$Q25,$AY$3:$AZ$3),"") ->  | AH25: =IF(AND($AA25<6,P25<>"",Q25<>""),ort($P25,$Q25,$AY$4:$AZ$5),"") ->  | AI25: =IF(AND($AA25<6,P25<>"",Q25<>""),ort($P25,$Q25,$AY$6:$AZ$7),"") ->  | AJ25: =IF(AND($AA25=6,P25<>"",Q25<>""),ort($P25,$Q25,$AY$8:$AZ$8),"") ->  | AK25: =IF(AND($AA25=7,P25<>"",Q25<>""),ort($P25,$Q25,$AY$9:$AZ$9),"") ->  | AL25: =IF(AND($AA25<6,R25<>"",S25<>""),ort($R25,$S25,$AY$3:$AZ$3),"") ->  | AM25: =IF(AND($AA25<6,R25<>"",S25<>""),ort($R25,$S25,$AY$4:$AZ$5),"") ->  | AN25: =IF(AND($AA25<6,R25<>"",S25<>""),ort($R25,$S25,$AY$6:$AZ$7),"") ->  | AO25: =IF(AND($AA25=6,R25<>"",S25<>""),ort($R25,$S25,$AY$8:$AZ$8),"") ->  | AP25: =IF(AND($AA25=7,R25<>"",S25<>""),ort($R25,$S25,$AY$9:$AZ$9),"") ->  | AQ25: =IF(AND($AA25<6,T25<>"",U25<>""),ort($T25,$U25,$AY$3:$AZ$3),"") ->  | AR25: =IF(AND($AA25<6,T25<>"",U25<>""),ort($T25,$U25,$AY$4:$AZ$5),"") ->  | AS25: =IF(AND($AA25<6,T25<>"",U25<>""),ort($T25,$U25,$AY$6:$AZ$7),"") ->  | AT25: =IF(AND($AA25=6,T25<>"",U25<>""),ort($T25,$U25,$AY$8:$AZ$8),"") ->  | AU25: =IF(AND($AA25=7,T25<>"",U25<>""),ort($T25,$U25,$AY$9:$AZ$9),"") ->  | BE25: 00:00:00
L26: =DATE($B$3,$B$4,24) -> 2018-05-24 | M26: =DATE($B$3,$B$4,24) -> 2018-05-24 | O26: 00:00:00 | AA26: =IF(ISERROR(IF(NOT(ISERROR(MATCH($M26,Blad2!$A$2:$A$11,0))),7,WEEKDAY($M26,2))),"",IF(NOT(ISERROR(MATCH($M26,Blad2!$A$2:$A$11,0))),7,WEEKDAY($M26,2))) -> 4 | AB26: =IF(AND($AA26<6,N26<>"",O26<>""),ort($N26,$O26,$AY$3:$AZ$3),"") ->  | AC26: =IF(AND($AA26<6,N26<>"",O26<>""),ort($N26,$O26,$AY$4:$AZ$5),"") ->  | AD26: =IF(AND($AA26<6,N26<>"",O26<>""),ort($N26,$O26,$AY$6:$AZ$7),"") ->  | AE26: =IF(AND($AA26=6,N26<>"",O26<>""),ort($N26,$O26,$AY$8:$AZ$8),"") ->  | AF26: =IF(AND($AA26=7,N26<>"",O26<>""),ort($N26,$O26,$AY$9:$AZ$9),"") ->  | AG26: =IF(AND($AA26<6,P26<>"",Q26<>""),ort($P26,$Q26,$AY$3:$AZ$3),"") ->  | AH26: =IF(AND($AA26<6,P26<>"",Q26<>""),ort($P26,$Q26,$AY$4:$AZ$5),"") ->  | AI26: =IF(AND($AA26<6,P26<>"",Q26<>""),ort($P26,$Q26,$AY$6:$AZ$7),"") ->  | AJ26: =IF(AND($AA26=6,P26<>"",Q26<>""),ort($P26,$Q26,$AY$8:$AZ$8),"") ->  | AK26: =IF(AND($AA26=7,P26<>"",Q26<>""),ort($P26,$Q26,$AY$9:$AZ$9),"") ->  | AL26: =IF(AND($AA26<6,R26<>"",S26<>""),ort($R26,$S26,$AY$3:$AZ$3),"") ->  | AM26: =IF(AND($AA26<6,R26<>"",S26<>""),ort($R26,$S26,$AY$4:$AZ$5),"") ->  | AN26: =IF(AND($AA26<6,R26<>"",S26<>""),ort($R26,$S26,$AY$6:$AZ$7),"") ->  | AO26: =IF(AND($AA26=6,R26<>"",S26<>""),ort($R26,$S26,$AY$8:$AZ$8),"") ->  | AP26: =IF(AND($AA26=7,R26<>"",S26<>""),ort($R26,$S26,$AY$9:$AZ$9),"") ->  | AQ26: =IF(AND($AA26<6,T26<>"",U26<>""),ort($T26,$U26,$AY$3:$AZ$3),"") ->  | AR26: =IF(AND($AA26<6,T26<>"",U26<>""),ort($T26,$U26,$AY$4:$AZ$5),"") ->  | AS26: =IF(AND($AA26<6,T26<>"",U26<>""),ort($T26,$U26,$AY$6:$AZ$7),"") ->  | AT26: =IF(AND($AA26=6,T26<>"",U26<>""),ort($T26,$U26,$AY$8:$AZ$8),"") ->  | AU26: =IF(AND($AA26=7,T26<>"",U26<>""),ort($T26,$U26,$AY$9:$AZ$9),"") ->  | BE26: 00:00:00
L27: =DATE($B$3,$B$4,25) -> 2018-05-25 | M27: =DATE($B$3,$B$4,25) -> 2018-05-25 | O27: 00:00:00 | AA27: =IF(ISERROR(IF(NOT(ISERROR(MATCH($M27,Blad2!$A$2:$A$11,0))),7,WEEKDAY($M27,2))),"",IF(NOT(ISERROR(MATCH($M27,Blad2!$A$2:$A$11,0))),7,WEEKDAY($M27,2))) -> 5 | AB27: =IF(AND($AA27<6,N27<>"",O27<>""),ort($N27,$O27,$AY$3:$AZ$3),"") ->  | AC27: =IF(AND($AA27<6,N27<>"",O27<>""),ort($N27,$O27,$AY$4:$AZ$5),"") ->  | AD27: =IF(AND($AA27<6,N27<>"",O27<>""),ort($N27,$O27,$AY$6:$AZ$7),"") ->  | AE27: =IF(AND($AA27=6,N27<>"",O27<>""),ort($N27,$O27,$AY$8:$AZ$8),"") ->  | AF27: =IF(AND($AA27=7,N27<>"",O27<>""),ort($N27,$O27,$AY$9:$AZ$9),"") ->  | AG27: =IF(AND($AA27<6,P27<>"",Q27<>""),ort($P27,$Q27,$AY$3:$AZ$3),"") ->  | AH27: =IF(AND($AA27<6,P27<>"",Q27<>""),ort($P27,$Q27,$AY$4:$AZ$5),"") ->  | AI27: =IF(AND($AA27<6,P27<>"",Q27<>""),ort($P27,$Q27,$AY$6:$AZ$7),"") ->  | AJ27: =IF(AND($AA27=6,P27<>"",Q27<>""),ort($P27,$Q27,$AY$8:$AZ$8),"") ->  | AK27: =IF(AND($AA27=7,P27<>"",Q27<>""),ort($P27,$Q27,$AY$9:$AZ$9),"") ->  | AL27: =IF(AND($AA27<6,R27<>"",S27<>""),ort($R27,$S27,$AY$3:$AZ$3),"") ->  | AM27: =IF(AND($AA27<6,R27<>"",S27<>""),ort($R27,$S27,$AY$4:$AZ$5),"") ->  | AN27: =IF(AND($AA27<6,R27<>"",S27<>""),ort($R27,$S27,$AY$6:$AZ$7),"") ->  | AO27: =IF(AND($AA27=6,R27<>"",S27<>""),ort($R27,$S27,$AY$8:$AZ$8),"") ->  | AP27: =IF(AND($AA27=7,R27<>"",S27<>""),ort($R27,$S27,$AY$9:$AZ$9),"") ->  | AQ27: =IF(AND($AA27<6,T27<>"",U27<>""),ort($T27,$U27,$AY$3:$AZ$3),"") ->  | AR27: =IF(AND($AA27<6,T27<>"",U27<>""),ort($T27,$U27,$AY$4:$AZ$5),"") ->  | AS27: =IF(AND($AA27<6,T27<>"",U27<>""),ort($T27,$U27,$AY$6:$AZ$7),"") ->  | AT27: =IF(AND($AA27=6,T27<>"",U27<>""),ort($T27,$U27,$AY$8:$AZ$8),"") ->  | AU27: =IF(AND($AA27=7,T27<>"",U27<>""),ort($T27,$U27,$AY$9:$AZ$9),"") ->  | BE27: 00:00:00
J28: Pinksteren | L28: =DATE($B$3,$B$4,26) -> 2018-05-26 | M28: =DATE($B$3,$B$4,26) -> 2018-05-26 | O28: 00:00:00 | AA28: =IF(ISERROR(IF(NOT(ISERROR(MATCH($M28,Blad2!$A$2:$A$11,0))),7,WEEKDAY($M28,2))),"",IF(NOT(ISERROR(MATCH($M28,Blad2!$A$2:$A$11,0))),7,WEEKDAY($M28,2))) -> 7 | AB28: =IF(AND($AA28<6,N28<>"",O28<>""),ort($N28,$O28,$AY$3:$AZ$3),"") ->  | AC28: =IF(AND($AA28<6,N28<>"",O28<>""),ort($N28,$O28,$AY$4:$AZ$5),"") ->  | AD28: =IF(AND($AA28<6,N28<>"",O28<>""),ort($N28,$O28,$AY$6:$AZ$7),"") ->  | AE28: =IF(AND($AA28=6,N28<>"",O28<>""),ort($N28,$O28,$AY$8:$AZ$8),"") ->  | AF28: =IF(AND($AA28=7,N28<>"",O28<>""),ort($N28,$O28,$AY$9:$AZ$9),"") ->  | AG28: =IF(AND($AA28<6,P28<>"",Q28<>""),ort($P28,$Q28,$AY$3:$AZ$3),"") ->  | AH28: =IF(AND($AA28<6,P28<>"",Q28<>""),ort($P28,$Q28,$AY$4:$AZ$5),"") ->  | AI28: =IF(AND($AA28<6,P28<>"",Q28<>""),ort($P28,$Q28,$AY$6:$AZ$7),"") ->  | AJ28: =IF(AND($AA28=6,P28<>"",Q28<>""),ort($P28,$Q28,$AY$8:$AZ$8),"") ->  | AK28: =IF(AND($AA28=7,P28<>"",Q28<>""),ort($P28,$Q28,$AY$9:$AZ$9),"") ->  | AL28: =IF(AND($AA28<6,R28<>"",S28<>""),ort($R28,$S28,$AY$3:$AZ$3),"") ->  | AM28: =IF(AND($AA28<6,R28<>"",S28<>""),ort($R28,$S28,$AY$4:$AZ$5),"") ->  | AN28: =IF(AND($AA28<6,R28<>"",S28<>""),ort($R28,$S28,$AY$6:$AZ$7),"") ->  | AO28: =IF(AND($AA28=6,R28<>"",S28<>""),ort($R28,$S28,$AY$8:$AZ$8),"") ->  | AP28: =IF(AND($AA28=7,R28<>"",S28<>""),ort($R28,$S28,$AY$9:$AZ$9),"") ->  | AQ28: =IF(AND($AA28<6,T28<>"",U28<>""),ort($T28,$U28,$AY$3:$AZ$3),"") ->  | AR28: =IF(AND($AA28<6,T28<>"",U28<>""),ort($T28,$U28,$AY$4:$AZ$5),"") ->  | AS28: =IF(AND($AA28<6,T28<>"",U28<>""),ort($T28,$U28,$AY$6:$AZ$7),"") ->  | AT28: =IF(AND($AA28=6,T28<>"",U28<>""),ort($T28,$U28,$AY$8:$AZ$8),"") ->  | AU28: =IF(AND($AA28=7,T28<>"",U28<>""),ort($T28,$U28,$AY$9:$AZ$9),"") ->  | BE28: 00:00:00
J29: Pinkstermaandag | L29: =DATE($B$3,$B$4,27) -> 2018-05-27 | M29: =DATE($B$3,$B$4,27) -> 2018-05-27 | O29: 00:00:00 | AA29: =IF(ISERROR(IF(NOT(ISERROR(MATCH($M29,Blad2!$A$2:$A$11,0))),7,WEEKDAY($M29,2))),"",IF(NOT(ISERROR(MATCH($M29,Blad2!$A$2:$A$11,0))),7,WEEKDAY($M29,2))) -> 7 | AB29: =IF(AND($AA29<6,N29<>"",O29<>""),ort($N29,$O29,$AY$3:$AZ$3),"") ->  | AC29: =IF(AND($AA29<6,N29<>"",O29<>""),ort($N29,$O29,$AY$4:$AZ$5),"") ->  | AD29: =IF(AND($AA29<6,N29<>"",O29<>""),ort($N29,$O29,$AY$6:$AZ$7),"") ->  | AE29: =IF(AND($AA29=6,N29<>"",O29<>""),ort($N29,$O29,$AY$8:$AZ$8),"") ->  | AF29: =IF(AND($AA29=7,N29<>"",O29<>""),ort($N29,$O29,$AY$9:$AZ$9),"") ->  | AG29: =IF(AND($AA29<6,P29<>"",Q29<>""),ort($P29,$Q29,$AY$3:$AZ$3),"") ->  | AH29: =IF(AND($AA29<6,P29<>"",Q29<>""),ort($P29,$Q29,$AY$4:$AZ$5),"") ->  | AI29: =IF(AND($AA29<6,P29<>"",Q29<>""),ort($P29,$Q29,$AY$6:$AZ$7),"") ->  | AJ29: =IF(AND($AA29=6,P29<>"",Q29<>""),ort($P29,$Q29,$AY$8:$AZ$8),"") ->  | AK29: =IF(AND($AA29=7,P29<>"",Q29<>""),ort($P29,$Q29,$AY$9:$AZ$9),"") ->  | AL29: =IF(AND($AA29<6,R29<>"",S29<>""),ort($R29,$S29,$AY$3:$AZ$3),"") ->  | AM29: =IF(AND($AA29<6,R29<>"",S29<>""),ort($R29,$S29,$AY$4:$AZ$5),"") ->  | AN29: =IF(AND($AA29<6,R29<>"",S29<>""),ort($R29,$S29,$AY$6:$AZ$7),"") ->  | AO29: =IF(AND($AA29=6,R29<>"",S29<>""),ort($R29,$S29,$AY$8:$AZ$8),"") ->  | AP29: =IF(AND($AA29=7,R29<>"",S29<>""),ort($R29,$S29,$AY$9:$AZ$9),"") ->  | AQ29: =IF(AND($AA29<6,T29<>"",U29<>""),ort($T29,$U29,$AY$3:$AZ$3),"") ->  | AR29: =IF(AND($AA29<6,T29<>"",U29<>""),ort($T29,$U29,$AY$4:$AZ$5),"") ->  | AS29: =IF(AND($AA29<6,T29<>"",U29<>""),ort($T29,$U29,$AY$6:$AZ$7),"") ->  | AT29: =IF(AND($AA29=6,T29<>"",U29<>""),ort($T29,$U29,$AY$8:$AZ$8),"") ->  | AU29: =IF(AND($AA29=7,T29<>"",U29<>""),ort($T29,$U29,$AY$9:$AZ$9),"") ->  | BE29: 00:00:00
K30: 22 | L30: =DATE($B$3,$B$4,28) -> 2018-05-28 | M30: =DATE($B$3,$B$4,28) -> 2018-05-28 | O30: 00:00:00 | AA30: =IF(ISERROR(IF(NOT(ISERROR(MATCH($M30,Blad2!$A$2:$A$11,0))),7,WEEKDAY($M30,2))),"",IF(NOT(ISERROR(MATCH($M30,Blad2!$A$2:$A$11,0))),7,WEEKDAY($M30,2))) -> 1 | AB30: =IF(AND($AA30<6,N30<>"",O30<>""),ort($N30,$O30,$AY$3:$AZ$3),"") ->  | AC30: =IF(AND($AA30<6,N30<>"",O30<>""),ort($N30,$O30,$AY$4:$AZ$5),"") ->  | AD30: =IF(AND($AA30<6,N30<>"",O30<>""),ort($N30,$O30,$AY$6:$AZ$7),"") ->  | AE30: =IF(AND($AA30=6,N30<>"",O30<>""),ort($N30,$O30,$AY$8:$AZ$8),"") ->  | AF30: =IF(AND($AA30=7,N30<>"",O30<>""),ort($N30,$O30,$AY$9:$AZ$9),"") ->  | AG30: =IF(AND($AA30<6,P30<>"",Q30<>""),ort($P30,$Q30,$AY$3:$AZ$3),"") ->  | AH30: =IF(AND($AA30<6,P30<>"",Q30<>""),ort($P30,$Q30,$AY$4:$AZ$5),"") ->  | AI30: =IF(AND($AA30<6,P30<>"",Q30<>""),ort($P30,$Q30,$AY$6:$AZ$7),"") ->  | AJ30: =IF(AND($AA30=6,P30<>"",Q30<>""),ort($P30,$Q30,$AY$8:$AZ$8),"") ->  | AK30: =IF(AND($AA30=7,P30<>"",Q30<>""),ort($P30,$Q30,$AY$9:$AZ$9),"") ->  | AL30: =IF(AND($AA30<6,R30<>"",S30<>""),ort($R30,$S30,$AY$3:$AZ$3),"") ->  | AM30: =IF(AND($AA30<6,R30<>"",S30<>""),ort($R30,$S30,$AY$4:$AZ$5),"") ->  | AN30: =IF(AND($AA30<6,R30<>"",S30<>""),ort($R30,$S30,$AY$6:$AZ$7),"") ->  | AO30: =IF(AND($AA30=6,R30<>"",S30<>""),ort($R30,$S30,$AY$8:$AZ$8),"") ->  | AP30: =IF(AND($AA30=7,R30<>"",S30<>""),ort($R30,$S30,$AY$9:$AZ$9),"") ->  | AQ30: =IF(AND($AA30<6,T30<>"",U30<>""),ort($T30,$U30,$AY$3:$AZ$3),"") ->  | AR30: =IF(AND($AA30<6,T30<>"",U30<>""),ort($T30,$U30,$AY$4:$AZ$5),"") ->  | AS30: =IF(AND($AA30<6,T30<>"",U30<>""),ort($T30,$U30,$AY$6:$AZ$7),"") ->  | AT30: =IF(AND($AA30=6,T30<>"",U30<>""),ort($T30,$U30,$AY$8:$AZ$8),"") ->  | AU30: =IF(AND($AA30=7,T30<>"",U30<>""),ort($T30,$U30,$AY$9:$AZ$9),"") ->  | BE30: 00:00:00
K31: =IF(L31="","",IF(WEEKDAY(L31)=2,1+INT((L31-DATE(YEAR(L31+4-WEEKDAY(L31+6)),1,5)+WEEKDAY(DATE(YEAR(L31+4-WEEKDAY(L31+6)),1,3)))/7),"")) ->  | L31: =IF(MONTH(L$30+1)<>MONTH(L$30),"",L$30+1) -> 2018-05-29 | M31: =IF(MONTH(M$30+1)<>MONTH(M$30),"",M$30+1) -> 2018-05-29 | O31: 00:00:00 | AA31: =IF(ISERROR(IF(NOT(ISERROR(MATCH($M31,Blad2!$A$2:$A$11,0))),7,WEEKDAY($M31,2))),"",IF(NOT(ISERROR(MATCH($M31,Blad2!$A$2:$A$11,0))),7,WEEKDAY($M31,2))) -> 2 | AB31: =IF(AND($AA31<6,N31<>"",O31<>""),ort($N31,$O31,$AY$3:$AZ$3),"") ->  | AC31: =IF(AND($AA31<6,N31<>"",O31<>""),ort($N31,$O31,$AY$4:$AZ$5),"") ->  | AD31: =IF(AND($AA31<6,N31<>"",O31<>""),ort($N31,$O31,$AY$6:$AZ$7),"") ->  | AE31: =IF(AND($AA31=6,N31<>"",O31<>""),ort($N31,$O31,$AY$8:$AZ$8),"") ->  | AF31: =IF(AND($AA31=7,N31<>"",O31<>""),ort($N31,$O31,$AY$9:$AZ$9),"") ->  | AG31: =IF(AND($AA31<6,P31<>"",Q31<>""),ort($P31,$Q31,$AY$3:$AZ$3),"") ->  | AH31: =IF(AND($AA31<6,P31<>"",Q31<>""),ort($P31,$Q31,$AY$4:$AZ$5),"") ->  | AI31: =IF(AND($AA31<6,P31<>"",Q31<>""),ort($P31,$Q31,$AY$6:$AZ$7),"") ->  | AJ31: =IF(AND($AA31=6,P31<>"",Q31<>""),ort($P31,$Q31,$AY$8:$AZ$8),"") ->  | AK31: =IF(AND($AA31=7,P31<>"",Q31<>""),ort($P31,$Q31,$AY$9:$AZ$9),"") ->  | AL31: =IF(AND($AA31<6,R31<>"",S31<>""),ort($R31,$S31,$AY$3:$AZ$3),"") ->  | AM31: =IF(AND($AA31<6,R31<>"",S31<>""),ort($R31,$S31,$AY$4:$AZ$5),"") ->  | AN31: =IF(AND($AA31<6,R31<>"",S31<>""),ort($R31,$S31,$AY$6:$AZ$7),"") ->  | AO31: =IF(AND($AA31=6,R31<>"",S31<>""),ort($R31,$S31,$AY$8:$AZ$8),"") ->  | AP31: =IF(AND($AA31=7,R31<>"",S31<>""),ort($R31,$S31,$AY$9:$AZ$9),"") ->  | AQ31: =IF(AND($AA31<6,T31<>"",U31<>""),ort($T31,$U31,$AY$3:$AZ$3),"") ->  | AR31: =IF(AND($AA31<6,T31<>"",U31<>""),ort($T31,$U31,$AY$4:$AZ$5),"") ->  | AS31: =IF(AND($AA31<6,T31<>"",U31<>""),ort($T31,$U31,$AY$6:$AZ$7),"") ->  | AT31: =IF(AND($AA31=6,T31<>"",U31<>""),ort($T31,$U31,$AY$8:$AZ$8),"") ->  | AU31: =IF(AND($AA31=7,T31<>"",U31<>""),ort($T31,$U31,$AY$9:$AZ$9),"") ->  | BE31: 00:00:00
B32: Totaal Uren incl 150 % | L32: =IF(L31="","",IF(MONTH($M31+1)<>MONTH($M31),"",$M31+1)) -> 2018-05-30 | M32: =IF(M31="","",IF(MONTH($M31+1)<>MONTH($M31),"",$M31+1)) -> 2018-05-30 | O32: 00:00:00 | AA32: =IF(ISERROR(IF(NOT(ISERROR(MATCH($M32,Blad2!$A$2:$A$11,0))),7,WEEKDAY($M32,2))),"",IF(NOT(ISERROR(MATCH($M32,Blad2!$A$2:$A$11,0))),7,WEEKDAY($M32,2))) -> 3 | AB32: =IF(AND($AA32<6,N32<>"",O32<>""),ort($N32,$O32,$AY$3:$AZ$3),"") ->  | AC32: =IF(AND($AA32<6,N32<>"",O32<>""),ort($N32,$O32,$AY$4:$AZ$5),"") ->  | AD32: =IF(AND($AA32<6,N32<>"",O32<>""),ort($N32,$O32,$AY$6:$AZ$7),"") ->  | AE32: =IF(AND($AA32=6,N32<>"",O32<>""),ort($N32,$O32,$AY$8:$AZ$8),"") ->  | AF32: =IF(AND($AA32=7,N32<>"",O32<>""),ort($N32,$O32,$AY$9:$AZ$9),"") ->  | AG32: =IF(AND($AA32<6,P32<>"",Q32<>""),ort($P32,$Q32,$AY$3:$AZ$3),"") ->  | AH32: =IF(AND($AA32<6,P32<>"",Q32<>""),ort($P32,$Q32,$AY$4:$AZ$5),"") ->  | AI32: =IF(AND($AA32<6,P32<>"",Q32<>""),ort($P32,$Q32,$AY$6:$AZ$7),"") ->  | AJ32: =IF(AND($AA32=6,P32<>"",Q32<>""),ort($P32,$Q32,$AY$8:$AZ$8),"") ->  | AK32: =IF(AND($AA32=7,P32<>"",Q32<>""),ort($P32,$Q32,$AY$9:$AZ$9),"") ->  | AL32: =IF(AND($AA32<6,R32<>"",S32<>""),ort($R32,$S32,$AY$3:$AZ$3),"") ->  | AM32: =IF(AND($AA32<6,R32<>"",S32<>""),ort($R32,$S32,$AY$4:$AZ$5),"") ->  | AN32: =IF(AND($AA32<6,R32<>"",S32<>""),ort($R32,$S32,$AY$6:$AZ$7),"") ->  | AO32: =IF(AND($AA32=6,R32<>"",S32<>""),ort($R32,$S32,$AY$8:$AZ$8),"") ->  | AP32: =IF(AND($AA32=7,R32<>"",S32<>""),ort($R32,$S32,$AY$9:$AZ$9),"") ->  | AQ32: =IF(AND($AA32<6,T32<>"",U32<>""),ort($T32,$U32,$AY$3:$AZ$3),"") ->  | AR32: =IF(AND($AA32<6,T32<>"",U32<>""),ort($T32,$U32,$AY$4:$AZ$5),"") ->  | AS32: =IF(AND($AA32<6,T32<>"",U32<>""),ort($T32,$U32,$AY$6:$AZ$7),"") ->  | AT32: =IF(AND($AA32=6,T32<>"",U32<>""),ort($T32,$U32,$AY$8:$AZ$8),"") ->  | AU32: =IF(AND($AA32=7,T32<>"",U32<>""),ort($T32,$U32,$AY$9:$AZ$9),"") ->  | BE32: 00:00:00
